Workbook

Sheet START

Sheet Instructions
D2: 2020
X4: Yes
X5: No
W7: Type of Entities Range:
X8: Parent Municipality
X9: Consolidated Information
W17: MTREF Range: | X17: 2008
X18: 2009
X19: 2010
X20: 2011
X21: 2012
X22: 2013
X23: 2014
X24: 2015
X25: 2016
X26: 2017
X27: 2018
X28: 2019
X29: 2020
X30: 2021
X31: 2022
W33: MTREF Linked: | X33: 13
W34: MTREF: | X34: =INDEX(X17:X31,X33,1) -> 2020
W36: Fin Year: | X36: =MTREF&"/"&RIGHT(MTREF,2)+1 -> 2020/21

Sheet Template names (hidden)
A1: Common sheet headings
A2: Head1 | B2: =HLOOKUP(MTREF,Headings,2) -> 2018/19 | C2: Prior year -1
A3: Head1A | B3: =HLOOKUP(MTREF,Headings,3) -> 2017/18 | C3: Prior year -2
A4: Head1B | B4: =HLOOKUP(MTREF,Headings,4) -> 2016/17 | C4: Prior year -3
A5: Head2 | B5: =HLOOKUP(MTREF,Headings,5) -> Current Year 2019/20 | C5: Year in which budget is being prepared
A6: Head2A | B6: =HLOOKUP(MTREF,Headings,6) -> 2019/20 | C6: Year in which budget is being prepared
A7: Head3 | B7: =HLOOKUP(MTREF,Headings,7) -> 2020/21 Medium Term Revenue & Expenditure Framework | C7: MTREF name
A8: Head4 | B8: LTFS | C8: Long term financial strategy
A9: Head5 | B9: Audited Outcome
A10: Head5A | B10: Outcome
A11: Head5B | B11: Pre-audit outcome
A12: Head6 | B12: Original Budget
A13: Head7 | B13: Adjusted Budget
A14: Head8 | B14: Full Year Forecast
A15: Head9 | B15: =HLOOKUP(MTREF,Headings,8) -> Budget Year 2020/21 | C15: 1st year of MTREF | D15: Year1
A16: Head10 | B16: =HLOOKUP(MTREF,Headings,9) -> Budget Year +1 2021/22 | C16: 2nd year of MTREF | D16: Year2
A17: Head11 | B17: =HLOOKUP(MTREF,Headings,10) -> Budget Year +2 2022/23 | C17: 3rd year of MTREF | D17: Year3
A18: Head12 | B18: =HLOOKUP(MTREF,Headings,11) -> Forecast 2023/24 | C18: 1st yr of long term forecast | D18: Year4
A19: Head13 | B19: =HLOOKUP(MTREF,Headings,12) -> Forecast 2024/25 | C19: Next yr of long term forecast | D19: Year5
A20: Head14 | B20: =HLOOKUP(MTREF,Headings,13) -> Forecast 2025/26 | C20: Next yr of long term forecast | D20: Year6
A21: Head15 | B21: =HLOOKUP(MTREF,Headings,14) -> Forecast 2026/27 | C21: Next yr of long term forecast | D21: Year7
A22: Head16 | B22: =HLOOKUP(MTREF,Headings,15) -> Forecast 2027/28 | C22: Next yr of long term forecast | D22: Year8
A23: Head17 | B23: =HLOOKUP(MTREF,Headings,16) -> Forecast 2028/29 | C23: Next yr of long term forecast | D23: Year9
A24: Head18 | B24: =HLOOKUP(MTREF,Headings,17) -> Forecast 2029/30 | C24: Next yr of long term forecast | D24: Year10
A25: Head19 | B25: =HLOOKUP(MTREF,Headings,18) -> Forecast 2030/31 | C25: Next yr of long term forecast | D25: Year11
A26: Head20 | B26: =HLOOKUP(MTREF,Headings,19) -> Forecast 2031/32 | C26: Next yr of long term forecast | D26: Year12
A27: Head21 | B27: =HLOOKUP(MTREF,Headings,20) -> Forecast 2032/33 | C27: Next yr of long term forecast | D27: Year13
A28: Head22 | B28: =HLOOKUP(MTREF,Headings,21) -> Forecast 2033/34 | C28: Next yr of long term forecast | D28: Year14
A29: Head23 | B29: =HLOOKUP(MTREF,Headings,22) -> Forecast 2034/35 | C29: Next yr of long term forecast | D29: Year15
A30: Head24 | B30: Description
A31: Head25
A32: Head26 | B32: Vote Description
A33: Head27 | B33: Ref
A34: Head27a | B34: References
A35: Head28 | B35: Surplus/(Deficit) for the year | D35: Result
A36: Head29 | B36: =HLOOKUP(MTREF,Headings,23) -> Annual target 2020/21
A37: Head30 | B37: =HLOOKUP(MTREF,Headings,24) -> Revised target 2020/21
A38: Head31 | B38: Quarter ended 30 September
A39: Head32 | B39: Quarter ended 31 December
A40: Head33 | B40: Quarter ended 31 March
A41: Head34 | B41: Quarter ended 30 June
A42: Head35 | B42: Variance explanation
A43: Head36 | B43: YTD Actual 31 Dec
A44: Head37 | B44: YTD Budget 31 Dec
A45: Head38 | B45: Monthly actual
A46: Head39 | B46: YTD actual
A47: Head40 | B47: YTD budget
A48: Head41 | B48: YTD variance
A49: Head42 | B49: Surplus/ (Deficit) for the yr/period
A50: Head43 | B50: =Head3&" Summary" -> 2020/21 Medium Term Revenue & Expenditure Framework Summary
A51: Head44 | B51: 2001 Census
A52: Head45 | B52: 2011 Census
A53: Head46 | B53: - Adjustments Budget - January 2007
A54: Head47 | B54: Previous target year to complete
A55: Head48 | B55: Present value
A56: Head49
A57: Head50 | B57: Other Adjusts.
A58: Head51 | B58: Accum. Funds
A59: Head52 | B59: Multi-year capital
A60: Head53 | B60: Unfore. Unavoid.
A61: Head54 | B61: Prior Adjusted
A62: Head55 | B62: Nat. or Prov. Govt
... 75 more rows

Sheet Lookup and lists (hidden)
A1: Description | B1: 2007 | C1: 2008 | D1: 2009 | E1: 2010 | F1: 2011 | G1: 2012 | H1: 2013 | I1: 2014 | J1: 2015 | K1: 2016 | L1: 2017 | M1: 2018 | N1: 2019 | O1: 2020 | Q1: Lists | Y1: Grants: | Z1: National - opex | AA1: Provincial - opex | AB1: National - capex | AC1: Provincial - capex
A2: ='Template names'!C2 -> Prior year -1 | B2: 2005/06 | C2: 2006/07 | D2: 2007/08 | E2: =E1-2&"/"&RIGHT(E1,2)-1 -> 2008/9 | F2: 2009/10 | G2: 2010/11 | H2: 2011/12 | I2: 2012/13 | J2: 2013/14 | K2: 2014/15 | L2: 2015/16 | M2: 2016/17 | N2: 2017/18 | O2: 2018/19 | Q2: Yes | R2: <1 | S2: <4 | T2: Market | U2: Land & impr. | V2: Yes | W2: Uniform | X2: Yrs | Z2: Local Government Equitable Share | AA2: Health subsidy | AB2: Municipal Infrastructure Grant (MIG) | AC2: Agriculture
A3: ='Template names'!C3 -> Prior year -2 | B3: 2004/05 | C3: 2005/06 | D3: 2006/07 | E3: =E1-3&"/"&RIGHT(E1,2)-2 -> 2007/8 | F3: 2008/9 | G3: 2009/10 | H3: 2010/11 | I3: 2011/12 | J3: 2012/13 | K3: 2013/14 | L3: 2014/15 | M3: 2015/16 | N3: 2016/17 | O3: 2017/18 | Q3: No | R3: 1 | S3: 4 | T3: Dep.Replace | U3: Land only | V3: No | W3: Variable | X3: Mths | Z3: RSC Levy Replacement | AA3: Ambulance subsidy | AB3: Public Transport and Systems | AC3: Education
A4: ='Template names'!C4 -> Prior year -3 | B4: 2003/04 | C4: 2004/05 | D4: 2005/06 | E4: =E1-4&"/"&RIGHT(E1,2)-3 -> 2006/7 | F4: 2007/8 | G4: 2008/9 | H4: 2009/10 | I4: 2010/11 | J4: 2011/12 | K4: 2012/13 | L4: 2013/14 | M4: 2014/15 | N4: 2015/16 | O4: 2016/17 | R4: 2 | S4: 5 | T4: Other | U4: Other | Z4: Finance Management | AA4: Housing | AB4: Rural Transport Services and Infrastructure | AC4: Health
A5: ='Template names'!C5 -> Year in which budget is being prepared | B5: Current Year 2006/07 | C5: Current Year 2007/08 | D5: Current Year 2008/09 | E5: ="Current Year "& E1-1&"/"&RIGHT(E1,2) -> Current Year 2009/10 | F5: Current Year 2010/11 | G5: Current Year 2011/12 | H5: Current Year 2012/13 | I5: Current Year 2013/14 | J5: Current Year 2014/15 | K5: Current Year 2015/16 | L5: Current Year 2016/17 | M5: Current Year 2017/18 | N5: Current Year 2018/19 | O5: Current Year 2019/20 | R5: 3 | S5: 6 | Z5: Municipal Systems Improvement | AA5: Sport and Recreation | AB5: Regional Bulk Infrastructure | AC5: Housing and Local Government
A6: ='Template names'!C6 -> Year in which budget is being prepared | B6: 2006/07 | C6: 2007/08 | D6: 2008/09 | E6: =E1-1&"/"&RIGHT(E1,2) -> 2009/10 | F6: 2010/11 | G6: 2011/12 | H6: 2012/13 | I6: 2013/14 | J6: 2014/15 | K6: 2015/16 | L6: 2016/17 | M6: 2017/18 | N6: 2018/19 | O6: 2019/20 | R6: 4 | S6: 6-10 | Z6: Water Services Operating Subsidy | AB6: Rural Households Infrastructure | AC6: Other Departments
A7: ='Template names'!C7 -> MTREF name | B7: 2007/08 Medium Term Revenue & Expenditure Framework | C7: 2008/09 Medium Term Revenue & Expenditure Framework | D7: 2009/10 Medium Term Revenue & Expenditure Framework | E7: =E1&"/"&RIGHT(E1,2)+1&" Medium Term Revenue & Expenditure Framework" -> 2010/11 Medium Term Revenue & Expenditure Framework | F7: 2011/12 Medium Term Revenue & Expenditure Framework | G7: 2012/13 Medium Term Revenue & Expenditure Framework | H7: 2013/14 Medium Term Revenue & Expenditure Framework | I7: 2014/15 Medium Term Revenue & Expenditure Framework | J7: 2015/16 Medium Term Revenue & Expenditure Framework | K7: 2016/17 Medium Term Revenue & Expenditure Framework | L7: 2017/18 Medium Term Revenue & Expenditure Framework | M7: 2018/19 Medium Term Revenue & Expenditure Framework | N7: 2019/20 Medium Term Revenue & Expenditure Framework | O7: 2020/21 Medium Term Revenue & Expenditure Framework | R7: 5 | S7: >10 | Z7: Energy Efficiency and Demand Management | AB7: Neighbourhood Development Partnership | AC7: Public Works, Roads, Transport
A8: ='Template names'!C15 -> 1st year of MTREF | B8: Budget Year 2007/08 | C8: Budget Year 2008/09 | D8: Budget Year 2009/10 | E8: ="Budget Year "&E1&"/"&RIGHT(E1,2)+1 -> Budget Year 2010/11 | F8: Budget Year 2011/12 | G8: Budget Year 2012/13 | H8: Budget Year 2013/14 | I8: Budget Year 2014/15 | J8: Budget Year 2015/16 | K8: Budget Year 2016/17 | L8: Budget Year 2017/18 | M8: Budget Year 2018/19 | N8: Budget Year 2019/20 | O8: Budget Year 2020/21 | R8: >5 | Z8: Integrated National Electrification Programme | AB8: 2010 FIFA World Cup Stadiums Development | AC8: Sport and Recreation
A9: ='Template names'!C16 -> 2nd year of MTREF | B9: Budget Year +1 2008/09 | C9: Budget Year +1 2009/10 | D9: Budget Year +1 2010/11 | E9: ="Budget Year +1 "&E1+1&"/"&RIGHT(E1,2)+2 -> Budget Year +1 2011/12 | F9: Budget Year +1 2012/13 | G9: Budget Year +1 2013/14 | H9: Budget Year +1 2014/15 | I9: Budget Year +1 2015/16 | J9: Budget Year +1 2016/17 | K9: Budget Year +1 2017/18 | L9: Budget Year +1 2018/19 | M9: Budget Year +1 2019/20 | N9: Budget Year +1 2020/21 | O9: Budget Year +1 2021/22 | Z9: Municipal Drought Relief
A10: ='Template names'!C17 -> 3rd year of MTREF | B10: Budget Year +2 2009/10 | C10: Budget Year +2 2010/11 | D10: Budget Year +2 2011/12 | E10: ="Budget Year +2 "&E1+2&"/"&RIGHT(E1,2)+3 -> Budget Year +2 2012/13 | F10: Budget Year +2 2013/14 | G10: Budget Year +2 2014/15 | H10: Budget Year +2 2015/16 | I10: Budget Year +2 2016/17 | J10: Budget Year +2 2017/18 | K10: Budget Year +2 2018/19 | L10: Budget Year +2 2019/20 | M10: Budget Year +2 2020/21 | N10: Budget Year +2 2021/22 | O10: Budget Year +2 2022/23 | Z10: 2010 FIFA World Cup Operating
A11: ='Template names'!C18 -> 1st yr of long term forecast | B11: Forecast 2010/11 | C11: Forecast 2011/12 | D11: Forecast 2012/13 | E11: ="Forecast "&E1+3&"/"&RIGHT(E1,2)+4 -> Forecast 2013/14 | F11: Forecast 2014/15 | G11: Forecast 2015/16 | H11: Forecast 2016/17 | I11: Forecast 2017/18 | J11: Forecast 2018/19 | K11: Forecast 2019/20 | L11: Forecast 2020/21 | M11: Forecast 2021/22 | N11: Forecast 2022/23 | O11: Forecast 2023/24 | Z11: Electricity Demand Side Management
A12: ='Template names'!C19 -> Next yr of long term forecast | B12: Forecast 2011/12 | C12: Forecast 2012/13 | D12: Forecast 2013/14 | E12: ="Forecast "&E1+4&"/"&RIGHT(E1,2)+5 -> Forecast 2014/15 | F12: Forecast 2015/16 | G12: Forecast 2016/17 | H12: Forecast 2017/18 | I12: Forecast 2018/19 | J12: Forecast 2019/20 | K12: Forecast 2020/21 | L12: Forecast 2021/22 | M12: Forecast 2022/23 | N12: Forecast 2023/24 | O12: Forecast 2024/25 | Z12: EPWP Incentive
A13: ='Template names'!C20 -> Next yr of long term forecast | B13: Forecast 2012/13 | C13: Forecast 2013/14 | D13: Forecast 2014/15 | E13: ="Forecast "&E1+5&"/"&RIGHT(E1,2)+6 -> Forecast 2015/16 | F13: Forecast 2016/17 | G13: Forecast 2017/18 | H13: Forecast 2018/19 | I13: Forecast 2019/20 | J13: Forecast 2020/21 | K13: Forecast 2021/22 | L13: Forecast 2022/23 | M13: Forecast 2023/24 | N13: Forecast 2024/25 | O13: Forecast 2025/26
A14: ='Template names'!C21 -> Next yr of long term forecast | B14: Forecast 2013/14 | C14: Forecast 2014/15 | D14: Forecast 2015/16 | E14: ="Forecast "&E1+6&"/"&RIGHT(E1,2)+7 -> Forecast 2016/17 | F14: Forecast 2017/18 | G14: Forecast 2018/19 | H14: Forecast 2019/20 | I14: Forecast 2020/21 | J14: Forecast 2021/22 | K14: Forecast 2022/23 | L14: Forecast 2023/24 | M14: Forecast 2024/25 | N14: Forecast 2025/26 | O14: Forecast 2026/27 | Z14: Asset Class | AA14: Asset sub-class old | AB14: Asset sub-class
A15: ='Template names'!C22 -> Next yr of long term forecast | B15: Forecast 2014/15 | C15: Forecast 2015/16 | D15: Forecast 2016/17 | E15: ="Forecast "&E1+7&"/"&RIGHT(E1,2)+8 -> Forecast 2017/18 | F15: Forecast 2018/19 | G15: Forecast 2019/20 | H15: Forecast 2020/21 | I15: Forecast 2021/22 | J15: Forecast 2022/23 | K15: Forecast 2023/24 | L15: Forecast 2024/25 | M15: Forecast 2025/26 | N15: Forecast 2026/27 | O15: Forecast 2027/28
A16: ='Template names'!C23 -> Next yr of long term forecast | B16: Forecast 2015/16 | C16: Forecast 2016/17 | D16: Forecast 2017/18 | E16: ="Forecast "&E1+8&"/"&RIGHT(E1,2)+9 -> Forecast 2018/19 | F16: Forecast 2019/20 | G16: Forecast 2020/21 | H16: Forecast 2021/22 | I16: Forecast 2022/23 | J16: Forecast 2023/24 | K16: Forecast 2024/25 | L16: Forecast 2025/26 | M16: Forecast 2026/27 | N16: Forecast 2027/28 | O16: Forecast 2028/29 | Z16: Roads Infrastructure | AA16: Roads, Pavements & Bridges | AB16: Roads
A17: ='Template names'!C24 -> Next yr of long term forecast | B17: Forecast 2016/17 | C17: Forecast 2017/18 | D17: Forecast 2018/19 | E17: ="Forecast "&E1+9&"/"&RIGHT(E1,2)+10 -> Forecast 2019/20 | F17: Forecast 2020/21 | G17: Forecast 2021/22 | H17: Forecast 2022/23 | I17: Forecast 2023/24 | J17: Forecast 2024/25 | K17: Forecast 2025/26 | L17: Forecast 2026/27 | M17: Forecast 2027/28 | N17: Forecast 2028/29 | O17: Forecast 2029/30 | Z17: Storm water Infrastructure | AA17: Storm water | AB17: Road Structures
A18: ='Template names'!C25 -> Next yr of long term forecast | B18: Forecast 2017/18 | C18: Forecast 2018/19 | D18: Forecast 2019/20 | E18: ="Forecast "&E1+10&"/"&RIGHT(E1,2)+11 -> Forecast 2020/21 | F18: Forecast 2021/22 | G18: Forecast 2022/23 | H18: Forecast 2023/24 | I18: Forecast 2024/25 | J18: Forecast 2025/26 | K18: Forecast 2026/27 | L18: Forecast 2027/28 | M18: Forecast 2028/29 | N18: Forecast 2029/30 | O18: Forecast 2030/31 | Z18: Electrical Infrastructure | AA18: Generation | AB18: Road Furniture
A19: ='Template names'!C26 -> Next yr of long term forecast | B19: Forecast 2018/19 | C19: Forecast 2019/20 | D19: Forecast 2020/21 | E19: ="Forecast "&E1+11&"/"&RIGHT(E1,2)+12 -> Forecast 2021/22 | F19: Forecast 2022/23 | G19: Forecast 2023/24 | H19: Forecast 2024/25 | I19: Forecast 2025/26 | J19: Forecast 2026/27 | K19: Forecast 2027/28 | L19: Forecast 2028/29 | M19: Forecast 2029/30 | N19: Forecast 2030/31 | O19: Forecast 2031/32 | Z19: Water Supply Infrastructure | AA19: Transmission & Reticulation | AB19: Capital Spares
A20: ='Template names'!C27 -> Next yr of long term forecast | B20: Forecast 2019/20 | C20: Forecast 2020/21 | D20: Forecast 2021/22 | E20: ="Forecast "&E1+12&"/"&RIGHT(E1,2)+13 -> Forecast 2022/23 | F20: Forecast 2023/24 | G20: Forecast 2024/25 | H20: Forecast 2025/26 | I20: Forecast 2026/27 | J20: Forecast 2027/28 | K20: Forecast 2028/29 | L20: Forecast 2029/30 | M20: Forecast 2030/31 | N20: Forecast 2031/32 | O20: Forecast 2032/33 | Z20: Sanitation Infrastructure | AA20: Street Lighting | AB20: Drainage Collection
A21: ='Template names'!C28 -> Next yr of long term forecast | B21: Forecast 2020/21 | C21: Forecast 2021/22 | D21: Forecast 2022/23 | E21: ="Forecast "&E1+13&"/"&RIGHT(E1,2)+14 -> Forecast 2023/24 | F21: Forecast 2024/25 | G21: Forecast 2025/26 | H21: Forecast 2026/27 | I21: Forecast 2027/28 | J21: Forecast 2028/29 | K21: Forecast 2029/30 | L21: Forecast 2030/31 | M21: Forecast 2031/32 | N21: Forecast 2032/33 | O21: Forecast 2033/34 | Z21: Solid Waste Infrastructure | AA21: Dams & Reservoirs | AB21: Storm water Conveyance
A22: ='Template names'!C29 -> Next yr of long term forecast | B22: Forecast 2021/22 | C22: Forecast 2022/23 | D22: Forecast 2023/24 | E22: ="Forecast "&E1+14&"/"&RIGHT(E1,2)+15 -> Forecast 2024/25 | F22: Forecast 2025/26 | G22: Forecast 2026/27 | H22: Forecast 2027/28 | I22: Forecast 2028/29 | J22: Forecast 2029/30 | K22: Forecast 2030/31 | L22: Forecast 2031/32 | M22: Forecast 2032/33 | N22: Forecast 2033/34 | O22: Forecast 2034/35 | Z22: Rail Infrastructure | AA22: Water purification | AB22: Attenuation
A23: Adjustments Budget | B23: Annual target 2007/08 | C23: Annual target 2008/09 | D23: Annual target 2009/10 | E23: ="Annual target " & E1&"/"&RIGHT(E1,2)+1 -> Annual target 2010/11 | F23: Annual target 2011/12 | G23: Annual target 2012/13 | H23: Annual target 2013/14 | I23: Annual target 2014/15 | J23: Annual target 2015/16 | K23: Annual target 2016/17 | L23: Annual target 2017/18 | M23: Annual target 2018/19 | N23: Annual target 2019/20 | O23: Annual target 2020/21 | Z23: Coastal Infrastructure | AA23: Reticulation | AB23: Power Plants
A24: =A23 -> Adjustments Budget | B24: Revised target 2007/08 | C24: Revised target 2008/09 | D24: Revised target 2009/10 | E24: ="Revised target "& E1&"/"&RIGHT(E1,2)+1 -> Revised target 2010/11 | F24: Revised target 2011/12 | G24: Revised target 2012/13 | H24: Revised target 2013/14 | I24: Revised target 2014/15 | J24: Revised target 2015/16 | K24: Revised target 2016/17 | L24: Revised target 2017/18 | M24: Revised target 2018/19 | N24: Revised target 2019/20 | O24: Revised target 2020/21 | Z24: Information and Communication Infrastructure | AA24: Sewerage purification | AB24: HV Substations
A25: NOTE: This sheet should not be directly amended - select headings from sheet 'S' | Z25: Community Facilities | AA25: Waste Management | AB25: HV Switching Station
Z26: Sport and Recreation Facilities | AA26: Transportation | AB26: HV Transmission Conductors
A27: Name link | B27: 201 | Z27: Heritage assets | AA27: Gas | AB27: MV Substations
A28: Name of Muni | B28: =INDEX(B29:B307,B27,1) -> DC8 Z F Mgcawu | Z28: Revenue Generating | AA28: Parks & gardens | AB28: MV Switching Stations
B29: Choose name from list | C29: Set name on 'Instructions' sheet | Z29: Non-revenue Generating | AA29: Sportsfields & stadia | AB29: MV Networks
B30: BUF Buffalo City | C30: EC EASTERN CAPE | Z30: Operational Buildings | AA30: Swimming pools | AB30: LV Networks
B31: NMA Nelson Mandela Bay | C31: EC EASTERN CAPE | Z31: Housing | AA31: Community halls | AB31: Capital Spares
B32: EC101 Dr. Beyers Naude | C32: EC EASTERN CAPE | Z32: Biological or Cultivated Assets | AA32: Libraries | AB32: Dams and Weirs
B33: EC102 Blue Crane Route | C33: EC EASTERN CAPE | Z33: Servitudes | AA33: Recreational facilities | AB33: Boreholes
B34: EC104 Makana | C34: EC EASTERN CAPE | Z34: Licences and Rights | AA34: Fire, safety & emergency | AB34: Reservoirs
B35: EC105 Ndlambe | C35: EC EASTERN CAPE | Z35: Computer Equipment | AA35: Security and policing | AB35: Pump Stations
B36: EC106 Sundays River Valley | C36: EC EASTERN CAPE | Z36: Furniture and Office Equipment | AA36: Buses | AB36: Water Treatment Works
B37: EC108 Kouga | C37: EC EASTERN CAPE | Z37: Machinery and Equipment | AA37: Clinics | AB37: Bulk Mains
B38: EC109 Kou-Kamma | C38: EC EASTERN CAPE | Z38: Transport Assets | AA38: Museums & Art Galleries | AB38: Distribution
B39: DC10 Sarah Baartman | C39: EC EASTERN CAPE | Z39: Libraries | AA39: Cemeteries | AB39: Distribution Points
B40: EC121 Mbhashe | C40: EC EASTERN CAPE | Z40: Zoo's, Marine and Non-biological Animals | AA40: Social rental housing | AB40: PRV Stations
B41: EC122 Mnquma | C41: EC EASTERN CAPE | AA41: Buildings | AB41: Capital Spares
B42: EC123 Great Kei | C42: EC EASTERN CAPE | AA42: Housing development | AB42: Pump Station
B43: EC124 Amahlathi | C43: EC EASTERN CAPE | AA43: General vehicles | AB43: Reticulation
B44: EC126 Ngqushwa | C44: EC EASTERN CAPE | AA44: Specialised vehicles - Refuse | AB44: Waste Water Treatment Works
B45: EC129 Raymond Mhlaba | C45: EC EASTERN CAPE | AA45: Specialised vehicles - Fire | AB45: Outfall Sewers
B46: DC12 Amathole | C46: EC EASTERN CAPE | AA46: Specialised vehicles - Conservancy | AB46: Toilet Facilities
B47: EC131 Inxuba Yethemba | C47: EC EASTERN CAPE | AA47: Specialised vehicles - Ambulances | AB47: Capital Spares
B48: EC135 Intsika Yethu | C48: EC EASTERN CAPE | AA48: Plant & equipment | AB48: Landfill Sites
B49: EC136 Emalahleni (Ec) | C49: EC EASTERN CAPE | AA49: Computers - hardware/equipment | AB49: Waste Transfer Stations
B50: EC137 Engcobo | C50: EC EASTERN CAPE | AA50: Furniture and other office equipment | AB50: Waste Processing Facilities
B51: EC138 Sakhisizwe | C51: EC EASTERN CAPE | AA51: Abattoirs | AB51: Waste Drop-off Points
B52: EC139 Enoch Mgijima | C52: EC EASTERN CAPE | AA52: Markets | AB52: Waste Separation Facilities
B53: DC13 Chris Hani | C53: EC EASTERN CAPE | AA53: Civic Land and Buildings | AB53: Electricity Generation Facilities
B54: EC141 Elundini | C54: EC EASTERN CAPE | AA54: Other Buildings | AB54: Capital Spares
B55: EC142 Senqu | C55: EC EASTERN CAPE | AA55: Other Land | AB55: Rail Lines
B56: EC145 Walter Sisulu | C56: EC EASTERN CAPE | AA56: Surplus Assets - (Investment or Inventory) | AB56: Rail Structures
B57: DC14 Joe Gqabi | C57: EC EASTERN CAPE | AA57: Computers - software & programming | AB57: Rail Furniture
B58: EC153 Ngquza Hills | C58: EC EASTERN CAPE | AA58: Other | AB58: Drainage Collection
B59: EC154 Port St Johns | C59: EC EASTERN CAPE | AB59: Storm water Conveyance
B60: EC155 Nyandeni | C60: EC EASTERN CAPE | Z60: SA16 - Investments | AB60: Attenuation
B61: EC156 Mhlontlo | C61: EC EASTERN CAPE | Z61: Security | AA61: Interest rate | AB61: MV Substations
B62: EC157 King Sabata Dalindyebo | C62: EC EASTERN CAPE | Z62: Yes | AA62: Fixed | AB62: LV Networks
... 61 more rows

Sheet Org structure
A1: Organisational Structure Votes | C1: Organisational Structure Sub-Votes | E1: Display Sub-Votes
A2: =B2&" - "&C2 -> Vote 1 - EXECUTIVE AND COUNCIL | B2: Vote 1 | C2: EXECUTIVE AND COUNCIL
A3: =B13&" - "& C13 -> Vote 2 - BUDGET AND TREASURY OFFICE | B3: 1.1 | C3: Council Administration | D3: =CONCATENATE(B3, " - ", C3) -> 1.1 - Council Administration | E3: =IF(C3="[Name of sub-vote]"," ",D3) -> 1.1 - Council Administration
A4: =B24&" - "&C24 -> Vote 3 - CORPORATE SERVICES | B4: 1.2 | C4: Council Services | D4: 1.2 - Council Services | E4: =IF(C4="[Name of sub-vote]"," ",D4) -> 1.2 - Council Services
A5: =B35&" - "&C35 -> Vote 4 - TECHNICAL SERVICES | B5: 1.3 | C5: Donations | D5: 1.3 - Donations | E5: 1.3 - Donations
A6: =B46&" - "&C46 -> Vote 5 - [NAME OF VOTE 5] | B6: 1.4 | C6: Municipal Manager | D6: 1.4 - Municipal Manager | E6: 1.4 - Municipal Manager
A7: =B57&" - "&C57 -> Vote 6 - [NAME OF VOTE 6] | B7: 1.5 | C7: Internal Audit | D7: 1.5 - Internal Audit | E7: 1.5 - Internal Audit
A8: =B68&" - "&C68 -> Vote 7 - [NAME OF VOTE 7] | B8: 1.6 | C8: Risk Management | D8: 1.6 - Risk Management | E8: 1.6 - Risk Management
A9: =B79&" - "&C79 -> Vote 8 - [NAME OF VOTE 8] | B9: 1.7 | C9: PMS | D9: 1.7 - PMS | E9: 1.7 - PMS
A10: =B90&" - "&C90 -> Vote 9 - [NAME OF VOTE 9] | B10: 1.8 | C10: Communication & Liaison | D10: 1.8 - Communication & Liaison | E10: 1.8 - Communication & Liaison
A11: =B101&" - "&C101 -> Vote 10 - [NAME OF VOTE 10] | B11: 1.9 | C11: [Name of sub-vote] | D11: 1.9 - [Name of sub-vote]
A12: =B112&" - "&C112 -> Vote 11 - [NAME OF VOTE 11] | B12: 1.10 | C12: [Name of sub-vote] | D12: 1.10 - [Name of sub-vote]
A13: =B123&" - "&C123 -> Vote 12 - [NAME OF VOTE 12] | B13: Vote 2 | C13: BUDGET AND TREASURY OFFICE
A14: =B134&" - "&C134 -> Vote 13 - [NAME OF VOTE 13] | B14: 2.1 | C14: Vehicles | D14: =CONCATENATE(B14, " - ", C14) -> 2.1 - Vehicles | E14: =IF(C14="[Name of sub-vote]"," ",D14) -> 2.1 - Vehicles
A15: =B145&" - "&C145 -> Vote 14 - [NAME OF VOTE 14] | B15: 2.2 | C15: Financial Services | D15: 2.2 - Financial Services | E15: =IF(C15="[Name of sub-vote]"," ",D15) -> 2.2 - Financial Services
A16: =B156&" - "&C156 -> Vote 15 - [NAME OF VOTE 15] | B16: 2.3 | C16: Budget & Treasury Office | D16: 2.3 - Budget & Treasury Office | E16: 2.3 - Budget & Treasury Office
B17: 2.4 | C17: Expenditure Unit | D17: 2.4 - Expenditure Unit | E17: 2.4 - Expenditure Unit
B18: 2.5 | C18: Supply Chain Management | D18: 2.5 - Supply Chain Management | E18: 2.5 - Supply Chain Management
B19: 2.6 | C19: Asset Management Unit | D19: 2.6 - Asset Management Unit | E19: 2.6 - Asset Management Unit
B20: 2.7 | C20: [Name of sub-vote] | D20: 2.7 - [Name of sub-vote]
B21: 2.8 | C21: [Name of sub-vote] | D21: 2.8 - [Name of sub-vote]
B22: 2.9 | C22: [Name of sub-vote] | D22: 2.9 - [Name of sub-vote]
B23: 2.10 | C23: [Name of sub-vote] | D23: 2.10 - [Name of sub-vote]
B24: Vote 3 | C24: CORPORATE SERVICES
B25: 3.1 | C25: Information Technology | D25: =CONCATENATE(B25, " - ", C25) -> 3.1 - Information Technology | E25: =IF(C25="[Name of sub-vote]"," ",D25) -> 3.1 - Information Technology
B26: 3.2 | C26: Human Resources | D26: 3.2 - Human Resources | E26: =IF(C26="[Name of sub-vote]"," ",D26) -> 3.2 - Human Resources
B27: 3.3 | C27: Property Services | D27: 3.3 - Property Services | E27: 3.3 - Property Services
B28: 3.4 | C28: Administration | D28: 3.4 - Administration | E28: 3.4 - Administration
B29: 3.5 | C29: Security Services | D29: 3.5 - Security Services | E29: 3.5 - Security Services
B30: 3.6 | C30: [Name of sub-vote] | D30: 3.6 - [Name of sub-vote]
B31: 3.7 | C31: [Name of sub-vote] | D31: 3.7 - [Name of sub-vote]
B32: 3.8 | C32: [Name of sub-vote] | D32: 3.8 - [Name of sub-vote]
B33: 3.9 | C33: [Name of sub-vote] | D33: 3.9 - [Name of sub-vote]
B34: 3.10 | C34: [Name of sub-vote] | D34: 3.10 - [Name of sub-vote]
B35: Vote 4 | C35: TECHNICAL SERVICES
B36: 4.1 | C36: Disaster Mangement | D36: =CONCATENATE(B36, " - ", C36) -> 4.1 - Disaster Mangement | E36: =IF(C36="[Name of sub-vote]"," ",D36) -> 4.1 - Disaster Mangement
B37: 4.2 | C37: PIMMS | D37: 4.2 - PIMMS | E37: =IF(C37="[Name of sub-vote]"," ",D37) -> 4.2 - PIMMS
B38: 4.3 | C38: Technical Support Services | D38: 4.3 - Technical Support Services | E38: 4.3 - Technical Support Services
B39: 4.4 | C39: Tourism | D39: 4.4 - Tourism | E39: 4.4 - Tourism
B40: 4.5 | C40: LED | D40: 4.5 - LED | E40: 4.5 - LED
B41: 4.6 | C41: Engineering Services | D41: 4.6 - Engineering Services | E41: 4.6 - Engineering Services
B42: 4.7 | C42: Housing Accreditation | D42: 4.7 - Housing Accreditation | E42: 4.7 - Housing Accreditation
B43: 4.8 | C43: Environmental Health | D43: 4.8 - Environmental Health | E43: 4.8 - Environmental Health
B44: 4.9 | C44: [Name of sub-vote] | D44: 4.9 - [Name of sub-vote]
B45: 4.10 | C45: [Name of sub-vote] | D45: 4.10 - [Name of sub-vote]
B46: Vote 5 | C46: [NAME OF VOTE 5]
B47: 5.1 | C47: [Name of sub-vote] | D47: =CONCATENATE(B47, " - ", C47) -> 5.1 - [Name of sub-vote] | E47: =IF(C47="[Name of sub-vote]"," ",D47) -> 
B48: 5.2 | C48: [Name of sub-vote] | D48: 5.2 - [Name of sub-vote] | E48: =IF(C48="[Name of sub-vote]"," ",D48) -> 
B49: 5.3 | C49: [Name of sub-vote] | D49: 5.3 - [Name of sub-vote]
B50: 5.4 | C50: [Name of sub-vote] | D50: 5.4 - [Name of sub-vote]
B51: 5.5 | C51: [Name of sub-vote] | D51: 5.5 - [Name of sub-vote]
B52: 5.6 | C52: [Name of sub-vote] | D52: 5.6 - [Name of sub-vote]
B53: 5.7 | C53: [Name of sub-vote] | D53: 5.7 - [Name of sub-vote]
B54: 5.8 | C54: [Name of sub-vote] | D54: 5.8 - [Name of sub-vote]
B55: 5.9 | C55: [Name of sub-vote] | D55: 5.9 - [Name of sub-vote]
B56: 5.10 | C56: [Name of sub-vote] | D56: 5.10 - [Name of sub-vote]
B57: Vote 6 | C57: [NAME OF VOTE 6]
B58: 6.1 | C58: [Name of sub-vote] | D58: =CONCATENATE(B58, " - ", C58) -> 6.1 - [Name of sub-vote] | E58: =IF(C58="[Name of sub-vote]"," ",D58) -> 
B59: 6.2 | C59: [Name of sub-vote] | D59: 6.2 - [Name of sub-vote] | E59: =IF(C59="[Name of sub-vote]"," ",D59) -> 
B60: 6.3 | C60: [Name of sub-vote] | D60: 6.3 - [Name of sub-vote]
B61: 6.4 | C61: [Name of sub-vote] | D61: 6.4 - [Name of sub-vote]
B62: 6.5 | C62: [Name of sub-vote] | D62: 6.5 - [Name of sub-vote]
... 77 more rows

Sheet Contacts
A1: =muni&" - "&" Contact Information" -> DC8 Z F Mgcawu - Contact Information | E1: Sheet | F1: Code | G1: Check | H1: Code | I1: Sheet | J1: Check
E2: Contacts | I2: Contacts
A3: A. GENERAL INFORMATION
A4: Municipality | B4: =muni -> DC8 Z F Mgcawu | C4: =IF(B4="Choose name from List","Set name on 'Instructions' sheet", "") -> 
A6: Grade | B6: =VLOOKUP(G6,'Import Sheet Non-Financial'!$D:$V,15,0) -> 0 | C6: 1 Grade in terms of the Remuneration of Public Office Bearers Act. | E6: GEN | F6: -GRADE | G6: =VLOOKUP(CONCATENATE($E$2," ",E6,F6),'Import Sheet Non-Financial'!$D:$D,1,0) -> Contacts GEN-GRADE
A8: Province | B8: =IF(B4>" ",VLOOKUP(B4,'Lookup and lists'!B29:C307,2, FALSE)," ") -> NC NORTHERN CAPE
A10: Web Address | B10: =VLOOKUP(G10,'Import Sheet Non-Financial'!$D:$V,15,0) -> 0 | E10: GEN | F10: -WEB | G10: =VLOOKUP(CONCATENATE($E$2," ",E10,F10),'Import Sheet Non-Financial'!$D:$D,1,0) -> Contacts GEN-WEB
A12: E-mail Address | B12: =VLOOKUP(G12,'Import Sheet Non-Financial'!$D:$V,15,0) -> 0 | E12: GEN | F12: -EMAIL | G12: =VLOOKUP(CONCATENATE($E$2," ",E12,F12),'Import Sheet Non-Financial'!$D:$D,1,0) -> Contacts GEN-EMAIL
A14: B. CONTACT INFORMATION
A15: Postal address:
A16: P.O. Box | B16: =VLOOKUP(G16,'Import Sheet Non-Financial'!$D:$V,15,0) -> 0 | E16: PADD | F16: -PO | G16: =VLOOKUP(CONCATENATE($E$2," ",E16,F16),'Import Sheet Non-Financial'!$D:$D,1,0) -> Contacts PADD-PO
A17: City / Town | B17: =VLOOKUP(G17,'Import Sheet Non-Financial'!$D:$V,15,0) -> 0 | E17: PADD | F17: -CITY | G17: =VLOOKUP(CONCATENATE($E$2," ",E17,F17),'Import Sheet Non-Financial'!$D:$D,1,0) -> Contacts PADD-CITY
A18: Postal Code | B18: =VLOOKUP(G18,'Import Sheet Non-Financial'!$D:$V,15,0) -> 0 | E18: PADD | F18: -ZIP | G18: =VLOOKUP(CONCATENATE($E$2," ",E18,F18),'Import Sheet Non-Financial'!$D:$D,1,0) -> Contacts PADD-ZIP
A20: Street address
A21: Building | B21: =VLOOKUP(G21,'Import Sheet Non-Financial'!$D:$V,15,0) -> 0 | E21: SADD | F21: -BUILD | G21: =VLOOKUP(CONCATENATE($E$2," ",E21,F21),'Import Sheet Non-Financial'!$D:$D,1,0) -> Contacts SADD-BUILD
A22: Street No. & Name | B22: =VLOOKUP(G22,'Import Sheet Non-Financial'!$D:$V,15,0) -> 0 | E22: SADD | F22: -NAME | G22: =VLOOKUP(CONCATENATE($E$2," ",E22,F22),'Import Sheet Non-Financial'!$D:$D,1,0) -> Contacts SADD-NAME
A23: City / Town | B23: =VLOOKUP(G23,'Import Sheet Non-Financial'!$D:$V,15,0) -> 0 | E23: SADD | F23: -CITY | G23: =VLOOKUP(CONCATENATE($E$2," ",E23,F23),'Import Sheet Non-Financial'!$D:$D,1,0) -> Contacts SADD-CITY
A24: Postal Code | B24: =VLOOKUP(G24,'Import Sheet Non-Financial'!$D:$V,15,0) -> 0 | E24: SADD | F24: -ZIP | G24: =VLOOKUP(CONCATENATE($E$2," ",E24,F24),'Import Sheet Non-Financial'!$D:$D,1,0) -> Contacts SADD-ZIP
A26: General Contacts
A27: Telephone number | B27: =VLOOKUP(G27,'Import Sheet Non-Financial'!$D:$V,15,0) -> 0 | E27: GEN | F27: -TEL | G27: =VLOOKUP(CONCATENATE($E$2," ",E27,F27),'Import Sheet Non-Financial'!$D:$D,1,0) -> Contacts GEN-TEL
A28: Fax number | B28: =VLOOKUP(G28,'Import Sheet Non-Financial'!$D:$V,15,0) -> 0 | E28: GEN | F28: -FAX | G28: =VLOOKUP(CONCATENATE($E$2," ",E28,F28),'Import Sheet Non-Financial'!$D:$D,1,0) -> Contacts GEN-FAX
A30: C. POLITICAL LEADERSHIP
A31: Speaker: | C31: Secretary/PA to the Speaker:
A32: ID Number | B32: =VLOOKUP(G32,'Import Sheet Non-Financial'!$D:$V,15,0) -> 0 | C32: ID Number | D32: =VLOOKUP(J32,'Import Sheet Non-Financial'!$D:$V,15,0) -> 0 | E32: SPEAKER | F32: -ID | G32: =VLOOKUP(CONCATENATE($E$2," ",E32,F32),'Import Sheet Non-Financial'!$D:$D,1,0) -> Contacts SPEAKER-ID | H32: SPEAKER-PA | I32: -ID | J32: =VLOOKUP(CONCATENATE($I$2," ",H32,I32),'Import Sheet Non-Financial'!$D:$D,1,0) -> Contacts SPEAKER-PA-ID
A33: Title | B33: =VLOOKUP(G33,'Import Sheet Non-Financial'!$D:$V,15,0) -> 0 | C33: Title | D33: =VLOOKUP(J33,'Import Sheet Non-Financial'!$D:$V,15,0) -> 0 | E33: SPEAKER | F33: -TITLE | G33: =VLOOKUP(CONCATENATE($E$2," ",E33,F33),'Import Sheet Non-Financial'!$D:$D,1,0) -> Contacts SPEAKER-TITLE | H33: SPEAKER-PA | I33: -TITLE | J33: =VLOOKUP(CONCATENATE($I$2," ",H33,I33),'Import Sheet Non-Financial'!$D:$D,1,0) -> Contacts SPEAKER-PA-TITLE
A34: Name | B34: =VLOOKUP(G34,'Import Sheet Non-Financial'!$D:$V,15,0) -> 0 | C34: Name | D34: =VLOOKUP(J34,'Import Sheet Non-Financial'!$D:$V,15,0) -> 0 | E34: SPEAKER | F34: -NAME | G34: =VLOOKUP(CONCATENATE($E$2," ",E34,F34),'Import Sheet Non-Financial'!$D:$D,1,0) -> Contacts SPEAKER-NAME | H34: SPEAKER-PA | I34: -NAME | J34: =VLOOKUP(CONCATENATE($I$2," ",H34,I34),'Import Sheet Non-Financial'!$D:$D,1,0) -> Contacts SPEAKER-PA-NAME
A35: Telephone number | B35: =VLOOKUP(G35,'Import Sheet Non-Financial'!$D:$V,15,0) -> 0 | C35: Telephone number | D35: =VLOOKUP(J35,'Import Sheet Non-Financial'!$D:$V,15,0) -> 0 | E35: SPEAKER | F35: -TEL | G35: =VLOOKUP(CONCATENATE($E$2," ",E35,F35),'Import Sheet Non-Financial'!$D:$D,1,0) -> Contacts SPEAKER-TEL | H35: SPEAKER-PA | I35: -TEL | J35: =VLOOKUP(CONCATENATE($I$2," ",H35,I35),'Import Sheet Non-Financial'!$D:$D,1,0) -> Contacts SPEAKER-PA-TEL
A36: Cell number | B36: =VLOOKUP(G36,'Import Sheet Non-Financial'!$D:$V,15,0) -> 0 | C36: Cell number | D36: =VLOOKUP(J36,'Import Sheet Non-Financial'!$D:$V,15,0) -> 0 | E36: SPEAKER | F36: -CELL | G36: =VLOOKUP(CONCATENATE($E$2," ",E36,F36),'Import Sheet Non-Financial'!$D:$D,1,0) -> Contacts SPEAKER-CELL | H36: SPEAKER-PA | I36: -CELL | J36: =VLOOKUP(CONCATENATE($I$2," ",H36,I36),'Import Sheet Non-Financial'!$D:$D,1,0) -> Contacts SPEAKER-PA-CELL
A37: Fax number | B37: =VLOOKUP(G37,'Import Sheet Non-Financial'!$D:$V,15,0) -> 0 | C37: Fax number | D37: =VLOOKUP(J37,'Import Sheet Non-Financial'!$D:$V,15,0) -> 0 | E37: SPEAKER | F37: -FAX | G37: =VLOOKUP(CONCATENATE($E$2," ",E37,F37),'Import Sheet Non-Financial'!$D:$D,1,0) -> Contacts SPEAKER-FAX | H37: SPEAKER-PA | I37: -FAX | J37: =VLOOKUP(CONCATENATE($I$2," ",H37,I37),'Import Sheet Non-Financial'!$D:$D,1,0) -> Contacts SPEAKER-PA-FAX
A38: E-mail address | B38: =VLOOKUP(G38,'Import Sheet Non-Financial'!$D:$V,15,0) -> 0 | C38: E-mail address | D38: =VLOOKUP(J38,'Import Sheet Non-Financial'!$D:$V,15,0) -> 0 | E38: SPEAKER | F38: -EMAIL | G38: =VLOOKUP(CONCATENATE($E$2," ",E38,F38),'Import Sheet Non-Financial'!$D:$D,1,0) -> Contacts SPEAKER-EMAIL | H38: SPEAKER-PA | I38: -EMAIL | J38: =VLOOKUP(CONCATENATE($I$2," ",H38,I38),'Import Sheet Non-Financial'!$D:$D,1,0) -> Contacts SPEAKER-PA-EMAIL
A40: Mayor/Executive Mayor: | C40: Secretary/PA to the Mayor/Executive Mayor:
A41: ID Number | B41: =VLOOKUP(G41,'Import Sheet Non-Financial'!$D:$V,15,0) -> 0 | C41: ID Number | D41: =VLOOKUP(J41,'Import Sheet Non-Financial'!$D:$V,15,0) -> 0 | E41: MAYOR | F41: -ID | G41: =VLOOKUP(CONCATENATE($E$2," ",E41,F41),'Import Sheet Non-Financial'!$D:$D,1,0) -> Contacts MAYOR-ID | H41: MAYOR-PA | I41: -ID | J41: =VLOOKUP(CONCATENATE($I$2," ",H41,I41),'Import Sheet Non-Financial'!$D:$D,1,0) -> Contacts MAYOR-PA-ID
A42: Title | B42: =VLOOKUP(G42,'Import Sheet Non-Financial'!$D:$V,15,0) -> 0 | C42: Title | D42: =VLOOKUP(J42,'Import Sheet Non-Financial'!$D:$V,15,0) -> 0 | E42: MAYOR | F42: -TITLE | G42: =VLOOKUP(CONCATENATE($E$2," ",E42,F42),'Import Sheet Non-Financial'!$D:$D,1,0) -> Contacts MAYOR-TITLE | H42: MAYOR-PA | I42: -TITLE | J42: =VLOOKUP(CONCATENATE($I$2," ",H42,I42),'Import Sheet Non-Financial'!$D:$D,1,0) -> Contacts MAYOR-PA-TITLE
A43: Name | B43: =VLOOKUP(G43,'Import Sheet Non-Financial'!$D:$V,15,0) -> 0 | C43: Name | D43: =VLOOKUP(J43,'Import Sheet Non-Financial'!$D:$V,15,0) -> 0 | E43: MAYOR | F43: -NAME | G43: =VLOOKUP(CONCATENATE($E$2," ",E43,F43),'Import Sheet Non-Financial'!$D:$D,1,0) -> Contacts MAYOR-NAME | H43: MAYOR-PA | I43: -NAME | J43: =VLOOKUP(CONCATENATE($I$2," ",H43,I43),'Import Sheet Non-Financial'!$D:$D,1,0) -> Contacts MAYOR-PA-NAME
A44: Telephone number | B44: =VLOOKUP(G44,'Import Sheet Non-Financial'!$D:$V,15,0) -> 0 | C44: Telephone number | D44: =VLOOKUP(J44,'Import Sheet Non-Financial'!$D:$V,15,0) -> 0 | E44: MAYOR | F44: -TEL | G44: =VLOOKUP(CONCATENATE($E$2," ",E44,F44),'Import Sheet Non-Financial'!$D:$D,1,0) -> Contacts MAYOR-TEL | H44: MAYOR-PA | I44: -TEL | J44: =VLOOKUP(CONCATENATE($I$2," ",H44,I44),'Import Sheet Non-Financial'!$D:$D,1,0) -> Contacts MAYOR-PA-TEL
A45: Cell number | B45: =VLOOKUP(G45,'Import Sheet Non-Financial'!$D:$V,15,0) -> 0 | C45: Cell number | D45: =VLOOKUP(J45,'Import Sheet Non-Financial'!$D:$V,15,0) -> 0 | E45: MAYOR | F45: -CELL | G45: =VLOOKUP(CONCATENATE($E$2," ",E45,F45),'Import Sheet Non-Financial'!$D:$D,1,0) -> Contacts MAYOR-CELL | H45: MAYOR-PA | I45: -CELL | J45: =VLOOKUP(CONCATENATE($I$2," ",H45,I45),'Import Sheet Non-Financial'!$D:$D,1,0) -> Contacts MAYOR-PA-CELL
A46: Fax number | B46: =VLOOKUP(G46,'Import Sheet Non-Financial'!$D:$V,15,0) -> 0 | C46: Fax number | D46: =VLOOKUP(J46,'Import Sheet Non-Financial'!$D:$V,15,0) -> 0 | E46: MAYOR | F46: -FAX | G46: =VLOOKUP(CONCATENATE($E$2," ",E46,F46),'Import Sheet Non-Financial'!$D:$D,1,0) -> Contacts MAYOR-FAX | H46: MAYOR-PA | I46: -FAX | J46: =VLOOKUP(CONCATENATE($I$2," ",H46,I46),'Import Sheet Non-Financial'!$D:$D,1,0) -> Contacts MAYOR-PA-FAX
A47: E-mail address | B47: =VLOOKUP(G47,'Import Sheet Non-Financial'!$D:$V,15,0) -> 0 | C47: E-mail address | D47: =VLOOKUP(J47,'Import Sheet Non-Financial'!$D:$V,15,0) -> 0 | E47: MAYOR | F47: -EMAIL | G47: =VLOOKUP(CONCATENATE($E$2," ",E47,F47),'Import Sheet Non-Financial'!$D:$D,1,0) -> Contacts MAYOR-EMAIL | H47: MAYOR-PA | I47: -EMAIL | J47: =VLOOKUP(CONCATENATE($I$2," ",H47,I47),'Import Sheet Non-Financial'!$D:$D,1,0) -> Contacts MAYOR-PA-EMAIL
A49: Deputy Mayor/Executive Mayor: | C49: Secretary/PA to the Deputy Mayor/Executive Mayor:
A50: ID Number | B50: =VLOOKUP(G50,'Import Sheet Non-Financial'!$D:$V,15,0) -> 0 | C50: ID Number | D50: =VLOOKUP(J50,'Import Sheet Non-Financial'!$D:$V,15,0) -> 0 | E50: DEP-MAYOR | F50: -ID | G50: =VLOOKUP(CONCATENATE($E$2," ",E50,F50),'Import Sheet Non-Financial'!$D:$D,1,0) -> Contacts DEP-MAYOR-ID | H50: DEP-MAYOR-PA | I50: -ID | J50: =VLOOKUP(CONCATENATE($I$2," ",H50,I50),'Import Sheet Non-Financial'!$D:$D,1,0) -> Contacts DEP-MAYOR-PA-ID
A51: Title | B51: =VLOOKUP(G51,'Import Sheet Non-Financial'!$D:$V,15,0) -> 0 | C51: Title | D51: =VLOOKUP(J51,'Import Sheet Non-Financial'!$D:$V,15,0) -> 0 | E51: DEP-MAYOR | F51: -TITLE | G51: =VLOOKUP(CONCATENATE($E$2," ",E51,F51),'Import Sheet Non-Financial'!$D:$D,1,0) -> Contacts DEP-MAYOR-TITLE | H51: DEP-MAYOR-PA | I51: -TITLE | J51: =VLOOKUP(CONCATENATE($I$2," ",H51,I51),'Import Sheet Non-Financial'!$D:$D,1,0) -> Contacts DEP-MAYOR-PA-TITLE
A52: Name | B52: =VLOOKUP(G52,'Import Sheet Non-Financial'!$D:$V,15,0) -> 0 | C52: Name | D52: =VLOOKUP(J52,'Import Sheet Non-Financial'!$D:$V,15,0) -> 0 | E52: DEP-MAYOR | F52: -NAME | G52: =VLOOKUP(CONCATENATE($E$2," ",E52,F52),'Import Sheet Non-Financial'!$D:$D,1,0) -> Contacts DEP-MAYOR-NAME | H52: DEP-MAYOR-PA | I52: -NAME | J52: =VLOOKUP(CONCATENATE($I$2," ",H52,I52),'Import Sheet Non-Financial'!$D:$D,1,0) -> Contacts DEP-MAYOR-PA-NAME
A53: Telephone number | B53: =VLOOKUP(G53,'Import Sheet Non-Financial'!$D:$V,15,0) -> 0 | C53: Telephone number | D53: =VLOOKUP(J53,'Import Sheet Non-Financial'!$D:$V,15,0) -> 0 | E53: DEP-MAYOR | F53: -TEL | G53: =VLOOKUP(CONCATENATE($E$2," ",E53,F53),'Import Sheet Non-Financial'!$D:$D,1,0) -> Contacts DEP-MAYOR-TEL | H53: DEP-MAYOR-PA | I53: -TEL | J53: =VLOOKUP(CONCATENATE($I$2," ",H53,I53),'Import Sheet Non-Financial'!$D:$D,1,0) -> Contacts DEP-MAYOR-PA-TEL
A54: Cell number | B54: =VLOOKUP(G54,'Import Sheet Non-Financial'!$D:$V,15,0) -> 0 | C54: Cell number | D54: =VLOOKUP(J54,'Import Sheet Non-Financial'!$D:$V,15,0) -> 0 | E54: DEP-MAYOR | F54: -CELL | G54: =VLOOKUP(CONCATENATE($E$2," ",E54,F54),'Import Sheet Non-Financial'!$D:$D,1,0) -> Contacts DEP-MAYOR-CELL | H54: DEP-MAYOR-PA | I54: -CELL | J54: =VLOOKUP(CONCATENATE($I$2," ",H54,I54),'Import Sheet Non-Financial'!$D:$D,1,0) -> Contacts DEP-MAYOR-PA-CELL
A55: Fax number | B55: =VLOOKUP(G55,'Import Sheet Non-Financial'!$D:$V,15,0) -> 0 | C55: Fax number | D55: =VLOOKUP(J55,'Import Sheet Non-Financial'!$D:$V,15,0) -> 0 | E55: DEP-MAYOR | F55: -FAX | G55: =VLOOKUP(CONCATENATE($E$2," ",E55,F55),'Import Sheet Non-Financial'!$D:$D,1,0) -> Contacts DEP-MAYOR-FAX | H55: DEP-MAYOR-PA | I55: -FAX | J55: =VLOOKUP(CONCATENATE($I$2," ",H55,I55),'Import Sheet Non-Financial'!$D:$D,1,0) -> Contacts DEP-MAYOR-PA-FAX
A56: E-mail address | B56: =VLOOKUP(G56,'Import Sheet Non-Financial'!$D:$V,15,0) -> 0 | C56: E-mail address | D56: =VLOOKUP(J56,'Import Sheet Non-Financial'!$D:$V,15,0) -> 0 | E56: DEP-MAYOR | F56: -EMAIL | G56: =VLOOKUP(CONCATENATE($E$2," ",E56,F56),'Import Sheet Non-Financial'!$D:$D,1,0) -> Contacts DEP-MAYOR-EMAIL | H56: DEP-MAYOR-PA | I56: -EMAIL | J56: =VLOOKUP(CONCATENATE($I$2," ",H56,I56),'Import Sheet Non-Financial'!$D:$D,1,0) -> Contacts DEP-MAYOR-PA-EMAIL
A58: D. MANAGEMENT LEADERSHIP
A59: Municipal Manager: | C59: Secretary/PA to the Municipal Manager:
A60: ID Number | B60: =VLOOKUP(G60,'Import Sheet Non-Financial'!$D:$V,15,0) -> 0 | C60: ID Number | D60: =VLOOKUP(J60,'Import Sheet Non-Financial'!$D:$V,15,0) -> 0 | E60: MM | F60: -ID | G60: =VLOOKUP(CONCATENATE($E$2," ",E60,F60),'Import Sheet Non-Financial'!$D:$D,1,0) -> Contacts MM-ID | H60: MM-PA | I60: -ID | J60: =VLOOKUP(CONCATENATE($I$2," ",H60,I60),'Import Sheet Non-Financial'!$D:$D,1,0) -> Contacts MM-PA-ID
A61: Title | B61: =VLOOKUP(G61,'Import Sheet Non-Financial'!$D:$V,15,0) -> 0 | C61: Title | D61: =VLOOKUP(J61,'Import Sheet Non-Financial'!$D:$V,15,0) -> 0 | E61: MM | F61: -TITLE | G61: =VLOOKUP(CONCATENATE($E$2," ",E61,F61),'Import Sheet Non-Financial'!$D:$D,1,0) -> Contacts MM-TITLE | H61: MM-PA | I61: -TITLE | J61: =VLOOKUP(CONCATENATE($I$2," ",H61,I61),'Import Sheet Non-Financial'!$D:$D,1,0) -> Contacts MM-PA-TITLE
A62: Name | B62: =VLOOKUP(G62,'Import Sheet Non-Financial'!$D:$V,15,0) -> 0 | C62: Name | D62: =VLOOKUP(J62,'Import Sheet Non-Financial'!$D:$V,15,0) -> 0 | E62: MM | F62: -NAME | G62: =VLOOKUP(CONCATENATE($E$2," ",E62,F62),'Import Sheet Non-Financial'!$D:$D,1,0) -> Contacts MM-NAME | H62: MM-PA | I62: -NAME | J62: =VLOOKUP(CONCATENATE($I$2," ",H62,I62),'Import Sheet Non-Financial'!$D:$D,1,0) -> Contacts MM-PA-NAME
... 68 more rows

Sheet A1-Sum
A1: =muni&" - "&Approve1 -> DC8 Z F Mgcawu - Table A1 Budget Summary
A2: =desc -> Description | B2: =head1b -> 2016/17 | C2: =head1A -> 2017/18 | D2: =Head1 -> 2018/19 | E2: =Head2 -> Current Year 2019/20 | I2: =Head3 -> 2020/21 Medium Term Revenue & Expenditure Framework | L2: Check
A3: R thousands | B3: =Head5 -> Audited Outcome | C3: =Head5 -> Audited Outcome | D3: =Head5 -> Audited Outcome | E3: =Head6 -> Original Budget | F3: =Head7 -> Adjusted Budget | G3: =Head8 -> Full Year Forecast | H3: =Head5b -> Pre-audit outcome | I3: =Head9 -> Budget Year 2020/21 | J3: =Head10 -> Budget Year +1 2021/22 | K3: =Head11 -> Budget Year +2 2022/23
A4: Financial Performance
A5: Property rates | B5: ='A4-FinPerf RE'!C5 -> 0 | C5: ='A4-FinPerf RE'!D5 -> 0 | D5: ='A4-FinPerf RE'!E5 -> 0 | E5: ='A4-FinPerf RE'!F5 -> 0 | F5: ='A4-FinPerf RE'!G5 -> 0 | G5: ='A4-FinPerf RE'!H5 -> 0 | H5: ='A4-FinPerf RE'!I5 -> 0 | I5: ='A4-FinPerf RE'!J5 -> 0 | J5: ='A4-FinPerf RE'!K5 -> 0 | K5: ='A4-FinPerf RE'!L5 -> 0 | L5: Link from A4 0200
A6: Service charges | B6: =SUM('A4-FinPerf RE'!C6:C10) -> 0 | C6: =SUM('A4-FinPerf RE'!D6:D10) -> 0 | D6: =SUM('A4-FinPerf RE'!E6:E10) -> 0 | E6: =SUM('A4-FinPerf RE'!F6:F10) -> 0 | F6: =SUM('A4-FinPerf RE'!G6:G10) -> 0 | G6: =SUM('A4-FinPerf RE'!H6:H10) -> 0 | H6: =SUM('A4-FinPerf RE'!I6:I10) -> 0 | I6: =SUM('A4-FinPerf RE'!J6:J10) -> 0 | J6: =SUM('A4-FinPerf RE'!K6:K10) -> 0 | K6: =SUM('A4-FinPerf RE'!L6:L10) -> 0 | L6: Link from A4 (Sum)
A7: Investment revenue | B7: ='A4-FinPerf RE'!C12 -> 0 | C7: ='A4-FinPerf RE'!D12 -> 605248.57 | D7: ='A4-FinPerf RE'!E12 -> 666872.71 | E7: ='A4-FinPerf RE'!F12 -> 800000 | F7: ='A4-FinPerf RE'!G12 -> 850000 | G7: ='A4-FinPerf RE'!H12 -> 850000 | H7: ='A4-FinPerf RE'!I12 -> 446598.03 | I7: ='A4-FinPerf RE'!J12 -> 900000 | J7: ='A4-FinPerf RE'!K12 -> 1000000 | K7: ='A4-FinPerf RE'!L12 -> 1050000 | L7: Link from A4 0900
A8: Transfers recognised - operational | B8: ='A4-FinPerf RE'!C18 -> 0 | C8: ='A4-FinPerf RE'!D18 -> 62995706.21 | D8: ='A4-FinPerf RE'!E18 -> 76931676.95 | E8: ='A4-FinPerf RE'!F18 -> 72707000 | F8: ='A4-FinPerf RE'!G18 -> 77486289 | G8: ='A4-FinPerf RE'!H18 -> 77486289 | H8: ='A4-FinPerf RE'!I18 -> 75083743.53 | I8: ='A4-FinPerf RE'!J18 -> 78509000 | J8: ='A4-FinPerf RE'!K18 -> 79951000 | K8: ='A4-FinPerf RE'!L18 -> 82616000 | L8: Link from A4 1500
A9: Other own revenue | B9: ='A4-FinPerf RE'!C11+'A4-FinPerf RE'!C13+'A4-FinPerf RE'!C14+'A4-FinPerf RE'!C15+'A4-FinPerf RE'!C16+'A4-FinPerf RE'!C17+'A4-FinPerf RE'!C19+'A4-FinPerf RE'!C20 -> 0 | C9: ='A4-FinPerf RE'!D11+'A4-FinPerf RE'!D13+'A4-FinPerf RE'!D14+'A4-FinPerf RE'!D15+'A4-FinPerf RE'!D16+'A4-FinPerf RE'!D17+'A4-FinPerf RE'!D19+'A4-FinPerf RE'!D20 -> 550372.88 | D9: ='A4-FinPerf RE'!E11+'A4-FinPerf RE'!E13+'A4-FinPerf RE'!E14+'A4-FinPerf RE'!E15+'A4-FinPerf RE'!E16+'A4-FinPerf RE'!E17+'A4-FinPerf RE'!E19+'A4-FinPerf RE'!E20 -> 645844.98 | E9: ='A4-FinPerf RE'!F11+'A4-FinPerf RE'!F13+'A4-FinPerf RE'!F14+'A4-FinPerf RE'!F15+'A4-FinPerf RE'!F16+'A4-FinPerf RE'!F17+'A4-FinPerf RE'!F19+'A4-FinPerf RE'!F20 -> 1510000 | F9: ='A4-FinPerf RE'!G11+'A4-FinPerf RE'!G13+'A4-FinPerf RE'!G14+'A4-FinPerf RE'!G15+'A4-FinPerf RE'!G16+'A4-FinPerf RE'!G17+'A4-FinPerf RE'!G19+'A4-FinPerf RE'!G20 -> 1336000 | G9: ='A4-FinPerf RE'!H11+'A4-FinPerf RE'!H13+'A4-FinPerf RE'!H14+'A4-FinPerf RE'!H15+'A4-FinPerf RE'!H16+'A4-FinPerf RE'!H17+'A4-FinPerf RE'!H19+'A4-FinPerf RE'!H20 -> 1336000 | H9: ='A4-FinPerf RE'!I11+'A4-FinPerf RE'!I13+'A4-FinPerf RE'!I14+'A4-FinPerf RE'!I15+'A4-FinPerf RE'!I16+'A4-FinPerf RE'!I17+'A4-FinPerf RE'!I19+'A4-FinPerf RE'!I20 -> 552338.44 | I9: ='A4-FinPerf RE'!J11+'A4-FinPerf RE'!J13+'A4-FinPerf RE'!J14+'A4-FinPerf RE'!J15+'A4-FinPerf RE'!J16+'A4-FinPerf RE'!J17+'A4-FinPerf RE'!J19+'A4-FinPerf RE'!J20 -> 2341000 | J9: ='A4-FinPerf RE'!K11+'A4-FinPerf RE'!K13+'A4-FinPerf RE'!K14+'A4-FinPerf RE'!K15+'A4-FinPerf RE'!K16+'A4-FinPerf RE'!K17+'A4-FinPerf RE'!K19+'A4-FinPerf RE'!K20 -> 2071000 | K9: ='A4-FinPerf RE'!L11+'A4-FinPerf RE'!L13+'A4-FinPerf RE'!L14+'A4-FinPerf RE'!L15+'A4-FinPerf RE'!L16+'A4-FinPerf RE'!L17+'A4-FinPerf RE'!L19+'A4-FinPerf RE'!L20 -> 2076000 | L9: Link from A4 (Sum)
A10: ='A4-FinPerf RE'!A21 -> Total Revenue (excluding capital transfers and contributions) | B10: =SUM(B5:B9) -> 0 | C10: 64151327.66 | D10: 78244394.64 | E10: 75017000 | F10: 79672289 | G10: 79672289 | H10: 76082680 | I10: 81750000 | J10: 83022000 | K10: 85742000
A11: Employee costs | B11: ='A4-FinPerf RE'!C24 -> 0 | C11: ='A4-FinPerf RE'!D24 -> 46806173.35 | D11: ='A4-FinPerf RE'!E24 -> 44657964.44 | E11: ='A4-FinPerf RE'!F24 -> 55533780 | F11: ='A4-FinPerf RE'!G24 -> 51137882 | G11: ='A4-FinPerf RE'!H24 -> 51137882 | H11: ='A4-FinPerf RE'!I24 -> 47311799.38 | I11: ='A4-FinPerf RE'!J24 -> 53633322 | J11: ='A4-FinPerf RE'!K24 -> 56666708 | K11: ='A4-FinPerf RE'!L24 -> 59858712 | L11: Link from A4 2000
A12: Remuneration of councillors | B12: ='A4-FinPerf RE'!C25 -> 0 | C12: ='A4-FinPerf RE'!D25 -> 3728040.65 | D12: ='A4-FinPerf RE'!E25 -> 3676528.36 | E12: ='A4-FinPerf RE'!F25 -> 4392212 | F12: ='A4-FinPerf RE'!G25 -> 3714820 | G12: ='A4-FinPerf RE'!H25 -> 3714820 | H12: ='A4-FinPerf RE'!I25 -> 3382727.28 | I12: ='A4-FinPerf RE'!J25 -> 3808384 | J12: ='A4-FinPerf RE'!K25 -> 4036886 | K12: ='A4-FinPerf RE'!L25 -> 4279098 | L12: Link from A4 2100
A13: Depreciation & asset impairment | B13: ='A4-FinPerf RE'!C27 -> 0 | C13: ='A4-FinPerf RE'!D27 -> 550129.69 | D13: ='A4-FinPerf RE'!E27 -> 834436.78 | E13: ='A4-FinPerf RE'!F27 -> 594640 | F13: ='A4-FinPerf RE'!G27 -> 594640 | G13: ='A4-FinPerf RE'!H27 -> 594640 | H13: ='A4-FinPerf RE'!I27 -> 0 | I13: ='A4-FinPerf RE'!J27 -> 594640 | J13: ='A4-FinPerf RE'!K27 -> 594640 | K13: ='A4-FinPerf RE'!L27 -> 594640 | L13: Link from A4 2300
A14: Finance charges | B14: ='A4-FinPerf RE'!C28 -> 0 | C14: ='A4-FinPerf RE'!D28 -> 0 | D14: ='A4-FinPerf RE'!E28 -> 90857.72 | E14: ='A4-FinPerf RE'!F28 -> 0 | F14: ='A4-FinPerf RE'!G28 -> 100000 | G14: ='A4-FinPerf RE'!H28 -> 100000 | H14: ='A4-FinPerf RE'!I28 -> 1915.62 | I14: ='A4-FinPerf RE'!J28 -> 0 | J14: ='A4-FinPerf RE'!K28 -> 0 | K14: ='A4-FinPerf RE'!L28 -> 0 | L14: Link from A4 2400
A15: Materials and bulk purchases | B15: ='A4-FinPerf RE'!C29+'A4-FinPerf RE'!C30 -> 0 | C15: ='A4-FinPerf RE'!D29+'A4-FinPerf RE'!D30 -> 294592.35 | D15: ='A4-FinPerf RE'!E29+'A4-FinPerf RE'!E30 -> 293338.55 | E15: ='A4-FinPerf RE'!F29+'A4-FinPerf RE'!F30 -> 324775 | F15: ='A4-FinPerf RE'!G29+'A4-FinPerf RE'!G30 -> 688222 | G15: ='A4-FinPerf RE'!H29+'A4-FinPerf RE'!H30 -> 688222 | H15: ='A4-FinPerf RE'!I29+'A4-FinPerf RE'!I30 -> 248600.74 | I15: ='A4-FinPerf RE'!J29+'A4-FinPerf RE'!J30 -> 785043 | J15: ='A4-FinPerf RE'!K29+'A4-FinPerf RE'!K30 -> 570851 | K15: ='A4-FinPerf RE'!L29+'A4-FinPerf RE'!L30 -> 574252 | L15: Link from A4 (Sum)
A16: Transfers and grants | B16: ='A4-FinPerf RE'!C32 -> 0 | C16: ='A4-FinPerf RE'!D32 -> 96344.77 | D16: ='A4-FinPerf RE'!E32 -> 830046.06 | E16: ='A4-FinPerf RE'!F32 -> 153250 | F16: ='A4-FinPerf RE'!G32 -> 622400 | G16: ='A4-FinPerf RE'!H32 -> 622400 | H16: ='A4-FinPerf RE'!I32 -> 407773.15 | I16: ='A4-FinPerf RE'!J32 -> 215000 | J16: ='A4-FinPerf RE'!K32 -> 174000 | K16: ='A4-FinPerf RE'!L32 -> 183540 | L16: Link from A4 2800
A17: Other expenditure | B17: ='A4-FinPerf RE'!C26+'A4-FinPerf RE'!C31+'A4-FinPerf RE'!C33+'A4-FinPerf RE'!C34 -> 0 | C17: ='A4-FinPerf RE'!D26+'A4-FinPerf RE'!D31+'A4-FinPerf RE'!D33+'A4-FinPerf RE'!D34 -> 13730628.53 | D17: ='A4-FinPerf RE'!E26+'A4-FinPerf RE'!E31+'A4-FinPerf RE'!E33+'A4-FinPerf RE'!E34 -> 18139994.63 | E17: ='A4-FinPerf RE'!F26+'A4-FinPerf RE'!F31+'A4-FinPerf RE'!F33+'A4-FinPerf RE'!F34 -> 20123278 | F17: ='A4-FinPerf RE'!G26+'A4-FinPerf RE'!G31+'A4-FinPerf RE'!G33+'A4-FinPerf RE'!G34 -> 21612821 | G17: ='A4-FinPerf RE'!H26+'A4-FinPerf RE'!H31+'A4-FinPerf RE'!H33+'A4-FinPerf RE'!H34 -> 21612821 | H17: ='A4-FinPerf RE'!I26+'A4-FinPerf RE'!I31+'A4-FinPerf RE'!I33+'A4-FinPerf RE'!I34 -> 14720059.86 | I17: ='A4-FinPerf RE'!J26+'A4-FinPerf RE'!J31+'A4-FinPerf RE'!J33+'A4-FinPerf RE'!J34 -> 21522942 | J17: ='A4-FinPerf RE'!K26+'A4-FinPerf RE'!K31+'A4-FinPerf RE'!K33+'A4-FinPerf RE'!K34 -> 19975436 | K17: ='A4-FinPerf RE'!L26+'A4-FinPerf RE'!L31+'A4-FinPerf RE'!L33+'A4-FinPerf RE'!L34 -> 20796880 | L17: Link from A4 (Sum)
A18: ='A4-FinPerf RE'!A35 -> Total Expenditure | B18: =SUM(B11:B17) -> 0 | C18: =SUM(C11:C17) -> 65205909.34 | D18: 68523166.54 | E18: 81121935 | F18: 78470785 | G18: 78470785 | H18: 66072876.03 | I18: 80559331 | J18: 82018521 | K18: 86287122
A19: ='A4-FinPerf RE'!A37 -> Surplus/(Deficit) | B19: =B10-B18 -> 0 | C19: -1054581.68 | D19: 9721228.1 | E19: -6104935 | F19: 1201504 | G19: 1201504 | H19: 10009803.97 | I19: 1190669 | J19: 1003479 | K19: -545122 | L19: Sum
A20: ='A4-FinPerf RE'!A38 -> Transfers and subsidies - capital (monetary allocations) (National / Provincial and District) | B20: ='A4-FinPerf RE'!C38 -> 0 | C20: ='A4-FinPerf RE'!D38 -> 410633.83 | D20: ='A4-FinPerf RE'!E38 -> 2866000 | E20: ='A4-FinPerf RE'!F38 -> 3037000 | F20: ='A4-FinPerf RE'!G38 -> 0 | G20: ='A4-FinPerf RE'!H38 -> 0 | H20: ='A4-FinPerf RE'!I38 -> 0 | I20: ='A4-FinPerf RE'!J38 -> 750000 | J20: ='A4-FinPerf RE'!K38 -> 750000 | K20: ='A4-FinPerf RE'!L38 -> 750000 | L20: Link from A4 3300
A21: ='A4-FinPerf RE'!A39&" & "&'A4-FinPerf RE'!A40 -> Transfers and subsidies - capital (monetary allocations) (National / Provincial Departmental Agencies, Households, Non-profit Institutions, Private Enterprises, Public Corporatons, Higher Educational Institutions) & Transfers and subsidies - capital (in-kind - all) | B21: ='A4-FinPerf RE'!C39+'A4-FinPerf RE'!C40 -> 0 | C21: ='A4-FinPerf RE'!D39+'A4-FinPerf RE'!D40 -> 0 | D21: ='A4-FinPerf RE'!E39+'A4-FinPerf RE'!E40 -> 0 | E21: ='A4-FinPerf RE'!F39+'A4-FinPerf RE'!F40 -> 0 | F21: ='A4-FinPerf RE'!G39+'A4-FinPerf RE'!G40 -> 0 | G21: ='A4-FinPerf RE'!H39+'A4-FinPerf RE'!H40 -> 0 | H21: ='A4-FinPerf RE'!I39+'A4-FinPerf RE'!I40 -> 0 | I21: ='A4-FinPerf RE'!J39+'A4-FinPerf RE'!J40 -> 0 | J21: ='A4-FinPerf RE'!K39+'A4-FinPerf RE'!K40 -> 0 | K21: ='A4-FinPerf RE'!L39+'A4-FinPerf RE'!L40 -> 0 | L21: Link from A4 (Sum)
A22: ='A4-FinPerf RE'!A41 -> Surplus/(Deficit) after capital transfers & contributions | B22: =B19+SUM(B20:B21) -> 0 | C22: =C19+SUM(C20:C21) -> -643947.85 | D22: 12587228.1 | E22: -3067935 | F22: 1201504 | G22: 1201504 | H22: 10009803.97 | I22: 1940669 | J22: 1753479 | K22: 204878
A23: ='A4-FinPerf RE'!A46 -> Share of surplus/ (deficit) of associate | B23: ='A4-FinPerf RE'!C46 -> 0 | C23: ='A4-FinPerf RE'!D46 -> 0 | D23: ='A4-FinPerf RE'!E46 -> 0 | E23: ='A4-FinPerf RE'!F46 -> 0 | F23: ='A4-FinPerf RE'!G46 -> 0 | G23: ='A4-FinPerf RE'!H46 -> 0 | H23: ='A4-FinPerf RE'!I46 -> 0 | I23: ='A4-FinPerf RE'!J46 -> 0 | J23: ='A4-FinPerf RE'!K46 -> 0 | K23: ='A4-FinPerf RE'!L46 -> 0 | L23: Link from A4 4100
A24: ='A4-FinPerf RE'!A47 -> Surplus/(Deficit) for the year | B24: =B22+B23 -> 0 | C24: =C22+C23 -> -643947.85 | D24: 12587228.1 | E24: -3067935 | F24: 1201504 | G24: 1201504 | H24: 10009803.97 | I24: 1940669 | J24: 1753479 | K24: 204878
A26: Capital expenditure & funds sources
A27: Capital expenditure | B27: ='A5-Capex'!C63 -> 0 | C27: ='A5-Capex'!D63 -> 82694.17 | D27: ='A5-Capex'!E63 -> -26704.25 | E27: ='A5-Capex'!F63 -> 2644400 | F27: ='A5-Capex'!G63 -> 180000 | G27: ='A5-Capex'!H63 -> 180000 | H27: ='A5-Capex'!I63 -> -161026.76 | I27: ='A5-Capex'!J63 -> 1820000 | J27: ='A5-Capex'!K63 -> 1110000 | K27: ='A5-Capex'!L63 -> 1100000 | L27: Link from A5 CAPEX
A28: Transfers recognised - capital | B28: ='A5-Capex'!C70 -> 0 | C28: ='A5-Capex'!D70 -> 0 | D28: ='A5-Capex'!E70 -> -144200.97 | E28: ='A5-Capex'!F70 -> 739400 | F28: ='A5-Capex'!G70 -> 0 | G28: ='A5-Capex'!H70 -> 0 | H28: ='A5-Capex'!I70 -> 0 | I28: ='A5-Capex'!J70 -> 750000 | J28: ='A5-Capex'!K70 -> 750000 | K28: ='A5-Capex'!L70 -> 750000 | L28: Link from A5 2050
A29: ='A5-Capex'!A71 -> Public contributions & donations | B29: ='A5-Capex'!C71 -> 0 | C29: ='A5-Capex'!D71 -> 0 | D29: ='A5-Capex'!E71 -> 0 | E29: ='A5-Capex'!F71 -> 0 | F29: ='A5-Capex'!G71 -> 0 | G29: ='A5-Capex'!H71 -> 0 | H29: ='A5-Capex'!I71 -> 0 | I29: ='A5-Capex'!J71 -> 0 | J29: ='A5-Capex'!K71 -> 0 | K29: ='A5-Capex'!L71 -> 0 | L29: Link from A5 2060
A30: ='A5-Capex'!A72 -> Borrowing | B30: ='A5-Capex'!C72 -> 0 | C30: ='A5-Capex'!D72 -> 0 | D30: ='A5-Capex'!E72 -> 0 | E30: ='A5-Capex'!F72 -> 0 | F30: ='A5-Capex'!G72 -> 0 | G30: ='A5-Capex'!H72 -> 0 | H30: ='A5-Capex'!I72 -> 0 | I30: ='A5-Capex'!J72 -> 0 | J30: ='A5-Capex'!K72 -> 0 | K30: ='A5-Capex'!L72 -> 0 | L30: Link from A5 2070
A31: ='A5-Capex'!A73 -> Internally generated funds | B31: ='A5-Capex'!C73 -> 0 | C31: ='A5-Capex'!D73 -> 0 | D31: ='A5-Capex'!E73 -> -9552.31 | E31: ='A5-Capex'!F73 -> 1365000 | F31: ='A5-Capex'!G73 -> 180000 | G31: ='A5-Capex'!H73 -> 180000 | H31: ='A5-Capex'!I73 -> 22234.11 | I31: ='A5-Capex'!J73 -> 1070000 | J31: ='A5-Capex'!K73 -> 360000 | K31: ='A5-Capex'!L73 -> 350000 | L31: Link from A5 2080
A32: Total sources of capital funds | B32: =SUM(B28:B31) -> 0 | C32: 0 | D32: -153753.28 | E32: 2104400 | F32: 180000 | G32: 180000 | H32: 22234.11 | I32: 1820000 | J32: 1110000 | K32: 1100000
A34: Financial position
A35: ='A6-FinPos'!A12 -> Total current assets | B35: ='A6-FinPos'!C12 -> 0 | C35: ='A6-FinPos'!D12 -> 457956.48 | D35: ='A6-FinPos'!E12 -> 627228.73 | E35: ='A6-FinPos'!F12 -> -5076695 | F35: ='A6-FinPos'!G12 -> 3091014 | G35: ='A6-FinPos'!H12 -> 3091014 | H35: ='A6-FinPos'!I12 -> 1267966.49 | I35: ='A6-FinPos'!J12 -> 1434842 | J35: ='A6-FinPos'!K12 -> 2877489 | K35: ='A6-FinPos'!L12 -> 2553649 | L35: Link from A6 0180
A36: ='A6-FinPos'!A24 -> Total non current assets | B36: ='A6-FinPos'!C24 -> 0 | C36: ='A6-FinPos'!D24 -> -595043.55 | D36: ='A6-FinPos'!E24 -> 945522.9 | E36: ='A6-FinPos'!F24 -> 2008760 | F36: ='A6-FinPos'!G24 -> 21461815 | G36: ='A6-FinPos'!H24 -> 21461815 | H36: ='A6-FinPos'!I24 -> 114771.89 | I36: ='A6-FinPos'!J24 -> 23769821 | J36: ='A6-FinPos'!K24 -> 23234821 | K36: ='A6-FinPos'!L24 -> 23224821 | L36: Link from A6 0290
A37: ='A6-FinPos'!A34 -> Total current liabilities | B37: ='A6-FinPos'!C34 -> 0 | C37: ='A6-FinPos'!D34 -> -3348403.87 | D37: ='A6-FinPos'!E34 -> -6279375.4 | E37: ='A6-FinPos'!F34 -> 0 | F37: ='A6-FinPos'!G34 -> 11865235 | G37: ='A6-FinPos'!H34 -> 11865235 | H37: ='A6-FinPos'!I34 -> -8625475.59 | I37: ='A6-FinPos'!J34 -> 9756779 | J37: ='A6-FinPos'!K34 -> 8832491 | K37: ='A6-FinPos'!L34 -> 7596979 | L37: Link from A6 0380
A38: ='A6-FinPos'!A39 -> Total non current liabilities | B38: ='A6-FinPos'!C39 -> 0 | C38: ='A6-FinPos'!D39 -> 183619.06 | D38: ='A6-FinPos'!E39 -> -4735101.07 | E38: ='A6-FinPos'!F39 -> 0 | F38: ='A6-FinPos'!G39 -> 31847561 | G38: ='A6-FinPos'!H39 -> 31847561 | H38: ='A6-FinPos'!I39 -> 0 | I38: ='A6-FinPos'!J39 -> 22852002 | J38: ='A6-FinPos'!K39 -> 22871127 | K38: ='A6-FinPos'!L39 -> 23321400 | L38: Link from A6 0420
A39: Community wealth/Equity | B39: ='A6-FinPos'!C48 -> 0 | C39: ='A6-FinPos'!D48 -> -4456347.83 | D39: ='A6-FinPos'!E48 -> 0 | E39: ='A6-FinPos'!F48 -> 1177637 | F39: ='A6-FinPos'!G48 -> -20728747 | G39: ='A6-FinPos'!H48 -> -20728747 | H39: ='A6-FinPos'!I48 -> -1590 | I39: ='A6-FinPos'!J48 -> -7404118 | J39: ='A6-FinPos'!K48 -> -5591308 | K39: ='A6-FinPos'!L48 -> -5139909 | L39: Link from A6 0480
A41: Cash flows
A42: Net cash from (used) operating | B42: ='A7-CFlow'!C17 -> 0 | C42: ='A7-CFlow'!D17 -> -139073.97 | D42: ='A7-CFlow'!E17 -> 2713276.57 | E42: ='A7-CFlow'!F17 -> -511200 | F42: ='A7-CFlow'!G17 -> -570001 | G42: ='A7-CFlow'!H17 -> -570001 | H42: ='A7-CFlow'!I17 -> -499999.91 | I42: ='A7-CFlow'!J17 -> 2727309 | J42: ='A7-CFlow'!K17 -> 2319119 | K42: ='A7-CFlow'!L17 -> 765058 | L42: Link from A7 0230
A43: Net cash from (used) investing | B43: ='A7-CFlow'!C26 -> 0 | C43: ='A7-CFlow'!D26 -> -221768.14 | D43: ='A7-CFlow'!E26 -> -355026.23 | E43: ='A7-CFlow'!F26 -> -3155600 | F43: ='A7-CFlow'!G26 -> -730000 | G43: ='A7-CFlow'!H26 -> -730000 | H43: ='A7-CFlow'!I26 -> -338973.15 | I43: ='A7-CFlow'!J26 -> -1820000 | J43: ='A7-CFlow'!K26 -> -1110000 | K43: ='A7-CFlow'!L26 -> -1100000 | L43: Link from A7 0320
A44: Net cash from (used) financing | B44: ='A7-CFlow'!C35 -> 0 | C44: ='A7-CFlow'!D35 -> 0 | D44: ='A7-CFlow'!E35 -> 0 | E44: ='A7-CFlow'!F35 -> 0 | F44: ='A7-CFlow'!G35 -> 0 | G44: ='A7-CFlow'!H35 -> 483442 | H44: ='A7-CFlow'!I35 -> 0 | I44: ='A7-CFlow'!J35 -> -293310 | J44: ='A7-CFlow'!K35 -> -293310 | K44: ='A7-CFlow'!L35 -> -293310 | L44: Link from A7 0400
A45: =LEFT('A7-CFlow'!A39,37) -> Cash/cash equivalents at the year end | B45: ='A7-CFlow'!C39 -> 0 | C45: ='A7-CFlow'!D39 -> -360842.11 | D45: ='A7-CFlow'!E39 -> 2358250.34 | E45: ='A7-CFlow'!F39 -> -3666800 | F45: ='A7-CFlow'!G39 -> 1253263 | G45: ='A7-CFlow'!H39 -> 1736705 | H45: ='A7-CFlow'!I39 -> -838973.06 | I45: ='A7-CFlow'!J39 -> 1883999 | J45: ='A7-CFlow'!K39 -> 2799808 | K45: ='A7-CFlow'!L39 -> 2171556 | L45: Link from A7 0430
A47: Cash backing/surplus reconciliation
A48: ='A8-ResRecon'!A4 -> Cash and investments available | B48: ='A8-ResRecon'!C8 -> 0 | C48: ='A8-ResRecon'!D8 -> 348018.47 | D48: ='A8-ResRecon'!E8 -> 639838.02 | E48: ='A8-ResRecon'!F8 -> -4990509 | F48: ='A8-ResRecon'!G8 -> 3111939 | G48: ='A8-ResRecon'!H8 -> 3111939 | H48: ='A8-ResRecon'!I8 -> 2554267.48 | I48: ='A8-ResRecon'!J8 -> 1005767 | J48: ='A8-ResRecon'!K8 -> 2443414 | K48: ='A8-ResRecon'!L8 -> 2109574 | L48: Link from A8
A49: ='A8-ResRecon'!A10 -> Application of cash and investments | B49: ='A8-ResRecon'!C18 -> 0 | C49: ='A8-ResRecon'!D18 -> 2824841.72 | D49: ='A8-ResRecon'!E18 -> 6274113.2 | E49: ='A8-ResRecon'!F18 -> 0 | F49: ='A8-ResRecon'!G18 -> -10563810 | G49: ='A8-ResRecon'!H18 -> -10563810 | H49: ='A8-ResRecon'!I18 -> 9839280.19 | I49: ='A8-ResRecon'!J18 -> 7412544 | J49: ='A8-ResRecon'!K18 -> 6511106 | K49: ='A8-ResRecon'!L18 -> 5733514 | L49: Link from A8
A50: Balance - surplus (shortfall) | B50: =B48-B49 -> 0 | C50: =C48-C49 -> -2476823.25 | D50: -5634275.18 | E50: -4990509 | F50: 13675749 | G50: 13675749 | H50: -7285012.71 | I50: -6406777 | J50: -4067692 | K50: -3623940
A52: Asset management
A53: Asset register summary (WDV) | B53: ='A9-Asset'!C165 -> 0 | C53: ='A9-Asset'!D165 -> -595043.55 | D53: ='A9-Asset'!E165 -> 955338.77 | E53: ='A9-Asset'!F165 -> 2008760 | F53: ='A9-Asset'!G165 -> 21440135 | G53: ='A9-Asset'!H165 -> 21440135 | I53: ='A9-Asset'!I165 -> 23748141 | J53: ='A9-Asset'!J165 -> 23213141 | K53: ='A9-Asset'!K165 -> 23203141 | L53: Link from A9 1580
A54: ='A9-Asset'!A168 -> Depreciation | B54: ='A9-Asset'!C168 -> 0 | C54: ='A9-Asset'!D168 -> 550129.69 | D54: ='A9-Asset'!E168 -> 834436.78 | E54: ='A9-Asset'!F168 -> 594640 | F54: ='A9-Asset'!G168 -> 594640 | G54: ='A9-Asset'!H168 -> 594640 | I54: ='A9-Asset'!I168 -> 594640 | J54: ='A9-Asset'!J168 -> 594640 | K54: ='A9-Asset'!K168 -> 594640 | L54: Link from A9 9580
A55: Renewal of Existing Assets | B55: ='A9-Asset'!C37 -> 0 | C55: ='A9-Asset'!D37 -> 0 | D55: ='A9-Asset'!E37 -> 0 | E55: ='A9-Asset'!F37 -> 0 | F55: ='A9-Asset'!G37 -> 0 | G55: ='A9-Asset'!H37 -> 0 | I55: ='A9-Asset'!I37 -> 0 | J55: ='A9-Asset'!J37 -> 0 | K55: ='A9-Asset'!K37 -> 0 | L55: Link from A9 RENEW
A56: Repairs and Maintenance | B56: ='A9-Asset'!C169 -> 0 | C56: ='A9-Asset'!D169 -> 882223.44 | D56: ='A9-Asset'!E169 -> 3571.35 | E56: ='A9-Asset'!F169 -> 0 | F56: ='A9-Asset'!G169 -> 510000 | G56: ='A9-Asset'!H169 -> 510000 | I56: ='A9-Asset'!I169 -> 287977 | J56: ='A9-Asset'!J169 -> 305255 | K56: ='A9-Asset'!K169 -> 323571 | L56: Link from A9 R&M
A58: Free services
A59: Cost of Free Basic Services provided | B59: ='A10-SerDel'!C61 -> 0 | C59: ='A10-SerDel'!D61 -> 0 | D59: ='A10-SerDel'!E61 -> 0 | E59: ='A10-SerDel'!F61 -> 0 | F59: ='A10-SerDel'!G61 -> 0 | G59: ='A10-SerDel'!H61 -> 0 | H59: ='A10-SerDel'!I61 -> 0 | I59: ='A10-SerDel'!I61 -> 0 | J59: ='A10-SerDel'!J61 -> 0 | K59: ='A10-SerDel'!K61 -> 0 | L59: Link from A10 FBS
A60: Revenue cost of free services provided | B60: ='A10-SerDel'!C80 -> 0 | C60: ='A10-SerDel'!D80 -> 0 | D60: ='A10-SerDel'!E80 -> 0 | E60: ='A10-SerDel'!F80 -> 0 | F60: ='A10-SerDel'!G80 -> 0 | G60: ='A10-SerDel'!H80 -> 0 | H60: ='A10-SerDel'!I80 -> 0 | I60: ='A10-SerDel'!I80 -> 0 | J60: ='A10-SerDel'!J80 -> 0 | K60: ='A10-SerDel'!K80 -> 0 | L60: Link from A10 SUBS
A61: Households below minimum service level
A62: ='A10-SerDel'!A6 -> Water: | B62: ='A10-SerDel'!C15 -> 0 | C62: ='A10-SerDel'!D15 -> 0 | D62: ='A10-SerDel'!E15 -> 0 | E62: ='A10-SerDel'!F15 -> 0 | F62: ='A10-SerDel'!G15 -> 0 | G62: ='A10-SerDel'!H15 -> 0 | H62: ='A10-SerDel'!I15 -> 0 | I62: ='A10-SerDel'!I15 -> 0 | J62: ='A10-SerDel'!J15 -> 0 | K62: ='A10-SerDel'!K15 -> 0 | L62: Link from A10 WATER
A63: ='A10-SerDel'!A17 -> Sanitation/sewerage: | B63: ='A10-SerDel'!C27 -> 0 | C63: ='A10-SerDel'!D27 -> 0 | D63: ='A10-SerDel'!E27 -> 0 | E63: ='A10-SerDel'!F27 -> 0 | F63: ='A10-SerDel'!G27 -> 0 | G63: ='A10-SerDel'!H27 -> 0 | H63: ='A10-SerDel'!I27 -> 0 | I63: ='A10-SerDel'!I27 -> 0 | J63: ='A10-SerDel'!J27 -> 0 | K63: ='A10-SerDel'!K27 -> 0 | L63: Link from A10 SEWER
A64: ='A10-SerDel'!A29 -> Energy: | B64: ='A10-SerDel'!C36 -> 0 | C64: ='A10-SerDel'!D36 -> 0 | D64: ='A10-SerDel'!E36 -> 0 | E64: ='A10-SerDel'!F36 -> 0 | F64: ='A10-SerDel'!G36 -> 0 | G64: ='A10-SerDel'!H36 -> 0 | H64: ='A10-SerDel'!I36 -> 0 | I64: ='A10-SerDel'!I36 -> 0 | J64: ='A10-SerDel'!J36 -> 0 | K64: ='A10-SerDel'!K36 -> 0 | L64: Link from A10 ELEC
A65: ='A10-SerDel'!A38 -> Refuse: | B65: ='A10-SerDel'!C46 -> 0 | C65: ='A10-SerDel'!D46 -> 0 | D65: ='A10-SerDel'!E46 -> 0 | E65: ='A10-SerDel'!F46 -> 0 | F65: ='A10-SerDel'!G46 -> 0 | G65: ='A10-SerDel'!H46 -> 0 | H65: ='A10-SerDel'!I46 -> 0 | I65: ='A10-SerDel'!I46 -> 0 | J65: ='A10-SerDel'!J46 -> 0 | K65: ='A10-SerDel'!K46 -> 0 | L65: Link from A10 REFUSE

Sheet A2-FinPerf SC
A1: =muni&" - "&Approve3 -> DC8 Z F Mgcawu - Table A2 Budgeted Financial Performance (revenue and expenditure by functional classification)
A2: ="Functional Classification "&desc -> Functional Classification Description | B2: =head27 -> Ref | C2: =head1b -> 2016/17 | D2: =head1A -> 2017/18 | E2: =Head1 -> 2018/19 | F2: =Head2 -> Current Year 2019/20 | I2: =Head3 -> 2020/21 Medium Term Revenue & Expenditure Framework | L2: Check
A3: R thousand | B3: 1 | C3: =Head5 -> Audited Outcome | D3: =Head5 -> Audited Outcome | E3: =Head5 -> Audited Outcome | F3: =Head6 -> Original Budget | G3: =Head7 -> Adjusted Budget | H3: =Head8 -> Full Year Forecast | I3: =Head9 -> Budget Year 2020/21 | J3: =Head10 -> Budget Year +1 2021/22 | K3: =Head11 -> Budget Year +2 2022/23
A4: Revenue - Functional
A5: Governance and administration | C5: =SUM(C6:C8) -> 0 | D5: =SUM(D6:D8) -> 58061263.39 | E5: 69881108.17 | F5: 72932000 | G5: 74550289 | H5: 74550289 | I5: 77601000 | J5: 79974000 | K5: 82517000
A6: Executive and council | C6: =A2A!C6 -> 0 | D6: =A2A!D6 -> 0 | E6: =A2A!E6 -> 188291.95 | F6: =A2A!F6 -> 0 | G6: =A2A!G6 -> 962289 | H6: =A2A!H6 -> 962289 | I6: =A2A!I6 -> 500000 | J6: =A2A!J6 -> 0 | K6: =A2A!K6 -> 0 | L6: Link from A2A
A7: Finance and administration | C7: =A2A!C9 -> 0 | D7: =A2A!D9 -> 58061263.39 | E7: =A2A!E9 -> 68879291.5 | F7: =A2A!F9 -> 72932000 | G7: =A2A!G9 -> 73588000 | H7: =A2A!H9 -> 73588000 | I7: =A2A!I9 -> 77101000 | J7: =A2A!J9 -> 79974000 | K7: =A2A!K9 -> 82517000 | L7: Link from A2A
A8: Internal audit | C8: =A2A!C23 -> 0 | D8: =A2A!D23 -> 0 | E8: =A2A!E23 -> 813524.72 | F8: =A2A!F23 -> 0 | G8: =A2A!G23 -> 0 | H8: =A2A!H23 -> 0 | I8: =A2A!I23 -> 0 | J8: =A2A!J23 -> 0 | K8: =A2A!K23 -> 0 | L8: Link from A2A
A9: Community and public safety | C9: =SUM(C10:C14) -> 0 | D9: =SUM(D10:D14) -> 240653.55 | E9: 1345229.41 | F9: 246000 | G9: 246000 | H9: 246000 | I9: 259000 | J9: 0 | K9: 0
A10: Community and social services | C10: =A2A!C26 -> 0 | D10: =A2A!D26 -> 0 | E10: =A2A!E26 -> 0 | F10: =A2A!F26 -> 0 | G10: =A2A!G26 -> 0 | H10: =A2A!H26 -> 0 | I10: =A2A!I26 -> 0 | J10: =A2A!J26 -> 0 | K10: =A2A!K26 -> 0 | L10: Link from A2A
A11: Sport and recreation | C11: =A2A!C48 -> 0 | D11: =A2A!D48 -> 0 | E11: =A2A!E48 -> 0 | F11: =A2A!F48 -> 0 | G11: =A2A!G48 -> 0 | H11: =A2A!H48 -> 0 | I11: =A2A!I48 -> 0 | J11: =A2A!J48 -> 0 | K11: =A2A!K48 -> 0 | L11: Link from A2A
A12: Public safety | C12: =A2A!C54 -> 0 | D12: =A2A!D54 -> 240653.55 | E12: =A2A!E54 -> 1345229.41 | F12: =A2A!F54 -> 246000 | G12: =A2A!G54 -> 246000 | H12: =A2A!H54 -> 246000 | I12: =A2A!I54 -> 259000 | J12: =A2A!J54 -> 0 | K12: =A2A!K54 -> 0 | L12: Link from A2A
A13: Housing | C13: =A2A!C63 -> 0 | D13: =A2A!D63 -> 0 | E13: =A2A!E63 -> 0 | F13: =A2A!F63 -> 0 | G13: =A2A!G63 -> 0 | H13: =A2A!H63 -> 0 | I13: =A2A!I63 -> 0 | J13: =A2A!J63 -> 0 | K13: =A2A!K63 -> 0 | L13: Link from A2A
A14: Health | C14: =A2A!C66 -> 0 | D14: =A2A!D66 -> 0 | E14: =A2A!E66 -> 0 | F14: =A2A!F66 -> 0 | G14: =A2A!G66 -> 0 | H14: =A2A!H66 -> 0 | I14: =A2A!I66 -> 0 | J14: =A2A!J66 -> 0 | K14: =A2A!K66 -> 0 | L14: Link from A2A
A15: Economic and environmental services | C15: =SUM(C16:C18) -> 0 | D15: =SUM(D16:D18) -> 6260044.55 | E15: 9884057.06 | F15: 4876000 | G15: 4876000 | H15: 4876000 | I15: 4640000 | J15: 3798000 | K15: 3975000
A16: Planning and development | C16: =A2A!C75 -> 0 | D16: =A2A!D75 -> 6260044.55 | E16: =A2A!E75 -> 9884057.06 | F16: =A2A!F75 -> 4876000 | G16: =A2A!G75 -> 4876000 | H16: =A2A!H75 -> 4876000 | I16: =A2A!I75 -> 4640000 | J16: =A2A!J75 -> 3798000 | K16: =A2A!K75 -> 3975000 | L16: Link from A2A
A17: Road transport | C17: =A2A!C86 -> 0 | D17: =A2A!D86 -> 0 | E17: =A2A!E86 -> 0 | F17: =A2A!F86 -> 0 | G17: =A2A!G86 -> 0 | H17: =A2A!H86 -> 0 | I17: =A2A!I86 -> 0 | J17: =A2A!J86 -> 0 | K17: =A2A!K86 -> 0 | L17: Link from A2A
A18: Environmental protection | C18: =A2A!C91 -> 0 | D18: =A2A!D91 -> 0 | E18: =A2A!E91 -> 0 | F18: =A2A!F91 -> 0 | G18: =A2A!G91 -> 0 | H18: =A2A!H91 -> 0 | I18: =A2A!I91 -> 0 | J18: =A2A!J91 -> 0 | K18: =A2A!K91 -> 0 | L18: Link from A2A
A19: Trading services | C19: =SUM(C20:C23) -> 0 | D19: =SUM(D20:D23) -> 0 | E19: 0 | F19: 0 | G19: 0 | H19: 0 | I19: 0 | J19: =SUM(J20:J23) -> 0 | K19: 0
A20: Energy sources | C20: =A2A!C99 -> 0 | D20: =A2A!D99 -> 0 | E20: =A2A!E99 -> 0 | F20: =A2A!F99 -> 0 | G20: =A2A!G99 -> 0 | H20: =A2A!H99 -> 0 | I20: =A2A!I99 -> 0 | J20: =A2A!J99 -> 0 | K20: =A2A!K99 -> 0 | L20: Link from A2A
A21: Water management | C21: =A2A!C103 -> 0 | D21: =A2A!D103 -> 0 | E21: =A2A!E103 -> 0 | F21: =A2A!F103 -> 0 | G21: =A2A!G103 -> 0 | H21: =A2A!H103 -> 0 | I21: =A2A!I103 -> 0 | J21: =A2A!J103 -> 0 | K21: =A2A!K103 -> 0 | L21: Link from A2A
A22: Waste water management | C22: =A2A!C107 -> 0 | D22: =A2A!D107 -> 0 | E22: =A2A!E107 -> 0 | F22: =A2A!F107 -> 0 | G22: =A2A!G107 -> 0 | H22: =A2A!H107 -> 0 | I22: =A2A!I107 -> 0 | J22: =A2A!J107 -> 0 | K22: =A2A!K107 -> 0 | L22: Link from A2A
A23: Waste management | C23: =A2A!C112 -> 0 | D23: =A2A!D112 -> 0 | E23: =A2A!E112 -> 0 | F23: =A2A!F112 -> 0 | G23: =A2A!G112 -> 0 | H23: =A2A!H112 -> 0 | I23: =A2A!I112 -> 0 | J23: =A2A!J112 -> 0 | K23: =A2A!K112 -> 0 | L23: Link from A2A
A24: Other | B24: 4 | C24: =A2A!C117 -> 0 | D24: =A2A!D117 -> 0 | E24: =A2A!E117 -> 0 | F24: =A2A!F117 -> 0 | G24: =A2A!G117 -> 0 | H24: =A2A!H117 -> 0 | I24: =A2A!I117 -> 0 | J24: =A2A!J117 -> 0 | K24: =A2A!K117 -> 0 | L24: Link from A2A
A25: ="Total "&A4 -> Total Revenue - Functional | B25: 2 | C25: =C5+C9+C15+C19+C24 -> 0 | D25: =D5+D9+D15+D19+D24 -> 64561961.49 | E25: =E5+E9+E15+E19+E24 -> 81110394.64 | F25: 78054000 | G25: 79672289 | H25: 79672289 | I25: =I5+I9+I15+I19+I24 -> 82500000 | J25: 83772000 | K25: 86492000
A27: Expenditure - Functional
A28: Governance and administration | C28: =SUM(C29:C31) -> 0 | D28: =SUM(D29:D31) -> 47788571.36 | E28: 47127961.62 | F28: 59972744 | G28: 58653890 | H28: 58653890 | I28: 59958536 | J28: 61614763 | K28: 64777068
A29: Executive and council | C29: =A2A!C128 -> 0 | D29: =A2A!D128 -> 12571890.27 | E29: =A2A!E128 -> 12357962.15 | F29: =A2A!F128 -> 16667330 | G29: =A2A!G128 -> 15838262 | H29: =A2A!H128 -> 15838262 | I29: =A2A!I128 -> 15282836 | J29: =A2A!J128 -> 15639229 | K29: =A2A!K128 -> 16552986 | L29: Link from A2A
A30: Finance and administration | C30: =A2A!C131 -> 0 | D30: =A2A!D131 -> 32792938.75 | E30: =A2A!E131 -> 31531408.97 | F30: =A2A!F131 -> 39563475 | G30: =A2A!G131 -> 39436708 | H30: =A2A!H131 -> 39436708 | I30: =A2A!I131 -> 40858459 | J30: =A2A!J131 -> 42375020 | K30: =A2A!K131 -> 44445968 | L30: Link from A2A
A31: Internal audit | C31: =A2A!C145 -> 0 | D31: =A2A!D145 -> 2423742.34 | E31: =A2A!E145 -> 3238590.5 | F31: =A2A!F145 -> 3741939 | G31: =A2A!G145 -> 3378920 | H31: =A2A!H145 -> 3378920 | I31: =A2A!I145 -> 3817241 | J31: =A2A!J145 -> 3600514 | K31: =A2A!K145 -> 3778114 | L31: Link from A2A
A32: Community and public safety | C32: =SUM(C33:C37) -> 0 | D32: =SUM(D33:D37) -> 7579008.89 | E32: 8033208.43 | F32: 8953267 | G32: 8493807 | H32: 8493807 | I32: 8960915 | J32: 9163659 | K32: 9652899
A33: Community and social services | C33: =A2A!C148 -> 0 | D33: =A2A!D148 -> 0 | E33: =A2A!E148 -> 0 | F33: =A2A!F148 -> 0 | G33: =A2A!G148 -> 0 | H33: =A2A!H148 -> 0 | I33: =A2A!I148 -> 0 | J33: =A2A!J148 -> 0 | K33: =A2A!K148 -> 0 | L33: Link from A2A
A34: Sport and recreation | C34: =A2A!C170 -> 0 | D34: =A2A!D170 -> 0 | E34: =A2A!E170 -> 0 | F34: =A2A!F170 -> 0 | G34: =A2A!G170 -> 0 | H34: =A2A!H170 -> 0 | I34: =A2A!I170 -> 0 | J34: =A2A!J170 -> 0 | K34: =A2A!K170 -> 0 | L34: Link from A2A
A35: Public safety | C35: =A2A!C176 -> 0 | D35: =A2A!D176 -> 2344127.7 | E35: =A2A!E176 -> 2236759.02 | F35: =A2A!F176 -> 2387601 | G35: =A2A!G176 -> 2629223 | H35: =A2A!H176 -> 2629223 | I35: =A2A!I176 -> 2701551 | J35: =A2A!J176 -> 2586556 | K35: =A2A!K176 -> 2739202 | L35: Link from A2A
A36: Housing | C36: =A2A!C185 -> 0 | D36: =A2A!D185 -> 0 | E36: =A2A!E185 -> 0 | F36: =A2A!F185 -> 0 | G36: =A2A!G185 -> 0 | H36: =A2A!H185 -> 0 | I36: =A2A!I185 -> 0 | J36: =A2A!J185 -> 0 | K36: =A2A!K185 -> 0 | L36: Link from A2A
A37: Health | C37: =A2A!C188 -> 0 | D37: =A2A!D188 -> 5234881.19 | E37: =A2A!E188 -> 5796449.41 | F37: =A2A!F188 -> 6565666 | G37: =A2A!G188 -> 5864584 | H37: =A2A!H188 -> 5864584 | I37: =A2A!I188 -> 6259364 | J37: =A2A!J188 -> 6577103 | K37: =A2A!K188 -> 6913697 | L37: Link from A2A
A38: Economic and environmental services | C38: =SUM(C39:C41) -> 0 | D38: =SUM(D39:D41) -> 9436223.44 | E38: 12950179.56 | F38: 11752504 | G38: 10610583 | H38: 10610583 | I38: 10786217 | J38: 10337206 | K38: 10928374
A39: Planning and development | C39: =A2A!C197 -> 0 | D39: =A2A!D197 -> 9436223.44 | E39: =A2A!E197 -> 12950179.56 | F39: =A2A!F197 -> 11752504 | G39: =A2A!G197 -> 10610583 | H39: =A2A!H197 -> 10610583 | I39: =A2A!I197 -> 10786217 | J39: =A2A!J197 -> 10337206 | K39: =A2A!K197 -> 10928374 | L39: Link from A2A
A40: Road transport | C40: =A2A!C208 -> 0 | D40: =A2A!D208 -> 0 | E40: =A2A!E208 -> 0 | F40: =A2A!F208 -> 0 | G40: =A2A!G208 -> 0 | H40: =A2A!H208 -> 0 | I40: =A2A!I208 -> 0 | J40: =A2A!J208 -> 0 | K40: =A2A!K208 -> 0 | L40: Link from A2A
A41: Environmental protection | C41: =A2A!C213 -> 0 | D41: =A2A!D213 -> 0 | E41: =A2A!E213 -> 0 | F41: =A2A!F213 -> 0 | G41: =A2A!G213 -> 0 | H41: =A2A!H213 -> 0 | I41: =A2A!I213 -> 0 | J41: =A2A!J213 -> 0 | K41: =A2A!K213 -> 0 | L41: Link from A2A
A42: Trading services | C42: =SUM(C43:C46) -> 0 | D42: =SUM(D43:D46) -> 0 | E42: 0 | F42: =SUM(F43:F46) -> 0 | G42: 0 | H42: 0 | I42: 0 | J42: 0 | K42: =SUM(K43:K46) -> 0
A43: Energy sources | C43: =A2A!C221 -> 0 | D43: =A2A!D221 -> 0 | E43: =A2A!E221 -> 0 | F43: =A2A!F221 -> 0 | G43: =A2A!G221 -> 0 | H43: =A2A!H221 -> 0 | I43: =A2A!I221 -> 0 | J43: =A2A!J221 -> 0 | K43: =A2A!K221 -> 0 | L43: Link from A2A
A44: Water management | C44: =A2A!C225 -> 0 | D44: =A2A!D225 -> 0 | E44: =A2A!E225 -> 0 | F44: =A2A!F225 -> 0 | G44: =A2A!G225 -> 0 | H44: =A2A!H225 -> 0 | I44: =A2A!I225 -> 0 | J44: =A2A!J225 -> 0 | K44: =A2A!K225 -> 0 | L44: Link from A2A
A45: Waste water management | C45: =A2A!C229 -> 0 | D45: =A2A!D229 -> 0 | E45: =A2A!E229 -> 0 | F45: =A2A!F229 -> 0 | G45: =A2A!G229 -> 0 | H45: =A2A!H229 -> 0 | I45: =A2A!I229 -> 0 | J45: =A2A!J229 -> 0 | K45: =A2A!K229 -> 0 | L45: Link from A2A
A46: Waste management | C46: =A2A!C234 -> 0 | D46: =A2A!D234 -> 0 | E46: =A2A!E234 -> 0 | F46: =A2A!F234 -> 0 | G46: =A2A!G234 -> 0 | H46: =A2A!H234 -> 0 | I46: =A2A!I234 -> 0 | J46: =A2A!J234 -> 0 | K46: =A2A!K234 -> 0 | L46: Link from A2A
A47: Other | B47: 4 | C47: =A2A!C239 -> 0 | D47: =A2A!D239 -> 402105.65 | E47: =A2A!E239 -> 411816.93 | F47: =A2A!F239 -> 443420 | G47: =A2A!G239 -> 712505 | H47: =A2A!H239 -> 712505 | I47: =A2A!I239 -> 853663 | J47: =A2A!J239 -> 902893 | K47: =A2A!K239 -> 928781 | L47: Link from A2A
A48: ="Total "&A27 -> Total Expenditure - Functional | B48: 3 | C48: =C28+C32+C38+C42+C47 -> 0 | D48: =D28+D32+D38+D42+D47 -> 65205909.34 | E48: =E28+E32+E38+E42+E47 -> 68523166.54 | F48: =F28+F32+F38+F42+F47 -> 81121935 | G48: 78470785 | H48: 78470785 | I48: 80559331 | J48: 82018521 | K48: 86287122
A49: =result -> Surplus/(Deficit) for the year | C49: =C25-C48 -> 0 | D49: =D25-D48 -> -643947.85 | E49: 12587228.1 | F49: -3067935 | G49: 1201504 | H49: 1201504 | I49: 1940669 | J49: 1753479 | K49: 204878
A50: =head27a -> References
A51: 1. Government Finance Statistics Functions and Sub-functions are standardised to assist the compilation of national and international accounts for comparison purposes
A52: 2. Total Revenue by functional classification must reconcile to Total Operating Revenue shown in Budgeted Financial Performance (revenue and expenditure)
A53: 3. Total Expenditure by Functional Classification must reconcile to Total Operating Expenditure shown in Budgeted Financial Performance (revenue and expenditure)
A54: 4. All amounts must be classified under a functional classification . The GFS function 'Other' is only for Abbatoirs, Air Transport, Forestry, Licensing and Regulation, Markets and Tourism - and if used must be supported by footnotes. Nothing else may be placed under 'Other'. Assign associate share to relevant classification.
A56: Check Total Revenue per Item (A4) | C56: =C25-'A4-FinPerf RE'!C58 -> 0 | D56: =D25-'A4-FinPerf RE'!D58 -> 0 | E56: =E25-'A4-FinPerf RE'!E58 -> 0 | F56: =F25-'A4-FinPerf RE'!F58 -> 0 | G56: =G25-'A4-FinPerf RE'!G58 -> 0 | H56: =H25-'A4-FinPerf RE'!H58 -> 0 | I56: =I25-'A4-FinPerf RE'!J58 -> 0 | J56: =J25-'A4-FinPerf RE'!K58 -> 0 | K56: =K25-'A4-FinPerf RE'!L58 -> 0
A57: Check Total Expenditure per Item (A4) | C57: =C48-'A4-FinPerf RE'!C35 -> 0 | D57: =D48-'A4-FinPerf RE'!D35 -> 0 | E57: =E48-'A4-FinPerf RE'!E35 -> 0 | F57: =F48-'A4-FinPerf RE'!F35 -> 0 | G57: =G48-'A4-FinPerf RE'!G35 -> 0 | H57: =H48-'A4-FinPerf RE'!H35 -> 0 | I57: =I48-'A4-FinPerf RE'!J35 -> 0 | J57: =J48-'A4-FinPerf RE'!K35 -> 0 | K57: =K48-'A4-FinPerf RE'!L35 -> 0

Sheet A2A
A1: =muni&" - "&Approve3 -> DC8 Z F Mgcawu - Table A2 Budgeted Financial Performance (revenue and expenditure by functional classification)
A2: ="Functional Classification "&desc -> Functional Classification Description | B2: =head27 -> Ref | C2: =head1b -> 2016/17 | D2: =head1A -> 2017/18 | E2: =Head1 -> 2018/19 | F2: =Head2 -> Current Year 2019/20 | I2: =Head3 -> 2020/21 Medium Term Revenue & Expenditure Framework | L2: A2A | M2: Check Import Sheer
A3: R thousand | B3: 1 | C3: =Head5 -> Audited Outcome | D3: =Head5 -> Audited Outcome | E3: =Head5 -> Audited Outcome | F3: =Head6 -> Original Budget | G3: =Head7 -> Adjusted Budget | H3: =Head8 -> Full Year Forecast | I3: =Head9 -> Budget Year 2020/21 | J3: =Head10 -> Budget Year +1 2021/22 | K3: =Head11 -> Budget Year +2 2022/23
A4: Revenue - Functional
A5: Municipal governance and administration | C5: =C6+C9+C23 -> 0 | D5: 58061263.39 | E5: 69881108.17 | F5: 72932000 | G5: 74550289 | H5: 74550289 | I5: 77601000 | J5: 79974000 | K5: 82517000 | L5: 1000 REV
A6: Executive and council | C6: =SUM(C7:C8) -> 0 | D6: =SUM(D7:D8) -> 0 | E6: 188291.95 | F6: 0 | G6: 962289 | H6: 962289 | I6: 500000 | J6: 0 | K6: 0 | L6: 1100 REV
A7: Mayor and Council | C7: =-SUMIFS('Import Sheet'!D:D,'Import Sheet'!$A:$A,$L$2,'Import Sheet'!$B:$B,$L7) -> 0 | D7: =-SUMIFS('Import Sheet'!E:E,'Import Sheet'!$A:$A,$L$2,'Import Sheet'!$B:$B,$L7) -> 0 | E7: =-SUMIFS('Import Sheet'!U:U,'Import Sheet'!$A:$A,$L$2,'Import Sheet'!$B:$B,$L7) -> 188291.95 | F7: =-SUMIFS('Import Sheet'!V:V,'Import Sheet'!$A:$A,$L$2,'Import Sheet'!$B:$B,$L7) -> 0 | G7: =-SUMIFS('Import Sheet'!W:W,'Import Sheet'!$A:$A,$L$2,'Import Sheet'!$B:$B,$L7) -> 962289 | H7: =-SUMIFS('Import Sheet'!AA:AA,'Import Sheet'!$A:$A,$L$2,'Import Sheet'!$B:$B,$L7) -> 962289 | I7: =-SUMIFS('Import Sheet'!CB:CB,'Import Sheet'!$A:$A,$L$2,'Import Sheet'!$B:$B,$L7) -> 500000 | J7: =-SUMIFS('Import Sheet'!CC:CC,'Import Sheet'!$A:$A,$L$2,'Import Sheet'!$B:$B,$L7) -> 0 | K7: =-SUMIFS('Import Sheet'!CD:CD,'Import Sheet'!$A:$A,$L$2,'Import Sheet'!$B:$B,$L7) -> 0 | L7: 1110 REV | M7: =VLOOKUP(CONCATENATE($L$2," ",L7),'Import Sheet'!$EX:$EX,1,0) -> A2A 1110 REV
A8: Municipal Manager, Town Secretary and Chief Executive | C8: =-SUMIFS('Import Sheet'!D:D,'Import Sheet'!$A:$A,$L$2,'Import Sheet'!$B:$B,$L8) -> 0 | D8: =-SUMIFS('Import Sheet'!E:E,'Import Sheet'!$A:$A,$L$2,'Import Sheet'!$B:$B,$L8) -> 0 | E8: =-SUMIFS('Import Sheet'!U:U,'Import Sheet'!$A:$A,$L$2,'Import Sheet'!$B:$B,$L8) -> 0 | F8: =-SUMIFS('Import Sheet'!V:V,'Import Sheet'!$A:$A,$L$2,'Import Sheet'!$B:$B,$L8) -> 0 | G8: =-SUMIFS('Import Sheet'!W:W,'Import Sheet'!$A:$A,$L$2,'Import Sheet'!$B:$B,$L8) -> 0 | H8: =-SUMIFS('Import Sheet'!AA:AA,'Import Sheet'!$A:$A,$L$2,'Import Sheet'!$B:$B,$L8) -> 0 | I8: =-SUMIFS('Import Sheet'!CB:CB,'Import Sheet'!$A:$A,$L$2,'Import Sheet'!$B:$B,$L8) -> 0 | J8: =-SUMIFS('Import Sheet'!CC:CC,'Import Sheet'!$A:$A,$L$2,'Import Sheet'!$B:$B,$L8) -> 0 | K8: =-SUMIFS('Import Sheet'!CD:CD,'Import Sheet'!$A:$A,$L$2,'Import Sheet'!$B:$B,$L8) -> 0 | L8: 1120 REV | M8: =VLOOKUP(CONCATENATE($L$2," ",L8),'Import Sheet'!$EX:$EX,1,0) -> A2A 1120 REV
A9: Finance and administration | C9: =SUM(C10:C22) -> 0 | D9: 58061263.39 | E9: 68879291.5 | F9: 72932000 | G9: 73588000 | H9: 73588000 | I9: 77101000 | J9: 79974000 | K9: 82517000 | L9: 1200 REV
A10: Administrative and Corporate Support | C10: =-SUMIFS('Import Sheet'!D:D,'Import Sheet'!$A:$A,$L$2,'Import Sheet'!$B:$B,$L10) -> 0 | D10: =-SUMIFS('Import Sheet'!E:E,'Import Sheet'!$A:$A,$L$2,'Import Sheet'!$B:$B,$L10) -> 0 | E10: =-SUMIFS('Import Sheet'!U:U,'Import Sheet'!$A:$A,$L$2,'Import Sheet'!$B:$B,$L10) -> 0 | F10: =-SUMIFS('Import Sheet'!V:V,'Import Sheet'!$A:$A,$L$2,'Import Sheet'!$B:$B,$L10) -> 0 | G10: =-SUMIFS('Import Sheet'!W:W,'Import Sheet'!$A:$A,$L$2,'Import Sheet'!$B:$B,$L10) -> 0 | H10: =-SUMIFS('Import Sheet'!AA:AA,'Import Sheet'!$A:$A,$L$2,'Import Sheet'!$B:$B,$L10) -> 0 | I10: =-SUMIFS('Import Sheet'!CB:CB,'Import Sheet'!$A:$A,$L$2,'Import Sheet'!$B:$B,$L10) -> 0 | J10: =-SUMIFS('Import Sheet'!CC:CC,'Import Sheet'!$A:$A,$L$2,'Import Sheet'!$B:$B,$L10) -> 0 | K10: =-SUMIFS('Import Sheet'!CD:CD,'Import Sheet'!$A:$A,$L$2,'Import Sheet'!$B:$B,$L10) -> 0 | L10: 1201 REV | M10: =VLOOKUP(CONCATENATE($L$2," ",L10),'Import Sheet'!$EX:$EX,1,0) -> A2A 1201 REV
A11: Asset Management | C11: =-SUMIFS('Import Sheet'!D:D,'Import Sheet'!$A:$A,$L$2,'Import Sheet'!$B:$B,$L11) -> 0 | D11: =-SUMIFS('Import Sheet'!E:E,'Import Sheet'!$A:$A,$L$2,'Import Sheet'!$B:$B,$L11) -> 24639.96 | E11: =-SUMIFS('Import Sheet'!U:U,'Import Sheet'!$A:$A,$L$2,'Import Sheet'!$B:$B,$L11) -> 45013.92 | F11: =-SUMIFS('Import Sheet'!V:V,'Import Sheet'!$A:$A,$L$2,'Import Sheet'!$B:$B,$L11) -> 0 | G11: =-SUMIFS('Import Sheet'!W:W,'Import Sheet'!$A:$A,$L$2,'Import Sheet'!$B:$B,$L11) -> 656000 | H11: =-SUMIFS('Import Sheet'!AA:AA,'Import Sheet'!$A:$A,$L$2,'Import Sheet'!$B:$B,$L11) -> 656000 | I11: =-SUMIFS('Import Sheet'!CB:CB,'Import Sheet'!$A:$A,$L$2,'Import Sheet'!$B:$B,$L11) -> 656000 | J11: =-SUMIFS('Import Sheet'!CC:CC,'Import Sheet'!$A:$A,$L$2,'Import Sheet'!$B:$B,$L11) -> 381000 | K11: =-SUMIFS('Import Sheet'!CD:CD,'Import Sheet'!$A:$A,$L$2,'Import Sheet'!$B:$B,$L11) -> 381000 | L11: 1202 REV | M11: =VLOOKUP(CONCATENATE($L$2," ",L11),'Import Sheet'!$EX:$EX,1,0) -> A2A 1202 REV
A12: Finance | C12: =-SUMIFS('Import Sheet'!D:D,'Import Sheet'!$A:$A,$L$2,'Import Sheet'!$B:$B,$L12) -> 0 | D12: =-SUMIFS('Import Sheet'!E:E,'Import Sheet'!$A:$A,$L$2,'Import Sheet'!$B:$B,$L12) -> 57980316.59 | E12: =-SUMIFS('Import Sheet'!U:U,'Import Sheet'!$A:$A,$L$2,'Import Sheet'!$B:$B,$L12) -> 68389617.28 | F12: =-SUMIFS('Import Sheet'!V:V,'Import Sheet'!$A:$A,$L$2,'Import Sheet'!$B:$B,$L12) -> 71432000 | G12: =-SUMIFS('Import Sheet'!W:W,'Import Sheet'!$A:$A,$L$2,'Import Sheet'!$B:$B,$L12) -> 72082000 | H12: =-SUMIFS('Import Sheet'!AA:AA,'Import Sheet'!$A:$A,$L$2,'Import Sheet'!$B:$B,$L12) -> 72082000 | I12: =-SUMIFS('Import Sheet'!CB:CB,'Import Sheet'!$A:$A,$L$2,'Import Sheet'!$B:$B,$L12) -> 75595000 | J12: =-SUMIFS('Import Sheet'!CC:CC,'Import Sheet'!$A:$A,$L$2,'Import Sheet'!$B:$B,$L12) -> 78743000 | K12: =-SUMIFS('Import Sheet'!CD:CD,'Import Sheet'!$A:$A,$L$2,'Import Sheet'!$B:$B,$L12) -> 81286000 | L12: 1204 REV | M12: =VLOOKUP(CONCATENATE($L$2," ",L12),'Import Sheet'!$EX:$EX,1,0) -> A2A 1204 REV
A13: Fleet Management | C13: =-SUMIFS('Import Sheet'!D:D,'Import Sheet'!$A:$A,$L$2,'Import Sheet'!$B:$B,$L13) -> 0 | D13: =-SUMIFS('Import Sheet'!E:E,'Import Sheet'!$A:$A,$L$2,'Import Sheet'!$B:$B,$L13) -> 0 | E13: =-SUMIFS('Import Sheet'!U:U,'Import Sheet'!$A:$A,$L$2,'Import Sheet'!$B:$B,$L13) -> 0 | F13: =-SUMIFS('Import Sheet'!V:V,'Import Sheet'!$A:$A,$L$2,'Import Sheet'!$B:$B,$L13) -> 0 | G13: =-SUMIFS('Import Sheet'!W:W,'Import Sheet'!$A:$A,$L$2,'Import Sheet'!$B:$B,$L13) -> 0 | H13: =-SUMIFS('Import Sheet'!AA:AA,'Import Sheet'!$A:$A,$L$2,'Import Sheet'!$B:$B,$L13) -> 0 | I13: =-SUMIFS('Import Sheet'!CB:CB,'Import Sheet'!$A:$A,$L$2,'Import Sheet'!$B:$B,$L13) -> 0 | J13: =-SUMIFS('Import Sheet'!CC:CC,'Import Sheet'!$A:$A,$L$2,'Import Sheet'!$B:$B,$L13) -> 0 | K13: =-SUMIFS('Import Sheet'!CD:CD,'Import Sheet'!$A:$A,$L$2,'Import Sheet'!$B:$B,$L13) -> 0 | L13: 1205 REV | M13: =VLOOKUP(CONCATENATE($L$2," ",L13),'Import Sheet'!$EX:$EX,1,0) -> A2A 1205 REV
A14: Human Resources | C14: =-SUMIFS('Import Sheet'!D:D,'Import Sheet'!$A:$A,$L$2,'Import Sheet'!$B:$B,$L14) -> 0 | D14: =-SUMIFS('Import Sheet'!E:E,'Import Sheet'!$A:$A,$L$2,'Import Sheet'!$B:$B,$L14) -> 56306.84 | E14: =-SUMIFS('Import Sheet'!U:U,'Import Sheet'!$A:$A,$L$2,'Import Sheet'!$B:$B,$L14) -> 444660.3 | F14: =-SUMIFS('Import Sheet'!V:V,'Import Sheet'!$A:$A,$L$2,'Import Sheet'!$B:$B,$L14) -> 1500000 | G14: =-SUMIFS('Import Sheet'!W:W,'Import Sheet'!$A:$A,$L$2,'Import Sheet'!$B:$B,$L14) -> 850000 | H14: =-SUMIFS('Import Sheet'!AA:AA,'Import Sheet'!$A:$A,$L$2,'Import Sheet'!$B:$B,$L14) -> 850000 | I14: =-SUMIFS('Import Sheet'!CB:CB,'Import Sheet'!$A:$A,$L$2,'Import Sheet'!$B:$B,$L14) -> 850000 | J14: =-SUMIFS('Import Sheet'!CC:CC,'Import Sheet'!$A:$A,$L$2,'Import Sheet'!$B:$B,$L14) -> 850000 | K14: =-SUMIFS('Import Sheet'!CD:CD,'Import Sheet'!$A:$A,$L$2,'Import Sheet'!$B:$B,$L14) -> 850000 | L14: 1206 REV | M14: =VLOOKUP(CONCATENATE($L$2," ",L14),'Import Sheet'!$EX:$EX,1,0) -> A2A 1206 REV
A15: Information Technology | C15: =-SUMIFS('Import Sheet'!D:D,'Import Sheet'!$A:$A,$L$2,'Import Sheet'!$B:$B,$L15) -> 0 | D15: =-SUMIFS('Import Sheet'!E:E,'Import Sheet'!$A:$A,$L$2,'Import Sheet'!$B:$B,$L15) -> 0 | E15: =-SUMIFS('Import Sheet'!U:U,'Import Sheet'!$A:$A,$L$2,'Import Sheet'!$B:$B,$L15) -> 0 | F15: =-SUMIFS('Import Sheet'!V:V,'Import Sheet'!$A:$A,$L$2,'Import Sheet'!$B:$B,$L15) -> 0 | G15: =-SUMIFS('Import Sheet'!W:W,'Import Sheet'!$A:$A,$L$2,'Import Sheet'!$B:$B,$L15) -> 0 | H15: =-SUMIFS('Import Sheet'!AA:AA,'Import Sheet'!$A:$A,$L$2,'Import Sheet'!$B:$B,$L15) -> 0 | I15: =-SUMIFS('Import Sheet'!CB:CB,'Import Sheet'!$A:$A,$L$2,'Import Sheet'!$B:$B,$L15) -> 0 | J15: =-SUMIFS('Import Sheet'!CC:CC,'Import Sheet'!$A:$A,$L$2,'Import Sheet'!$B:$B,$L15) -> 0 | K15: =-SUMIFS('Import Sheet'!CD:CD,'Import Sheet'!$A:$A,$L$2,'Import Sheet'!$B:$B,$L15) -> 0 | L15: 1207 REV | M15: =VLOOKUP(CONCATENATE($L$2," ",L15),'Import Sheet'!$EX:$EX,1,0) -> A2A 1207 REV
A16: Legal Services | C16: =-SUMIFS('Import Sheet'!D:D,'Import Sheet'!$A:$A,$L$2,'Import Sheet'!$B:$B,$L16) -> 0 | D16: =-SUMIFS('Import Sheet'!E:E,'Import Sheet'!$A:$A,$L$2,'Import Sheet'!$B:$B,$L16) -> 0 | E16: =-SUMIFS('Import Sheet'!U:U,'Import Sheet'!$A:$A,$L$2,'Import Sheet'!$B:$B,$L16) -> 0 | F16: =-SUMIFS('Import Sheet'!V:V,'Import Sheet'!$A:$A,$L$2,'Import Sheet'!$B:$B,$L16) -> 0 | G16: =-SUMIFS('Import Sheet'!W:W,'Import Sheet'!$A:$A,$L$2,'Import Sheet'!$B:$B,$L16) -> 0 | H16: =-SUMIFS('Import Sheet'!AA:AA,'Import Sheet'!$A:$A,$L$2,'Import Sheet'!$B:$B,$L16) -> 0 | I16: =-SUMIFS('Import Sheet'!CB:CB,'Import Sheet'!$A:$A,$L$2,'Import Sheet'!$B:$B,$L16) -> 0 | J16: =-SUMIFS('Import Sheet'!CC:CC,'Import Sheet'!$A:$A,$L$2,'Import Sheet'!$B:$B,$L16) -> 0 | K16: =-SUMIFS('Import Sheet'!CD:CD,'Import Sheet'!$A:$A,$L$2,'Import Sheet'!$B:$B,$L16) -> 0 | L16: 1208 REV | M16: =VLOOKUP(CONCATENATE($L$2," ",L16),'Import Sheet'!$EX:$EX,1,0) -> A2A 1208 REV
A17: Marketing, Customer Relations, Publicity and Media Co-ordination | C17: =-SUMIFS('Import Sheet'!D:D,'Import Sheet'!$A:$A,$L$2,'Import Sheet'!$B:$B,$L17) -> 0 | D17: =-SUMIFS('Import Sheet'!E:E,'Import Sheet'!$A:$A,$L$2,'Import Sheet'!$B:$B,$L17) -> 0 | E17: =-SUMIFS('Import Sheet'!U:U,'Import Sheet'!$A:$A,$L$2,'Import Sheet'!$B:$B,$L17) -> 0 | F17: =-SUMIFS('Import Sheet'!V:V,'Import Sheet'!$A:$A,$L$2,'Import Sheet'!$B:$B,$L17) -> 0 | G17: =-SUMIFS('Import Sheet'!W:W,'Import Sheet'!$A:$A,$L$2,'Import Sheet'!$B:$B,$L17) -> 0 | H17: =-SUMIFS('Import Sheet'!AA:AA,'Import Sheet'!$A:$A,$L$2,'Import Sheet'!$B:$B,$L17) -> 0 | I17: =-SUMIFS('Import Sheet'!CB:CB,'Import Sheet'!$A:$A,$L$2,'Import Sheet'!$B:$B,$L17) -> 0 | J17: =-SUMIFS('Import Sheet'!CC:CC,'Import Sheet'!$A:$A,$L$2,'Import Sheet'!$B:$B,$L17) -> 0 | K17: =-SUMIFS('Import Sheet'!CD:CD,'Import Sheet'!$A:$A,$L$2,'Import Sheet'!$B:$B,$L17) -> 0 | L17: 1209 REV | M17: =VLOOKUP(CONCATENATE($L$2," ",L17),'Import Sheet'!$EX:$EX,1,0) -> A2A 1209 REV
A18: Property Services | C18: =-SUMIFS('Import Sheet'!D:D,'Import Sheet'!$A:$A,$L$2,'Import Sheet'!$B:$B,$L18) -> 0 | D18: =-SUMIFS('Import Sheet'!E:E,'Import Sheet'!$A:$A,$L$2,'Import Sheet'!$B:$B,$L18) -> 0 | E18: =-SUMIFS('Import Sheet'!U:U,'Import Sheet'!$A:$A,$L$2,'Import Sheet'!$B:$B,$L18) -> 0 | F18: =-SUMIFS('Import Sheet'!V:V,'Import Sheet'!$A:$A,$L$2,'Import Sheet'!$B:$B,$L18) -> 0 | G18: =-SUMIFS('Import Sheet'!W:W,'Import Sheet'!$A:$A,$L$2,'Import Sheet'!$B:$B,$L18) -> 0 | H18: =-SUMIFS('Import Sheet'!AA:AA,'Import Sheet'!$A:$A,$L$2,'Import Sheet'!$B:$B,$L18) -> 0 | I18: =-SUMIFS('Import Sheet'!CB:CB,'Import Sheet'!$A:$A,$L$2,'Import Sheet'!$B:$B,$L18) -> 0 | J18: =-SUMIFS('Import Sheet'!CC:CC,'Import Sheet'!$A:$A,$L$2,'Import Sheet'!$B:$B,$L18) -> 0 | K18: =-SUMIFS('Import Sheet'!CD:CD,'Import Sheet'!$A:$A,$L$2,'Import Sheet'!$B:$B,$L18) -> 0 | L18: 1210 REV | M18: =VLOOKUP(CONCATENATE($L$2," ",L18),'Import Sheet'!$EX:$EX,1,0) -> A2A 1210 REV
A19: Risk Management | C19: =-SUMIFS('Import Sheet'!D:D,'Import Sheet'!$A:$A,$L$2,'Import Sheet'!$B:$B,$L19) -> 0 | D19: =-SUMIFS('Import Sheet'!E:E,'Import Sheet'!$A:$A,$L$2,'Import Sheet'!$B:$B,$L19) -> 0 | E19: =-SUMIFS('Import Sheet'!U:U,'Import Sheet'!$A:$A,$L$2,'Import Sheet'!$B:$B,$L19) -> 0 | F19: =-SUMIFS('Import Sheet'!V:V,'Import Sheet'!$A:$A,$L$2,'Import Sheet'!$B:$B,$L19) -> 0 | G19: =-SUMIFS('Import Sheet'!W:W,'Import Sheet'!$A:$A,$L$2,'Import Sheet'!$B:$B,$L19) -> 0 | H19: =-SUMIFS('Import Sheet'!AA:AA,'Import Sheet'!$A:$A,$L$2,'Import Sheet'!$B:$B,$L19) -> 0 | I19: =-SUMIFS('Import Sheet'!CB:CB,'Import Sheet'!$A:$A,$L$2,'Import Sheet'!$B:$B,$L19) -> 0 | J19: =-SUMIFS('Import Sheet'!CC:CC,'Import Sheet'!$A:$A,$L$2,'Import Sheet'!$B:$B,$L19) -> 0 | K19: =-SUMIFS('Import Sheet'!CD:CD,'Import Sheet'!$A:$A,$L$2,'Import Sheet'!$B:$B,$L19) -> 0 | L19: 1211 REV | M19: =VLOOKUP(CONCATENATE($L$2," ",L19),'Import Sheet'!$EX:$EX,1,0) -> A2A 1211 REV
A20: Security Services | C20: =-SUMIFS('Import Sheet'!D:D,'Import Sheet'!$A:$A,$L$2,'Import Sheet'!$B:$B,$L20) -> 0 | D20: =-SUMIFS('Import Sheet'!E:E,'Import Sheet'!$A:$A,$L$2,'Import Sheet'!$B:$B,$L20) -> 0 | E20: =-SUMIFS('Import Sheet'!U:U,'Import Sheet'!$A:$A,$L$2,'Import Sheet'!$B:$B,$L20) -> 0 | F20: =-SUMIFS('Import Sheet'!V:V,'Import Sheet'!$A:$A,$L$2,'Import Sheet'!$B:$B,$L20) -> 0 | G20: =-SUMIFS('Import Sheet'!W:W,'Import Sheet'!$A:$A,$L$2,'Import Sheet'!$B:$B,$L20) -> 0 | H20: =-SUMIFS('Import Sheet'!AA:AA,'Import Sheet'!$A:$A,$L$2,'Import Sheet'!$B:$B,$L20) -> 0 | I20: =-SUMIFS('Import Sheet'!CB:CB,'Import Sheet'!$A:$A,$L$2,'Import Sheet'!$B:$B,$L20) -> 0 | J20: =-SUMIFS('Import Sheet'!CC:CC,'Import Sheet'!$A:$A,$L$2,'Import Sheet'!$B:$B,$L20) -> 0 | K20: =-SUMIFS('Import Sheet'!CD:CD,'Import Sheet'!$A:$A,$L$2,'Import Sheet'!$B:$B,$L20) -> 0 | L20: 1212 REV | M20: =VLOOKUP(CONCATENATE($L$2," ",L20),'Import Sheet'!$EX:$EX,1,0) -> A2A 1212 REV
A21: Supply Chain Management | C21: =-SUMIFS('Import Sheet'!D:D,'Import Sheet'!$A:$A,$L$2,'Import Sheet'!$B:$B,$L21) -> 0 | D21: =-SUMIFS('Import Sheet'!E:E,'Import Sheet'!$A:$A,$L$2,'Import Sheet'!$B:$B,$L21) -> 0 | E21: =-SUMIFS('Import Sheet'!U:U,'Import Sheet'!$A:$A,$L$2,'Import Sheet'!$B:$B,$L21) -> 0 | F21: =-SUMIFS('Import Sheet'!V:V,'Import Sheet'!$A:$A,$L$2,'Import Sheet'!$B:$B,$L21) -> 0 | G21: =-SUMIFS('Import Sheet'!W:W,'Import Sheet'!$A:$A,$L$2,'Import Sheet'!$B:$B,$L21) -> 0 | H21: =-SUMIFS('Import Sheet'!AA:AA,'Import Sheet'!$A:$A,$L$2,'Import Sheet'!$B:$B,$L21) -> 0 | I21: =-SUMIFS('Import Sheet'!CB:CB,'Import Sheet'!$A:$A,$L$2,'Import Sheet'!$B:$B,$L21) -> 0 | J21: =-SUMIFS('Import Sheet'!CC:CC,'Import Sheet'!$A:$A,$L$2,'Import Sheet'!$B:$B,$L21) -> 0 | K21: =-SUMIFS('Import Sheet'!CD:CD,'Import Sheet'!$A:$A,$L$2,'Import Sheet'!$B:$B,$L21) -> 0 | L21: 1213 REV | M21: =VLOOKUP(CONCATENATE($L$2," ",L21),'Import Sheet'!$EX:$EX,1,0) -> A2A 1213 REV
A22: Valuation Service | C22: =-SUMIFS('Import Sheet'!D:D,'Import Sheet'!$A:$A,$L$2,'Import Sheet'!$B:$B,$L22) -> 0 | D22: =-SUMIFS('Import Sheet'!E:E,'Import Sheet'!$A:$A,$L$2,'Import Sheet'!$B:$B,$L22) -> 0 | E22: =-SUMIFS('Import Sheet'!U:U,'Import Sheet'!$A:$A,$L$2,'Import Sheet'!$B:$B,$L22) -> 0 | F22: =-SUMIFS('Import Sheet'!V:V,'Import Sheet'!$A:$A,$L$2,'Import Sheet'!$B:$B,$L22) -> 0 | G22: =-SUMIFS('Import Sheet'!W:W,'Import Sheet'!$A:$A,$L$2,'Import Sheet'!$B:$B,$L22) -> 0 | H22: =-SUMIFS('Import Sheet'!AA:AA,'Import Sheet'!$A:$A,$L$2,'Import Sheet'!$B:$B,$L22) -> 0 | I22: =-SUMIFS('Import Sheet'!CB:CB,'Import Sheet'!$A:$A,$L$2,'Import Sheet'!$B:$B,$L22) -> 0 | J22: =-SUMIFS('Import Sheet'!CC:CC,'Import Sheet'!$A:$A,$L$2,'Import Sheet'!$B:$B,$L22) -> 0 | K22: =-SUMIFS('Import Sheet'!CD:CD,'Import Sheet'!$A:$A,$L$2,'Import Sheet'!$B:$B,$L22) -> 0 | L22: 1214 REV | M22: =VLOOKUP(CONCATENATE($L$2," ",L22),'Import Sheet'!$EX:$EX,1,0) -> A2A 1214 REV
A23: Internal audit | C23: =SUM(C24:C24) -> 0 | D23: 0 | E23: 813524.72 | F23: 0 | G23: 0 | H23: 0 | I23: 0 | J23: 0 | K23: 0 | L23: 1300 REV
A24: Governance Function | C24: =-SUMIFS('Import Sheet'!D:D,'Import Sheet'!$A:$A,$L$2,'Import Sheet'!$B:$B,$L24) -> 0 | D24: =-SUMIFS('Import Sheet'!E:E,'Import Sheet'!$A:$A,$L$2,'Import Sheet'!$B:$B,$L24) -> 0 | E24: =-SUMIFS('Import Sheet'!U:U,'Import Sheet'!$A:$A,$L$2,'Import Sheet'!$B:$B,$L24) -> 813524.72 | F24: =-SUMIFS('Import Sheet'!V:V,'Import Sheet'!$A:$A,$L$2,'Import Sheet'!$B:$B,$L24) -> 0 | G24: =-SUMIFS('Import Sheet'!W:W,'Import Sheet'!$A:$A,$L$2,'Import Sheet'!$B:$B,$L24) -> 0 | H24: =-SUMIFS('Import Sheet'!AA:AA,'Import Sheet'!$A:$A,$L$2,'Import Sheet'!$B:$B,$L24) -> 0 | I24: =-SUMIFS('Import Sheet'!CB:CB,'Import Sheet'!$A:$A,$L$2,'Import Sheet'!$B:$B,$L24) -> 0 | J24: =-SUMIFS('Import Sheet'!CC:CC,'Import Sheet'!$A:$A,$L$2,'Import Sheet'!$B:$B,$L24) -> 0 | K24: =-SUMIFS('Import Sheet'!CD:CD,'Import Sheet'!$A:$A,$L$2,'Import Sheet'!$B:$B,$L24) -> 0 | L24: 1301 REV | M24: =VLOOKUP(CONCATENATE($L$2," ",L24),'Import Sheet'!$EX:$EX,1,0) -> A2A 1301 REV
A25: Community and public safety | C25: =C26+C48+C54+C63+C66 -> 0 | D25: =D26+D48+D54+D63+D66 -> 240653.55 | E25: 1345229.41 | F25: 246000 | G25: 246000 | H25: 246000 | I25: 259000 | J25: 0 | K25: 0 | L25: 2000 REV
A26: Community and social services | C26: =SUM(C27:C47) -> 0 | D26: 0 | E26: 0 | F26: 0 | G26: 0 | H26: 0 | I26: 0 | J26: 0 | K26: 0 | L26: 2100 REV
A27: Aged Care | C27: =-SUMIFS('Import Sheet'!D:D,'Import Sheet'!$A:$A,$L$2,'Import Sheet'!$B:$B,$L27) -> 0 | D27: =-SUMIFS('Import Sheet'!E:E,'Import Sheet'!$A:$A,$L$2,'Import Sheet'!$B:$B,$L27) -> 0 | E27: =-SUMIFS('Import Sheet'!U:U,'Import Sheet'!$A:$A,$L$2,'Import Sheet'!$B:$B,$L27) -> 0 | F27: =-SUMIFS('Import Sheet'!V:V,'Import Sheet'!$A:$A,$L$2,'Import Sheet'!$B:$B,$L27) -> 0 | G27: =-SUMIFS('Import Sheet'!W:W,'Import Sheet'!$A:$A,$L$2,'Import Sheet'!$B:$B,$L27) -> 0 | H27: =-SUMIFS('Import Sheet'!AA:AA,'Import Sheet'!$A:$A,$L$2,'Import Sheet'!$B:$B,$L27) -> 0 | I27: =-SUMIFS('Import Sheet'!CB:CB,'Import Sheet'!$A:$A,$L$2,'Import Sheet'!$B:$B,$L27) -> 0 | J27: =-SUMIFS('Import Sheet'!CC:CC,'Import Sheet'!$A:$A,$L$2,'Import Sheet'!$B:$B,$L27) -> 0 | K27: =-SUMIFS('Import Sheet'!CD:CD,'Import Sheet'!$A:$A,$L$2,'Import Sheet'!$B:$B,$L27) -> 0 | L27: 2101 REV | M27: =VLOOKUP(CONCATENATE($L$2," ",L27),'Import Sheet'!$EX:$EX,1,0) -> A2A 2101 REV
A28: Agricultural | C28: =-SUMIFS('Import Sheet'!D:D,'Import Sheet'!$A:$A,$L$2,'Import Sheet'!$B:$B,$L28) -> 0 | D28: =-SUMIFS('Import Sheet'!E:E,'Import Sheet'!$A:$A,$L$2,'Import Sheet'!$B:$B,$L28) -> 0 | E28: =-SUMIFS('Import Sheet'!U:U,'Import Sheet'!$A:$A,$L$2,'Import Sheet'!$B:$B,$L28) -> 0 | F28: =-SUMIFS('Import Sheet'!V:V,'Import Sheet'!$A:$A,$L$2,'Import Sheet'!$B:$B,$L28) -> 0 | G28: =-SUMIFS('Import Sheet'!W:W,'Import Sheet'!$A:$A,$L$2,'Import Sheet'!$B:$B,$L28) -> 0 | H28: =-SUMIFS('Import Sheet'!AA:AA,'Import Sheet'!$A:$A,$L$2,'Import Sheet'!$B:$B,$L28) -> 0 | I28: =-SUMIFS('Import Sheet'!CB:CB,'Import Sheet'!$A:$A,$L$2,'Import Sheet'!$B:$B,$L28) -> 0 | J28: =-SUMIFS('Import Sheet'!CC:CC,'Import Sheet'!$A:$A,$L$2,'Import Sheet'!$B:$B,$L28) -> 0 | K28: =-SUMIFS('Import Sheet'!CD:CD,'Import Sheet'!$A:$A,$L$2,'Import Sheet'!$B:$B,$L28) -> 0 | L28: 2102 REV | M28: =VLOOKUP(CONCATENATE($L$2," ",L28),'Import Sheet'!$EX:$EX,1,0) -> A2A 2102 REV
A29: Animal Care and Diseases | C29: =-SUMIFS('Import Sheet'!D:D,'Import Sheet'!$A:$A,$L$2,'Import Sheet'!$B:$B,$L29) -> 0 | D29: =-SUMIFS('Import Sheet'!E:E,'Import Sheet'!$A:$A,$L$2,'Import Sheet'!$B:$B,$L29) -> 0 | E29: =-SUMIFS('Import Sheet'!U:U,'Import Sheet'!$A:$A,$L$2,'Import Sheet'!$B:$B,$L29) -> 0 | F29: =-SUMIFS('Import Sheet'!V:V,'Import Sheet'!$A:$A,$L$2,'Import Sheet'!$B:$B,$L29) -> 0 | G29: =-SUMIFS('Import Sheet'!W:W,'Import Sheet'!$A:$A,$L$2,'Import Sheet'!$B:$B,$L29) -> 0 | H29: =-SUMIFS('Import Sheet'!AA:AA,'Import Sheet'!$A:$A,$L$2,'Import Sheet'!$B:$B,$L29) -> 0 | I29: =-SUMIFS('Import Sheet'!CB:CB,'Import Sheet'!$A:$A,$L$2,'Import Sheet'!$B:$B,$L29) -> 0 | J29: =-SUMIFS('Import Sheet'!CC:CC,'Import Sheet'!$A:$A,$L$2,'Import Sheet'!$B:$B,$L29) -> 0 | K29: =-SUMIFS('Import Sheet'!CD:CD,'Import Sheet'!$A:$A,$L$2,'Import Sheet'!$B:$B,$L29) -> 0 | L29: 2103 REV | M29: =VLOOKUP(CONCATENATE($L$2," ",L29),'Import Sheet'!$EX:$EX,1,0) -> A2A 2103 REV
A30: Cemeteries, Funeral Parlours and Crematoriums | C30: =-SUMIFS('Import Sheet'!D:D,'Import Sheet'!$A:$A,$L$2,'Import Sheet'!$B:$B,$L30) -> 0 | D30: =-SUMIFS('Import Sheet'!E:E,'Import Sheet'!$A:$A,$L$2,'Import Sheet'!$B:$B,$L30) -> 0 | E30: =-SUMIFS('Import Sheet'!U:U,'Import Sheet'!$A:$A,$L$2,'Import Sheet'!$B:$B,$L30) -> 0 | F30: =-SUMIFS('Import Sheet'!V:V,'Import Sheet'!$A:$A,$L$2,'Import Sheet'!$B:$B,$L30) -> 0 | G30: =-SUMIFS('Import Sheet'!W:W,'Import Sheet'!$A:$A,$L$2,'Import Sheet'!$B:$B,$L30) -> 0 | H30: =-SUMIFS('Import Sheet'!AA:AA,'Import Sheet'!$A:$A,$L$2,'Import Sheet'!$B:$B,$L30) -> 0 | I30: =-SUMIFS('Import Sheet'!CB:CB,'Import Sheet'!$A:$A,$L$2,'Import Sheet'!$B:$B,$L30) -> 0 | J30: =-SUMIFS('Import Sheet'!CC:CC,'Import Sheet'!$A:$A,$L$2,'Import Sheet'!$B:$B,$L30) -> 0 | K30: =-SUMIFS('Import Sheet'!CD:CD,'Import Sheet'!$A:$A,$L$2,'Import Sheet'!$B:$B,$L30) -> 0 | L30: 2104 REV | M30: =VLOOKUP(CONCATENATE($L$2," ",L30),'Import Sheet'!$EX:$EX,1,0) -> A2A 2104 REV
A31: Child Care Facilities | C31: =-SUMIFS('Import Sheet'!D:D,'Import Sheet'!$A:$A,$L$2,'Import Sheet'!$B:$B,$L31) -> 0 | D31: =-SUMIFS('Import Sheet'!E:E,'Import Sheet'!$A:$A,$L$2,'Import Sheet'!$B:$B,$L31) -> 0 | E31: =-SUMIFS('Import Sheet'!U:U,'Import Sheet'!$A:$A,$L$2,'Import Sheet'!$B:$B,$L31) -> 0 | F31: =-SUMIFS('Import Sheet'!V:V,'Import Sheet'!$A:$A,$L$2,'Import Sheet'!$B:$B,$L31) -> 0 | G31: =-SUMIFS('Import Sheet'!W:W,'Import Sheet'!$A:$A,$L$2,'Import Sheet'!$B:$B,$L31) -> 0 | H31: =-SUMIFS('Import Sheet'!AA:AA,'Import Sheet'!$A:$A,$L$2,'Import Sheet'!$B:$B,$L31) -> 0 | I31: =-SUMIFS('Import Sheet'!CB:CB,'Import Sheet'!$A:$A,$L$2,'Import Sheet'!$B:$B,$L31) -> 0 | J31: =-SUMIFS('Import Sheet'!CC:CC,'Import Sheet'!$A:$A,$L$2,'Import Sheet'!$B:$B,$L31) -> 0 | K31: =-SUMIFS('Import Sheet'!CD:CD,'Import Sheet'!$A:$A,$L$2,'Import Sheet'!$B:$B,$L31) -> 0 | L31: 2105 REV | M31: =VLOOKUP(CONCATENATE($L$2," ",L31),'Import Sheet'!$EX:$EX,1,0) -> A2A 2105 REV
A32: Community Halls and Facilities | C32: =-SUMIFS('Import Sheet'!D:D,'Import Sheet'!$A:$A,$L$2,'Import Sheet'!$B:$B,$L32) -> 0 | D32: =-SUMIFS('Import Sheet'!E:E,'Import Sheet'!$A:$A,$L$2,'Import Sheet'!$B:$B,$L32) -> 0 | E32: =-SUMIFS('Import Sheet'!U:U,'Import Sheet'!$A:$A,$L$2,'Import Sheet'!$B:$B,$L32) -> 0 | F32: =-SUMIFS('Import Sheet'!V:V,'Import Sheet'!$A:$A,$L$2,'Import Sheet'!$B:$B,$L32) -> 0 | G32: =-SUMIFS('Import Sheet'!W:W,'Import Sheet'!$A:$A,$L$2,'Import Sheet'!$B:$B,$L32) -> 0 | H32: =-SUMIFS('Import Sheet'!AA:AA,'Import Sheet'!$A:$A,$L$2,'Import Sheet'!$B:$B,$L32) -> 0 | I32: =-SUMIFS('Import Sheet'!CB:CB,'Import Sheet'!$A:$A,$L$2,'Import Sheet'!$B:$B,$L32) -> 0 | J32: =-SUMIFS('Import Sheet'!CC:CC,'Import Sheet'!$A:$A,$L$2,'Import Sheet'!$B:$B,$L32) -> 0 | K32: =-SUMIFS('Import Sheet'!CD:CD,'Import Sheet'!$A:$A,$L$2,'Import Sheet'!$B:$B,$L32) -> 0 | L32: 2106 REV | M32: =VLOOKUP(CONCATENATE($L$2," ",L32),'Import Sheet'!$EX:$EX,1,0) -> A2A 2106 REV
A33: Consumer Protection | C33: =-SUMIFS('Import Sheet'!D:D,'Import Sheet'!$A:$A,$L$2,'Import Sheet'!$B:$B,$L33) -> 0 | D33: =-SUMIFS('Import Sheet'!E:E,'Import Sheet'!$A:$A,$L$2,'Import Sheet'!$B:$B,$L33) -> 0 | E33: =-SUMIFS('Import Sheet'!U:U,'Import Sheet'!$A:$A,$L$2,'Import Sheet'!$B:$B,$L33) -> 0 | F33: =-SUMIFS('Import Sheet'!V:V,'Import Sheet'!$A:$A,$L$2,'Import Sheet'!$B:$B,$L33) -> 0 | G33: =-SUMIFS('Import Sheet'!W:W,'Import Sheet'!$A:$A,$L$2,'Import Sheet'!$B:$B,$L33) -> 0 | H33: =-SUMIFS('Import Sheet'!AA:AA,'Import Sheet'!$A:$A,$L$2,'Import Sheet'!$B:$B,$L33) -> 0 | I33: =-SUMIFS('Import Sheet'!CB:CB,'Import Sheet'!$A:$A,$L$2,'Import Sheet'!$B:$B,$L33) -> 0 | J33: =-SUMIFS('Import Sheet'!CC:CC,'Import Sheet'!$A:$A,$L$2,'Import Sheet'!$B:$B,$L33) -> 0 | K33: =-SUMIFS('Import Sheet'!CD:CD,'Import Sheet'!$A:$A,$L$2,'Import Sheet'!$B:$B,$L33) -> 0 | L33: 2107 REV | M33: =VLOOKUP(CONCATENATE($L$2," ",L33),'Import Sheet'!$EX:$EX,1,0) -> A2A 2107 REV
A34: Cultural Matters | C34: =-SUMIFS('Import Sheet'!D:D,'Import Sheet'!$A:$A,$L$2,'Import Sheet'!$B:$B,$L34) -> 0 | D34: =-SUMIFS('Import Sheet'!E:E,'Import Sheet'!$A:$A,$L$2,'Import Sheet'!$B:$B,$L34) -> 0 | E34: =-SUMIFS('Import Sheet'!U:U,'Import Sheet'!$A:$A,$L$2,'Import Sheet'!$B:$B,$L34) -> 0 | F34: =-SUMIFS('Import Sheet'!V:V,'Import Sheet'!$A:$A,$L$2,'Import Sheet'!$B:$B,$L34) -> 0 | G34: =-SUMIFS('Import Sheet'!W:W,'Import Sheet'!$A:$A,$L$2,'Import Sheet'!$B:$B,$L34) -> 0 | H34: =-SUMIFS('Import Sheet'!AA:AA,'Import Sheet'!$A:$A,$L$2,'Import Sheet'!$B:$B,$L34) -> 0 | I34: =-SUMIFS('Import Sheet'!CB:CB,'Import Sheet'!$A:$A,$L$2,'Import Sheet'!$B:$B,$L34) -> 0 | J34: =-SUMIFS('Import Sheet'!CC:CC,'Import Sheet'!$A:$A,$L$2,'Import Sheet'!$B:$B,$L34) -> 0 | K34: =-SUMIFS('Import Sheet'!CD:CD,'Import Sheet'!$A:$A,$L$2,'Import Sheet'!$B:$B,$L34) -> 0 | L34: 2108 REV | M34: =VLOOKUP(CONCATENATE($L$2," ",L34),'Import Sheet'!$EX:$EX,1,0) -> A2A 2108 REV
A35: Disaster Management | C35: =-SUMIFS('Import Sheet'!D:D,'Import Sheet'!$A:$A,$L$2,'Import Sheet'!$B:$B,$L35) -> 0 | D35: =-SUMIFS('Import Sheet'!E:E,'Import Sheet'!$A:$A,$L$2,'Import Sheet'!$B:$B,$L35) -> 0 | E35: =-SUMIFS('Import Sheet'!U:U,'Import Sheet'!$A:$A,$L$2,'Import Sheet'!$B:$B,$L35) -> 0 | F35: =-SUMIFS('Import Sheet'!V:V,'Import Sheet'!$A:$A,$L$2,'Import Sheet'!$B:$B,$L35) -> 0 | G35: =-SUMIFS('Import Sheet'!W:W,'Import Sheet'!$A:$A,$L$2,'Import Sheet'!$B:$B,$L35) -> 0 | H35: =-SUMIFS('Import Sheet'!AA:AA,'Import Sheet'!$A:$A,$L$2,'Import Sheet'!$B:$B,$L35) -> 0 | I35: =-SUMIFS('Import Sheet'!CB:CB,'Import Sheet'!$A:$A,$L$2,'Import Sheet'!$B:$B,$L35) -> 0 | J35: =-SUMIFS('Import Sheet'!CC:CC,'Import Sheet'!$A:$A,$L$2,'Import Sheet'!$B:$B,$L35) -> 0 | K35: =-SUMIFS('Import Sheet'!CD:CD,'Import Sheet'!$A:$A,$L$2,'Import Sheet'!$B:$B,$L35) -> 0 | L35: 2109 REV | M35: =VLOOKUP(CONCATENATE($L$2," ",L35),'Import Sheet'!$EX:$EX,1,0) -> A2A 2109 REV
A36: Education | C36: =-SUMIFS('Import Sheet'!D:D,'Import Sheet'!$A:$A,$L$2,'Import Sheet'!$B:$B,$L36) -> 0 | D36: =-SUMIFS('Import Sheet'!E:E,'Import Sheet'!$A:$A,$L$2,'Import Sheet'!$B:$B,$L36) -> 0 | E36: =-SUMIFS('Import Sheet'!U:U,'Import Sheet'!$A:$A,$L$2,'Import Sheet'!$B:$B,$L36) -> 0 | F36: =-SUMIFS('Import Sheet'!V:V,'Import Sheet'!$A:$A,$L$2,'Import Sheet'!$B:$B,$L36) -> 0 | G36: =-SUMIFS('Import Sheet'!W:W,'Import Sheet'!$A:$A,$L$2,'Import Sheet'!$B:$B,$L36) -> 0 | H36: =-SUMIFS('Import Sheet'!AA:AA,'Import Sheet'!$A:$A,$L$2,'Import Sheet'!$B:$B,$L36) -> 0 | I36: =-SUMIFS('Import Sheet'!CB:CB,'Import Sheet'!$A:$A,$L$2,'Import Sheet'!$B:$B,$L36) -> 0 | J36: =-SUMIFS('Import Sheet'!CC:CC,'Import Sheet'!$A:$A,$L$2,'Import Sheet'!$B:$B,$L36) -> 0 | K36: =-SUMIFS('Import Sheet'!CD:CD,'Import Sheet'!$A:$A,$L$2,'Import Sheet'!$B:$B,$L36) -> 0 | L36: 2110 REV | M36: =VLOOKUP(CONCATENATE($L$2," ",L36),'Import Sheet'!$EX:$EX,1,0) -> A2A 2110 REV
A37: Indigenous and Customary Law | C37: =-SUMIFS('Import Sheet'!D:D,'Import Sheet'!$A:$A,$L$2,'Import Sheet'!$B:$B,$L37) -> 0 | D37: =-SUMIFS('Import Sheet'!E:E,'Import Sheet'!$A:$A,$L$2,'Import Sheet'!$B:$B,$L37) -> 0 | E37: =-SUMIFS('Import Sheet'!U:U,'Import Sheet'!$A:$A,$L$2,'Import Sheet'!$B:$B,$L37) -> 0 | F37: =-SUMIFS('Import Sheet'!V:V,'Import Sheet'!$A:$A,$L$2,'Import Sheet'!$B:$B,$L37) -> 0 | G37: =-SUMIFS('Import Sheet'!W:W,'Import Sheet'!$A:$A,$L$2,'Import Sheet'!$B:$B,$L37) -> 0 | H37: =-SUMIFS('Import Sheet'!AA:AA,'Import Sheet'!$A:$A,$L$2,'Import Sheet'!$B:$B,$L37) -> 0 | I37: =-SUMIFS('Import Sheet'!CB:CB,'Import Sheet'!$A:$A,$L$2,'Import Sheet'!$B:$B,$L37) -> 0 | J37: =-SUMIFS('Import Sheet'!CC:CC,'Import Sheet'!$A:$A,$L$2,'Import Sheet'!$B:$B,$L37) -> 0 | K37: =-SUMIFS('Import Sheet'!CD:CD,'Import Sheet'!$A:$A,$L$2,'Import Sheet'!$B:$B,$L37) -> 0 | L37: 2111 REV | M37: =VLOOKUP(CONCATENATE($L$2," ",L37),'Import Sheet'!$EX:$EX,1,0) -> A2A 2111 REV
A38: Industrial Promotion | C38: =-SUMIFS('Import Sheet'!D:D,'Import Sheet'!$A:$A,$L$2,'Import Sheet'!$B:$B,$L38) -> 0 | D38: =-SUMIFS('Import Sheet'!E:E,'Import Sheet'!$A:$A,$L$2,'Import Sheet'!$B:$B,$L38) -> 0 | E38: =-SUMIFS('Import Sheet'!U:U,'Import Sheet'!$A:$A,$L$2,'Import Sheet'!$B:$B,$L38) -> 0 | F38: =-SUMIFS('Import Sheet'!V:V,'Import Sheet'!$A:$A,$L$2,'Import Sheet'!$B:$B,$L38) -> 0 | G38: =-SUMIFS('Import Sheet'!W:W,'Import Sheet'!$A:$A,$L$2,'Import Sheet'!$B:$B,$L38) -> 0 | H38: =-SUMIFS('Import Sheet'!AA:AA,'Import Sheet'!$A:$A,$L$2,'Import Sheet'!$B:$B,$L38) -> 0 | I38: =-SUMIFS('Import Sheet'!CB:CB,'Import Sheet'!$A:$A,$L$2,'Import Sheet'!$B:$B,$L38) -> 0 | J38: =-SUMIFS('Import Sheet'!CC:CC,'Import Sheet'!$A:$A,$L$2,'Import Sheet'!$B:$B,$L38) -> 0 | K38: =-SUMIFS('Import Sheet'!CD:CD,'Import Sheet'!$A:$A,$L$2,'Import Sheet'!$B:$B,$L38) -> 0 | L38: 2112 REV | M38: =VLOOKUP(CONCATENATE($L$2," ",L38),'Import Sheet'!$EX:$EX,1,0) -> A2A 2112 REV
A39: Language Policy | C39: =-SUMIFS('Import Sheet'!D:D,'Import Sheet'!$A:$A,$L$2,'Import Sheet'!$B:$B,$L39) -> 0 | D39: =-SUMIFS('Import Sheet'!E:E,'Import Sheet'!$A:$A,$L$2,'Import Sheet'!$B:$B,$L39) -> 0 | E39: =-SUMIFS('Import Sheet'!U:U,'Import Sheet'!$A:$A,$L$2,'Import Sheet'!$B:$B,$L39) -> 0 | F39: =-SUMIFS('Import Sheet'!V:V,'Import Sheet'!$A:$A,$L$2,'Import Sheet'!$B:$B,$L39) -> 0 | G39: =-SUMIFS('Import Sheet'!W:W,'Import Sheet'!$A:$A,$L$2,'Import Sheet'!$B:$B,$L39) -> 0 | H39: =-SUMIFS('Import Sheet'!AA:AA,'Import Sheet'!$A:$A,$L$2,'Import Sheet'!$B:$B,$L39) -> 0 | I39: =-SUMIFS('Import Sheet'!CB:CB,'Import Sheet'!$A:$A,$L$2,'Import Sheet'!$B:$B,$L39) -> 0 | J39: =-SUMIFS('Import Sheet'!CC:CC,'Import Sheet'!$A:$A,$L$2,'Import Sheet'!$B:$B,$L39) -> 0 | K39: =-SUMIFS('Import Sheet'!CD:CD,'Import Sheet'!$A:$A,$L$2,'Import Sheet'!$B:$B,$L39) -> 0 | L39: 2113 REV | M39: =VLOOKUP(CONCATENATE($L$2," ",L39),'Import Sheet'!$EX:$EX,1,0) -> A2A 2113 REV
A40: Libraries and Archives | C40: =-SUMIFS('Import Sheet'!D:D,'Import Sheet'!$A:$A,$L$2,'Import Sheet'!$B:$B,$L40) -> 0 | D40: =-SUMIFS('Import Sheet'!E:E,'Import Sheet'!$A:$A,$L$2,'Import Sheet'!$B:$B,$L40) -> 0 | E40: =-SUMIFS('Import Sheet'!U:U,'Import Sheet'!$A:$A,$L$2,'Import Sheet'!$B:$B,$L40) -> 0 | F40: =-SUMIFS('Import Sheet'!V:V,'Import Sheet'!$A:$A,$L$2,'Import Sheet'!$B:$B,$L40) -> 0 | G40: =-SUMIFS('Import Sheet'!W:W,'Import Sheet'!$A:$A,$L$2,'Import Sheet'!$B:$B,$L40) -> 0 | H40: =-SUMIFS('Import Sheet'!AA:AA,'Import Sheet'!$A:$A,$L$2,'Import Sheet'!$B:$B,$L40) -> 0 | I40: =-SUMIFS('Import Sheet'!CB:CB,'Import Sheet'!$A:$A,$L$2,'Import Sheet'!$B:$B,$L40) -> 0 | J40: =-SUMIFS('Import Sheet'!CC:CC,'Import Sheet'!$A:$A,$L$2,'Import Sheet'!$B:$B,$L40) -> 0 | K40: =-SUMIFS('Import Sheet'!CD:CD,'Import Sheet'!$A:$A,$L$2,'Import Sheet'!$B:$B,$L40) -> 0 | L40: 2114 REV | M40: =VLOOKUP(CONCATENATE($L$2," ",L40),'Import Sheet'!$EX:$EX,1,0) -> A2A 2114 REV
A41: Literacy Programmes | C41: =-SUMIFS('Import Sheet'!D:D,'Import Sheet'!$A:$A,$L$2,'Import Sheet'!$B:$B,$L41) -> 0 | D41: =-SUMIFS('Import Sheet'!E:E,'Import Sheet'!$A:$A,$L$2,'Import Sheet'!$B:$B,$L41) -> 0 | E41: =-SUMIFS('Import Sheet'!U:U,'Import Sheet'!$A:$A,$L$2,'Import Sheet'!$B:$B,$L41) -> 0 | F41: =-SUMIFS('Import Sheet'!V:V,'Import Sheet'!$A:$A,$L$2,'Import Sheet'!$B:$B,$L41) -> 0 | G41: =-SUMIFS('Import Sheet'!W:W,'Import Sheet'!$A:$A,$L$2,'Import Sheet'!$B:$B,$L41) -> 0 | H41: =-SUMIFS('Import Sheet'!AA:AA,'Import Sheet'!$A:$A,$L$2,'Import Sheet'!$B:$B,$L41) -> 0 | I41: =-SUMIFS('Import Sheet'!CB:CB,'Import Sheet'!$A:$A,$L$2,'Import Sheet'!$B:$B,$L41) -> 0 | J41: =-SUMIFS('Import Sheet'!CC:CC,'Import Sheet'!$A:$A,$L$2,'Import Sheet'!$B:$B,$L41) -> 0 | K41: =-SUMIFS('Import Sheet'!CD:CD,'Import Sheet'!$A:$A,$L$2,'Import Sheet'!$B:$B,$L41) -> 0 | L41: 2115 REV | M41: =VLOOKUP(CONCATENATE($L$2," ",L41),'Import Sheet'!$EX:$EX,1,0) -> A2A 2115 REV
A42: Media Services | C42: =-SUMIFS('Import Sheet'!D:D,'Import Sheet'!$A:$A,$L$2,'Import Sheet'!$B:$B,$L42) -> 0 | D42: =-SUMIFS('Import Sheet'!E:E,'Import Sheet'!$A:$A,$L$2,'Import Sheet'!$B:$B,$L42) -> 0 | E42: =-SUMIFS('Import Sheet'!U:U,'Import Sheet'!$A:$A,$L$2,'Import Sheet'!$B:$B,$L42) -> 0 | F42: =-SUMIFS('Import Sheet'!V:V,'Import Sheet'!$A:$A,$L$2,'Import Sheet'!$B:$B,$L42) -> 0 | G42: =-SUMIFS('Import Sheet'!W:W,'Import Sheet'!$A:$A,$L$2,'Import Sheet'!$B:$B,$L42) -> 0 | H42: =-SUMIFS('Import Sheet'!AA:AA,'Import Sheet'!$A:$A,$L$2,'Import Sheet'!$B:$B,$L42) -> 0 | I42: =-SUMIFS('Import Sheet'!CB:CB,'Import Sheet'!$A:$A,$L$2,'Import Sheet'!$B:$B,$L42) -> 0 | J42: =-SUMIFS('Import Sheet'!CC:CC,'Import Sheet'!$A:$A,$L$2,'Import Sheet'!$B:$B,$L42) -> 0 | K42: =-SUMIFS('Import Sheet'!CD:CD,'Import Sheet'!$A:$A,$L$2,'Import Sheet'!$B:$B,$L42) -> 0 | L42: 2116 REV | M42: =VLOOKUP(CONCATENATE($L$2," ",L42),'Import Sheet'!$EX:$EX,1,0) -> A2A 2116 REV
A43: Museums and Art Galleries | C43: =-SUMIFS('Import Sheet'!D:D,'Import Sheet'!$A:$A,$L$2,'Import Sheet'!$B:$B,$L43) -> 0 | D43: =-SUMIFS('Import Sheet'!E:E,'Import Sheet'!$A:$A,$L$2,'Import Sheet'!$B:$B,$L43) -> 0 | E43: =-SUMIFS('Import Sheet'!U:U,'Import Sheet'!$A:$A,$L$2,'Import Sheet'!$B:$B,$L43) -> 0 | F43: =-SUMIFS('Import Sheet'!V:V,'Import Sheet'!$A:$A,$L$2,'Import Sheet'!$B:$B,$L43) -> 0 | G43: =-SUMIFS('Import Sheet'!W:W,'Import Sheet'!$A:$A,$L$2,'Import Sheet'!$B:$B,$L43) -> 0 | H43: =-SUMIFS('Import Sheet'!AA:AA,'Import Sheet'!$A:$A,$L$2,'Import Sheet'!$B:$B,$L43) -> 0 | I43: =-SUMIFS('Import Sheet'!CB:CB,'Import Sheet'!$A:$A,$L$2,'Import Sheet'!$B:$B,$L43) -> 0 | J43: =-SUMIFS('Import Sheet'!CC:CC,'Import Sheet'!$A:$A,$L$2,'Import Sheet'!$B:$B,$L43) -> 0 | K43: =-SUMIFS('Import Sheet'!CD:CD,'Import Sheet'!$A:$A,$L$2,'Import Sheet'!$B:$B,$L43) -> 0 | L43: 2117 REV | M43: =VLOOKUP(CONCATENATE($L$2," ",L43),'Import Sheet'!$EX:$EX,1,0) -> A2A 2117 REV
A44: Population Development | C44: =-SUMIFS('Import Sheet'!D:D,'Import Sheet'!$A:$A,$L$2,'Import Sheet'!$B:$B,$L44) -> 0 | D44: =-SUMIFS('Import Sheet'!E:E,'Import Sheet'!$A:$A,$L$2,'Import Sheet'!$B:$B,$L44) -> 0 | E44: =-SUMIFS('Import Sheet'!U:U,'Import Sheet'!$A:$A,$L$2,'Import Sheet'!$B:$B,$L44) -> 0 | F44: =-SUMIFS('Import Sheet'!V:V,'Import Sheet'!$A:$A,$L$2,'Import Sheet'!$B:$B,$L44) -> 0 | G44: =-SUMIFS('Import Sheet'!W:W,'Import Sheet'!$A:$A,$L$2,'Import Sheet'!$B:$B,$L44) -> 0 | H44: =-SUMIFS('Import Sheet'!AA:AA,'Import Sheet'!$A:$A,$L$2,'Import Sheet'!$B:$B,$L44) -> 0 | I44: =-SUMIFS('Import Sheet'!CB:CB,'Import Sheet'!$A:$A,$L$2,'Import Sheet'!$B:$B,$L44) -> 0 | J44: =-SUMIFS('Import Sheet'!CC:CC,'Import Sheet'!$A:$A,$L$2,'Import Sheet'!$B:$B,$L44) -> 0 | K44: =-SUMIFS('Import Sheet'!CD:CD,'Import Sheet'!$A:$A,$L$2,'Import Sheet'!$B:$B,$L44) -> 0 | L44: 2118 REV | M44: =VLOOKUP(CONCATENATE($L$2," ",L44),'Import Sheet'!$EX:$EX,1,0) -> A2A 2118 REV
A45: Provincial Cultural Matters | C45: =-SUMIFS('Import Sheet'!D:D,'Import Sheet'!$A:$A,$L$2,'Import Sheet'!$B:$B,$L45) -> 0 | D45: =-SUMIFS('Import Sheet'!E:E,'Import Sheet'!$A:$A,$L$2,'Import Sheet'!$B:$B,$L45) -> 0 | E45: =-SUMIFS('Import Sheet'!U:U,'Import Sheet'!$A:$A,$L$2,'Import Sheet'!$B:$B,$L45) -> 0 | F45: =-SUMIFS('Import Sheet'!V:V,'Import Sheet'!$A:$A,$L$2,'Import Sheet'!$B:$B,$L45) -> 0 | G45: =-SUMIFS('Import Sheet'!W:W,'Import Sheet'!$A:$A,$L$2,'Import Sheet'!$B:$B,$L45) -> 0 | H45: =-SUMIFS('Import Sheet'!AA:AA,'Import Sheet'!$A:$A,$L$2,'Import Sheet'!$B:$B,$L45) -> 0 | I45: =-SUMIFS('Import Sheet'!CB:CB,'Import Sheet'!$A:$A,$L$2,'Import Sheet'!$B:$B,$L45) -> 0 | J45: =-SUMIFS('Import Sheet'!CC:CC,'Import Sheet'!$A:$A,$L$2,'Import Sheet'!$B:$B,$L45) -> 0 | K45: =-SUMIFS('Import Sheet'!CD:CD,'Import Sheet'!$A:$A,$L$2,'Import Sheet'!$B:$B,$L45) -> 0 | L45: 2119 REV | M45: =VLOOKUP(CONCATENATE($L$2," ",L45),'Import Sheet'!$EX:$EX,1,0) -> A2A 2119 REV
A46: Theatres | C46: =-SUMIFS('Import Sheet'!D:D,'Import Sheet'!$A:$A,$L$2,'Import Sheet'!$B:$B,$L46) -> 0 | D46: =-SUMIFS('Import Sheet'!E:E,'Import Sheet'!$A:$A,$L$2,'Import Sheet'!$B:$B,$L46) -> 0 | E46: =-SUMIFS('Import Sheet'!U:U,'Import Sheet'!$A:$A,$L$2,'Import Sheet'!$B:$B,$L46) -> 0 | F46: =-SUMIFS('Import Sheet'!V:V,'Import Sheet'!$A:$A,$L$2,'Import Sheet'!$B:$B,$L46) -> 0 | G46: =-SUMIFS('Import Sheet'!W:W,'Import Sheet'!$A:$A,$L$2,'Import Sheet'!$B:$B,$L46) -> 0 | H46: =-SUMIFS('Import Sheet'!AA:AA,'Import Sheet'!$A:$A,$L$2,'Import Sheet'!$B:$B,$L46) -> 0 | I46: =-SUMIFS('Import Sheet'!CB:CB,'Import Sheet'!$A:$A,$L$2,'Import Sheet'!$B:$B,$L46) -> 0 | J46: =-SUMIFS('Import Sheet'!CC:CC,'Import Sheet'!$A:$A,$L$2,'Import Sheet'!$B:$B,$L46) -> 0 | K46: =-SUMIFS('Import Sheet'!CD:CD,'Import Sheet'!$A:$A,$L$2,'Import Sheet'!$B:$B,$L46) -> 0 | L46: 2120 REV | M46: =VLOOKUP(CONCATENATE($L$2," ",L46),'Import Sheet'!$EX:$EX,1,0) -> A2A 2120 REV
A47: Zoo's | C47: =-SUMIFS('Import Sheet'!D:D,'Import Sheet'!$A:$A,$L$2,'Import Sheet'!$B:$B,$L47) -> 0 | D47: =-SUMIFS('Import Sheet'!E:E,'Import Sheet'!$A:$A,$L$2,'Import Sheet'!$B:$B,$L47) -> 0 | E47: =-SUMIFS('Import Sheet'!U:U,'Import Sheet'!$A:$A,$L$2,'Import Sheet'!$B:$B,$L47) -> 0 | F47: =-SUMIFS('Import Sheet'!V:V,'Import Sheet'!$A:$A,$L$2,'Import Sheet'!$B:$B,$L47) -> 0 | G47: =-SUMIFS('Import Sheet'!W:W,'Import Sheet'!$A:$A,$L$2,'Import Sheet'!$B:$B,$L47) -> 0 | H47: =-SUMIFS('Import Sheet'!AA:AA,'Import Sheet'!$A:$A,$L$2,'Import Sheet'!$B:$B,$L47) -> 0 | I47: =-SUMIFS('Import Sheet'!CB:CB,'Import Sheet'!$A:$A,$L$2,'Import Sheet'!$B:$B,$L47) -> 0 | J47: =-SUMIFS('Import Sheet'!CC:CC,'Import Sheet'!$A:$A,$L$2,'Import Sheet'!$B:$B,$L47) -> 0 | K47: =-SUMIFS('Import Sheet'!CD:CD,'Import Sheet'!$A:$A,$L$2,'Import Sheet'!$B:$B,$L47) -> 0 | L47: 2121 REV | M47: =VLOOKUP(CONCATENATE($L$2," ",L47),'Import Sheet'!$EX:$EX,1,0) -> A2A 2121 REV
A48: Sport and recreation | C48: =SUM(C49:C53) -> 0 | D48: 0 | E48: 0 | F48: 0 | G48: 0 | H48: 0 | I48: 0 | J48: 0 | K48: 0 | L48: 2200 REV
A49: Beaches and Jetties | C49: =-SUMIFS('Import Sheet'!D:D,'Import Sheet'!$A:$A,$L$2,'Import Sheet'!$B:$B,$L49) -> 0 | D49: =-SUMIFS('Import Sheet'!E:E,'Import Sheet'!$A:$A,$L$2,'Import Sheet'!$B:$B,$L49) -> 0 | E49: =-SUMIFS('Import Sheet'!U:U,'Import Sheet'!$A:$A,$L$2,'Import Sheet'!$B:$B,$L49) -> 0 | F49: =-SUMIFS('Import Sheet'!V:V,'Import Sheet'!$A:$A,$L$2,'Import Sheet'!$B:$B,$L49) -> 0 | G49: =-SUMIFS('Import Sheet'!W:W,'Import Sheet'!$A:$A,$L$2,'Import Sheet'!$B:$B,$L49) -> 0 | H49: =-SUMIFS('Import Sheet'!AA:AA,'Import Sheet'!$A:$A,$L$2,'Import Sheet'!$B:$B,$L49) -> 0 | I49: =-SUMIFS('Import Sheet'!CB:CB,'Import Sheet'!$A:$A,$L$2,'Import Sheet'!$B:$B,$L49) -> 0 | J49: =-SUMIFS('Import Sheet'!CC:CC,'Import Sheet'!$A:$A,$L$2,'Import Sheet'!$B:$B,$L49) -> 0 | K49: =-SUMIFS('Import Sheet'!CD:CD,'Import Sheet'!$A:$A,$L$2,'Import Sheet'!$B:$B,$L49) -> 0 | L49: 2201 REV | M49: =VLOOKUP(CONCATENATE($L$2," ",L49),'Import Sheet'!$EX:$EX,1,0) -> A2A 2201 REV
A50: Casinos, Racing, Gambling, Wagering | C50: =-SUMIFS('Import Sheet'!D:D,'Import Sheet'!$A:$A,$L$2,'Import Sheet'!$B:$B,$L50) -> 0 | D50: =-SUMIFS('Import Sheet'!E:E,'Import Sheet'!$A:$A,$L$2,'Import Sheet'!$B:$B,$L50) -> 0 | E50: =-SUMIFS('Import Sheet'!U:U,'Import Sheet'!$A:$A,$L$2,'Import Sheet'!$B:$B,$L50) -> 0 | F50: =-SUMIFS('Import Sheet'!V:V,'Import Sheet'!$A:$A,$L$2,'Import Sheet'!$B:$B,$L50) -> 0 | G50: =-SUMIFS('Import Sheet'!W:W,'Import Sheet'!$A:$A,$L$2,'Import Sheet'!$B:$B,$L50) -> 0 | H50: =-SUMIFS('Import Sheet'!AA:AA,'Import Sheet'!$A:$A,$L$2,'Import Sheet'!$B:$B,$L50) -> 0 | I50: =-SUMIFS('Import Sheet'!CB:CB,'Import Sheet'!$A:$A,$L$2,'Import Sheet'!$B:$B,$L50) -> 0 | J50: =-SUMIFS('Import Sheet'!CC:CC,'Import Sheet'!$A:$A,$L$2,'Import Sheet'!$B:$B,$L50) -> 0 | K50: =-SUMIFS('Import Sheet'!CD:CD,'Import Sheet'!$A:$A,$L$2,'Import Sheet'!$B:$B,$L50) -> 0 | L50: 2202 REV | M50: =VLOOKUP(CONCATENATE($L$2," ",L50),'Import Sheet'!$EX:$EX,1,0) -> A2A 2202 REV
A51: Community Parks (including Nurseries) | C51: =-SUMIFS('Import Sheet'!D:D,'Import Sheet'!$A:$A,$L$2,'Import Sheet'!$B:$B,$L51) -> 0 | D51: =-SUMIFS('Import Sheet'!E:E,'Import Sheet'!$A:$A,$L$2,'Import Sheet'!$B:$B,$L51) -> 0 | E51: =-SUMIFS('Import Sheet'!U:U,'Import Sheet'!$A:$A,$L$2,'Import Sheet'!$B:$B,$L51) -> 0 | F51: =-SUMIFS('Import Sheet'!V:V,'Import Sheet'!$A:$A,$L$2,'Import Sheet'!$B:$B,$L51) -> 0 | G51: =-SUMIFS('Import Sheet'!W:W,'Import Sheet'!$A:$A,$L$2,'Import Sheet'!$B:$B,$L51) -> 0 | H51: =-SUMIFS('Import Sheet'!AA:AA,'Import Sheet'!$A:$A,$L$2,'Import Sheet'!$B:$B,$L51) -> 0 | I51: =-SUMIFS('Import Sheet'!CB:CB,'Import Sheet'!$A:$A,$L$2,'Import Sheet'!$B:$B,$L51) -> 0 | J51: =-SUMIFS('Import Sheet'!CC:CC,'Import Sheet'!$A:$A,$L$2,'Import Sheet'!$B:$B,$L51) -> 0 | K51: =-SUMIFS('Import Sheet'!CD:CD,'Import Sheet'!$A:$A,$L$2,'Import Sheet'!$B:$B,$L51) -> 0 | L51: 2203 REV | M51: =VLOOKUP(CONCATENATE($L$2," ",L51),'Import Sheet'!$EX:$EX,1,0) -> A2A 2203 REV
A52: Recreational Facilities | C52: =-SUMIFS('Import Sheet'!D:D,'Import Sheet'!$A:$A,$L$2,'Import Sheet'!$B:$B,$L52) -> 0 | D52: =-SUMIFS('Import Sheet'!E:E,'Import Sheet'!$A:$A,$L$2,'Import Sheet'!$B:$B,$L52) -> 0 | E52: =-SUMIFS('Import Sheet'!U:U,'Import Sheet'!$A:$A,$L$2,'Import Sheet'!$B:$B,$L52) -> 0 | F52: =-SUMIFS('Import Sheet'!V:V,'Import Sheet'!$A:$A,$L$2,'Import Sheet'!$B:$B,$L52) -> 0 | G52: =-SUMIFS('Import Sheet'!W:W,'Import Sheet'!$A:$A,$L$2,'Import Sheet'!$B:$B,$L52) -> 0 | H52: =-SUMIFS('Import Sheet'!AA:AA,'Import Sheet'!$A:$A,$L$2,'Import Sheet'!$B:$B,$L52) -> 0 | I52: =-SUMIFS('Import Sheet'!CB:CB,'Import Sheet'!$A:$A,$L$2,'Import Sheet'!$B:$B,$L52) -> 0 | J52: =-SUMIFS('Import Sheet'!CC:CC,'Import Sheet'!$A:$A,$L$2,'Import Sheet'!$B:$B,$L52) -> 0 | K52: =-SUMIFS('Import Sheet'!CD:CD,'Import Sheet'!$A:$A,$L$2,'Import Sheet'!$B:$B,$L52) -> 0 | L52: 2204 REV | M52: =VLOOKUP(CONCATENATE($L$2," ",L52),'Import Sheet'!$EX:$EX,1,0) -> A2A 2204 REV
A53: Sports Grounds and Stadiums | C53: =-SUMIFS('Import Sheet'!D:D,'Import Sheet'!$A:$A,$L$2,'Import Sheet'!$B:$B,$L53) -> 0 | D53: =-SUMIFS('Import Sheet'!E:E,'Import Sheet'!$A:$A,$L$2,'Import Sheet'!$B:$B,$L53) -> 0 | E53: =-SUMIFS('Import Sheet'!U:U,'Import Sheet'!$A:$A,$L$2,'Import Sheet'!$B:$B,$L53) -> 0 | F53: =-SUMIFS('Import Sheet'!V:V,'Import Sheet'!$A:$A,$L$2,'Import Sheet'!$B:$B,$L53) -> 0 | G53: =-SUMIFS('Import Sheet'!W:W,'Import Sheet'!$A:$A,$L$2,'Import Sheet'!$B:$B,$L53) -> 0 | H53: =-SUMIFS('Import Sheet'!AA:AA,'Import Sheet'!$A:$A,$L$2,'Import Sheet'!$B:$B,$L53) -> 0 | I53: =-SUMIFS('Import Sheet'!CB:CB,'Import Sheet'!$A:$A,$L$2,'Import Sheet'!$B:$B,$L53) -> 0 | J53: =-SUMIFS('Import Sheet'!CC:CC,'Import Sheet'!$A:$A,$L$2,'Import Sheet'!$B:$B,$L53) -> 0 | K53: =-SUMIFS('Import Sheet'!CD:CD,'Import Sheet'!$A:$A,$L$2,'Import Sheet'!$B:$B,$L53) -> 0 | L53: 2205 REV | M53: =VLOOKUP(CONCATENATE($L$2," ",L53),'Import Sheet'!$EX:$EX,1,0) -> A2A 2205 REV
A54: Public safety | C54: =SUM(C55:C62) -> 0 | D54: 240653.55 | E54: 1345229.41 | F54: 246000 | G54: 246000 | H54: 246000 | I54: 259000 | J54: 0 | K54: 0 | L54: 2300 REV
A55: Civil Defence | C55: =-SUMIFS('Import Sheet'!D:D,'Import Sheet'!$A:$A,$L$2,'Import Sheet'!$B:$B,$L55) -> 0 | D55: =-SUMIFS('Import Sheet'!E:E,'Import Sheet'!$A:$A,$L$2,'Import Sheet'!$B:$B,$L55) -> 0 | E55: =-SUMIFS('Import Sheet'!U:U,'Import Sheet'!$A:$A,$L$2,'Import Sheet'!$B:$B,$L55) -> 0 | F55: =-SUMIFS('Import Sheet'!V:V,'Import Sheet'!$A:$A,$L$2,'Import Sheet'!$B:$B,$L55) -> 0 | G55: =-SUMIFS('Import Sheet'!W:W,'Import Sheet'!$A:$A,$L$2,'Import Sheet'!$B:$B,$L55) -> 0 | H55: =-SUMIFS('Import Sheet'!AA:AA,'Import Sheet'!$A:$A,$L$2,'Import Sheet'!$B:$B,$L55) -> 0 | I55: =-SUMIFS('Import Sheet'!CB:CB,'Import Sheet'!$A:$A,$L$2,'Import Sheet'!$B:$B,$L55) -> 0 | J55: =-SUMIFS('Import Sheet'!CC:CC,'Import Sheet'!$A:$A,$L$2,'Import Sheet'!$B:$B,$L55) -> 0 | K55: =-SUMIFS('Import Sheet'!CD:CD,'Import Sheet'!$A:$A,$L$2,'Import Sheet'!$B:$B,$L55) -> 0 | L55: 2301 REV | M55: =VLOOKUP(CONCATENATE($L$2," ",L55),'Import Sheet'!$EX:$EX,1,0) -> A2A 2301 REV
A56: Cleansing | C56: =-SUMIFS('Import Sheet'!D:D,'Import Sheet'!$A:$A,$L$2,'Import Sheet'!$B:$B,$L56) -> 0 | D56: =-SUMIFS('Import Sheet'!E:E,'Import Sheet'!$A:$A,$L$2,'Import Sheet'!$B:$B,$L56) -> 0 | E56: =-SUMIFS('Import Sheet'!U:U,'Import Sheet'!$A:$A,$L$2,'Import Sheet'!$B:$B,$L56) -> 0 | F56: =-SUMIFS('Import Sheet'!V:V,'Import Sheet'!$A:$A,$L$2,'Import Sheet'!$B:$B,$L56) -> 0 | G56: =-SUMIFS('Import Sheet'!W:W,'Import Sheet'!$A:$A,$L$2,'Import Sheet'!$B:$B,$L56) -> 0 | H56: =-SUMIFS('Import Sheet'!AA:AA,'Import Sheet'!$A:$A,$L$2,'Import Sheet'!$B:$B,$L56) -> 0 | I56: =-SUMIFS('Import Sheet'!CB:CB,'Import Sheet'!$A:$A,$L$2,'Import Sheet'!$B:$B,$L56) -> 0 | J56: =-SUMIFS('Import Sheet'!CC:CC,'Import Sheet'!$A:$A,$L$2,'Import Sheet'!$B:$B,$L56) -> 0 | K56: =-SUMIFS('Import Sheet'!CD:CD,'Import Sheet'!$A:$A,$L$2,'Import Sheet'!$B:$B,$L56) -> 0 | L56: 2302 REV | M56: =VLOOKUP(CONCATENATE($L$2," ",L56),'Import Sheet'!$EX:$EX,1,0) -> A2A 2302 REV
A57: Control of Public Nuisances | C57: =-SUMIFS('Import Sheet'!D:D,'Import Sheet'!$A:$A,$L$2,'Import Sheet'!$B:$B,$L57) -> 0 | D57: =-SUMIFS('Import Sheet'!E:E,'Import Sheet'!$A:$A,$L$2,'Import Sheet'!$B:$B,$L57) -> 0 | E57: =-SUMIFS('Import Sheet'!U:U,'Import Sheet'!$A:$A,$L$2,'Import Sheet'!$B:$B,$L57) -> 0 | F57: =-SUMIFS('Import Sheet'!V:V,'Import Sheet'!$A:$A,$L$2,'Import Sheet'!$B:$B,$L57) -> 0 | G57: =-SUMIFS('Import Sheet'!W:W,'Import Sheet'!$A:$A,$L$2,'Import Sheet'!$B:$B,$L57) -> 0 | H57: =-SUMIFS('Import Sheet'!AA:AA,'Import Sheet'!$A:$A,$L$2,'Import Sheet'!$B:$B,$L57) -> 0 | I57: =-SUMIFS('Import Sheet'!CB:CB,'Import Sheet'!$A:$A,$L$2,'Import Sheet'!$B:$B,$L57) -> 0 | J57: =-SUMIFS('Import Sheet'!CC:CC,'Import Sheet'!$A:$A,$L$2,'Import Sheet'!$B:$B,$L57) -> 0 | K57: =-SUMIFS('Import Sheet'!CD:CD,'Import Sheet'!$A:$A,$L$2,'Import Sheet'!$B:$B,$L57) -> 0 | L57: 2303 REV | M57: =VLOOKUP(CONCATENATE($L$2," ",L57),'Import Sheet'!$EX:$EX,1,0) -> A2A 2303 REV
A58: Fencing and Fences | C58: =-SUMIFS('Import Sheet'!D:D,'Import Sheet'!$A:$A,$L$2,'Import Sheet'!$B:$B,$L58) -> 0 | D58: =-SUMIFS('Import Sheet'!E:E,'Import Sheet'!$A:$A,$L$2,'Import Sheet'!$B:$B,$L58) -> 0 | E58: =-SUMIFS('Import Sheet'!U:U,'Import Sheet'!$A:$A,$L$2,'Import Sheet'!$B:$B,$L58) -> 0 | F58: =-SUMIFS('Import Sheet'!V:V,'Import Sheet'!$A:$A,$L$2,'Import Sheet'!$B:$B,$L58) -> 0 | G58: =-SUMIFS('Import Sheet'!W:W,'Import Sheet'!$A:$A,$L$2,'Import Sheet'!$B:$B,$L58) -> 0 | H58: =-SUMIFS('Import Sheet'!AA:AA,'Import Sheet'!$A:$A,$L$2,'Import Sheet'!$B:$B,$L58) -> 0 | I58: =-SUMIFS('Import Sheet'!CB:CB,'Import Sheet'!$A:$A,$L$2,'Import Sheet'!$B:$B,$L58) -> 0 | J58: =-SUMIFS('Import Sheet'!CC:CC,'Import Sheet'!$A:$A,$L$2,'Import Sheet'!$B:$B,$L58) -> 0 | K58: =-SUMIFS('Import Sheet'!CD:CD,'Import Sheet'!$A:$A,$L$2,'Import Sheet'!$B:$B,$L58) -> 0 | L58: 2304 REV | M58: =VLOOKUP(CONCATENATE($L$2," ",L58),'Import Sheet'!$EX:$EX,1,0) -> A2A 2304 REV
A59: Fire Fighting and Protection | C59: =-SUMIFS('Import Sheet'!D:D,'Import Sheet'!$A:$A,$L$2,'Import Sheet'!$B:$B,$L59) -> 0 | D59: =-SUMIFS('Import Sheet'!E:E,'Import Sheet'!$A:$A,$L$2,'Import Sheet'!$B:$B,$L59) -> 240653.55 | E59: =-SUMIFS('Import Sheet'!U:U,'Import Sheet'!$A:$A,$L$2,'Import Sheet'!$B:$B,$L59) -> 1345229.41 | F59: =-SUMIFS('Import Sheet'!V:V,'Import Sheet'!$A:$A,$L$2,'Import Sheet'!$B:$B,$L59) -> 246000 | G59: =-SUMIFS('Import Sheet'!W:W,'Import Sheet'!$A:$A,$L$2,'Import Sheet'!$B:$B,$L59) -> 246000 | H59: =-SUMIFS('Import Sheet'!AA:AA,'Import Sheet'!$A:$A,$L$2,'Import Sheet'!$B:$B,$L59) -> 246000 | I59: =-SUMIFS('Import Sheet'!CB:CB,'Import Sheet'!$A:$A,$L$2,'Import Sheet'!$B:$B,$L59) -> 259000 | J59: =-SUMIFS('Import Sheet'!CC:CC,'Import Sheet'!$A:$A,$L$2,'Import Sheet'!$B:$B,$L59) -> 0 | K59: =-SUMIFS('Import Sheet'!CD:CD,'Import Sheet'!$A:$A,$L$2,'Import Sheet'!$B:$B,$L59) -> 0 | L59: 2305 REV | M59: =VLOOKUP(CONCATENATE($L$2," ",L59),'Import Sheet'!$EX:$EX,1,0) -> A2A 2305 REV
A60: Licensing and Control of Animals | C60: =-SUMIFS('Import Sheet'!D:D,'Import Sheet'!$A:$A,$L$2,'Import Sheet'!$B:$B,$L60) -> 0 | D60: =-SUMIFS('Import Sheet'!E:E,'Import Sheet'!$A:$A,$L$2,'Import Sheet'!$B:$B,$L60) -> 0 | E60: =-SUMIFS('Import Sheet'!U:U,'Import Sheet'!$A:$A,$L$2,'Import Sheet'!$B:$B,$L60) -> 0 | F60: =-SUMIFS('Import Sheet'!V:V,'Import Sheet'!$A:$A,$L$2,'Import Sheet'!$B:$B,$L60) -> 0 | G60: =-SUMIFS('Import Sheet'!W:W,'Import Sheet'!$A:$A,$L$2,'Import Sheet'!$B:$B,$L60) -> 0 | H60: =-SUMIFS('Import Sheet'!AA:AA,'Import Sheet'!$A:$A,$L$2,'Import Sheet'!$B:$B,$L60) -> 0 | I60: =-SUMIFS('Import Sheet'!CB:CB,'Import Sheet'!$A:$A,$L$2,'Import Sheet'!$B:$B,$L60) -> 0 | J60: =-SUMIFS('Import Sheet'!CC:CC,'Import Sheet'!$A:$A,$L$2,'Import Sheet'!$B:$B,$L60) -> 0 | K60: =-SUMIFS('Import Sheet'!CD:CD,'Import Sheet'!$A:$A,$L$2,'Import Sheet'!$B:$B,$L60) -> 0 | L60: 2306 REV | M60: =VLOOKUP(CONCATENATE($L$2," ",L60),'Import Sheet'!$EX:$EX,1,0) -> A2A 2306 REV
A61: Police Forces, Traffic and Street Parking Control | C61: =-SUMIFS('Import Sheet'!D:D,'Import Sheet'!$A:$A,$L$2,'Import Sheet'!$B:$B,$L61) -> 0 | D61: =-SUMIFS('Import Sheet'!E:E,'Import Sheet'!$A:$A,$L$2,'Import Sheet'!$B:$B,$L61) -> 0 | E61: =-SUMIFS('Import Sheet'!U:U,'Import Sheet'!$A:$A,$L$2,'Import Sheet'!$B:$B,$L61) -> 0 | F61: =-SUMIFS('Import Sheet'!V:V,'Import Sheet'!$A:$A,$L$2,'Import Sheet'!$B:$B,$L61) -> 0 | G61: =-SUMIFS('Import Sheet'!W:W,'Import Sheet'!$A:$A,$L$2,'Import Sheet'!$B:$B,$L61) -> 0 | H61: =-SUMIFS('Import Sheet'!AA:AA,'Import Sheet'!$A:$A,$L$2,'Import Sheet'!$B:$B,$L61) -> 0 | I61: =-SUMIFS('Import Sheet'!CB:CB,'Import Sheet'!$A:$A,$L$2,'Import Sheet'!$B:$B,$L61) -> 0 | J61: =-SUMIFS('Import Sheet'!CC:CC,'Import Sheet'!$A:$A,$L$2,'Import Sheet'!$B:$B,$L61) -> 0 | K61: =-SUMIFS('Import Sheet'!CD:CD,'Import Sheet'!$A:$A,$L$2,'Import Sheet'!$B:$B,$L61) -> 0 | L61: 2307 REV | M61: =VLOOKUP(CONCATENATE($L$2," ",L61),'Import Sheet'!$EX:$EX,1,0) -> A2A 2307 REV
A62: Pounds | C62: =-SUMIFS('Import Sheet'!D:D,'Import Sheet'!$A:$A,$L$2,'Import Sheet'!$B:$B,$L62) -> 0 | D62: =-SUMIFS('Import Sheet'!E:E,'Import Sheet'!$A:$A,$L$2,'Import Sheet'!$B:$B,$L62) -> 0 | E62: =-SUMIFS('Import Sheet'!U:U,'Import Sheet'!$A:$A,$L$2,'Import Sheet'!$B:$B,$L62) -> 0 | F62: =-SUMIFS('Import Sheet'!V:V,'Import Sheet'!$A:$A,$L$2,'Import Sheet'!$B:$B,$L62) -> 0 | G62: =-SUMIFS('Import Sheet'!W:W,'Import Sheet'!$A:$A,$L$2,'Import Sheet'!$B:$B,$L62) -> 0 | H62: =-SUMIFS('Import Sheet'!AA:AA,'Import Sheet'!$A:$A,$L$2,'Import Sheet'!$B:$B,$L62) -> 0 | I62: =-SUMIFS('Import Sheet'!CB:CB,'Import Sheet'!$A:$A,$L$2,'Import Sheet'!$B:$B,$L62) -> 0 | J62: =-SUMIFS('Import Sheet'!CC:CC,'Import Sheet'!$A:$A,$L$2,'Import Sheet'!$B:$B,$L62) -> 0 | K62: =-SUMIFS('Import Sheet'!CD:CD,'Import Sheet'!$A:$A,$L$2,'Import Sheet'!$B:$B,$L62) -> 0 | L62: 2308 REV | M62: =VLOOKUP(CONCATENATE($L$2," ",L62),'Import Sheet'!$EX:$EX,1,0) -> A2A 2308 REV
... 76 more rows

Sheet A3-FinPerf V
A1: =muni&" - "&Approve2 -> DC8 Z F Mgcawu - Table A3 Budgeted Financial Performance (revenue and expenditure by municipal vote)
A2: =Vdesc -> Vote Description | B2: =head27 -> Ref | C2: =head1b -> 2016/17 | D2: =head1A -> 2017/18 | E2: =Head1 -> 2018/19 | F2: =Head2 -> Current Year 2019/20 | I2: =Head3 -> 2020/21 Medium Term Revenue & Expenditure Framework | L2: =Head4 -> LTFS | X2: Check
A3: R thousand | C3: =Head5 -> Audited Outcome | D3: =Head5 -> Audited Outcome | E3: =Head5 -> Audited Outcome | F3: =Head6 -> Original Budget | G3: =Head7 -> Adjusted Budget | H3: =Head8 -> Full Year Forecast | I3: =Head9 -> Budget Year 2020/21 | J3: =Head10 -> Budget Year +1 2021/22 | K3: =Head11 -> Budget Year +2 2022/23 | L3: =Head12 -> Forecast 2023/24 | M3: =Head13 -> Forecast 2024/25 | N3: =Head14 -> Forecast 2025/26 | O3: =Head15 -> Forecast 2026/27 | P3: =Head16 -> Forecast 2027/28 | Q3: =Head17 -> Forecast 2028/29 | R3: =Head18 -> Forecast 2029/30 | S3: =Head19 -> Forecast 2030/31 | T3: =Head20 -> Forecast 2031/32 | U3: =Head21 -> Forecast 2032/33 | V3: =Head22 -> Forecast 2033/34 | W3: =Head23 -> Forecast 2034/35
A4: Revenue by Vote | B4: 1
A5: =A3A!A5 -> Vote 1 - EXECUTIVE AND COUNCIL | C5: =A3A!C5 -> 0 | D5: =A3A!D5 -> 0 | E5: =A3A!E5 -> 1001816.67 | F5: =A3A!F5 -> 0 | G5: =A3A!G5 -> 962289 | H5: =A3A!H5 -> 962289 | I5: =A3A!I5 -> 500000 | J5: =A3A!J5 -> 0 | K5: =A3A!K5 -> 0 | X5: Link from A3A
A6: =A3A!A16 -> Vote 2 - BUDGET AND TREASURY OFFICE | C6: =A3A!C16 -> 0 | D6: =A3A!D16 -> 58580954.23 | E6: =A3A!E16 -> 68434631.2 | F6: =A3A!F16 -> 71432000 | G6: =A3A!G16 -> 72738000 | H6: =A3A!H16 -> 72738000 | I6: =A3A!I16 -> 76251000 | J6: =A3A!J16 -> 79124000 | K6: =A3A!K16 -> 81667000 | X6: Link from A3A
A7: =A3A!A27 -> Vote 3 - CORPORATE SERVICES | C7: =A3A!C27 -> 0 | D7: =A3A!D27 -> 56306.84 | E7: =A3A!E27 -> 444660.3 | F7: =A3A!F27 -> 1500000 | G7: =A3A!G27 -> 850000 | H7: =A3A!H27 -> 850000 | I7: =A3A!I27 -> 850000 | J7: =A3A!J27 -> 850000 | K7: =A3A!K27 -> 850000 | X7: Link from A3A
A8: =A3A!A38 -> Vote 4 - TECHNICAL SERVICES | C8: =A3A!C38 -> 0 | D8: =A3A!D38 -> 5780763.54 | E8: =A3A!E38 -> 11229286.47 | F8: =A3A!F38 -> 5122000 | G8: =A3A!G38 -> 5122000 | H8: =A3A!H38 -> 5122000 | I8: =A3A!I38 -> 4899000 | J8: =A3A!J38 -> 3798000 | K8: =A3A!K38 -> 3975000 | X8: Link from A3A
A9: =A3A!A49 -> Vote 5 - [NAME OF VOTE 5] | C9: =A3A!C49 -> 0 | D9: =A3A!D49 -> 0 | E9: =A3A!E49 -> 0 | F9: =A3A!F49 -> 0 | G9: =A3A!G49 -> 0 | H9: =A3A!H49 -> 0 | I9: =A3A!I49 -> 0 | J9: =A3A!J49 -> 0 | K9: =A3A!K49 -> 0 | X9: Link from A3A
A10: =A3A!A60 -> Vote 6 - [NAME OF VOTE 6] | C10: =A3A!C60 -> 0 | D10: =A3A!D60 -> 0 | E10: =A3A!E60 -> 0 | F10: =A3A!F60 -> 0 | G10: =A3A!G60 -> 0 | H10: =A3A!H60 -> 0 | I10: =A3A!I60 -> 0 | J10: =A3A!J60 -> 0 | K10: =A3A!K60 -> 0 | X10: Link from A3A
A11: =A3A!A71 -> Vote 7 - [NAME OF VOTE 7] | C11: =A3A!C71 -> 0 | D11: =A3A!D71 -> 0 | E11: =A3A!E71 -> 0 | F11: =A3A!F71 -> 0 | G11: =A3A!G71 -> 0 | H11: =A3A!H71 -> 0 | I11: =A3A!I71 -> 0 | J11: =A3A!J71 -> 0 | K11: =A3A!K71 -> 0 | X11: Link from A3A
A12: =A3A!A82 -> Vote 8 - [NAME OF VOTE 8] | C12: =A3A!C82 -> 0 | D12: =A3A!D82 -> 0 | E12: =A3A!E82 -> 0 | F12: =A3A!F82 -> 0 | G12: =A3A!G82 -> 0 | H12: =A3A!H82 -> 0 | I12: =A3A!I82 -> 0 | J12: =A3A!J82 -> 0 | K12: =A3A!K82 -> 0 | X12: Link from A3A
A13: =A3A!A93 -> Vote 9 - [NAME OF VOTE 9] | C13: =A3A!C93 -> 0 | D13: =A3A!D93 -> 0 | E13: =A3A!E93 -> 0 | F13: =A3A!F93 -> 0 | G13: =A3A!G93 -> 0 | H13: =A3A!H93 -> 0 | I13: =A3A!I93 -> 0 | J13: =A3A!J93 -> 0 | K13: =A3A!K93 -> 0 | X13: Link from A3A
A14: =A3A!A104 -> Vote 10 - [NAME OF VOTE 10] | C14: =A3A!C104 -> 0 | D14: =A3A!D104 -> 0 | E14: =A3A!E104 -> 0 | F14: =A3A!F104 -> 0 | G14: =A3A!G104 -> 0 | H14: =A3A!H104 -> 0 | I14: =A3A!I104 -> 0 | J14: =A3A!J104 -> 0 | K14: =A3A!K104 -> 0 | X14: Link from A3A
A15: =A3A!A115 -> Vote 11 - [NAME OF VOTE 11] | C15: =A3A!C115 -> 0 | D15: =A3A!D115 -> 0 | E15: =A3A!E115 -> 0 | F15: =A3A!F115 -> 0 | G15: =A3A!G115 -> 0 | H15: =A3A!H115 -> 0 | I15: =A3A!I115 -> 0 | J15: =A3A!J115 -> 0 | K15: =A3A!K115 -> 0 | L15: =A5A!L115 -> 0 | X15: Link from A3A
A16: =A3A!A126 -> Vote 12 - [NAME OF VOTE 12] | C16: =A3A!C126 -> 0 | D16: =A3A!D126 -> 0 | E16: =A3A!E126 -> 0 | F16: =A3A!F126 -> 0 | G16: =A3A!G126 -> 0 | H16: =A3A!H126 -> 0 | I16: =A3A!I126 -> 0 | J16: =A3A!J126 -> 0 | K16: =A3A!K126 -> 0 | L16: =A5A!L126 -> 0 | X16: Link from A3A
A17: =A3A!A137 -> Vote 13 - [NAME OF VOTE 13] | C17: =A3A!C137 -> 0 | D17: =A3A!D137 -> 0 | E17: =A3A!E137 -> 0 | F17: =A3A!F137 -> 0 | G17: =A3A!G137 -> 0 | H17: =A3A!H137 -> 0 | I17: =A3A!I137 -> 0 | J17: =A3A!J137 -> 0 | K17: =A3A!K137 -> 0 | L17: =A5A!L137 -> 0 | X17: Link from A3A
A18: =A3A!A148 -> Vote 14 - [NAME OF VOTE 14] | C18: =A3A!C148 -> 0 | D18: =A3A!D148 -> 0 | E18: =A3A!E148 -> 0 | F18: =A3A!F148 -> 0 | G18: =A3A!G148 -> 0 | H18: =A3A!H148 -> 0 | I18: =A3A!I148 -> 0 | J18: =A3A!J148 -> 0 | K18: =A3A!K148 -> 0 | L18: =A5A!L148 -> 0 | X18: Link from A3A
A19: =A3A!A159 -> Vote 15 - [NAME OF VOTE 15] | C19: =A3A!C159 -> 0 | D19: =A3A!D159 -> 0 | E19: =A3A!E159 -> 0 | F19: =A3A!F159 -> 0 | G19: =A3A!G159 -> 0 | H19: =A3A!H159 -> 0 | I19: =A3A!I159 -> 0 | J19: =A3A!J159 -> 0 | K19: =A3A!K159 -> 0 | L19: =A5A!L159 -> 0 | X19: Link from A3A
A20: Total Revenue by Vote | B20: 2 | C20: =SUM(C5:C19) -> 0 | D20: =SUM(D5:D19) -> 64418024.61 | E20: 81110394.64 | F20: 78054000 | G20: 79672289 | H20: 79672289 | I20: 82500000 | J20: 83772000 | K20: 86492000
A22: Expenditure by Vote to be appropriated | B22: 1
A23: =A3A!A173 -> Vote 1 - EXECUTIVE AND COUNCIL | C23: =A3A!C173 -> 0 | D23: =A3A!D173 -> 16950524.27 | E23: =A3A!E173 -> 17831534.83 | F23: =A3A!F173 -> 24304403 | G23: =A3A!G173 -> 21985003 | H23: =A3A!H173 -> 21985003 | I23: =A3A!I173 -> 22065379 | J23: =A3A!J173 -> 22365761 | K23: =A3A!K173 -> 23620274 | X23: Link from A3A
A24: =A3A!A184 -> Vote 2 - BUDGET AND TREASURY OFFICE | C24: =A3A!C184 -> 0 | D24: =A3A!D184 -> 14988597.35 | E24: =A3A!E184 -> 9623313.38 | F24: =A3A!F184 -> 15612773 | G24: =A3A!G184 -> 16667429 | H24: =A3A!H184 -> 16667429 | I24: =A3A!I184 -> 15715884 | J24: =A3A!J184 -> 15859916 | K24: =A3A!K184 -> 16484381 | X24: Link from A3A
A25: =A3A!A195 -> Vote 3 - CORPORATE SERVICES | C25: =A3A!C195 -> 0 | D25: =A3A!D195 -> 15651596.26 | E25: =A3A!E195 -> 19672716.54 | F25: =A3A!F195 -> 20055568 | G25: =A3A!G195 -> 20001458 | H25: =A3A!H195 -> 20001458 | I25: =A3A!I195 -> 22177273 | J25: =A3A!J195 -> 23389086 | K25: =A3A!K195 -> 24672413 | X25: Link from A3A
A26: =A3A!A206 -> Vote 4 - TECHNICAL SERVICES | C26: =A3A!C206 -> 0 | D26: =A3A!D206 -> 17593517.02 | E26: =A3A!E206 -> 21395601.79 | F26: =A3A!F206 -> 21149191 | G26: =A3A!G206 -> 19816895 | H26: =A3A!H206 -> 19816895 | I26: =A3A!I206 -> 20600795 | J26: =A3A!J206 -> 20403758 | K26: =A3A!K206 -> 21510054 | X26: Link from A3A
A27: =A3A!A217 -> Vote 5 - [NAME OF VOTE 5] | C27: =A3A!C217 -> 0 | D27: =A3A!D217 -> 0 | E27: =A3A!E217 -> 0 | F27: =A3A!F217 -> 0 | G27: =A3A!G217 -> 0 | H27: =A3A!H217 -> 0 | I27: =A3A!I217 -> 0 | J27: =A3A!J217 -> 0 | K27: =A3A!K217 -> 0 | X27: Link from A3A
A28: =A3A!A228 -> Vote 6 - [NAME OF VOTE 6] | C28: =A3A!C228 -> 0 | D28: =A3A!D228 -> 0 | E28: =A3A!E228 -> 0 | F28: =A3A!F228 -> 0 | G28: =A3A!G228 -> 0 | H28: =A3A!H228 -> 0 | I28: =A3A!I228 -> 0 | J28: =A3A!J228 -> 0 | K28: =A3A!K228 -> 0 | X28: Link from A3A
A29: =A3A!A239 -> Vote 7 - [NAME OF VOTE 7] | C29: =A3A!C239 -> 0 | D29: =A3A!D239 -> 0 | E29: =A3A!E239 -> 0 | F29: =A3A!F239 -> 0 | G29: =A3A!G239 -> 0 | H29: =A3A!H239 -> 0 | I29: =A3A!I239 -> 0 | J29: =A3A!J239 -> 0 | K29: =A3A!K239 -> 0 | X29: Link from A3A
A30: =A3A!A250 -> Vote 8 - [NAME OF VOTE 8] | C30: =A3A!C250 -> 0 | D30: =A3A!D250 -> 0 | E30: =A3A!E250 -> 0 | F30: =A3A!F250 -> 0 | G30: =A3A!G250 -> 0 | H30: =A3A!H250 -> 0 | I30: =A3A!I250 -> 0 | J30: =A3A!J250 -> 0 | K30: =A3A!K250 -> 0 | X30: Link from A3A
A31: =A3A!A261 -> Vote 9 - [NAME OF VOTE 9] | C31: =A3A!C261 -> 0 | D31: =A3A!D261 -> 0 | E31: =A3A!E261 -> 0 | F31: =A3A!F261 -> 0 | G31: =A3A!G261 -> 0 | H31: =A3A!H261 -> 0 | I31: =A3A!I261 -> 0 | J31: =A3A!J261 -> 0 | K31: =A3A!K261 -> 0 | X31: Link from A3A
A32: =A3A!A272 -> Vote 10 - [NAME OF VOTE 10] | C32: =A3A!C272 -> 0 | D32: =A3A!D272 -> 0 | E32: =A3A!E272 -> 0 | F32: =A3A!F272 -> 0 | G32: =A3A!G272 -> 0 | H32: =A3A!H272 -> 0 | I32: =A3A!I272 -> 0 | J32: =A3A!J272 -> 0 | K32: =A3A!K272 -> 0 | X32: Link from A3A
A33: =A3A!A283 -> Vote 11 - [NAME OF VOTE 11] | C33: =A3A!C283 -> 0 | D33: =A3A!D283 -> 0 | E33: =A3A!E283 -> 0 | F33: =A3A!F283 -> 0 | G33: =A3A!G283 -> 0 | H33: =A3A!H283 -> 0 | I33: =A3A!I283 -> 0 | J33: =A3A!J283 -> 0 | K33: =A3A!K283 -> 0 | L33: =A3A!L284 -> 0 | X33: Link from A3A
A34: =A3A!A294 -> Vote 12 - [NAME OF VOTE 12] | C34: =A3A!C294 -> 0 | D34: =A3A!D294 -> 0 | E34: =A3A!E294 -> 0 | F34: =A3A!F294 -> 0 | G34: =A3A!G294 -> 0 | H34: =A3A!H294 -> 0 | I34: =A3A!I294 -> 0 | J34: =A3A!J294 -> 0 | K34: =A3A!K294 -> 0 | L34: =A3A!L295 -> 0 | X34: Link from A3A
A35: =A3A!A305 -> Vote 13 - [NAME OF VOTE 13] | C35: =A3A!C305 -> 0 | D35: =A3A!D305 -> 0 | E35: =A3A!E305 -> 0 | F35: =A3A!F305 -> 0 | G35: =A3A!G305 -> 0 | H35: =A3A!H305 -> 0 | I35: =A3A!I305 -> 0 | J35: =A3A!J305 -> 0 | K35: =A3A!K305 -> 0 | L35: =A3A!L306 -> 0 | X35: Link from A3A
A36: =A3A!A316 -> Vote 14 - [NAME OF VOTE 14] | C36: =A3A!C316 -> 0 | D36: =A3A!D316 -> 0 | E36: =A3A!E316 -> 0 | F36: =A3A!F316 -> 0 | G36: =A3A!G316 -> 0 | H36: =A3A!H316 -> 0 | I36: =A3A!I316 -> 0 | J36: =A3A!J316 -> 0 | K36: =A3A!K316 -> 0 | L36: =A3A!L317 -> 0 | X36: Link from A3A
A37: =A3A!A327 -> Vote 15 - [NAME OF VOTE 15] | C37: =A3A!C327 -> 0 | D37: =A3A!D327 -> 0 | E37: =A3A!E327 -> 0 | F37: =A3A!F327 -> 0 | G37: =A3A!G327 -> 0 | H37: =A3A!H327 -> 0 | I37: =A3A!I327 -> 0 | J37: =A3A!J327 -> 0 | K37: =A3A!K327 -> 0 | L37: =A3A!L328 -> 0 | X37: Link from A3A
A38: Total Expenditure by Vote | B38: 2 | C38: =SUM(C23:C37) -> 0 | D38: =SUM(D23:D37) -> 65184234.9 | E38: 68523166.54 | F38: 81121935 | G38: 78470785 | H38: 78470785 | I38: 80559331 | J38: 82018521 | K38: 86287122 | L38: =SUM(L23:L29) -> 0 | M38: 0 | N38: 0 | O38: 0 | P38: 0 | Q38: 0 | R38: 0 | S38: 0 | T38: 0 | U38: 0 | V38: 0 | W38: 0
A39: =result -> Surplus/(Deficit) for the year | B39: 2 | C39: =C20-C38 -> 0 | D39: -766210.29 | E39: 12587228.1 | F39: -3067935 | G39: 1201504 | H39: 1201504 | I39: 1940669 | J39: 1753479 | K39: 204878 | L39: 0 | M39: 0 | N39: 0 | O39: 0 | P39: 0 | Q39: 0 | R39: 0 | S39: 0 | T39: 0 | U39: 0 | V39: 0 | W39: 0
A40: =head27a -> References
A41: 1. Insert 'Vote'; e.g. department, if different to functional classification structure
A42: 2. Must reconcile to Budgeted Financial Performance (revenue and expenditure)
A43: 3. Assign share in 'associate' to relevant Vote
A45: Check Surplus/(Deficit) for the year (A3) | C45: =C39-A3A!C340 -> 0 | D45: =D39-A3A!D340 -> 0 | E45: =E39-A3A!E340 -> 0 | F45: =F39-A3A!F340 -> 0 | G45: =G39-A3A!G340 -> 0 | H45: =H39-A3A!H340 -> 0 | I45: =I39-A3A!I340 -> 0 | J45: =J39-A3A!J340 -> 0 | K45: =K39-A3A!K340 -> 0

Sheet A3A
A1: =muni&" - "&Approve2&"A" -> DC8 Z F Mgcawu - Table A3 Budgeted Financial Performance (revenue and expenditure by municipal vote)A
A2: =Vdesc -> Vote Description | B2: =head27 -> Ref | C2: =head1b -> 2016/17 | D2: =head1A -> 2017/18 | E2: =Head1 -> 2018/19 | F2: =Head2 -> Current Year 2019/20 | I2: =Head3 -> 2020/21 Medium Term Revenue & Expenditure Framework | L2: =Head4 -> LTFS | X2: A3A | Y2: Check Import Sheet
A3: R thousand | C3: =Head5 -> Audited Outcome | D3: =Head5 -> Audited Outcome | E3: =Head5 -> Audited Outcome | F3: =Head6 -> Original Budget | G3: =Head7 -> Adjusted Budget | H3: =Head8 -> Full Year Forecast | I3: =Head9 -> Budget Year 2020/21 | J3: =Head10 -> Budget Year +1 2021/22 | K3: =Head11 -> Budget Year +2 2022/23 | L3: =Head12 -> Forecast 2023/24 | M3: =Head13 -> Forecast 2024/25 | N3: =Head14 -> Forecast 2025/26 | O3: =Head15 -> Forecast 2026/27 | P3: =Head16 -> Forecast 2027/28 | Q3: =Head17 -> Forecast 2028/29 | R3: =Head18 -> Forecast 2029/30 | S3: =Head19 -> Forecast 2030/31 | T3: =Head20 -> Forecast 2031/32 | U3: =Head21 -> Forecast 2032/33 | V3: =Head22 -> Forecast 2033/34 | W3: =Head23 -> Forecast 2034/35
A4: Revenue by Vote | B4: 1
A5: ='Org structure'!A2 -> Vote 1 - EXECUTIVE AND COUNCIL | C5: =SUM(C6:C15) -> 0 | D5: =SUM(D6:D15) -> 0 | E5: 1001816.67 | F5: 0 | G5: 962289 | H5: 962289 | I5: 500000 | J5: 0 | K5: 0
A6: ='Org structure'!E3 -> 1.1 - Council Administration | C6: =-SUMIFS('Import Sheet'!D:D,'Import Sheet'!$A:$A,$X$2,'Import Sheet'!$B:$B,$X6) -> 0 | D6: =-SUMIFS('Import Sheet'!E:E,'Import Sheet'!$A:$A,$X$2,'Import Sheet'!$B:$B,$X6) -> 0 | E6: =-SUMIFS('Import Sheet'!U:U,'Import Sheet'!$A:$A,$X$2,'Import Sheet'!$B:$B,$X6) -> 0 | F6: =-SUMIFS('Import Sheet'!V:V,'Import Sheet'!$A:$A,$X$2,'Import Sheet'!$B:$B,$X6) -> 0 | G6: =-SUMIFS('Import Sheet'!W:W,'Import Sheet'!$A:$A,$X$2,'Import Sheet'!$B:$B,$X6) -> 0 | H6: =-SUMIFS('Import Sheet'!AA:AA,'Import Sheet'!$A:$A,$X$2,'Import Sheet'!$B:$B,$X6) -> 0 | I6: =-SUMIFS('Import Sheet'!CB:CB,'Import Sheet'!$A:$A,$X$2,'Import Sheet'!$B:$B,$X6) -> 0 | J6: =-SUMIFS('Import Sheet'!CC:CC,'Import Sheet'!$A:$A,$X$2,'Import Sheet'!$B:$B,$X6) -> 0 | K6: =-SUMIFS('Import Sheet'!CD:CD,'Import Sheet'!$A:$A,$X$2,'Import Sheet'!$B:$B,$X6) -> 0 | X6: 1.01 REV | Y6: =VLOOKUP(CONCATENATE($X$2," ",X6),'Import Sheet'!$EX:$EX,1,0) -> A3A 1.01 REV
A7: ='Org structure'!E4 -> 1.2 - Council Services | C7: =-SUMIFS('Import Sheet'!D:D,'Import Sheet'!$A:$A,$X$2,'Import Sheet'!$B:$B,$X7) -> 0 | D7: =-SUMIFS('Import Sheet'!E:E,'Import Sheet'!$A:$A,$X$2,'Import Sheet'!$B:$B,$X7) -> 0 | E7: =-SUMIFS('Import Sheet'!U:U,'Import Sheet'!$A:$A,$X$2,'Import Sheet'!$B:$B,$X7) -> 188291.95 | F7: =-SUMIFS('Import Sheet'!V:V,'Import Sheet'!$A:$A,$X$2,'Import Sheet'!$B:$B,$X7) -> 0 | G7: =-SUMIFS('Import Sheet'!W:W,'Import Sheet'!$A:$A,$X$2,'Import Sheet'!$B:$B,$X7) -> 962289 | H7: =-SUMIFS('Import Sheet'!AA:AA,'Import Sheet'!$A:$A,$X$2,'Import Sheet'!$B:$B,$X7) -> 962289 | I7: =-SUMIFS('Import Sheet'!CB:CB,'Import Sheet'!$A:$A,$X$2,'Import Sheet'!$B:$B,$X7) -> 500000 | J7: =-SUMIFS('Import Sheet'!CC:CC,'Import Sheet'!$A:$A,$X$2,'Import Sheet'!$B:$B,$X7) -> 0 | K7: =-SUMIFS('Import Sheet'!CD:CD,'Import Sheet'!$A:$A,$X$2,'Import Sheet'!$B:$B,$X7) -> 0 | X7: 1.02 REV | Y7: =VLOOKUP(CONCATENATE($X$2," ",X7),'Import Sheet'!$EX:$EX,1,0) -> A3A 1.02 REV
A8: ='Org structure'!E5 -> 1.3 - Donations | C8: =-SUMIFS('Import Sheet'!D:D,'Import Sheet'!$A:$A,$X$2,'Import Sheet'!$B:$B,$X8) -> 0 | D8: =-SUMIFS('Import Sheet'!E:E,'Import Sheet'!$A:$A,$X$2,'Import Sheet'!$B:$B,$X8) -> 0 | E8: =-SUMIFS('Import Sheet'!U:U,'Import Sheet'!$A:$A,$X$2,'Import Sheet'!$B:$B,$X8) -> 0 | F8: =-SUMIFS('Import Sheet'!V:V,'Import Sheet'!$A:$A,$X$2,'Import Sheet'!$B:$B,$X8) -> 0 | G8: =-SUMIFS('Import Sheet'!W:W,'Import Sheet'!$A:$A,$X$2,'Import Sheet'!$B:$B,$X8) -> 0 | H8: =-SUMIFS('Import Sheet'!AA:AA,'Import Sheet'!$A:$A,$X$2,'Import Sheet'!$B:$B,$X8) -> 0 | I8: =-SUMIFS('Import Sheet'!CB:CB,'Import Sheet'!$A:$A,$X$2,'Import Sheet'!$B:$B,$X8) -> 0 | J8: =-SUMIFS('Import Sheet'!CC:CC,'Import Sheet'!$A:$A,$X$2,'Import Sheet'!$B:$B,$X8) -> 0 | K8: =-SUMIFS('Import Sheet'!CD:CD,'Import Sheet'!$A:$A,$X$2,'Import Sheet'!$B:$B,$X8) -> 0 | X8: 1.03 REV | Y8: =VLOOKUP(CONCATENATE($X$2," ",X8),'Import Sheet'!$EX:$EX,1,0) -> A3A 1.03 REV
A9: ='Org structure'!E6 -> 1.4 - Municipal Manager | C9: =-SUMIFS('Import Sheet'!D:D,'Import Sheet'!$A:$A,$X$2,'Import Sheet'!$B:$B,$X9) -> 0 | D9: =-SUMIFS('Import Sheet'!E:E,'Import Sheet'!$A:$A,$X$2,'Import Sheet'!$B:$B,$X9) -> 0 | E9: =-SUMIFS('Import Sheet'!U:U,'Import Sheet'!$A:$A,$X$2,'Import Sheet'!$B:$B,$X9) -> 0 | F9: =-SUMIFS('Import Sheet'!V:V,'Import Sheet'!$A:$A,$X$2,'Import Sheet'!$B:$B,$X9) -> 0 | G9: =-SUMIFS('Import Sheet'!W:W,'Import Sheet'!$A:$A,$X$2,'Import Sheet'!$B:$B,$X9) -> 0 | H9: =-SUMIFS('Import Sheet'!AA:AA,'Import Sheet'!$A:$A,$X$2,'Import Sheet'!$B:$B,$X9) -> 0 | I9: =-SUMIFS('Import Sheet'!CB:CB,'Import Sheet'!$A:$A,$X$2,'Import Sheet'!$B:$B,$X9) -> 0 | J9: =-SUMIFS('Import Sheet'!CC:CC,'Import Sheet'!$A:$A,$X$2,'Import Sheet'!$B:$B,$X9) -> 0 | K9: =-SUMIFS('Import Sheet'!CD:CD,'Import Sheet'!$A:$A,$X$2,'Import Sheet'!$B:$B,$X9) -> 0 | X9: 1.04 REV | Y9: =VLOOKUP(CONCATENATE($X$2," ",X9),'Import Sheet'!$EX:$EX,1,0) -> A3A 1.04 REV
A10: ='Org structure'!E7 -> 1.5 - Internal Audit | C10: =-SUMIFS('Import Sheet'!D:D,'Import Sheet'!$A:$A,$X$2,'Import Sheet'!$B:$B,$X10) -> 0 | D10: =-SUMIFS('Import Sheet'!E:E,'Import Sheet'!$A:$A,$X$2,'Import Sheet'!$B:$B,$X10) -> 0 | E10: =-SUMIFS('Import Sheet'!U:U,'Import Sheet'!$A:$A,$X$2,'Import Sheet'!$B:$B,$X10) -> 813524.72 | F10: =-SUMIFS('Import Sheet'!V:V,'Import Sheet'!$A:$A,$X$2,'Import Sheet'!$B:$B,$X10) -> 0 | G10: =-SUMIFS('Import Sheet'!W:W,'Import Sheet'!$A:$A,$X$2,'Import Sheet'!$B:$B,$X10) -> 0 | H10: =-SUMIFS('Import Sheet'!AA:AA,'Import Sheet'!$A:$A,$X$2,'Import Sheet'!$B:$B,$X10) -> 0 | I10: =-SUMIFS('Import Sheet'!CB:CB,'Import Sheet'!$A:$A,$X$2,'Import Sheet'!$B:$B,$X10) -> 0 | J10: =-SUMIFS('Import Sheet'!CC:CC,'Import Sheet'!$A:$A,$X$2,'Import Sheet'!$B:$B,$X10) -> 0 | K10: =-SUMIFS('Import Sheet'!CD:CD,'Import Sheet'!$A:$A,$X$2,'Import Sheet'!$B:$B,$X10) -> 0 | X10: 1.05 REV | Y10: =VLOOKUP(CONCATENATE($X$2," ",X10),'Import Sheet'!$EX:$EX,1,0) -> A3A 1.05 REV
A11: ='Org structure'!E8 -> 1.6 - Risk Management | C11: =-SUMIFS('Import Sheet'!D:D,'Import Sheet'!$A:$A,$X$2,'Import Sheet'!$B:$B,$X11) -> 0 | D11: =-SUMIFS('Import Sheet'!E:E,'Import Sheet'!$A:$A,$X$2,'Import Sheet'!$B:$B,$X11) -> 0 | E11: =-SUMIFS('Import Sheet'!U:U,'Import Sheet'!$A:$A,$X$2,'Import Sheet'!$B:$B,$X11) -> 0 | F11: =-SUMIFS('Import Sheet'!V:V,'Import Sheet'!$A:$A,$X$2,'Import Sheet'!$B:$B,$X11) -> 0 | G11: =-SUMIFS('Import Sheet'!W:W,'Import Sheet'!$A:$A,$X$2,'Import Sheet'!$B:$B,$X11) -> 0 | H11: =-SUMIFS('Import Sheet'!AA:AA,'Import Sheet'!$A:$A,$X$2,'Import Sheet'!$B:$B,$X11) -> 0 | I11: =-SUMIFS('Import Sheet'!CB:CB,'Import Sheet'!$A:$A,$X$2,'Import Sheet'!$B:$B,$X11) -> 0 | J11: =-SUMIFS('Import Sheet'!CC:CC,'Import Sheet'!$A:$A,$X$2,'Import Sheet'!$B:$B,$X11) -> 0 | K11: =-SUMIFS('Import Sheet'!CD:CD,'Import Sheet'!$A:$A,$X$2,'Import Sheet'!$B:$B,$X11) -> 0 | X11: 1.06 REV | Y11: =VLOOKUP(CONCATENATE($X$2," ",X11),'Import Sheet'!$EX:$EX,1,0) -> A3A 1.06 REV
A12: ='Org structure'!E9 -> 1.7 - PMS | C12: =-SUMIFS('Import Sheet'!D:D,'Import Sheet'!$A:$A,$X$2,'Import Sheet'!$B:$B,$X12) -> 0 | D12: =-SUMIFS('Import Sheet'!E:E,'Import Sheet'!$A:$A,$X$2,'Import Sheet'!$B:$B,$X12) -> 0 | E12: =-SUMIFS('Import Sheet'!U:U,'Import Sheet'!$A:$A,$X$2,'Import Sheet'!$B:$B,$X12) -> 0 | F12: =-SUMIFS('Import Sheet'!V:V,'Import Sheet'!$A:$A,$X$2,'Import Sheet'!$B:$B,$X12) -> 0 | G12: =-SUMIFS('Import Sheet'!W:W,'Import Sheet'!$A:$A,$X$2,'Import Sheet'!$B:$B,$X12) -> 0 | H12: =-SUMIFS('Import Sheet'!AA:AA,'Import Sheet'!$A:$A,$X$2,'Import Sheet'!$B:$B,$X12) -> 0 | I12: =-SUMIFS('Import Sheet'!CB:CB,'Import Sheet'!$A:$A,$X$2,'Import Sheet'!$B:$B,$X12) -> 0 | J12: =-SUMIFS('Import Sheet'!CC:CC,'Import Sheet'!$A:$A,$X$2,'Import Sheet'!$B:$B,$X12) -> 0 | K12: =-SUMIFS('Import Sheet'!CD:CD,'Import Sheet'!$A:$A,$X$2,'Import Sheet'!$B:$B,$X12) -> 0 | X12: 1.07 REV | Y12: =VLOOKUP(CONCATENATE($X$2," ",X12),'Import Sheet'!$EX:$EX,1,0) -> A3A 1.07 REV
A13: ='Org structure'!E10 -> 1.8 - Communication & Liaison | C13: =-SUMIFS('Import Sheet'!D:D,'Import Sheet'!$A:$A,$X$2,'Import Sheet'!$B:$B,$X13) -> 0 | D13: =-SUMIFS('Import Sheet'!E:E,'Import Sheet'!$A:$A,$X$2,'Import Sheet'!$B:$B,$X13) -> 0 | E13: =-SUMIFS('Import Sheet'!U:U,'Import Sheet'!$A:$A,$X$2,'Import Sheet'!$B:$B,$X13) -> 0 | F13: =-SUMIFS('Import Sheet'!V:V,'Import Sheet'!$A:$A,$X$2,'Import Sheet'!$B:$B,$X13) -> 0 | G13: =-SUMIFS('Import Sheet'!W:W,'Import Sheet'!$A:$A,$X$2,'Import Sheet'!$B:$B,$X13) -> 0 | H13: =-SUMIFS('Import Sheet'!AA:AA,'Import Sheet'!$A:$A,$X$2,'Import Sheet'!$B:$B,$X13) -> 0 | I13: =-SUMIFS('Import Sheet'!CB:CB,'Import Sheet'!$A:$A,$X$2,'Import Sheet'!$B:$B,$X13) -> 0 | J13: =-SUMIFS('Import Sheet'!CC:CC,'Import Sheet'!$A:$A,$X$2,'Import Sheet'!$B:$B,$X13) -> 0 | K13: =-SUMIFS('Import Sheet'!CD:CD,'Import Sheet'!$A:$A,$X$2,'Import Sheet'!$B:$B,$X13) -> 0 | X13: 1.08 REV | Y13: =VLOOKUP(CONCATENATE($X$2," ",X13),'Import Sheet'!$EX:$EX,1,0) -> A3A 1.08 REV
A14: ='Org structure'!E11 ->  | C14: =-SUMIFS('Import Sheet'!D:D,'Import Sheet'!$A:$A,$X$2,'Import Sheet'!$B:$B,$X14) -> 0 | D14: =-SUMIFS('Import Sheet'!E:E,'Import Sheet'!$A:$A,$X$2,'Import Sheet'!$B:$B,$X14) -> 0 | E14: =-SUMIFS('Import Sheet'!U:U,'Import Sheet'!$A:$A,$X$2,'Import Sheet'!$B:$B,$X14) -> 0 | F14: =-SUMIFS('Import Sheet'!V:V,'Import Sheet'!$A:$A,$X$2,'Import Sheet'!$B:$B,$X14) -> 0 | G14: =-SUMIFS('Import Sheet'!W:W,'Import Sheet'!$A:$A,$X$2,'Import Sheet'!$B:$B,$X14) -> 0 | H14: =-SUMIFS('Import Sheet'!AA:AA,'Import Sheet'!$A:$A,$X$2,'Import Sheet'!$B:$B,$X14) -> 0 | I14: =-SUMIFS('Import Sheet'!CB:CB,'Import Sheet'!$A:$A,$X$2,'Import Sheet'!$B:$B,$X14) -> 0 | J14: =-SUMIFS('Import Sheet'!CC:CC,'Import Sheet'!$A:$A,$X$2,'Import Sheet'!$B:$B,$X14) -> 0 | K14: =-SUMIFS('Import Sheet'!CD:CD,'Import Sheet'!$A:$A,$X$2,'Import Sheet'!$B:$B,$X14) -> 0 | X14: 1.09 REV | Y14: =VLOOKUP(CONCATENATE($X$2," ",X14),'Import Sheet'!$EX:$EX,1,0) -> A3A 1.09 REV
A15: ='Org structure'!E12 ->  | C15: =-SUMIFS('Import Sheet'!D:D,'Import Sheet'!$A:$A,$X$2,'Import Sheet'!$B:$B,$X15) -> 0 | D15: =-SUMIFS('Import Sheet'!E:E,'Import Sheet'!$A:$A,$X$2,'Import Sheet'!$B:$B,$X15) -> 0 | E15: =-SUMIFS('Import Sheet'!U:U,'Import Sheet'!$A:$A,$X$2,'Import Sheet'!$B:$B,$X15) -> 0 | F15: =-SUMIFS('Import Sheet'!V:V,'Import Sheet'!$A:$A,$X$2,'Import Sheet'!$B:$B,$X15) -> 0 | G15: =-SUMIFS('Import Sheet'!W:W,'Import Sheet'!$A:$A,$X$2,'Import Sheet'!$B:$B,$X15) -> 0 | H15: =-SUMIFS('Import Sheet'!AA:AA,'Import Sheet'!$A:$A,$X$2,'Import Sheet'!$B:$B,$X15) -> 0 | I15: =-SUMIFS('Import Sheet'!CB:CB,'Import Sheet'!$A:$A,$X$2,'Import Sheet'!$B:$B,$X15) -> 0 | J15: =-SUMIFS('Import Sheet'!CC:CC,'Import Sheet'!$A:$A,$X$2,'Import Sheet'!$B:$B,$X15) -> 0 | K15: =-SUMIFS('Import Sheet'!CD:CD,'Import Sheet'!$A:$A,$X$2,'Import Sheet'!$B:$B,$X15) -> 0 | X15: 1.10 REV | Y15: =VLOOKUP(CONCATENATE($X$2," ",X15),'Import Sheet'!$EX:$EX,1,0) -> A3A 1.10 REV
A16: ='Org structure'!A3 -> Vote 2 - BUDGET AND TREASURY OFFICE | C16: =SUM(C17:C26) -> 0 | D16: =SUM(D17:D26) -> 58580954.23 | E16: 68434631.2 | F16: 71432000 | G16: 72738000 | H16: 72738000 | I16: 76251000 | J16: 79124000 | K16: 81667000
A17: ='Org structure'!E14 -> 2.1 - Vehicles | C17: =-SUMIFS('Import Sheet'!D:D,'Import Sheet'!$A:$A,$X$2,'Import Sheet'!$B:$B,$X17) -> 0 | D17: =-SUMIFS('Import Sheet'!E:E,'Import Sheet'!$A:$A,$X$2,'Import Sheet'!$B:$B,$X17) -> 0 | E17: =-SUMIFS('Import Sheet'!U:U,'Import Sheet'!$A:$A,$X$2,'Import Sheet'!$B:$B,$X17) -> 0 | F17: =-SUMIFS('Import Sheet'!V:V,'Import Sheet'!$A:$A,$X$2,'Import Sheet'!$B:$B,$X17) -> 0 | G17: =-SUMIFS('Import Sheet'!W:W,'Import Sheet'!$A:$A,$X$2,'Import Sheet'!$B:$B,$X17) -> 0 | H17: =-SUMIFS('Import Sheet'!AA:AA,'Import Sheet'!$A:$A,$X$2,'Import Sheet'!$B:$B,$X17) -> 0 | I17: =-SUMIFS('Import Sheet'!CB:CB,'Import Sheet'!$A:$A,$X$2,'Import Sheet'!$B:$B,$X17) -> 0 | J17: =-SUMIFS('Import Sheet'!CC:CC,'Import Sheet'!$A:$A,$X$2,'Import Sheet'!$B:$B,$X17) -> 0 | K17: =-SUMIFS('Import Sheet'!CD:CD,'Import Sheet'!$A:$A,$X$2,'Import Sheet'!$B:$B,$X17) -> 0 | X17: 2.01 REV | Y17: =VLOOKUP(CONCATENATE($X$2," ",X17),'Import Sheet'!$EX:$EX,1,0) -> A3A 2.01 REV
A18: ='Org structure'!E15 -> 2.2 - Financial Services | C18: =-SUMIFS('Import Sheet'!D:D,'Import Sheet'!$A:$A,$X$2,'Import Sheet'!$B:$B,$X18) -> 0 | D18: =-SUMIFS('Import Sheet'!E:E,'Import Sheet'!$A:$A,$X$2,'Import Sheet'!$B:$B,$X18) -> 1916974.1 | E18: =-SUMIFS('Import Sheet'!U:U,'Import Sheet'!$A:$A,$X$2,'Import Sheet'!$B:$B,$X18) -> 1475334.95 | F18: =-SUMIFS('Import Sheet'!V:V,'Import Sheet'!$A:$A,$X$2,'Import Sheet'!$B:$B,$X18) -> 71432000 | G18: =-SUMIFS('Import Sheet'!W:W,'Import Sheet'!$A:$A,$X$2,'Import Sheet'!$B:$B,$X18) -> 71582000 | H18: =-SUMIFS('Import Sheet'!AA:AA,'Import Sheet'!$A:$A,$X$2,'Import Sheet'!$B:$B,$X18) -> 71582000 | I18: =-SUMIFS('Import Sheet'!CB:CB,'Import Sheet'!$A:$A,$X$2,'Import Sheet'!$B:$B,$X18) -> 74095000 | J18: =-SUMIFS('Import Sheet'!CC:CC,'Import Sheet'!$A:$A,$X$2,'Import Sheet'!$B:$B,$X18) -> 77243000 | K18: =-SUMIFS('Import Sheet'!CD:CD,'Import Sheet'!$A:$A,$X$2,'Import Sheet'!$B:$B,$X18) -> 79786000 | X18: 2.02 REV | Y18: =VLOOKUP(CONCATENATE($X$2," ",X18),'Import Sheet'!$EX:$EX,1,0) -> A3A 2.02 REV
A19: ='Org structure'!E16 -> 2.3 - Budget & Treasury Office | C19: =-SUMIFS('Import Sheet'!D:D,'Import Sheet'!$A:$A,$X$2,'Import Sheet'!$B:$B,$X19) -> 0 | D19: =-SUMIFS('Import Sheet'!E:E,'Import Sheet'!$A:$A,$X$2,'Import Sheet'!$B:$B,$X19) -> 56639340.17 | E19: =-SUMIFS('Import Sheet'!U:U,'Import Sheet'!$A:$A,$X$2,'Import Sheet'!$B:$B,$X19) -> 66914282.33 | F19: =-SUMIFS('Import Sheet'!V:V,'Import Sheet'!$A:$A,$X$2,'Import Sheet'!$B:$B,$X19) -> 0 | G19: =-SUMIFS('Import Sheet'!W:W,'Import Sheet'!$A:$A,$X$2,'Import Sheet'!$B:$B,$X19) -> 500000 | H19: =-SUMIFS('Import Sheet'!AA:AA,'Import Sheet'!$A:$A,$X$2,'Import Sheet'!$B:$B,$X19) -> 500000 | I19: =-SUMIFS('Import Sheet'!CB:CB,'Import Sheet'!$A:$A,$X$2,'Import Sheet'!$B:$B,$X19) -> 1500000 | J19: =-SUMIFS('Import Sheet'!CC:CC,'Import Sheet'!$A:$A,$X$2,'Import Sheet'!$B:$B,$X19) -> 1500000 | K19: =-SUMIFS('Import Sheet'!CD:CD,'Import Sheet'!$A:$A,$X$2,'Import Sheet'!$B:$B,$X19) -> 1500000 | X19: 2.03 REV | Y19: =VLOOKUP(CONCATENATE($X$2," ",X19),'Import Sheet'!$EX:$EX,1,0) -> A3A 2.03 REV
A20: ='Org structure'!E17 -> 2.4 - Expenditure Unit | C20: =-SUMIFS('Import Sheet'!D:D,'Import Sheet'!$A:$A,$X$2,'Import Sheet'!$B:$B,$X20) -> 0 | D20: =-SUMIFS('Import Sheet'!E:E,'Import Sheet'!$A:$A,$X$2,'Import Sheet'!$B:$B,$X20) -> 0 | E20: =-SUMIFS('Import Sheet'!U:U,'Import Sheet'!$A:$A,$X$2,'Import Sheet'!$B:$B,$X20) -> 0 | F20: =-SUMIFS('Import Sheet'!V:V,'Import Sheet'!$A:$A,$X$2,'Import Sheet'!$B:$B,$X20) -> 0 | G20: =-SUMIFS('Import Sheet'!W:W,'Import Sheet'!$A:$A,$X$2,'Import Sheet'!$B:$B,$X20) -> 0 | H20: =-SUMIFS('Import Sheet'!AA:AA,'Import Sheet'!$A:$A,$X$2,'Import Sheet'!$B:$B,$X20) -> 0 | I20: =-SUMIFS('Import Sheet'!CB:CB,'Import Sheet'!$A:$A,$X$2,'Import Sheet'!$B:$B,$X20) -> 0 | J20: =-SUMIFS('Import Sheet'!CC:CC,'Import Sheet'!$A:$A,$X$2,'Import Sheet'!$B:$B,$X20) -> 0 | K20: =-SUMIFS('Import Sheet'!CD:CD,'Import Sheet'!$A:$A,$X$2,'Import Sheet'!$B:$B,$X20) -> 0 | X20: 2.04 REV | Y20: =VLOOKUP(CONCATENATE($X$2," ",X20),'Import Sheet'!$EX:$EX,1,0) -> A3A 2.04 REV
A21: ='Org structure'!E18 -> 2.5 - Supply Chain Management | C21: =-SUMIFS('Import Sheet'!D:D,'Import Sheet'!$A:$A,$X$2,'Import Sheet'!$B:$B,$X21) -> 0 | D21: =-SUMIFS('Import Sheet'!E:E,'Import Sheet'!$A:$A,$X$2,'Import Sheet'!$B:$B,$X21) -> 0 | E21: =-SUMIFS('Import Sheet'!U:U,'Import Sheet'!$A:$A,$X$2,'Import Sheet'!$B:$B,$X21) -> 0 | F21: =-SUMIFS('Import Sheet'!V:V,'Import Sheet'!$A:$A,$X$2,'Import Sheet'!$B:$B,$X21) -> 0 | G21: =-SUMIFS('Import Sheet'!W:W,'Import Sheet'!$A:$A,$X$2,'Import Sheet'!$B:$B,$X21) -> 0 | H21: =-SUMIFS('Import Sheet'!AA:AA,'Import Sheet'!$A:$A,$X$2,'Import Sheet'!$B:$B,$X21) -> 0 | I21: =-SUMIFS('Import Sheet'!CB:CB,'Import Sheet'!$A:$A,$X$2,'Import Sheet'!$B:$B,$X21) -> 0 | J21: =-SUMIFS('Import Sheet'!CC:CC,'Import Sheet'!$A:$A,$X$2,'Import Sheet'!$B:$B,$X21) -> 0 | K21: =-SUMIFS('Import Sheet'!CD:CD,'Import Sheet'!$A:$A,$X$2,'Import Sheet'!$B:$B,$X21) -> 0 | X21: 2.05 REV | Y21: =VLOOKUP(CONCATENATE($X$2," ",X21),'Import Sheet'!$EX:$EX,1,0) -> A3A 2.05 REV
A22: ='Org structure'!E19 -> 2.6 - Asset Management Unit | C22: =-SUMIFS('Import Sheet'!D:D,'Import Sheet'!$A:$A,$X$2,'Import Sheet'!$B:$B,$X22) -> 0 | D22: =-SUMIFS('Import Sheet'!E:E,'Import Sheet'!$A:$A,$X$2,'Import Sheet'!$B:$B,$X22) -> 24639.96 | E22: =-SUMIFS('Import Sheet'!U:U,'Import Sheet'!$A:$A,$X$2,'Import Sheet'!$B:$B,$X22) -> 45013.92 | F22: =-SUMIFS('Import Sheet'!V:V,'Import Sheet'!$A:$A,$X$2,'Import Sheet'!$B:$B,$X22) -> 0 | G22: =-SUMIFS('Import Sheet'!W:W,'Import Sheet'!$A:$A,$X$2,'Import Sheet'!$B:$B,$X22) -> 656000 | H22: =-SUMIFS('Import Sheet'!AA:AA,'Import Sheet'!$A:$A,$X$2,'Import Sheet'!$B:$B,$X22) -> 656000 | I22: =-SUMIFS('Import Sheet'!CB:CB,'Import Sheet'!$A:$A,$X$2,'Import Sheet'!$B:$B,$X22) -> 656000 | J22: =-SUMIFS('Import Sheet'!CC:CC,'Import Sheet'!$A:$A,$X$2,'Import Sheet'!$B:$B,$X22) -> 381000 | K22: =-SUMIFS('Import Sheet'!CD:CD,'Import Sheet'!$A:$A,$X$2,'Import Sheet'!$B:$B,$X22) -> 381000 | X22: 2.06 REV | Y22: =VLOOKUP(CONCATENATE($X$2," ",X22),'Import Sheet'!$EX:$EX,1,0) -> A3A 2.06 REV
A23: ='Org structure'!E20 ->  | C23: =-SUMIFS('Import Sheet'!D:D,'Import Sheet'!$A:$A,$X$2,'Import Sheet'!$B:$B,$X23) -> 0 | D23: =-SUMIFS('Import Sheet'!E:E,'Import Sheet'!$A:$A,$X$2,'Import Sheet'!$B:$B,$X23) -> 0 | E23: =-SUMIFS('Import Sheet'!U:U,'Import Sheet'!$A:$A,$X$2,'Import Sheet'!$B:$B,$X23) -> 0 | F23: =-SUMIFS('Import Sheet'!V:V,'Import Sheet'!$A:$A,$X$2,'Import Sheet'!$B:$B,$X23) -> 0 | G23: =-SUMIFS('Import Sheet'!W:W,'Import Sheet'!$A:$A,$X$2,'Import Sheet'!$B:$B,$X23) -> 0 | H23: =-SUMIFS('Import Sheet'!AA:AA,'Import Sheet'!$A:$A,$X$2,'Import Sheet'!$B:$B,$X23) -> 0 | I23: =-SUMIFS('Import Sheet'!CB:CB,'Import Sheet'!$A:$A,$X$2,'Import Sheet'!$B:$B,$X23) -> 0 | J23: =-SUMIFS('Import Sheet'!CC:CC,'Import Sheet'!$A:$A,$X$2,'Import Sheet'!$B:$B,$X23) -> 0 | K23: =-SUMIFS('Import Sheet'!CD:CD,'Import Sheet'!$A:$A,$X$2,'Import Sheet'!$B:$B,$X23) -> 0 | X23: 2.07 REV | Y23: =VLOOKUP(CONCATENATE($X$2," ",X23),'Import Sheet'!$EX:$EX,1,0) -> A3A 2.07 REV
A24: ='Org structure'!E21 ->  | C24: =-SUMIFS('Import Sheet'!D:D,'Import Sheet'!$A:$A,$X$2,'Import Sheet'!$B:$B,$X24) -> 0 | D24: =-SUMIFS('Import Sheet'!E:E,'Import Sheet'!$A:$A,$X$2,'Import Sheet'!$B:$B,$X24) -> 0 | E24: =-SUMIFS('Import Sheet'!U:U,'Import Sheet'!$A:$A,$X$2,'Import Sheet'!$B:$B,$X24) -> 0 | F24: =-SUMIFS('Import Sheet'!V:V,'Import Sheet'!$A:$A,$X$2,'Import Sheet'!$B:$B,$X24) -> 0 | G24: =-SUMIFS('Import Sheet'!W:W,'Import Sheet'!$A:$A,$X$2,'Import Sheet'!$B:$B,$X24) -> 0 | H24: =-SUMIFS('Import Sheet'!AA:AA,'Import Sheet'!$A:$A,$X$2,'Import Sheet'!$B:$B,$X24) -> 0 | I24: =-SUMIFS('Import Sheet'!CB:CB,'Import Sheet'!$A:$A,$X$2,'Import Sheet'!$B:$B,$X24) -> 0 | J24: =-SUMIFS('Import Sheet'!CC:CC,'Import Sheet'!$A:$A,$X$2,'Import Sheet'!$B:$B,$X24) -> 0 | K24: =-SUMIFS('Import Sheet'!CD:CD,'Import Sheet'!$A:$A,$X$2,'Import Sheet'!$B:$B,$X24) -> 0 | X24: 2.08 REV | Y24: =VLOOKUP(CONCATENATE($X$2," ",X24),'Import Sheet'!$EX:$EX,1,0) -> A3A 2.08 REV
A25: ='Org structure'!E22 ->  | C25: =-SUMIFS('Import Sheet'!D:D,'Import Sheet'!$A:$A,$X$2,'Import Sheet'!$B:$B,$X25) -> 0 | D25: =-SUMIFS('Import Sheet'!E:E,'Import Sheet'!$A:$A,$X$2,'Import Sheet'!$B:$B,$X25) -> 0 | E25: =-SUMIFS('Import Sheet'!U:U,'Import Sheet'!$A:$A,$X$2,'Import Sheet'!$B:$B,$X25) -> 0 | F25: =-SUMIFS('Import Sheet'!V:V,'Import Sheet'!$A:$A,$X$2,'Import Sheet'!$B:$B,$X25) -> 0 | G25: =-SUMIFS('Import Sheet'!W:W,'Import Sheet'!$A:$A,$X$2,'Import Sheet'!$B:$B,$X25) -> 0 | H25: =-SUMIFS('Import Sheet'!AA:AA,'Import Sheet'!$A:$A,$X$2,'Import Sheet'!$B:$B,$X25) -> 0 | I25: =-SUMIFS('Import Sheet'!CB:CB,'Import Sheet'!$A:$A,$X$2,'Import Sheet'!$B:$B,$X25) -> 0 | J25: =-SUMIFS('Import Sheet'!CC:CC,'Import Sheet'!$A:$A,$X$2,'Import Sheet'!$B:$B,$X25) -> 0 | K25: =-SUMIFS('Import Sheet'!CD:CD,'Import Sheet'!$A:$A,$X$2,'Import Sheet'!$B:$B,$X25) -> 0 | X25: 2.09 REV | Y25: =VLOOKUP(CONCATENATE($X$2," ",X25),'Import Sheet'!$EX:$EX,1,0) -> A3A 2.09 REV
A26: ='Org structure'!E23 ->  | C26: =-SUMIFS('Import Sheet'!D:D,'Import Sheet'!$A:$A,$X$2,'Import Sheet'!$B:$B,$X26) -> 0 | D26: =-SUMIFS('Import Sheet'!E:E,'Import Sheet'!$A:$A,$X$2,'Import Sheet'!$B:$B,$X26) -> 0 | E26: =-SUMIFS('Import Sheet'!U:U,'Import Sheet'!$A:$A,$X$2,'Import Sheet'!$B:$B,$X26) -> 0 | F26: =-SUMIFS('Import Sheet'!V:V,'Import Sheet'!$A:$A,$X$2,'Import Sheet'!$B:$B,$X26) -> 0 | G26: =-SUMIFS('Import Sheet'!W:W,'Import Sheet'!$A:$A,$X$2,'Import Sheet'!$B:$B,$X26) -> 0 | H26: =-SUMIFS('Import Sheet'!AA:AA,'Import Sheet'!$A:$A,$X$2,'Import Sheet'!$B:$B,$X26) -> 0 | I26: =-SUMIFS('Import Sheet'!CB:CB,'Import Sheet'!$A:$A,$X$2,'Import Sheet'!$B:$B,$X26) -> 0 | J26: =-SUMIFS('Import Sheet'!CC:CC,'Import Sheet'!$A:$A,$X$2,'Import Sheet'!$B:$B,$X26) -> 0 | K26: =-SUMIFS('Import Sheet'!CD:CD,'Import Sheet'!$A:$A,$X$2,'Import Sheet'!$B:$B,$X26) -> 0 | X26: 2.10 REV | Y26: =VLOOKUP(CONCATENATE($X$2," ",X26),'Import Sheet'!$EX:$EX,1,0) -> A3A 2.10 REV
A27: ='Org structure'!A4 -> Vote 3 - CORPORATE SERVICES | C27: =SUM(C28:C37) -> 0 | D27: 56306.84 | E27: 444660.3 | F27: 1500000 | G27: 850000 | H27: 850000 | I27: 850000 | J27: 850000 | K27: 850000
A28: ='Org structure'!E25 -> 3.1 - Information Technology | C28: =-SUMIFS('Import Sheet'!D:D,'Import Sheet'!$A:$A,$X$2,'Import Sheet'!$B:$B,$X28) -> 0 | D28: =-SUMIFS('Import Sheet'!E:E,'Import Sheet'!$A:$A,$X$2,'Import Sheet'!$B:$B,$X28) -> 0 | E28: =-SUMIFS('Import Sheet'!U:U,'Import Sheet'!$A:$A,$X$2,'Import Sheet'!$B:$B,$X28) -> 0 | F28: =-SUMIFS('Import Sheet'!V:V,'Import Sheet'!$A:$A,$X$2,'Import Sheet'!$B:$B,$X28) -> 0 | G28: =-SUMIFS('Import Sheet'!W:W,'Import Sheet'!$A:$A,$X$2,'Import Sheet'!$B:$B,$X28) -> 0 | H28: =-SUMIFS('Import Sheet'!AA:AA,'Import Sheet'!$A:$A,$X$2,'Import Sheet'!$B:$B,$X28) -> 0 | I28: =-SUMIFS('Import Sheet'!CB:CB,'Import Sheet'!$A:$A,$X$2,'Import Sheet'!$B:$B,$X28) -> 0 | J28: =-SUMIFS('Import Sheet'!CC:CC,'Import Sheet'!$A:$A,$X$2,'Import Sheet'!$B:$B,$X28) -> 0 | K28: =-SUMIFS('Import Sheet'!CD:CD,'Import Sheet'!$A:$A,$X$2,'Import Sheet'!$B:$B,$X28) -> 0 | X28: 3.01 REV | Y28: =VLOOKUP(CONCATENATE($X$2," ",X28),'Import Sheet'!$EX:$EX,1,0) -> A3A 3.01 REV
A29: ='Org structure'!E26 -> 3.2 - Human Resources | C29: =-SUMIFS('Import Sheet'!D:D,'Import Sheet'!$A:$A,$X$2,'Import Sheet'!$B:$B,$X29) -> 0 | D29: =-SUMIFS('Import Sheet'!E:E,'Import Sheet'!$A:$A,$X$2,'Import Sheet'!$B:$B,$X29) -> 56306.84 | E29: =-SUMIFS('Import Sheet'!U:U,'Import Sheet'!$A:$A,$X$2,'Import Sheet'!$B:$B,$X29) -> 444660.3 | F29: =-SUMIFS('Import Sheet'!V:V,'Import Sheet'!$A:$A,$X$2,'Import Sheet'!$B:$B,$X29) -> 1500000 | G29: =-SUMIFS('Import Sheet'!W:W,'Import Sheet'!$A:$A,$X$2,'Import Sheet'!$B:$B,$X29) -> 850000 | H29: =-SUMIFS('Import Sheet'!AA:AA,'Import Sheet'!$A:$A,$X$2,'Import Sheet'!$B:$B,$X29) -> 850000 | I29: =-SUMIFS('Import Sheet'!CB:CB,'Import Sheet'!$A:$A,$X$2,'Import Sheet'!$B:$B,$X29) -> 850000 | J29: =-SUMIFS('Import Sheet'!CC:CC,'Import Sheet'!$A:$A,$X$2,'Import Sheet'!$B:$B,$X29) -> 850000 | K29: =-SUMIFS('Import Sheet'!CD:CD,'Import Sheet'!$A:$A,$X$2,'Import Sheet'!$B:$B,$X29) -> 850000 | X29: 3.02 REV | Y29: =VLOOKUP(CONCATENATE($X$2," ",X29),'Import Sheet'!$EX:$EX,1,0) -> A3A 3.02 REV
A30: ='Org structure'!E27 -> 3.3 - Property Services | C30: =-SUMIFS('Import Sheet'!D:D,'Import Sheet'!$A:$A,$X$2,'Import Sheet'!$B:$B,$X30) -> 0 | D30: =-SUMIFS('Import Sheet'!E:E,'Import Sheet'!$A:$A,$X$2,'Import Sheet'!$B:$B,$X30) -> 0 | E30: =-SUMIFS('Import Sheet'!U:U,'Import Sheet'!$A:$A,$X$2,'Import Sheet'!$B:$B,$X30) -> 0 | F30: =-SUMIFS('Import Sheet'!V:V,'Import Sheet'!$A:$A,$X$2,'Import Sheet'!$B:$B,$X30) -> 0 | G30: =-SUMIFS('Import Sheet'!W:W,'Import Sheet'!$A:$A,$X$2,'Import Sheet'!$B:$B,$X30) -> 0 | H30: =-SUMIFS('Import Sheet'!AA:AA,'Import Sheet'!$A:$A,$X$2,'Import Sheet'!$B:$B,$X30) -> 0 | I30: =-SUMIFS('Import Sheet'!CB:CB,'Import Sheet'!$A:$A,$X$2,'Import Sheet'!$B:$B,$X30) -> 0 | J30: =-SUMIFS('Import Sheet'!CC:CC,'Import Sheet'!$A:$A,$X$2,'Import Sheet'!$B:$B,$X30) -> 0 | K30: =-SUMIFS('Import Sheet'!CD:CD,'Import Sheet'!$A:$A,$X$2,'Import Sheet'!$B:$B,$X30) -> 0 | X30: 3.03 REV | Y30: =VLOOKUP(CONCATENATE($X$2," ",X30),'Import Sheet'!$EX:$EX,1,0) -> A3A 3.03 REV
A31: ='Org structure'!E28 -> 3.4 - Administration | C31: =-SUMIFS('Import Sheet'!D:D,'Import Sheet'!$A:$A,$X$2,'Import Sheet'!$B:$B,$X31) -> 0 | D31: =-SUMIFS('Import Sheet'!E:E,'Import Sheet'!$A:$A,$X$2,'Import Sheet'!$B:$B,$X31) -> 0 | E31: =-SUMIFS('Import Sheet'!U:U,'Import Sheet'!$A:$A,$X$2,'Import Sheet'!$B:$B,$X31) -> 0 | F31: =-SUMIFS('Import Sheet'!V:V,'Import Sheet'!$A:$A,$X$2,'Import Sheet'!$B:$B,$X31) -> 0 | G31: =-SUMIFS('Import Sheet'!W:W,'Import Sheet'!$A:$A,$X$2,'Import Sheet'!$B:$B,$X31) -> 0 | H31: =-SUMIFS('Import Sheet'!AA:AA,'Import Sheet'!$A:$A,$X$2,'Import Sheet'!$B:$B,$X31) -> 0 | I31: =-SUMIFS('Import Sheet'!CB:CB,'Import Sheet'!$A:$A,$X$2,'Import Sheet'!$B:$B,$X31) -> 0 | J31: =-SUMIFS('Import Sheet'!CC:CC,'Import Sheet'!$A:$A,$X$2,'Import Sheet'!$B:$B,$X31) -> 0 | K31: =-SUMIFS('Import Sheet'!CD:CD,'Import Sheet'!$A:$A,$X$2,'Import Sheet'!$B:$B,$X31) -> 0 | X31: 3.04 REV | Y31: =VLOOKUP(CONCATENATE($X$2," ",X31),'Import Sheet'!$EX:$EX,1,0) -> A3A 3.04 REV
A32: ='Org structure'!E29 -> 3.5 - Security Services | C32: =-SUMIFS('Import Sheet'!D:D,'Import Sheet'!$A:$A,$X$2,'Import Sheet'!$B:$B,$X32) -> 0 | D32: =-SUMIFS('Import Sheet'!E:E,'Import Sheet'!$A:$A,$X$2,'Import Sheet'!$B:$B,$X32) -> 0 | E32: =-SUMIFS('Import Sheet'!U:U,'Import Sheet'!$A:$A,$X$2,'Import Sheet'!$B:$B,$X32) -> 0 | F32: =-SUMIFS('Import Sheet'!V:V,'Import Sheet'!$A:$A,$X$2,'Import Sheet'!$B:$B,$X32) -> 0 | G32: =-SUMIFS('Import Sheet'!W:W,'Import Sheet'!$A:$A,$X$2,'Import Sheet'!$B:$B,$X32) -> 0 | H32: =-SUMIFS('Import Sheet'!AA:AA,'Import Sheet'!$A:$A,$X$2,'Import Sheet'!$B:$B,$X32) -> 0 | I32: =-SUMIFS('Import Sheet'!CB:CB,'Import Sheet'!$A:$A,$X$2,'Import Sheet'!$B:$B,$X32) -> 0 | J32: =-SUMIFS('Import Sheet'!CC:CC,'Import Sheet'!$A:$A,$X$2,'Import Sheet'!$B:$B,$X32) -> 0 | K32: =-SUMIFS('Import Sheet'!CD:CD,'Import Sheet'!$A:$A,$X$2,'Import Sheet'!$B:$B,$X32) -> 0 | X32: 3.05 REV | Y32: =VLOOKUP(CONCATENATE($X$2," ",X32),'Import Sheet'!$EX:$EX,1,0) -> A3A 3.05 REV
A33: ='Org structure'!E30 ->  | C33: =-SUMIFS('Import Sheet'!D:D,'Import Sheet'!$A:$A,$X$2,'Import Sheet'!$B:$B,$X33) -> 0 | D33: =-SUMIFS('Import Sheet'!E:E,'Import Sheet'!$A:$A,$X$2,'Import Sheet'!$B:$B,$X33) -> 0 | E33: =-SUMIFS('Import Sheet'!U:U,'Import Sheet'!$A:$A,$X$2,'Import Sheet'!$B:$B,$X33) -> 0 | F33: =-SUMIFS('Import Sheet'!V:V,'Import Sheet'!$A:$A,$X$2,'Import Sheet'!$B:$B,$X33) -> 0 | G33: =-SUMIFS('Import Sheet'!W:W,'Import Sheet'!$A:$A,$X$2,'Import Sheet'!$B:$B,$X33) -> 0 | H33: =-SUMIFS('Import Sheet'!AA:AA,'Import Sheet'!$A:$A,$X$2,'Import Sheet'!$B:$B,$X33) -> 0 | I33: =-SUMIFS('Import Sheet'!CB:CB,'Import Sheet'!$A:$A,$X$2,'Import Sheet'!$B:$B,$X33) -> 0 | J33: =-SUMIFS('Import Sheet'!CC:CC,'Import Sheet'!$A:$A,$X$2,'Import Sheet'!$B:$B,$X33) -> 0 | K33: =-SUMIFS('Import Sheet'!CD:CD,'Import Sheet'!$A:$A,$X$2,'Import Sheet'!$B:$B,$X33) -> 0 | X33: 3.06 REV | Y33: =VLOOKUP(CONCATENATE($X$2," ",X33),'Import Sheet'!$EX:$EX,1,0) -> A3A 3.06 REV
A34: ='Org structure'!E31 ->  | C34: =-SUMIFS('Import Sheet'!D:D,'Import Sheet'!$A:$A,$X$2,'Import Sheet'!$B:$B,$X34) -> 0 | D34: =-SUMIFS('Import Sheet'!E:E,'Import Sheet'!$A:$A,$X$2,'Import Sheet'!$B:$B,$X34) -> 0 | E34: =-SUMIFS('Import Sheet'!U:U,'Import Sheet'!$A:$A,$X$2,'Import Sheet'!$B:$B,$X34) -> 0 | F34: =-SUMIFS('Import Sheet'!V:V,'Import Sheet'!$A:$A,$X$2,'Import Sheet'!$B:$B,$X34) -> 0 | G34: =-SUMIFS('Import Sheet'!W:W,'Import Sheet'!$A:$A,$X$2,'Import Sheet'!$B:$B,$X34) -> 0 | H34: =-SUMIFS('Import Sheet'!AA:AA,'Import Sheet'!$A:$A,$X$2,'Import Sheet'!$B:$B,$X34) -> 0 | I34: =-SUMIFS('Import Sheet'!CB:CB,'Import Sheet'!$A:$A,$X$2,'Import Sheet'!$B:$B,$X34) -> 0 | J34: =-SUMIFS('Import Sheet'!CC:CC,'Import Sheet'!$A:$A,$X$2,'Import Sheet'!$B:$B,$X34) -> 0 | K34: =-SUMIFS('Import Sheet'!CD:CD,'Import Sheet'!$A:$A,$X$2,'Import Sheet'!$B:$B,$X34) -> 0 | X34: 3.07 REV | Y34: =VLOOKUP(CONCATENATE($X$2," ",X34),'Import Sheet'!$EX:$EX,1,0) -> A3A 3.07 REV
A35: ='Org structure'!E32 ->  | C35: =-SUMIFS('Import Sheet'!D:D,'Import Sheet'!$A:$A,$X$2,'Import Sheet'!$B:$B,$X35) -> 0 | D35: =-SUMIFS('Import Sheet'!E:E,'Import Sheet'!$A:$A,$X$2,'Import Sheet'!$B:$B,$X35) -> 0 | E35: =-SUMIFS('Import Sheet'!U:U,'Import Sheet'!$A:$A,$X$2,'Import Sheet'!$B:$B,$X35) -> 0 | F35: =-SUMIFS('Import Sheet'!V:V,'Import Sheet'!$A:$A,$X$2,'Import Sheet'!$B:$B,$X35) -> 0 | G35: =-SUMIFS('Import Sheet'!W:W,'Import Sheet'!$A:$A,$X$2,'Import Sheet'!$B:$B,$X35) -> 0 | H35: =-SUMIFS('Import Sheet'!AA:AA,'Import Sheet'!$A:$A,$X$2,'Import Sheet'!$B:$B,$X35) -> 0 | I35: =-SUMIFS('Import Sheet'!CB:CB,'Import Sheet'!$A:$A,$X$2,'Import Sheet'!$B:$B,$X35) -> 0 | J35: =-SUMIFS('Import Sheet'!CC:CC,'Import Sheet'!$A:$A,$X$2,'Import Sheet'!$B:$B,$X35) -> 0 | K35: =-SUMIFS('Import Sheet'!CD:CD,'Import Sheet'!$A:$A,$X$2,'Import Sheet'!$B:$B,$X35) -> 0 | X35: 3.08 REV | Y35: =VLOOKUP(CONCATENATE($X$2," ",X35),'Import Sheet'!$EX:$EX,1,0) -> A3A 3.08 REV
A36: ='Org structure'!E33 ->  | C36: =-SUMIFS('Import Sheet'!D:D,'Import Sheet'!$A:$A,$X$2,'Import Sheet'!$B:$B,$X36) -> 0 | D36: =-SUMIFS('Import Sheet'!E:E,'Import Sheet'!$A:$A,$X$2,'Import Sheet'!$B:$B,$X36) -> 0 | E36: =-SUMIFS('Import Sheet'!U:U,'Import Sheet'!$A:$A,$X$2,'Import Sheet'!$B:$B,$X36) -> 0 | F36: =-SUMIFS('Import Sheet'!V:V,'Import Sheet'!$A:$A,$X$2,'Import Sheet'!$B:$B,$X36) -> 0 | G36: =-SUMIFS('Import Sheet'!W:W,'Import Sheet'!$A:$A,$X$2,'Import Sheet'!$B:$B,$X36) -> 0 | H36: =-SUMIFS('Import Sheet'!AA:AA,'Import Sheet'!$A:$A,$X$2,'Import Sheet'!$B:$B,$X36) -> 0 | I36: =-SUMIFS('Import Sheet'!CB:CB,'Import Sheet'!$A:$A,$X$2,'Import Sheet'!$B:$B,$X36) -> 0 | J36: =-SUMIFS('Import Sheet'!CC:CC,'Import Sheet'!$A:$A,$X$2,'Import Sheet'!$B:$B,$X36) -> 0 | K36: =-SUMIFS('Import Sheet'!CD:CD,'Import Sheet'!$A:$A,$X$2,'Import Sheet'!$B:$B,$X36) -> 0 | X36: 3.09 REV | Y36: =VLOOKUP(CONCATENATE($X$2," ",X36),'Import Sheet'!$EX:$EX,1,0) -> A3A 3.09 REV
A37: ='Org structure'!E34 ->  | C37: =-SUMIFS('Import Sheet'!D:D,'Import Sheet'!$A:$A,$X$2,'Import Sheet'!$B:$B,$X37) -> 0 | D37: =-SUMIFS('Import Sheet'!E:E,'Import Sheet'!$A:$A,$X$2,'Import Sheet'!$B:$B,$X37) -> 0 | E37: =-SUMIFS('Import Sheet'!U:U,'Import Sheet'!$A:$A,$X$2,'Import Sheet'!$B:$B,$X37) -> 0 | F37: =-SUMIFS('Import Sheet'!V:V,'Import Sheet'!$A:$A,$X$2,'Import Sheet'!$B:$B,$X37) -> 0 | G37: =-SUMIFS('Import Sheet'!W:W,'Import Sheet'!$A:$A,$X$2,'Import Sheet'!$B:$B,$X37) -> 0 | H37: =-SUMIFS('Import Sheet'!AA:AA,'Import Sheet'!$A:$A,$X$2,'Import Sheet'!$B:$B,$X37) -> 0 | I37: =-SUMIFS('Import Sheet'!CB:CB,'Import Sheet'!$A:$A,$X$2,'Import Sheet'!$B:$B,$X37) -> 0 | J37: =-SUMIFS('Import Sheet'!CC:CC,'Import Sheet'!$A:$A,$X$2,'Import Sheet'!$B:$B,$X37) -> 0 | K37: =-SUMIFS('Import Sheet'!CD:CD,'Import Sheet'!$A:$A,$X$2,'Import Sheet'!$B:$B,$X37) -> 0 | X37: 3.10 REV | Y37: =VLOOKUP(CONCATENATE($X$2," ",X37),'Import Sheet'!$EX:$EX,1,0) -> A3A 3.10 REV
A38: ='Org structure'!A5 -> Vote 4 - TECHNICAL SERVICES | C38: =SUM(C39:C48) -> 0 | D38: 5780763.54 | E38: 11229286.47 | F38: 5122000 | G38: 5122000 | H38: 5122000 | I38: 4899000 | J38: 3798000 | K38: 3975000
A39: ='Org structure'!E36 -> 4.1 - Disaster Mangement | C39: =-SUMIFS('Import Sheet'!D:D,'Import Sheet'!$A:$A,$X$2,'Import Sheet'!$B:$B,$X39) -> 0 | D39: =-SUMIFS('Import Sheet'!E:E,'Import Sheet'!$A:$A,$X$2,'Import Sheet'!$B:$B,$X39) -> 231743.33 | E39: =-SUMIFS('Import Sheet'!U:U,'Import Sheet'!$A:$A,$X$2,'Import Sheet'!$B:$B,$X39) -> 1345229.41 | F39: =-SUMIFS('Import Sheet'!V:V,'Import Sheet'!$A:$A,$X$2,'Import Sheet'!$B:$B,$X39) -> 246000 | G39: =-SUMIFS('Import Sheet'!W:W,'Import Sheet'!$A:$A,$X$2,'Import Sheet'!$B:$B,$X39) -> 246000 | H39: =-SUMIFS('Import Sheet'!AA:AA,'Import Sheet'!$A:$A,$X$2,'Import Sheet'!$B:$B,$X39) -> 246000 | I39: =-SUMIFS('Import Sheet'!CB:CB,'Import Sheet'!$A:$A,$X$2,'Import Sheet'!$B:$B,$X39) -> 259000 | J39: =-SUMIFS('Import Sheet'!CC:CC,'Import Sheet'!$A:$A,$X$2,'Import Sheet'!$B:$B,$X39) -> 0 | K39: =-SUMIFS('Import Sheet'!CD:CD,'Import Sheet'!$A:$A,$X$2,'Import Sheet'!$B:$B,$X39) -> 0 | X39: 4.01 REV | Y39: =VLOOKUP(CONCATENATE($X$2," ",X39),'Import Sheet'!$EX:$EX,1,0) -> A3A 4.01 REV
A40: ='Org structure'!E37 -> 4.2 - PIMMS | C40: =-SUMIFS('Import Sheet'!D:D,'Import Sheet'!$A:$A,$X$2,'Import Sheet'!$B:$B,$X40) -> 0 | D40: =-SUMIFS('Import Sheet'!E:E,'Import Sheet'!$A:$A,$X$2,'Import Sheet'!$B:$B,$X40) -> 0 | E40: =-SUMIFS('Import Sheet'!U:U,'Import Sheet'!$A:$A,$X$2,'Import Sheet'!$B:$B,$X40) -> 0 | F40: =-SUMIFS('Import Sheet'!V:V,'Import Sheet'!$A:$A,$X$2,'Import Sheet'!$B:$B,$X40) -> 0 | G40: =-SUMIFS('Import Sheet'!W:W,'Import Sheet'!$A:$A,$X$2,'Import Sheet'!$B:$B,$X40) -> 0 | H40: =-SUMIFS('Import Sheet'!AA:AA,'Import Sheet'!$A:$A,$X$2,'Import Sheet'!$B:$B,$X40) -> 0 | I40: =-SUMIFS('Import Sheet'!CB:CB,'Import Sheet'!$A:$A,$X$2,'Import Sheet'!$B:$B,$X40) -> 0 | J40: =-SUMIFS('Import Sheet'!CC:CC,'Import Sheet'!$A:$A,$X$2,'Import Sheet'!$B:$B,$X40) -> 0 | K40: =-SUMIFS('Import Sheet'!CD:CD,'Import Sheet'!$A:$A,$X$2,'Import Sheet'!$B:$B,$X40) -> 0 | X40: 4.02 REV | Y40: =VLOOKUP(CONCATENATE($X$2," ",X40),'Import Sheet'!$EX:$EX,1,0) -> A3A 4.02 REV
A41: ='Org structure'!E38 -> 4.3 - Technical Support Services | C41: =-SUMIFS('Import Sheet'!D:D,'Import Sheet'!$A:$A,$X$2,'Import Sheet'!$B:$B,$X41) -> 0 | D41: =-SUMIFS('Import Sheet'!E:E,'Import Sheet'!$A:$A,$X$2,'Import Sheet'!$B:$B,$X41) -> 0 | E41: =-SUMIFS('Import Sheet'!U:U,'Import Sheet'!$A:$A,$X$2,'Import Sheet'!$B:$B,$X41) -> 0 | F41: =-SUMIFS('Import Sheet'!V:V,'Import Sheet'!$A:$A,$X$2,'Import Sheet'!$B:$B,$X41) -> 0 | G41: =-SUMIFS('Import Sheet'!W:W,'Import Sheet'!$A:$A,$X$2,'Import Sheet'!$B:$B,$X41) -> 0 | H41: =-SUMIFS('Import Sheet'!AA:AA,'Import Sheet'!$A:$A,$X$2,'Import Sheet'!$B:$B,$X41) -> 0 | I41: =-SUMIFS('Import Sheet'!CB:CB,'Import Sheet'!$A:$A,$X$2,'Import Sheet'!$B:$B,$X41) -> 0 | J41: =-SUMIFS('Import Sheet'!CC:CC,'Import Sheet'!$A:$A,$X$2,'Import Sheet'!$B:$B,$X41) -> 0 | K41: =-SUMIFS('Import Sheet'!CD:CD,'Import Sheet'!$A:$A,$X$2,'Import Sheet'!$B:$B,$X41) -> 0 | X41: 4.03 REV | Y41: =VLOOKUP(CONCATENATE($X$2," ",X41),'Import Sheet'!$EX:$EX,1,0) -> A3A 4.03 REV
A42: ='Org structure'!E39 -> 4.4 - Tourism | C42: =-SUMIFS('Import Sheet'!D:D,'Import Sheet'!$A:$A,$X$2,'Import Sheet'!$B:$B,$X42) -> 0 | D42: =-SUMIFS('Import Sheet'!E:E,'Import Sheet'!$A:$A,$X$2,'Import Sheet'!$B:$B,$X42) -> 0 | E42: =-SUMIFS('Import Sheet'!U:U,'Import Sheet'!$A:$A,$X$2,'Import Sheet'!$B:$B,$X42) -> 0 | F42: =-SUMIFS('Import Sheet'!V:V,'Import Sheet'!$A:$A,$X$2,'Import Sheet'!$B:$B,$X42) -> 0 | G42: =-SUMIFS('Import Sheet'!W:W,'Import Sheet'!$A:$A,$X$2,'Import Sheet'!$B:$B,$X42) -> 0 | H42: =-SUMIFS('Import Sheet'!AA:AA,'Import Sheet'!$A:$A,$X$2,'Import Sheet'!$B:$B,$X42) -> 0 | I42: =-SUMIFS('Import Sheet'!CB:CB,'Import Sheet'!$A:$A,$X$2,'Import Sheet'!$B:$B,$X42) -> 0 | J42: =-SUMIFS('Import Sheet'!CC:CC,'Import Sheet'!$A:$A,$X$2,'Import Sheet'!$B:$B,$X42) -> 0 | K42: =-SUMIFS('Import Sheet'!CD:CD,'Import Sheet'!$A:$A,$X$2,'Import Sheet'!$B:$B,$X42) -> 0 | X42: 4.04 REV | Y42: =VLOOKUP(CONCATENATE($X$2," ",X42),'Import Sheet'!$EX:$EX,1,0) -> A3A 4.04 REV
A43: ='Org structure'!E40 -> 4.5 - LED | C43: =-SUMIFS('Import Sheet'!D:D,'Import Sheet'!$A:$A,$X$2,'Import Sheet'!$B:$B,$X43) -> 0 | D43: =-SUMIFS('Import Sheet'!E:E,'Import Sheet'!$A:$A,$X$2,'Import Sheet'!$B:$B,$X43) -> 0 | E43: =-SUMIFS('Import Sheet'!U:U,'Import Sheet'!$A:$A,$X$2,'Import Sheet'!$B:$B,$X43) -> 0 | F43: =-SUMIFS('Import Sheet'!V:V,'Import Sheet'!$A:$A,$X$2,'Import Sheet'!$B:$B,$X43) -> 0 | G43: =-SUMIFS('Import Sheet'!W:W,'Import Sheet'!$A:$A,$X$2,'Import Sheet'!$B:$B,$X43) -> 0 | H43: =-SUMIFS('Import Sheet'!AA:AA,'Import Sheet'!$A:$A,$X$2,'Import Sheet'!$B:$B,$X43) -> 0 | I43: =-SUMIFS('Import Sheet'!CB:CB,'Import Sheet'!$A:$A,$X$2,'Import Sheet'!$B:$B,$X43) -> 0 | J43: =-SUMIFS('Import Sheet'!CC:CC,'Import Sheet'!$A:$A,$X$2,'Import Sheet'!$B:$B,$X43) -> 0 | K43: =-SUMIFS('Import Sheet'!CD:CD,'Import Sheet'!$A:$A,$X$2,'Import Sheet'!$B:$B,$X43) -> 0 | X43: 4.05 REV | Y43: =VLOOKUP(CONCATENATE($X$2," ",X43),'Import Sheet'!$EX:$EX,1,0) -> A3A 4.05 REV
A44: ='Org structure'!E41 -> 4.6 - Engineering Services | C44: =-SUMIFS('Import Sheet'!D:D,'Import Sheet'!$A:$A,$X$2,'Import Sheet'!$B:$B,$X44) -> 0 | D44: =-SUMIFS('Import Sheet'!E:E,'Import Sheet'!$A:$A,$X$2,'Import Sheet'!$B:$B,$X44) -> 4007239.91 | E44: =-SUMIFS('Import Sheet'!U:U,'Import Sheet'!$A:$A,$X$2,'Import Sheet'!$B:$B,$X44) -> 8134057.06 | F44: =-SUMIFS('Import Sheet'!V:V,'Import Sheet'!$A:$A,$X$2,'Import Sheet'!$B:$B,$X44) -> 4126000 | G44: =-SUMIFS('Import Sheet'!W:W,'Import Sheet'!$A:$A,$X$2,'Import Sheet'!$B:$B,$X44) -> 4126000 | H44: =-SUMIFS('Import Sheet'!AA:AA,'Import Sheet'!$A:$A,$X$2,'Import Sheet'!$B:$B,$X44) -> 4126000 | I44: =-SUMIFS('Import Sheet'!CB:CB,'Import Sheet'!$A:$A,$X$2,'Import Sheet'!$B:$B,$X44) -> 3890000 | J44: =-SUMIFS('Import Sheet'!CC:CC,'Import Sheet'!$A:$A,$X$2,'Import Sheet'!$B:$B,$X44) -> 3048000 | K44: =-SUMIFS('Import Sheet'!CD:CD,'Import Sheet'!$A:$A,$X$2,'Import Sheet'!$B:$B,$X44) -> 3225000 | X44: 4.06 REV | Y44: =VLOOKUP(CONCATENATE($X$2," ",X44),'Import Sheet'!$EX:$EX,1,0) -> A3A 4.06 REV
A45: ='Org structure'!E42 -> 4.7 - Housing Accreditation | C45: =-SUMIFS('Import Sheet'!D:D,'Import Sheet'!$A:$A,$X$2,'Import Sheet'!$B:$B,$X45) -> 0 | D45: =-SUMIFS('Import Sheet'!E:E,'Import Sheet'!$A:$A,$X$2,'Import Sheet'!$B:$B,$X45) -> 1541780.3 | E45: =-SUMIFS('Import Sheet'!U:U,'Import Sheet'!$A:$A,$X$2,'Import Sheet'!$B:$B,$X45) -> 1750000 | F45: =-SUMIFS('Import Sheet'!V:V,'Import Sheet'!$A:$A,$X$2,'Import Sheet'!$B:$B,$X45) -> 750000 | G45: =-SUMIFS('Import Sheet'!W:W,'Import Sheet'!$A:$A,$X$2,'Import Sheet'!$B:$B,$X45) -> 750000 | H45: =-SUMIFS('Import Sheet'!AA:AA,'Import Sheet'!$A:$A,$X$2,'Import Sheet'!$B:$B,$X45) -> 750000 | I45: =-SUMIFS('Import Sheet'!CB:CB,'Import Sheet'!$A:$A,$X$2,'Import Sheet'!$B:$B,$X45) -> 750000 | J45: =-SUMIFS('Import Sheet'!CC:CC,'Import Sheet'!$A:$A,$X$2,'Import Sheet'!$B:$B,$X45) -> 750000 | K45: =-SUMIFS('Import Sheet'!CD:CD,'Import Sheet'!$A:$A,$X$2,'Import Sheet'!$B:$B,$X45) -> 750000 | X45: 4.07 REV | Y45: =VLOOKUP(CONCATENATE($X$2," ",X45),'Import Sheet'!$EX:$EX,1,0) -> A3A 4.07 REV
A46: ='Org structure'!E43 -> 4.8 - Environmental Health | C46: =-SUMIFS('Import Sheet'!D:D,'Import Sheet'!$A:$A,$X$2,'Import Sheet'!$B:$B,$X46) -> 0 | D46: =-SUMIFS('Import Sheet'!E:E,'Import Sheet'!$A:$A,$X$2,'Import Sheet'!$B:$B,$X46) -> 0 | E46: =-SUMIFS('Import Sheet'!U:U,'Import Sheet'!$A:$A,$X$2,'Import Sheet'!$B:$B,$X46) -> 0 | F46: =-SUMIFS('Import Sheet'!V:V,'Import Sheet'!$A:$A,$X$2,'Import Sheet'!$B:$B,$X46) -> 0 | G46: =-SUMIFS('Import Sheet'!W:W,'Import Sheet'!$A:$A,$X$2,'Import Sheet'!$B:$B,$X46) -> 0 | H46: =-SUMIFS('Import Sheet'!AA:AA,'Import Sheet'!$A:$A,$X$2,'Import Sheet'!$B:$B,$X46) -> 0 | I46: =-SUMIFS('Import Sheet'!CB:CB,'Import Sheet'!$A:$A,$X$2,'Import Sheet'!$B:$B,$X46) -> 0 | J46: =-SUMIFS('Import Sheet'!CC:CC,'Import Sheet'!$A:$A,$X$2,'Import Sheet'!$B:$B,$X46) -> 0 | K46: =-SUMIFS('Import Sheet'!CD:CD,'Import Sheet'!$A:$A,$X$2,'Import Sheet'!$B:$B,$X46) -> 0 | X46: 4.08 REV | Y46: =VLOOKUP(CONCATENATE($X$2," ",X46),'Import Sheet'!$EX:$EX,1,0) -> A3A 4.08 REV
A47: ='Org structure'!E44 ->  | C47: =-SUMIFS('Import Sheet'!D:D,'Import Sheet'!$A:$A,$X$2,'Import Sheet'!$B:$B,$X47) -> 0 | D47: =-SUMIFS('Import Sheet'!E:E,'Import Sheet'!$A:$A,$X$2,'Import Sheet'!$B:$B,$X47) -> 0 | E47: =-SUMIFS('Import Sheet'!U:U,'Import Sheet'!$A:$A,$X$2,'Import Sheet'!$B:$B,$X47) -> 0 | F47: =-SUMIFS('Import Sheet'!V:V,'Import Sheet'!$A:$A,$X$2,'Import Sheet'!$B:$B,$X47) -> 0 | G47: =-SUMIFS('Import Sheet'!W:W,'Import Sheet'!$A:$A,$X$2,'Import Sheet'!$B:$B,$X47) -> 0 | H47: =-SUMIFS('Import Sheet'!AA:AA,'Import Sheet'!$A:$A,$X$2,'Import Sheet'!$B:$B,$X47) -> 0 | I47: =-SUMIFS('Import Sheet'!CB:CB,'Import Sheet'!$A:$A,$X$2,'Import Sheet'!$B:$B,$X47) -> 0 | J47: =-SUMIFS('Import Sheet'!CC:CC,'Import Sheet'!$A:$A,$X$2,'Import Sheet'!$B:$B,$X47) -> 0 | K47: =-SUMIFS('Import Sheet'!CD:CD,'Import Sheet'!$A:$A,$X$2,'Import Sheet'!$B:$B,$X47) -> 0 | X47: 4.09 REV | Y47: =VLOOKUP(CONCATENATE($X$2," ",X47),'Import Sheet'!$EX:$EX,1,0) -> A3A 4.09 REV
A48: ='Org structure'!E45 ->  | C48: =-SUMIFS('Import Sheet'!D:D,'Import Sheet'!$A:$A,$X$2,'Import Sheet'!$B:$B,$X48) -> 0 | D48: =-SUMIFS('Import Sheet'!E:E,'Import Sheet'!$A:$A,$X$2,'Import Sheet'!$B:$B,$X48) -> 0 | E48: =-SUMIFS('Import Sheet'!U:U,'Import Sheet'!$A:$A,$X$2,'Import Sheet'!$B:$B,$X48) -> 0 | F48: =-SUMIFS('Import Sheet'!V:V,'Import Sheet'!$A:$A,$X$2,'Import Sheet'!$B:$B,$X48) -> 0 | G48: =-SUMIFS('Import Sheet'!W:W,'Import Sheet'!$A:$A,$X$2,'Import Sheet'!$B:$B,$X48) -> 0 | H48: =-SUMIFS('Import Sheet'!AA:AA,'Import Sheet'!$A:$A,$X$2,'Import Sheet'!$B:$B,$X48) -> 0 | I48: =-SUMIFS('Import Sheet'!CB:CB,'Import Sheet'!$A:$A,$X$2,'Import Sheet'!$B:$B,$X48) -> 0 | J48: =-SUMIFS('Import Sheet'!CC:CC,'Import Sheet'!$A:$A,$X$2,'Import Sheet'!$B:$B,$X48) -> 0 | K48: =-SUMIFS('Import Sheet'!CD:CD,'Import Sheet'!$A:$A,$X$2,'Import Sheet'!$B:$B,$X48) -> 0 | X48: 4.10 REV | Y48: =VLOOKUP(CONCATENATE($X$2," ",X48),'Import Sheet'!$EX:$EX,1,0) -> A3A 4.10 REV
A49: ='Org structure'!A6 -> Vote 5 - [NAME OF VOTE 5] | C49: =SUM(C50:C59) -> 0 | D49: =SUM(D50:D59) -> 0 | E49: 0 | F49: 0 | G49: 0 | H49: 0 | I49: 0 | J49: 0 | K49: 0
A50: ='Org structure'!E47 ->  | C50: =-SUMIFS('Import Sheet'!D:D,'Import Sheet'!$A:$A,$X$2,'Import Sheet'!$B:$B,$X50) -> 0 | D50: =-SUMIFS('Import Sheet'!E:E,'Import Sheet'!$A:$A,$X$2,'Import Sheet'!$B:$B,$X50) -> 0 | E50: =-SUMIFS('Import Sheet'!U:U,'Import Sheet'!$A:$A,$X$2,'Import Sheet'!$B:$B,$X50) -> 0 | F50: =-SUMIFS('Import Sheet'!V:V,'Import Sheet'!$A:$A,$X$2,'Import Sheet'!$B:$B,$X50) -> 0 | G50: =-SUMIFS('Import Sheet'!W:W,'Import Sheet'!$A:$A,$X$2,'Import Sheet'!$B:$B,$X50) -> 0 | H50: =-SUMIFS('Import Sheet'!AA:AA,'Import Sheet'!$A:$A,$X$2,'Import Sheet'!$B:$B,$X50) -> 0 | I50: =-SUMIFS('Import Sheet'!CB:CB,'Import Sheet'!$A:$A,$X$2,'Import Sheet'!$B:$B,$X50) -> 0 | J50: =-SUMIFS('Import Sheet'!CC:CC,'Import Sheet'!$A:$A,$X$2,'Import Sheet'!$B:$B,$X50) -> 0 | K50: =-SUMIFS('Import Sheet'!CD:CD,'Import Sheet'!$A:$A,$X$2,'Import Sheet'!$B:$B,$X50) -> 0 | X50: 5.01 REV | Y50: =VLOOKUP(CONCATENATE($X$2," ",X50),'Import Sheet'!$EX:$EX,1,0) -> A3A 5.01 REV
A51: ='Org structure'!E48 ->  | C51: =-SUMIFS('Import Sheet'!D:D,'Import Sheet'!$A:$A,$X$2,'Import Sheet'!$B:$B,$X51) -> 0 | D51: =-SUMIFS('Import Sheet'!E:E,'Import Sheet'!$A:$A,$X$2,'Import Sheet'!$B:$B,$X51) -> 0 | E51: =-SUMIFS('Import Sheet'!U:U,'Import Sheet'!$A:$A,$X$2,'Import Sheet'!$B:$B,$X51) -> 0 | F51: =-SUMIFS('Import Sheet'!V:V,'Import Sheet'!$A:$A,$X$2,'Import Sheet'!$B:$B,$X51) -> 0 | G51: =-SUMIFS('Import Sheet'!W:W,'Import Sheet'!$A:$A,$X$2,'Import Sheet'!$B:$B,$X51) -> 0 | H51: =-SUMIFS('Import Sheet'!AA:AA,'Import Sheet'!$A:$A,$X$2,'Import Sheet'!$B:$B,$X51) -> 0 | I51: =-SUMIFS('Import Sheet'!CB:CB,'Import Sheet'!$A:$A,$X$2,'Import Sheet'!$B:$B,$X51) -> 0 | J51: =-SUMIFS('Import Sheet'!CC:CC,'Import Sheet'!$A:$A,$X$2,'Import Sheet'!$B:$B,$X51) -> 0 | K51: =-SUMIFS('Import Sheet'!CD:CD,'Import Sheet'!$A:$A,$X$2,'Import Sheet'!$B:$B,$X51) -> 0 | X51: 5.02 REV | Y51: =VLOOKUP(CONCATENATE($X$2," ",X51),'Import Sheet'!$EX:$EX,1,0) -> A3A 5.02 REV
A52: ='Org structure'!E49 ->  | C52: =-SUMIFS('Import Sheet'!D:D,'Import Sheet'!$A:$A,$X$2,'Import Sheet'!$B:$B,$X52) -> 0 | D52: =-SUMIFS('Import Sheet'!E:E,'Import Sheet'!$A:$A,$X$2,'Import Sheet'!$B:$B,$X52) -> 0 | E52: =-SUMIFS('Import Sheet'!U:U,'Import Sheet'!$A:$A,$X$2,'Import Sheet'!$B:$B,$X52) -> 0 | F52: =-SUMIFS('Import Sheet'!V:V,'Import Sheet'!$A:$A,$X$2,'Import Sheet'!$B:$B,$X52) -> 0 | G52: =-SUMIFS('Import Sheet'!W:W,'Import Sheet'!$A:$A,$X$2,'Import Sheet'!$B:$B,$X52) -> 0 | H52: =-SUMIFS('Import Sheet'!AA:AA,'Import Sheet'!$A:$A,$X$2,'Import Sheet'!$B:$B,$X52) -> 0 | I52: =-SUMIFS('Import Sheet'!CB:CB,'Import Sheet'!$A:$A,$X$2,'Import Sheet'!$B:$B,$X52) -> 0 | J52: =-SUMIFS('Import Sheet'!CC:CC,'Import Sheet'!$A:$A,$X$2,'Import Sheet'!$B:$B,$X52) -> 0 | K52: =-SUMIFS('Import Sheet'!CD:CD,'Import Sheet'!$A:$A,$X$2,'Import Sheet'!$B:$B,$X52) -> 0 | X52: 5.03 REV | Y52: =VLOOKUP(CONCATENATE($X$2," ",X52),'Import Sheet'!$EX:$EX,1,0) -> A3A 5.03 REV
A53: ='Org structure'!E50 ->  | C53: =-SUMIFS('Import Sheet'!D:D,'Import Sheet'!$A:$A,$X$2,'Import Sheet'!$B:$B,$X53) -> 0 | D53: =-SUMIFS('Import Sheet'!E:E,'Import Sheet'!$A:$A,$X$2,'Import Sheet'!$B:$B,$X53) -> 0 | E53: =-SUMIFS('Import Sheet'!U:U,'Import Sheet'!$A:$A,$X$2,'Import Sheet'!$B:$B,$X53) -> 0 | F53: =-SUMIFS('Import Sheet'!V:V,'Import Sheet'!$A:$A,$X$2,'Import Sheet'!$B:$B,$X53) -> 0 | G53: =-SUMIFS('Import Sheet'!W:W,'Import Sheet'!$A:$A,$X$2,'Import Sheet'!$B:$B,$X53) -> 0 | H53: =-SUMIFS('Import Sheet'!AA:AA,'Import Sheet'!$A:$A,$X$2,'Import Sheet'!$B:$B,$X53) -> 0 | I53: =-SUMIFS('Import Sheet'!CB:CB,'Import Sheet'!$A:$A,$X$2,'Import Sheet'!$B:$B,$X53) -> 0 | J53: =-SUMIFS('Import Sheet'!CC:CC,'Import Sheet'!$A:$A,$X$2,'Import Sheet'!$B:$B,$X53) -> 0 | K53: =-SUMIFS('Import Sheet'!CD:CD,'Import Sheet'!$A:$A,$X$2,'Import Sheet'!$B:$B,$X53) -> 0 | X53: 5.04 REV | Y53: =VLOOKUP(CONCATENATE($X$2," ",X53),'Import Sheet'!$EX:$EX,1,0) -> A3A 5.04 REV
A54: ='Org structure'!E51 ->  | C54: =-SUMIFS('Import Sheet'!D:D,'Import Sheet'!$A:$A,$X$2,'Import Sheet'!$B:$B,$X54) -> 0 | D54: =-SUMIFS('Import Sheet'!E:E,'Import Sheet'!$A:$A,$X$2,'Import Sheet'!$B:$B,$X54) -> 0 | E54: =-SUMIFS('Import Sheet'!U:U,'Import Sheet'!$A:$A,$X$2,'Import Sheet'!$B:$B,$X54) -> 0 | F54: =-SUMIFS('Import Sheet'!V:V,'Import Sheet'!$A:$A,$X$2,'Import Sheet'!$B:$B,$X54) -> 0 | G54: =-SUMIFS('Import Sheet'!W:W,'Import Sheet'!$A:$A,$X$2,'Import Sheet'!$B:$B,$X54) -> 0 | H54: =-SUMIFS('Import Sheet'!AA:AA,'Import Sheet'!$A:$A,$X$2,'Import Sheet'!$B:$B,$X54) -> 0 | I54: =-SUMIFS('Import Sheet'!CB:CB,'Import Sheet'!$A:$A,$X$2,'Import Sheet'!$B:$B,$X54) -> 0 | J54: =-SUMIFS('Import Sheet'!CC:CC,'Import Sheet'!$A:$A,$X$2,'Import Sheet'!$B:$B,$X54) -> 0 | K54: =-SUMIFS('Import Sheet'!CD:CD,'Import Sheet'!$A:$A,$X$2,'Import Sheet'!$B:$B,$X54) -> 0 | X54: 5.05 REV | Y54: =VLOOKUP(CONCATENATE($X$2," ",X54),'Import Sheet'!$EX:$EX,1,0) -> A3A 5.05 REV
A55: ='Org structure'!E52 ->  | C55: =-SUMIFS('Import Sheet'!D:D,'Import Sheet'!$A:$A,$X$2,'Import Sheet'!$B:$B,$X55) -> 0 | D55: =-SUMIFS('Import Sheet'!E:E,'Import Sheet'!$A:$A,$X$2,'Import Sheet'!$B:$B,$X55) -> 0 | E55: =-SUMIFS('Import Sheet'!U:U,'Import Sheet'!$A:$A,$X$2,'Import Sheet'!$B:$B,$X55) -> 0 | F55: =-SUMIFS('Import Sheet'!V:V,'Import Sheet'!$A:$A,$X$2,'Import Sheet'!$B:$B,$X55) -> 0 | G55: =-SUMIFS('Import Sheet'!W:W,'Import Sheet'!$A:$A,$X$2,'Import Sheet'!$B:$B,$X55) -> 0 | H55: =-SUMIFS('Import Sheet'!AA:AA,'Import Sheet'!$A:$A,$X$2,'Import Sheet'!$B:$B,$X55) -> 0 | I55: =-SUMIFS('Import Sheet'!CB:CB,'Import Sheet'!$A:$A,$X$2,'Import Sheet'!$B:$B,$X55) -> 0 | J55: =-SUMIFS('Import Sheet'!CC:CC,'Import Sheet'!$A:$A,$X$2,'Import Sheet'!$B:$B,$X55) -> 0 | K55: =-SUMIFS('Import Sheet'!CD:CD,'Import Sheet'!$A:$A,$X$2,'Import Sheet'!$B:$B,$X55) -> 0 | X55: 5.06 REV | Y55: =VLOOKUP(CONCATENATE($X$2," ",X55),'Import Sheet'!$EX:$EX,1,0) -> A3A 5.06 REV
A56: ='Org structure'!E53 ->  | C56: =-SUMIFS('Import Sheet'!D:D,'Import Sheet'!$A:$A,$X$2,'Import Sheet'!$B:$B,$X56) -> 0 | D56: =-SUMIFS('Import Sheet'!E:E,'Import Sheet'!$A:$A,$X$2,'Import Sheet'!$B:$B,$X56) -> 0 | E56: =-SUMIFS('Import Sheet'!U:U,'Import Sheet'!$A:$A,$X$2,'Import Sheet'!$B:$B,$X56) -> 0 | F56: =-SUMIFS('Import Sheet'!V:V,'Import Sheet'!$A:$A,$X$2,'Import Sheet'!$B:$B,$X56) -> 0 | G56: =-SUMIFS('Import Sheet'!W:W,'Import Sheet'!$A:$A,$X$2,'Import Sheet'!$B:$B,$X56) -> 0 | H56: =-SUMIFS('Import Sheet'!AA:AA,'Import Sheet'!$A:$A,$X$2,'Import Sheet'!$B:$B,$X56) -> 0 | I56: =-SUMIFS('Import Sheet'!CB:CB,'Import Sheet'!$A:$A,$X$2,'Import Sheet'!$B:$B,$X56) -> 0 | J56: =-SUMIFS('Import Sheet'!CC:CC,'Import Sheet'!$A:$A,$X$2,'Import Sheet'!$B:$B,$X56) -> 0 | K56: =-SUMIFS('Import Sheet'!CD:CD,'Import Sheet'!$A:$A,$X$2,'Import Sheet'!$B:$B,$X56) -> 0 | X56: 5.07 REV | Y56: =VLOOKUP(CONCATENATE($X$2," ",X56),'Import Sheet'!$EX:$EX,1,0) -> A3A 5.07 REV
A57: ='Org structure'!E54 ->  | C57: =-SUMIFS('Import Sheet'!D:D,'Import Sheet'!$A:$A,$X$2,'Import Sheet'!$B:$B,$X57) -> 0 | D57: =-SUMIFS('Import Sheet'!E:E,'Import Sheet'!$A:$A,$X$2,'Import Sheet'!$B:$B,$X57) -> 0 | E57: =-SUMIFS('Import Sheet'!U:U,'Import Sheet'!$A:$A,$X$2,'Import Sheet'!$B:$B,$X57) -> 0 | F57: =-SUMIFS('Import Sheet'!V:V,'Import Sheet'!$A:$A,$X$2,'Import Sheet'!$B:$B,$X57) -> 0 | G57: =-SUMIFS('Import Sheet'!W:W,'Import Sheet'!$A:$A,$X$2,'Import Sheet'!$B:$B,$X57) -> 0 | H57: =-SUMIFS('Import Sheet'!AA:AA,'Import Sheet'!$A:$A,$X$2,'Import Sheet'!$B:$B,$X57) -> 0 | I57: =-SUMIFS('Import Sheet'!CB:CB,'Import Sheet'!$A:$A,$X$2,'Import Sheet'!$B:$B,$X57) -> 0 | J57: =-SUMIFS('Import Sheet'!CC:CC,'Import Sheet'!$A:$A,$X$2,'Import Sheet'!$B:$B,$X57) -> 0 | K57: =-SUMIFS('Import Sheet'!CD:CD,'Import Sheet'!$A:$A,$X$2,'Import Sheet'!$B:$B,$X57) -> 0 | X57: 5.08 REV | Y57: =VLOOKUP(CONCATENATE($X$2," ",X57),'Import Sheet'!$EX:$EX,1,0) -> A3A 5.08 REV
A58: ='Org structure'!E55 ->  | C58: =-SUMIFS('Import Sheet'!D:D,'Import Sheet'!$A:$A,$X$2,'Import Sheet'!$B:$B,$X58) -> 0 | D58: =-SUMIFS('Import Sheet'!E:E,'Import Sheet'!$A:$A,$X$2,'Import Sheet'!$B:$B,$X58) -> 0 | E58: =-SUMIFS('Import Sheet'!U:U,'Import Sheet'!$A:$A,$X$2,'Import Sheet'!$B:$B,$X58) -> 0 | F58: =-SUMIFS('Import Sheet'!V:V,'Import Sheet'!$A:$A,$X$2,'Import Sheet'!$B:$B,$X58) -> 0 | G58: =-SUMIFS('Import Sheet'!W:W,'Import Sheet'!$A:$A,$X$2,'Import Sheet'!$B:$B,$X58) -> 0 | H58: =-SUMIFS('Import Sheet'!AA:AA,'Import Sheet'!$A:$A,$X$2,'Import Sheet'!$B:$B,$X58) -> 0 | I58: =-SUMIFS('Import Sheet'!CB:CB,'Import Sheet'!$A:$A,$X$2,'Import Sheet'!$B:$B,$X58) -> 0 | J58: =-SUMIFS('Import Sheet'!CC:CC,'Import Sheet'!$A:$A,$X$2,'Import Sheet'!$B:$B,$X58) -> 0 | K58: =-SUMIFS('Import Sheet'!CD:CD,'Import Sheet'!$A:$A,$X$2,'Import Sheet'!$B:$B,$X58) -> 0 | X58: 5.09 REV | Y58: =VLOOKUP(CONCATENATE($X$2," ",X58),'Import Sheet'!$EX:$EX,1,0) -> A3A 5.09 REV
A59: ='Org structure'!E56 ->  | C59: =-SUMIFS('Import Sheet'!D:D,'Import Sheet'!$A:$A,$X$2,'Import Sheet'!$B:$B,$X59) -> 0 | D59: =-SUMIFS('Import Sheet'!E:E,'Import Sheet'!$A:$A,$X$2,'Import Sheet'!$B:$B,$X59) -> 0 | E59: =-SUMIFS('Import Sheet'!U:U,'Import Sheet'!$A:$A,$X$2,'Import Sheet'!$B:$B,$X59) -> 0 | F59: =-SUMIFS('Import Sheet'!V:V,'Import Sheet'!$A:$A,$X$2,'Import Sheet'!$B:$B,$X59) -> 0 | G59: =-SUMIFS('Import Sheet'!W:W,'Import Sheet'!$A:$A,$X$2,'Import Sheet'!$B:$B,$X59) -> 0 | H59: =-SUMIFS('Import Sheet'!AA:AA,'Import Sheet'!$A:$A,$X$2,'Import Sheet'!$B:$B,$X59) -> 0 | I59: =-SUMIFS('Import Sheet'!CB:CB,'Import Sheet'!$A:$A,$X$2,'Import Sheet'!$B:$B,$X59) -> 0 | J59: =-SUMIFS('Import Sheet'!CC:CC,'Import Sheet'!$A:$A,$X$2,'Import Sheet'!$B:$B,$X59) -> 0 | K59: =-SUMIFS('Import Sheet'!CD:CD,'Import Sheet'!$A:$A,$X$2,'Import Sheet'!$B:$B,$X59) -> 0 | X59: 5.10 REV | Y59: =VLOOKUP(CONCATENATE($X$2," ",X59),'Import Sheet'!$EX:$EX,1,0) -> A3A 5.10 REV
A60: ='Org structure'!A7 -> Vote 6 - [NAME OF VOTE 6] | C60: =SUM(C61:C70) -> 0 | D60: =SUM(D61:D70) -> 0 | E60: 0 | F60: 0 | G60: 0 | H60: 0 | I60: 0 | J60: 0 | K60: 0
A61: ='Org structure'!E58 ->  | C61: =-SUMIFS('Import Sheet'!D:D,'Import Sheet'!$A:$A,$X$2,'Import Sheet'!$B:$B,$X61) -> 0 | D61: =-SUMIFS('Import Sheet'!E:E,'Import Sheet'!$A:$A,$X$2,'Import Sheet'!$B:$B,$X61) -> 0 | E61: =-SUMIFS('Import Sheet'!U:U,'Import Sheet'!$A:$A,$X$2,'Import Sheet'!$B:$B,$X61) -> 0 | F61: =-SUMIFS('Import Sheet'!V:V,'Import Sheet'!$A:$A,$X$2,'Import Sheet'!$B:$B,$X61) -> 0 | G61: =-SUMIFS('Import Sheet'!W:W,'Import Sheet'!$A:$A,$X$2,'Import Sheet'!$B:$B,$X61) -> 0 | H61: =-SUMIFS('Import Sheet'!AA:AA,'Import Sheet'!$A:$A,$X$2,'Import Sheet'!$B:$B,$X61) -> 0 | I61: =-SUMIFS('Import Sheet'!CB:CB,'Import Sheet'!$A:$A,$X$2,'Import Sheet'!$B:$B,$X61) -> 0 | J61: =-SUMIFS('Import Sheet'!CC:CC,'Import Sheet'!$A:$A,$X$2,'Import Sheet'!$B:$B,$X61) -> 0 | K61: =-SUMIFS('Import Sheet'!CD:CD,'Import Sheet'!$A:$A,$X$2,'Import Sheet'!$B:$B,$X61) -> 0 | X61: 6.01 REV | Y61: =VLOOKUP(CONCATENATE($X$2," ",X61),'Import Sheet'!$EX:$EX,1,0) -> A3A 6.01 REV
A62: ='Org structure'!E59 ->  | C62: =-SUMIFS('Import Sheet'!D:D,'Import Sheet'!$A:$A,$X$2,'Import Sheet'!$B:$B,$X62) -> 0 | D62: =-SUMIFS('Import Sheet'!E:E,'Import Sheet'!$A:$A,$X$2,'Import Sheet'!$B:$B,$X62) -> 0 | E62: =-SUMIFS('Import Sheet'!U:U,'Import Sheet'!$A:$A,$X$2,'Import Sheet'!$B:$B,$X62) -> 0 | F62: =-SUMIFS('Import Sheet'!V:V,'Import Sheet'!$A:$A,$X$2,'Import Sheet'!$B:$B,$X62) -> 0 | G62: =-SUMIFS('Import Sheet'!W:W,'Import Sheet'!$A:$A,$X$2,'Import Sheet'!$B:$B,$X62) -> 0 | H62: =-SUMIFS('Import Sheet'!AA:AA,'Import Sheet'!$A:$A,$X$2,'Import Sheet'!$B:$B,$X62) -> 0 | I62: =-SUMIFS('Import Sheet'!CB:CB,'Import Sheet'!$A:$A,$X$2,'Import Sheet'!$B:$B,$X62) -> 0 | J62: =-SUMIFS('Import Sheet'!CC:CC,'Import Sheet'!$A:$A,$X$2,'Import Sheet'!$B:$B,$X62) -> 0 | K62: =-SUMIFS('Import Sheet'!CD:CD,'Import Sheet'!$A:$A,$X$2,'Import Sheet'!$B:$B,$X62) -> 0 | X62: 6.02 REV | Y62: =VLOOKUP(CONCATENATE($X$2," ",X62),'Import Sheet'!$EX:$EX,1,0) -> A3A 6.02 REV
... 74 more rows

Sheet A4-FinPerf RE
A1: =muni&" - "&Approve4 -> DC8 Z F Mgcawu - Table A4 Budgeted Financial Performance (revenue and expenditure)
A2: =desc -> Description | B2: =head27 -> Ref | C2: =head1b -> 2016/17 | D2: =head1A -> 2017/18 | E2: =Head1 -> 2018/19 | F2: =Head2 -> Current Year 2019/20 | J2: =Head3 -> 2020/21 Medium Term Revenue & Expenditure Framework | M2: =Head4 -> LTFS | Y2: A4 | Z2: Check Import Sheet
A3: R thousand | B3: 1 | C3: =Head5 -> Audited Outcome | D3: =Head5 -> Audited Outcome | E3: =Head5 -> Audited Outcome | F3: =Head6 -> Original Budget | G3: =Head7 -> Adjusted Budget | H3: =Head8 -> Full Year Forecast | I3: =Head5b -> Pre-audit outcome | J3: =Head9 -> Budget Year 2020/21 | K3: =Head10 -> Budget Year +1 2021/22 | L3: =Head11 -> Budget Year +2 2022/23 | M3: =Head12 -> Forecast 2023/24 | N3: =Head13 -> Forecast 2024/25 | O3: =Head14 -> Forecast 2025/26 | P3: =Head15 -> Forecast 2026/27 | Q3: =Head16 -> Forecast 2027/28 | R3: =Head17 -> Forecast 2028/29 | S3: =Head18 -> Forecast 2029/30 | T3: =Head19 -> Forecast 2030/31 | U3: =Head20 -> Forecast 2031/32 | V3: =Head21 -> Forecast 2032/33 | W3: =Head22 -> Forecast 2033/34 | X3: =Head23 -> Forecast 2034/35
A4: Revenue By Source | Y4: 0100
A5: Property rates | B5: 2 | C5: ='SA1'!C9 -> 0 | D5: ='SA1'!D9 -> 0 | E5: ='SA1'!E9 -> 0 | F5: ='SA1'!F9 -> 0 | G5: ='SA1'!G9 -> 0 | H5: ='SA1'!H9 -> 0 | I5: ='SA1'!I9 -> 0 | J5: ='SA1'!J9 -> 0 | K5: ='SA1'!K9 -> 0 | L5: ='SA1'!L9 -> 0 | Y5: 0200 | Z5: =VLOOKUP(CONCATENATE($Y$2," ",Y5),'Import Sheet'!$EX:$EX,1,0) -> A4 0200 | AA5: Link from SA1 0299, Link to A1
A6: Service charges - electricity revenue | B6: 2 | C6: ='SA1'!C15 -> 0 | D6: ='SA1'!D15 -> 0 | E6: ='SA1'!E15 -> 0 | F6: ='SA1'!F15 -> 0 | G6: ='SA1'!G15 -> 0 | H6: ='SA1'!H15 -> 0 | I6: ='SA1'!I15 -> 0 | J6: ='SA1'!J15 -> 0 | K6: ='SA1'!K15 -> 0 | L6: ='SA1'!L15 -> 0 | Y6: 0300 | Z6: =VLOOKUP(CONCATENATE($Y$2," ",Y6),'Import Sheet'!$EX:$EX,1,0) -> A4 0300 | AA6: Link from SA1 0399, Link to A1(Sum)
A7: Service charges - water revenue | B7: 2 | C7: ='SA1'!C21 -> 0 | D7: ='SA1'!D21 -> 0 | E7: ='SA1'!E21 -> 0 | F7: ='SA1'!F21 -> 0 | G7: ='SA1'!G21 -> 0 | H7: ='SA1'!H21 -> 0 | I7: ='SA1'!I21 -> 0 | J7: ='SA1'!J21 -> 0 | K7: ='SA1'!K21 -> 0 | L7: ='SA1'!L21 -> 0 | Y7: 0400 | Z7: =VLOOKUP(CONCATENATE($Y$2," ",Y7),'Import Sheet'!$EX:$EX,1,0) -> A4 0400 | AA7: Link from SA1 0499, Link to A1(Sum)
A8: Service charges - sanitation revenue | B8: 2 | C8: ='SA1'!C27 -> 0 | D8: ='SA1'!D27 -> 0 | E8: ='SA1'!E27 -> 0 | F8: ='SA1'!F27 -> 0 | G8: ='SA1'!G27 -> 0 | H8: ='SA1'!H27 -> 0 | I8: ='SA1'!I27 -> 0 | J8: ='SA1'!J27 -> 0 | K8: ='SA1'!K27 -> 0 | L8: ='SA1'!L27 -> 0 | Y8: 0500 | Z8: =VLOOKUP(CONCATENATE($Y$2," ",Y8),'Import Sheet'!$EX:$EX,1,0) -> A4 0500 | AA8: Link from SA1 0599, Link to A1(Sum)
A9: Service charges - refuse revenue | B9: 2 | C9: ='SA1'!C34 -> 0 | D9: ='SA1'!D34 -> 0 | E9: ='SA1'!E34 -> 0 | F9: ='SA1'!F34 -> 0 | G9: ='SA1'!G34 -> 0 | H9: ='SA1'!H34 -> 0 | I9: ='SA1'!I34 -> 0 | J9: ='SA1'!J34 -> 0 | K9: ='SA1'!K34 -> 0 | L9: ='SA1'!L34 -> 0 | Y9: 0600 | Z9: =VLOOKUP(CONCATENATE($Y$2," ",Y9),'Import Sheet'!$EX:$EX,1,0) -> A4 0600 | AA9: Link from SA1 0699
A10: Service charges - other | C10: =-SUMIFS('Import Sheet'!D:D,'Import Sheet'!$A:$A,$Y$2,'Import Sheet'!$B:$B,$Y10) -> 0 | D10: =-SUMIFS('Import Sheet'!E:E,'Import Sheet'!$A:$A,$Y$2,'Import Sheet'!$B:$B,$Y10) -> 0 | E10: =-SUMIFS('Import Sheet'!U:U,'Import Sheet'!$A:$A,$Y$2,'Import Sheet'!$B:$B,$Y10) -> 0 | F10: =-SUMIFS('Import Sheet'!V:V,'Import Sheet'!$A:$A,$Y$2,'Import Sheet'!$B:$B,$Y10) -> 0 | G10: =-SUMIFS('Import Sheet'!W:W,'Import Sheet'!$A:$A,$Y$2,'Import Sheet'!$B:$B,$Y10) -> 0 | H10: =-SUMIFS('Import Sheet'!AA:AA,'Import Sheet'!$A:$A,$Y$2,'Import Sheet'!$B:$B,$Y10) -> 0 | I10: =-SUMIFS('Import Sheet'!BO:BO,'Import Sheet'!$A:$A,$Y$2,'Import Sheet'!$B:$B,$Y10) -> 0 | J10: =-SUMIFS('Import Sheet'!CB:CB,'Import Sheet'!$A:$A,$Y$2,'Import Sheet'!$B:$B,$Y10) -> 0 | K10: =-SUMIFS('Import Sheet'!CC:CC,'Import Sheet'!$A:$A,$Y$2,'Import Sheet'!$B:$B,$Y10) -> 0 | L10: =-SUMIFS('Import Sheet'!CD:CD,'Import Sheet'!$A:$A,$Y$2,'Import Sheet'!$B:$B,$Y10) -> 0 | Y10: 0700 | Z10: =VLOOKUP(CONCATENATE($Y$2," ",Y10),'Import Sheet'!$EX:$EX,1,0) -> A4 0700 | AA10: Link to A1(Sum)
A11: Rental of facilities and equipment | C11: =-SUMIFS('Import Sheet'!D:D,'Import Sheet'!$A:$A,$Y$2,'Import Sheet'!$B:$B,$Y11) -> 0 | D11: =-SUMIFS('Import Sheet'!E:E,'Import Sheet'!$A:$A,$Y$2,'Import Sheet'!$B:$B,$Y11) -> 7119.49 | E11: =-SUMIFS('Import Sheet'!U:U,'Import Sheet'!$A:$A,$Y$2,'Import Sheet'!$B:$B,$Y11) -> 6928.37 | F11: =-SUMIFS('Import Sheet'!V:V,'Import Sheet'!$A:$A,$Y$2,'Import Sheet'!$B:$B,$Y11) -> 10000 | G11: =-SUMIFS('Import Sheet'!W:W,'Import Sheet'!$A:$A,$Y$2,'Import Sheet'!$B:$B,$Y11) -> 10000 | H11: =-SUMIFS('Import Sheet'!AA:AA,'Import Sheet'!$A:$A,$Y$2,'Import Sheet'!$B:$B,$Y11) -> 10000 | I11: =-SUMIFS('Import Sheet'!BO:BO,'Import Sheet'!$A:$A,$Y$2,'Import Sheet'!$B:$B,$Y11) -> 2552.56 | J11: =-SUMIFS('Import Sheet'!CB:CB,'Import Sheet'!$A:$A,$Y$2,'Import Sheet'!$B:$B,$Y11) -> 10000 | K11: =-SUMIFS('Import Sheet'!CC:CC,'Import Sheet'!$A:$A,$Y$2,'Import Sheet'!$B:$B,$Y11) -> 10000 | L11: =-SUMIFS('Import Sheet'!CD:CD,'Import Sheet'!$A:$A,$Y$2,'Import Sheet'!$B:$B,$Y11) -> 10000 | Y11: 0800 | Z11: =VLOOKUP(CONCATENATE($Y$2," ",Y11),'Import Sheet'!$EX:$EX,1,0) -> A4 0800 | AA11: Link to A1(Sum)
A12: Interest earned - external investments | C12: =-SUMIFS('Import Sheet'!D:D,'Import Sheet'!$A:$A,$Y$2,'Import Sheet'!$B:$B,$Y12) -> 0 | D12: =-SUMIFS('Import Sheet'!E:E,'Import Sheet'!$A:$A,$Y$2,'Import Sheet'!$B:$B,$Y12) -> 605248.57 | E12: =-SUMIFS('Import Sheet'!U:U,'Import Sheet'!$A:$A,$Y$2,'Import Sheet'!$B:$B,$Y12) -> 666872.71 | F12: =-SUMIFS('Import Sheet'!V:V,'Import Sheet'!$A:$A,$Y$2,'Import Sheet'!$B:$B,$Y12) -> 800000 | G12: =-SUMIFS('Import Sheet'!W:W,'Import Sheet'!$A:$A,$Y$2,'Import Sheet'!$B:$B,$Y12) -> 850000 | H12: =-SUMIFS('Import Sheet'!AA:AA,'Import Sheet'!$A:$A,$Y$2,'Import Sheet'!$B:$B,$Y12) -> 850000 | I12: =-SUMIFS('Import Sheet'!BO:BO,'Import Sheet'!$A:$A,$Y$2,'Import Sheet'!$B:$B,$Y12) -> 446598.03 | J12: =-SUMIFS('Import Sheet'!CB:CB,'Import Sheet'!$A:$A,$Y$2,'Import Sheet'!$B:$B,$Y12) -> 900000 | K12: =-SUMIFS('Import Sheet'!CC:CC,'Import Sheet'!$A:$A,$Y$2,'Import Sheet'!$B:$B,$Y12) -> 1000000 | L12: =-SUMIFS('Import Sheet'!CD:CD,'Import Sheet'!$A:$A,$Y$2,'Import Sheet'!$B:$B,$Y12) -> 1050000 | Y12: 0900 | Z12: =VLOOKUP(CONCATENATE($Y$2," ",Y12),'Import Sheet'!$EX:$EX,1,0) -> A4 0900 | AA12: Link to A1
A13: Interest earned - outstanding debtors | C13: =-SUMIFS('Import Sheet'!D:D,'Import Sheet'!$A:$A,$Y$2,'Import Sheet'!$B:$B,$Y13) -> 0 | D13: =-SUMIFS('Import Sheet'!E:E,'Import Sheet'!$A:$A,$Y$2,'Import Sheet'!$B:$B,$Y13) -> 2738.98 | E13: =-SUMIFS('Import Sheet'!U:U,'Import Sheet'!$A:$A,$Y$2,'Import Sheet'!$B:$B,$Y13) -> 2761.14 | F13: =-SUMIFS('Import Sheet'!V:V,'Import Sheet'!$A:$A,$Y$2,'Import Sheet'!$B:$B,$Y13) -> 0 | G13: =-SUMIFS('Import Sheet'!W:W,'Import Sheet'!$A:$A,$Y$2,'Import Sheet'!$B:$B,$Y13) -> 0 | H13: =-SUMIFS('Import Sheet'!AA:AA,'Import Sheet'!$A:$A,$Y$2,'Import Sheet'!$B:$B,$Y13) -> 0 | I13: =-SUMIFS('Import Sheet'!BO:BO,'Import Sheet'!$A:$A,$Y$2,'Import Sheet'!$B:$B,$Y13) -> 0 | J13: =-SUMIFS('Import Sheet'!CB:CB,'Import Sheet'!$A:$A,$Y$2,'Import Sheet'!$B:$B,$Y13) -> 0 | K13: =-SUMIFS('Import Sheet'!CC:CC,'Import Sheet'!$A:$A,$Y$2,'Import Sheet'!$B:$B,$Y13) -> 0 | L13: =-SUMIFS('Import Sheet'!CD:CD,'Import Sheet'!$A:$A,$Y$2,'Import Sheet'!$B:$B,$Y13) -> 0 | Y13: 1000 | Z13: =VLOOKUP(CONCATENATE($Y$2," ",Y13),'Import Sheet'!$EX:$EX,1,0) -> A4 1000 | AA13: Link to A1(Sum)
A14: Dividends received | C14: =-SUMIFS('Import Sheet'!D:D,'Import Sheet'!$A:$A,$Y$2,'Import Sheet'!$B:$B,$Y14) -> 0 | D14: =-SUMIFS('Import Sheet'!E:E,'Import Sheet'!$A:$A,$Y$2,'Import Sheet'!$B:$B,$Y14) -> 0 | E14: =-SUMIFS('Import Sheet'!U:U,'Import Sheet'!$A:$A,$Y$2,'Import Sheet'!$B:$B,$Y14) -> 0 | F14: =-SUMIFS('Import Sheet'!V:V,'Import Sheet'!$A:$A,$Y$2,'Import Sheet'!$B:$B,$Y14) -> 0 | G14: =-SUMIFS('Import Sheet'!W:W,'Import Sheet'!$A:$A,$Y$2,'Import Sheet'!$B:$B,$Y14) -> 0 | H14: =-SUMIFS('Import Sheet'!AA:AA,'Import Sheet'!$A:$A,$Y$2,'Import Sheet'!$B:$B,$Y14) -> 0 | I14: =-SUMIFS('Import Sheet'!BO:BO,'Import Sheet'!$A:$A,$Y$2,'Import Sheet'!$B:$B,$Y14) -> 0 | J14: =-SUMIFS('Import Sheet'!CB:CB,'Import Sheet'!$A:$A,$Y$2,'Import Sheet'!$B:$B,$Y14) -> 0 | K14: =-SUMIFS('Import Sheet'!CC:CC,'Import Sheet'!$A:$A,$Y$2,'Import Sheet'!$B:$B,$Y14) -> 0 | L14: =-SUMIFS('Import Sheet'!CD:CD,'Import Sheet'!$A:$A,$Y$2,'Import Sheet'!$B:$B,$Y14) -> 0 | Y14: 1100 | Z14: =VLOOKUP(CONCATENATE($Y$2," ",Y14),'Import Sheet'!$EX:$EX,1,0) -> A4 1100 | AA14: Link to A1(Sum)
A15: Fines, penalties and forfeits | C15: =-SUMIFS('Import Sheet'!D:D,'Import Sheet'!$A:$A,$Y$2,'Import Sheet'!$B:$B,$Y15) -> 0 | D15: =-SUMIFS('Import Sheet'!E:E,'Import Sheet'!$A:$A,$Y$2,'Import Sheet'!$B:$B,$Y15) -> 0 | E15: =-SUMIFS('Import Sheet'!U:U,'Import Sheet'!$A:$A,$Y$2,'Import Sheet'!$B:$B,$Y15) -> 0 | F15: =-SUMIFS('Import Sheet'!V:V,'Import Sheet'!$A:$A,$Y$2,'Import Sheet'!$B:$B,$Y15) -> 0 | G15: =-SUMIFS('Import Sheet'!W:W,'Import Sheet'!$A:$A,$Y$2,'Import Sheet'!$B:$B,$Y15) -> 0 | H15: =-SUMIFS('Import Sheet'!AA:AA,'Import Sheet'!$A:$A,$Y$2,'Import Sheet'!$B:$B,$Y15) -> 0 | I15: =-SUMIFS('Import Sheet'!BO:BO,'Import Sheet'!$A:$A,$Y$2,'Import Sheet'!$B:$B,$Y15) -> 0 | J15: =-SUMIFS('Import Sheet'!CB:CB,'Import Sheet'!$A:$A,$Y$2,'Import Sheet'!$B:$B,$Y15) -> 0 | K15: =-SUMIFS('Import Sheet'!CC:CC,'Import Sheet'!$A:$A,$Y$2,'Import Sheet'!$B:$B,$Y15) -> 0 | L15: =-SUMIFS('Import Sheet'!CD:CD,'Import Sheet'!$A:$A,$Y$2,'Import Sheet'!$B:$B,$Y15) -> 0 | Y15: 1200 | Z15: =VLOOKUP(CONCATENATE($Y$2," ",Y15),'Import Sheet'!$EX:$EX,1,0) -> A4 1200 | AA15: Link to A1(Sum)
A16: Licences and permits | C16: =-SUMIFS('Import Sheet'!D:D,'Import Sheet'!$A:$A,$Y$2,'Import Sheet'!$B:$B,$Y16) -> 0 | D16: =-SUMIFS('Import Sheet'!E:E,'Import Sheet'!$A:$A,$Y$2,'Import Sheet'!$B:$B,$Y16) -> 0 | E16: =-SUMIFS('Import Sheet'!U:U,'Import Sheet'!$A:$A,$Y$2,'Import Sheet'!$B:$B,$Y16) -> 0 | F16: =-SUMIFS('Import Sheet'!V:V,'Import Sheet'!$A:$A,$Y$2,'Import Sheet'!$B:$B,$Y16) -> 0 | G16: =-SUMIFS('Import Sheet'!W:W,'Import Sheet'!$A:$A,$Y$2,'Import Sheet'!$B:$B,$Y16) -> 0 | H16: =-SUMIFS('Import Sheet'!AA:AA,'Import Sheet'!$A:$A,$Y$2,'Import Sheet'!$B:$B,$Y16) -> 0 | I16: =-SUMIFS('Import Sheet'!BO:BO,'Import Sheet'!$A:$A,$Y$2,'Import Sheet'!$B:$B,$Y16) -> 0 | J16: =-SUMIFS('Import Sheet'!CB:CB,'Import Sheet'!$A:$A,$Y$2,'Import Sheet'!$B:$B,$Y16) -> 0 | K16: =-SUMIFS('Import Sheet'!CC:CC,'Import Sheet'!$A:$A,$Y$2,'Import Sheet'!$B:$B,$Y16) -> 0 | L16: =-SUMIFS('Import Sheet'!CD:CD,'Import Sheet'!$A:$A,$Y$2,'Import Sheet'!$B:$B,$Y16) -> 0 | Y16: 1300 | Z16: =VLOOKUP(CONCATENATE($Y$2," ",Y16),'Import Sheet'!$EX:$EX,1,0) -> A4 1300 | AA16: Link to A1(Sum)
A17: Agency services | C17: =-SUMIFS('Import Sheet'!D:D,'Import Sheet'!$A:$A,$Y$2,'Import Sheet'!$B:$B,$Y17) -> 0 | D17: =-SUMIFS('Import Sheet'!E:E,'Import Sheet'!$A:$A,$Y$2,'Import Sheet'!$B:$B,$Y17) -> 0 | E17: =-SUMIFS('Import Sheet'!U:U,'Import Sheet'!$A:$A,$Y$2,'Import Sheet'!$B:$B,$Y17) -> 0 | F17: =-SUMIFS('Import Sheet'!V:V,'Import Sheet'!$A:$A,$Y$2,'Import Sheet'!$B:$B,$Y17) -> 0 | G17: =-SUMIFS('Import Sheet'!W:W,'Import Sheet'!$A:$A,$Y$2,'Import Sheet'!$B:$B,$Y17) -> 0 | H17: =-SUMIFS('Import Sheet'!AA:AA,'Import Sheet'!$A:$A,$Y$2,'Import Sheet'!$B:$B,$Y17) -> 0 | I17: =-SUMIFS('Import Sheet'!BO:BO,'Import Sheet'!$A:$A,$Y$2,'Import Sheet'!$B:$B,$Y17) -> 0 | J17: =-SUMIFS('Import Sheet'!CB:CB,'Import Sheet'!$A:$A,$Y$2,'Import Sheet'!$B:$B,$Y17) -> 0 | K17: =-SUMIFS('Import Sheet'!CC:CC,'Import Sheet'!$A:$A,$Y$2,'Import Sheet'!$B:$B,$Y17) -> 0 | L17: =-SUMIFS('Import Sheet'!CD:CD,'Import Sheet'!$A:$A,$Y$2,'Import Sheet'!$B:$B,$Y17) -> 0 | Y17: 1400 | Z17: =VLOOKUP(CONCATENATE($Y$2," ",Y17),'Import Sheet'!$EX:$EX,1,0) -> A4 1400 | AA17: Link to A1(Sum)
A18: Transfers and subsidies | C18: =-SUMIFS('Import Sheet'!D:D,'Import Sheet'!$A:$A,$Y$2,'Import Sheet'!$B:$B,$Y18) -> 0 | D18: =-SUMIFS('Import Sheet'!E:E,'Import Sheet'!$A:$A,$Y$2,'Import Sheet'!$B:$B,$Y18) -> 62995706.21 | E18: =-SUMIFS('Import Sheet'!U:U,'Import Sheet'!$A:$A,$Y$2,'Import Sheet'!$B:$B,$Y18) -> 76931676.95 | F18: =-SUMIFS('Import Sheet'!V:V,'Import Sheet'!$A:$A,$Y$2,'Import Sheet'!$B:$B,$Y18) -> 72707000 | G18: =-SUMIFS('Import Sheet'!W:W,'Import Sheet'!$A:$A,$Y$2,'Import Sheet'!$B:$B,$Y18) -> 77486289 | H18: =-SUMIFS('Import Sheet'!AA:AA,'Import Sheet'!$A:$A,$Y$2,'Import Sheet'!$B:$B,$Y18) -> 77486289 | I18: =-SUMIFS('Import Sheet'!BO:BO,'Import Sheet'!$A:$A,$Y$2,'Import Sheet'!$B:$B,$Y18) -> 75083743.53 | J18: =-SUMIFS('Import Sheet'!CB:CB,'Import Sheet'!$A:$A,$Y$2,'Import Sheet'!$B:$B,$Y18) -> 78509000 | K18: =-SUMIFS('Import Sheet'!CC:CC,'Import Sheet'!$A:$A,$Y$2,'Import Sheet'!$B:$B,$Y18) -> 79951000 | L18: =-SUMIFS('Import Sheet'!CD:CD,'Import Sheet'!$A:$A,$Y$2,'Import Sheet'!$B:$B,$Y18) -> 82616000 | Y18: 1500 | Z18: =VLOOKUP(CONCATENATE($Y$2," ",Y18),'Import Sheet'!$EX:$EX,1,0) -> A4 1500 | AA18: Link to A1
A19: Other revenue | B19: 2 | C19: ='SA1'!C46 -> 0 | D19: ='SA1'!D46 -> 515874.45 | E19: ='SA1'!E46 -> 591141.55 | F19: ='SA1'!F46 -> 1500000 | G19: ='SA1'!G46 -> 670000 | H19: ='SA1'!H46 -> 670000 | I19: ='SA1'!I46 -> 549785.88 | J19: ='SA1'!J46 -> 1675000 | K19: ='SA1'!K46 -> 1680000 | L19: ='SA1'!L46 -> 1685000 | Y19: 1600 | Z19: =VLOOKUP(CONCATENATE($Y$2," ",Y19),'Import Sheet'!$EX:$EX,1,0) -> A4 1600 | AA19: Link from SA1 1699, Link to A1(Sum)
A20: Gains | C20: =-SUMIFS('Import Sheet'!D:D,'Import Sheet'!$A:$A,$Y$2,'Import Sheet'!$B:$B,$Y20) -> 0 | D20: =-SUMIFS('Import Sheet'!E:E,'Import Sheet'!$A:$A,$Y$2,'Import Sheet'!$B:$B,$Y20) -> 24639.96 | E20: =-SUMIFS('Import Sheet'!U:U,'Import Sheet'!$A:$A,$Y$2,'Import Sheet'!$B:$B,$Y20) -> 45013.92 | F20: =-SUMIFS('Import Sheet'!V:V,'Import Sheet'!$A:$A,$Y$2,'Import Sheet'!$B:$B,$Y20) -> 0 | G20: =-SUMIFS('Import Sheet'!W:W,'Import Sheet'!$A:$A,$Y$2,'Import Sheet'!$B:$B,$Y20) -> 656000 | H20: =-SUMIFS('Import Sheet'!AA:AA,'Import Sheet'!$A:$A,$Y$2,'Import Sheet'!$B:$B,$Y20) -> 656000 | I20: =-SUMIFS('Import Sheet'!BO:BO,'Import Sheet'!$A:$A,$Y$2,'Import Sheet'!$B:$B,$Y20) -> 0 | J20: =-SUMIFS('Import Sheet'!CB:CB,'Import Sheet'!$A:$A,$Y$2,'Import Sheet'!$B:$B,$Y20) -> 656000 | K20: =-SUMIFS('Import Sheet'!CC:CC,'Import Sheet'!$A:$A,$Y$2,'Import Sheet'!$B:$B,$Y20) -> 381000 | L20: =-SUMIFS('Import Sheet'!CD:CD,'Import Sheet'!$A:$A,$Y$2,'Import Sheet'!$B:$B,$Y20) -> 381000 | Y20: 1700 | Z20: =VLOOKUP(CONCATENATE($Y$2," ",Y20),'Import Sheet'!$EX:$EX,1,0) -> A4 1700 | AA20: Link to A1(Sum)
A21: Total Revenue (excluding capital transfers and contributions) | C21: =SUM(C5:C20) -> 0 | D21: 64151327.66 | E21: 78244394.64 | F21: 75017000 | G21: 79672289 | H21: 79672289 | I21: 76082680 | J21: 81750000 | K21: 83022000 | L21: 85742000 | M21: =SUM(M5:M20) -> 0 | N21: 0 | O21: 0 | P21: 0 | Q21: 0 | R21: 0 | S21: 0 | T21: 0 | U21: 0 | V21: 0 | W21: 0 | X21: 0 | Y21: 1800
A23: Expenditure By Type | Y23: 1900
A24: Employee related costs | B24: 2 | C24: ='SA1'!C64 -> 0 | D24: ='SA1'!D64 -> 46806173.35 | E24: ='SA1'!E64 -> 44657964.44 | F24: ='SA1'!F64 -> 55533780 | G24: ='SA1'!G64 -> 51137882 | H24: ='SA1'!H64 -> 51137882 | I24: ='SA1'!I64 -> 47311799.38 | J24: ='SA1'!J64 -> 53633322 | K24: ='SA1'!K64 -> 56666708 | L24: ='SA1'!L64 -> 59858712 | Y24: 2000 | Z24: =VLOOKUP(CONCATENATE($Y$2," ",Y24),'Import Sheet'!$EX:$EX,1,0) -> A4 2000 | AA24: Link from SA1 2099, Link to A1
A25: Remuneration of councillors | C25: =SUMIFS('Import Sheet'!D:D,'Import Sheet'!$A:$A,$Y$2,'Import Sheet'!$B:$B,$Y25) -> 0 | D25: =SUMIFS('Import Sheet'!E:E,'Import Sheet'!$A:$A,$Y$2,'Import Sheet'!$B:$B,$Y25) -> 3728040.65 | E25: =SUMIFS('Import Sheet'!U:U,'Import Sheet'!$A:$A,$Y$2,'Import Sheet'!$B:$B,$Y25) -> 3676528.36 | F25: =SUMIFS('Import Sheet'!V:V,'Import Sheet'!$A:$A,$Y$2,'Import Sheet'!$B:$B,$Y25) -> 4392212 | G25: =SUMIFS('Import Sheet'!W:W,'Import Sheet'!$A:$A,$Y$2,'Import Sheet'!$B:$B,$Y25) -> 3714820 | H25: =SUMIFS('Import Sheet'!AA:AA,'Import Sheet'!$A:$A,$Y$2,'Import Sheet'!$B:$B,$Y25) -> 3714820 | I25: =SUMIFS('Import Sheet'!BO:BO,'Import Sheet'!$A:$A,$Y$2,'Import Sheet'!$B:$B,$Y25) -> 3382727.28 | J25: =SUMIFS('Import Sheet'!CB:CB,'Import Sheet'!$A:$A,$Y$2,'Import Sheet'!$B:$B,$Y25) -> 3808384 | K25: =SUMIFS('Import Sheet'!CC:CC,'Import Sheet'!$A:$A,$Y$2,'Import Sheet'!$B:$B,$Y25) -> 4036886 | L25: =SUMIFS('Import Sheet'!CD:CD,'Import Sheet'!$A:$A,$Y$2,'Import Sheet'!$B:$B,$Y25) -> 4279098 | Y25: 2100 | Z25: =VLOOKUP(CONCATENATE($Y$2," ",Y25),'Import Sheet'!$EX:$EX,1,0) -> A4 2100 | AA25: Link to A1
A26: Debt impairment | B26: 3 | C26: =SUMIFS('Import Sheet'!D:D,'Import Sheet'!$A:$A,$Y$2,'Import Sheet'!$B:$B,$Y26) -> 0 | D26: =SUMIFS('Import Sheet'!E:E,'Import Sheet'!$A:$A,$Y$2,'Import Sheet'!$B:$B,$Y26) -> -204255.28 | E26: =SUMIFS('Import Sheet'!U:U,'Import Sheet'!$A:$A,$Y$2,'Import Sheet'!$B:$B,$Y26) -> 119263.03 | F26: =SUMIFS('Import Sheet'!V:V,'Import Sheet'!$A:$A,$Y$2,'Import Sheet'!$B:$B,$Y26) -> 0 | G26: =SUMIFS('Import Sheet'!W:W,'Import Sheet'!$A:$A,$Y$2,'Import Sheet'!$B:$B,$Y26) -> 25000 | H26: =SUMIFS('Import Sheet'!AA:AA,'Import Sheet'!$A:$A,$Y$2,'Import Sheet'!$B:$B,$Y26) -> 25000 | I26: =SUMIFS('Import Sheet'!BO:BO,'Import Sheet'!$A:$A,$Y$2,'Import Sheet'!$B:$B,$Y26) -> 0 | J26: =SUMIFS('Import Sheet'!CB:CB,'Import Sheet'!$A:$A,$Y$2,'Import Sheet'!$B:$B,$Y26) -> 25000 | K26: =SUMIFS('Import Sheet'!CC:CC,'Import Sheet'!$A:$A,$Y$2,'Import Sheet'!$B:$B,$Y26) -> 20000 | L26: =SUMIFS('Import Sheet'!CD:CD,'Import Sheet'!$A:$A,$Y$2,'Import Sheet'!$B:$B,$Y26) -> 10000 | Y26: 2200 | Z26: =VLOOKUP(CONCATENATE($Y$2," ",Y26),'Import Sheet'!$EX:$EX,1,0) -> A4 2200 | AA26: Link to A1(Sum)
A27: Depreciation & asset impairment | B27: 2 | C27: ='SA1'!C80 -> 0 | D27: ='SA1'!D80 -> 550129.69 | E27: ='SA1'!E80 -> 834436.78 | F27: ='SA1'!F80 -> 594640 | G27: ='SA1'!G80 -> 594640 | H27: ='SA1'!H80 -> 594640 | I27: ='SA1'!I80 -> 0 | J27: ='SA1'!J80 -> 594640 | K27: ='SA1'!K80 -> 594640 | L27: ='SA1'!L80 -> 594640 | Y27: 2300 | Z27: =VLOOKUP(CONCATENATE($Y$2," ",Y27),'Import Sheet'!$EX:$EX,1,0) -> A4 2300 | AA27: Link from SA1 2399, Link to A1
A28: Finance charges | C28: =SUMIFS('Import Sheet'!D:D,'Import Sheet'!$A:$A,$Y$2,'Import Sheet'!$B:$B,$Y28) -> 0 | D28: =SUMIFS('Import Sheet'!E:E,'Import Sheet'!$A:$A,$Y$2,'Import Sheet'!$B:$B,$Y28) -> 0 | E28: =SUMIFS('Import Sheet'!U:U,'Import Sheet'!$A:$A,$Y$2,'Import Sheet'!$B:$B,$Y28) -> 90857.72 | F28: =SUMIFS('Import Sheet'!V:V,'Import Sheet'!$A:$A,$Y$2,'Import Sheet'!$B:$B,$Y28) -> 0 | G28: =SUMIFS('Import Sheet'!W:W,'Import Sheet'!$A:$A,$Y$2,'Import Sheet'!$B:$B,$Y28) -> 100000 | H28: =SUMIFS('Import Sheet'!AA:AA,'Import Sheet'!$A:$A,$Y$2,'Import Sheet'!$B:$B,$Y28) -> 100000 | I28: =SUMIFS('Import Sheet'!BO:BO,'Import Sheet'!$A:$A,$Y$2,'Import Sheet'!$B:$B,$Y28) -> 1915.62 | J28: =SUMIFS('Import Sheet'!CB:CB,'Import Sheet'!$A:$A,$Y$2,'Import Sheet'!$B:$B,$Y28) -> 0 | K28: =SUMIFS('Import Sheet'!CC:CC,'Import Sheet'!$A:$A,$Y$2,'Import Sheet'!$B:$B,$Y28) -> 0 | L28: =SUMIFS('Import Sheet'!CD:CD,'Import Sheet'!$A:$A,$Y$2,'Import Sheet'!$B:$B,$Y28) -> 0 | Y28: 2400 | Z28: =VLOOKUP(CONCATENATE($Y$2," ",Y28),'Import Sheet'!$EX:$EX,1,0) -> A4 2400 | AA28: Link to A1
A29: Bulk purchases | B29: 2 | C29: ='SA1'!C85 -> 0 | D29: ='SA1'!D85 -> 0 | E29: ='SA1'!E85 -> 0 | F29: ='SA1'!F85 -> 0 | G29: ='SA1'!G85 -> 0 | H29: ='SA1'!H85 -> 0 | I29: ='SA1'!I85 -> 0 | J29: ='SA1'!J85 -> 0 | K29: ='SA1'!K85 -> 0 | L29: ='SA1'!L85 -> 0 | Y29: 2500 | Z29: =VLOOKUP(CONCATENATE($Y$2," ",Y29),'Import Sheet'!$EX:$EX,1,0) -> A4 2500 | AA29: Link from SA1 2599, Link to A1(Sum)
A30: Other materials | B30: 8 | C30: =SUMIFS('Import Sheet'!D:D,'Import Sheet'!$A:$A,$Y$2,'Import Sheet'!$B:$B,$Y30) -> 0 | D30: =SUMIFS('Import Sheet'!E:E,'Import Sheet'!$A:$A,$Y$2,'Import Sheet'!$B:$B,$Y30) -> 294592.35 | E30: =SUMIFS('Import Sheet'!U:U,'Import Sheet'!$A:$A,$Y$2,'Import Sheet'!$B:$B,$Y30) -> 293338.55 | F30: =SUMIFS('Import Sheet'!V:V,'Import Sheet'!$A:$A,$Y$2,'Import Sheet'!$B:$B,$Y30) -> 324775 | G30: =SUMIFS('Import Sheet'!W:W,'Import Sheet'!$A:$A,$Y$2,'Import Sheet'!$B:$B,$Y30) -> 688222 | H30: =SUMIFS('Import Sheet'!AA:AA,'Import Sheet'!$A:$A,$Y$2,'Import Sheet'!$B:$B,$Y30) -> 688222 | I30: =SUMIFS('Import Sheet'!BO:BO,'Import Sheet'!$A:$A,$Y$2,'Import Sheet'!$B:$B,$Y30) -> 248600.74 | J30: =SUMIFS('Import Sheet'!CB:CB,'Import Sheet'!$A:$A,$Y$2,'Import Sheet'!$B:$B,$Y30) -> 785043 | K30: =SUMIFS('Import Sheet'!CC:CC,'Import Sheet'!$A:$A,$Y$2,'Import Sheet'!$B:$B,$Y30) -> 570851 | L30: =SUMIFS('Import Sheet'!CD:CD,'Import Sheet'!$A:$A,$Y$2,'Import Sheet'!$B:$B,$Y30) -> 574252 | Y30: 2600 | Z30: =VLOOKUP(CONCATENATE($Y$2," ",Y30),'Import Sheet'!$EX:$EX,1,0) -> A4 2600 | AA30: Link to A1(Sum)
A31: Contracted services | C31: ='SA1'!C102 -> 0 | D31: ='SA1'!D102 -> 3791325.17 | E31: ='SA1'!E102 -> 6268813.21 | F31: ='SA1'!F102 -> 4462285 | G31: ='SA1'!G102 -> 6480972 | H31: ='SA1'!H102 -> 6480972 | I31: ='SA1'!I102 -> 5083359.01 | J31: ='SA1'!J102 -> 6055949 | K31: ='SA1'!K102 -> 5094265 | L31: ='SA1'!L102 -> 5289445 | Y31: 2700 | Z31: =VLOOKUP(CONCATENATE($Y$2," ",Y31),'Import Sheet'!$EX:$EX,1,0) -> A4 2700 | AA31: Link from SA1 2799, Link to A1(Sum)
A32: Transfers and subsidies | C32: ='SA1'!C90 -> 0 | D32: ='SA1'!D90 -> 96344.77 | E32: ='SA1'!E90 -> 830046.06 | F32: ='SA1'!F90 -> 153250 | G32: ='SA1'!G90 -> 622400 | H32: ='SA1'!H90 -> 622400 | I32: ='SA1'!I90 -> 407773.15 | J32: ='SA1'!J90 -> 215000 | K32: ='SA1'!K90 -> 174000 | L32: ='SA1'!L90 -> 183540 | Y32: 2800 | Z32: =VLOOKUP(CONCATENATE($Y$2," ",Y32),'Import Sheet'!$EX:$EX,1,0) -> A4 2800 | AA32: Link from SA1 2899, Link to A1
A33: Other expenditure | B33: 4, 5 | C33: ='SA1'!C113 -> 0 | D33: ='SA1'!D113 -> 10102159.41 | E33: ='SA1'!E113 -> 11657993.57 | F33: ='SA1'!F113 -> 15660993 | G33: ='SA1'!G113 -> 14153849 | H33: ='SA1'!H113 -> 14153849 | I33: ='SA1'!I113 -> 9636700.85 | J33: ='SA1'!J113 -> 14838993 | K33: ='SA1'!K113 -> 14708171 | L33: ='SA1'!L113 -> 15344435 | Y33: 2900 | Z33: =VLOOKUP(CONCATENATE($Y$2," ",Y33),'Import Sheet'!$EX:$EX,1,0) -> A4 2900 | AA33: Link from SA1 2999, Link to A1(Sum)
A34: Losses | C34: =SUMIFS('Import Sheet'!D:D,'Import Sheet'!$A:$A,$Y$2,'Import Sheet'!$B:$B,$Y34) -> 0 | D34: =SUMIFS('Import Sheet'!E:E,'Import Sheet'!$A:$A,$Y$2,'Import Sheet'!$B:$B,$Y34) -> 41399.23 | E34: =SUMIFS('Import Sheet'!U:U,'Import Sheet'!$A:$A,$Y$2,'Import Sheet'!$B:$B,$Y34) -> 93924.82 | F34: =SUMIFS('Import Sheet'!V:V,'Import Sheet'!$A:$A,$Y$2,'Import Sheet'!$B:$B,$Y34) -> 0 | G34: =SUMIFS('Import Sheet'!W:W,'Import Sheet'!$A:$A,$Y$2,'Import Sheet'!$B:$B,$Y34) -> 953000 | H34: =SUMIFS('Import Sheet'!AA:AA,'Import Sheet'!$A:$A,$Y$2,'Import Sheet'!$B:$B,$Y34) -> 953000 | I34: =SUMIFS('Import Sheet'!BO:BO,'Import Sheet'!$A:$A,$Y$2,'Import Sheet'!$B:$B,$Y34) -> 0 | J34: =SUMIFS('Import Sheet'!CB:CB,'Import Sheet'!$A:$A,$Y$2,'Import Sheet'!$B:$B,$Y34) -> 603000 | K34: =SUMIFS('Import Sheet'!CC:CC,'Import Sheet'!$A:$A,$Y$2,'Import Sheet'!$B:$B,$Y34) -> 153000 | L34: =SUMIFS('Import Sheet'!CD:CD,'Import Sheet'!$A:$A,$Y$2,'Import Sheet'!$B:$B,$Y34) -> 153000 | Y34: 3000 | Z34: =VLOOKUP(CONCATENATE($Y$2," ",Y34),'Import Sheet'!$EX:$EX,1,0) -> A4 3000 | AA34: Link to A1(Sum)
A35: Total Expenditure | C35: =SUM(C24:C34) -> 0 | D35: =SUM(D24:D34) -> 65205909.34 | E35: 68523166.54 | F35: 81121935 | G35: 78470785 | H35: 78470785 | I35: 66072876.03 | J35: 80559331 | K35: 82018521 | L35: 86287122 | M35: =SUM(M24:M34) -> 0 | N35: 0 | O35: 0 | P35: 0 | Q35: 0 | R35: 0 | S35: 0 | T35: 0 | U35: 0 | V35: 0 | W35: 0 | X35: 0 | Y35: 3100
A37: Surplus/(Deficit) | C37: =C21-C35 -> 0 | D37: -1054581.68 | E37: 9721228.1 | F37: -6104935 | G37: 1201504 | H37: 1201504 | I37: 10009803.97 | J37: 1190669 | K37: 1003479 | L37: -545122 | M37: =M21+M35 -> 0 | N37: 0 | O37: 0 | P37: 0 | Q37: 0 | R37: 0 | S37: 0 | T37: 0 | U37: 0 | V37: 0 | W37: 0 | X37: 0 | Y37: 3200
A38: Transfers and subsidies - capital (monetary allocations) (National / Provincial and District) | C38: =-SUMIFS('Import Sheet'!D:D,'Import Sheet'!$A:$A,$Y$2,'Import Sheet'!$B:$B,$Y38) -> 0 | D38: =-SUMIFS('Import Sheet'!E:E,'Import Sheet'!$A:$A,$Y$2,'Import Sheet'!$B:$B,$Y38) -> 410633.83 | E38: =-SUMIFS('Import Sheet'!U:U,'Import Sheet'!$A:$A,$Y$2,'Import Sheet'!$B:$B,$Y38) -> 2866000 | F38: =-SUMIFS('Import Sheet'!V:V,'Import Sheet'!$A:$A,$Y$2,'Import Sheet'!$B:$B,$Y38) -> 3037000 | G38: =-SUMIFS('Import Sheet'!W:W,'Import Sheet'!$A:$A,$Y$2,'Import Sheet'!$B:$B,$Y38) -> 0 | H38: =-SUMIFS('Import Sheet'!AA:AA,'Import Sheet'!$A:$A,$Y$2,'Import Sheet'!$B:$B,$Y38) -> 0 | I38: =-SUMIFS('Import Sheet'!BO:BO,'Import Sheet'!$A:$A,$Y$2,'Import Sheet'!$B:$B,$Y38) -> 0 | J38: =-SUMIFS('Import Sheet'!CB:CB,'Import Sheet'!$A:$A,$Y$2,'Import Sheet'!$B:$B,$Y38) -> 750000 | K38: =-SUMIFS('Import Sheet'!CC:CC,'Import Sheet'!$A:$A,$Y$2,'Import Sheet'!$B:$B,$Y38) -> 750000 | L38: =-SUMIFS('Import Sheet'!CD:CD,'Import Sheet'!$A:$A,$Y$2,'Import Sheet'!$B:$B,$Y38) -> 750000 | Y38: 3300 | Z38: =VLOOKUP(CONCATENATE($Y$2," ",Y38),'Import Sheet'!$EX:$EX,1,0) -> A4 3300 | AA38: Link to A1
A39: Transfers and subsidies - capital (monetary allocations) (National / Provincial Departmental Agencies, Households, Non-profit Institutions, Private Enterprises, Public Corporatons, Higher Educational Institutions) | B39: 6 | C39: ='SA1'!C73 -> 0 | D39: ='SA1'!D73 -> 0 | E39: ='SA1'!E73 -> 0 | F39: ='SA1'!F73 -> 0 | G39: ='SA1'!G73 -> 0 | H39: ='SA1'!H73 -> 0 | I39: ='SA1'!I73 -> 0 | J39: ='SA1'!J73 -> 0 | K39: ='SA1'!K73 -> 0 | L39: ='SA1'!L73 -> 0 | Y39: 3400 | Z39: =VLOOKUP(CONCATENATE($Y$2," ",Y39),'Import Sheet'!$EX:$EX,1,0) -> A4 3400 | AA39: Link from SA1 3499, Link to A1(Sum)
A40: Transfers and subsidies - capital (in-kind - all) | C40: =-SUMIFS('Import Sheet'!D:D,'Import Sheet'!$A:$A,$Y$2,'Import Sheet'!$B:$B,$Y40) -> 0 | D40: =-SUMIFS('Import Sheet'!E:E,'Import Sheet'!$A:$A,$Y$2,'Import Sheet'!$B:$B,$Y40) -> 0 | E40: =-SUMIFS('Import Sheet'!U:U,'Import Sheet'!$A:$A,$Y$2,'Import Sheet'!$B:$B,$Y40) -> 0 | F40: =-SUMIFS('Import Sheet'!V:V,'Import Sheet'!$A:$A,$Y$2,'Import Sheet'!$B:$B,$Y40) -> 0 | G40: =-SUMIFS('Import Sheet'!W:W,'Import Sheet'!$A:$A,$Y$2,'Import Sheet'!$B:$B,$Y40) -> 0 | H40: =-SUMIFS('Import Sheet'!AA:AA,'Import Sheet'!$A:$A,$Y$2,'Import Sheet'!$B:$B,$Y40) -> 0 | I40: =-SUMIFS('Import Sheet'!BO:BO,'Import Sheet'!$A:$A,$Y$2,'Import Sheet'!$B:$B,$Y40) -> 0 | J40: =-SUMIFS('Import Sheet'!CB:CB,'Import Sheet'!$A:$A,$Y$2,'Import Sheet'!$B:$B,$Y40) -> 0 | K40: =-SUMIFS('Import Sheet'!CC:CC,'Import Sheet'!$A:$A,$Y$2,'Import Sheet'!$B:$B,$Y40) -> 0 | L40: =-SUMIFS('Import Sheet'!CD:CD,'Import Sheet'!$A:$A,$Y$2,'Import Sheet'!$B:$B,$Y40) -> 0 | Y40: 3500 | Z40: =VLOOKUP(CONCATENATE($Y$2," ",Y40),'Import Sheet'!$EX:$EX,1,0) -> A4 3500 | AA40: Link to A1(Sum)
A41: Surplus/(Deficit) after capital transfers & contributions | C41: =SUM(C37:C40) -> 0 | D41: -643947.85 | E41: 12587228.1 | F41: -3067935 | G41: 1201504 | H41: 1201504 | I41: 10009803.97 | J41: 1940669 | K41: 1753479 | L41: 204878 | Y41: 3600
A42: Taxation | C42: =SUMIFS('Import Sheet'!D:D,'Import Sheet'!$A:$A,$Y$2,'Import Sheet'!$B:$B,$Y42) -> 0 | D42: =SUMIFS('Import Sheet'!E:E,'Import Sheet'!$A:$A,$Y$2,'Import Sheet'!$B:$B,$Y42) -> 0 | E42: =SUMIFS('Import Sheet'!U:U,'Import Sheet'!$A:$A,$Y$2,'Import Sheet'!$B:$B,$Y42) -> 0 | F42: =SUMIFS('Import Sheet'!V:V,'Import Sheet'!$A:$A,$Y$2,'Import Sheet'!$B:$B,$Y42) -> 0 | G42: =SUMIFS('Import Sheet'!W:W,'Import Sheet'!$A:$A,$Y$2,'Import Sheet'!$B:$B,$Y42) -> 0 | H42: =SUMIFS('Import Sheet'!AA:AA,'Import Sheet'!$A:$A,$Y$2,'Import Sheet'!$B:$B,$Y42) -> 0 | I42: =SUMIFS('Import Sheet'!BO:BO,'Import Sheet'!$A:$A,$Y$2,'Import Sheet'!$B:$B,$Y42) -> 0 | J42: =SUMIFS('Import Sheet'!CB:CB,'Import Sheet'!$A:$A,$Y$2,'Import Sheet'!$B:$B,$Y42) -> 0 | K42: =SUMIFS('Import Sheet'!CC:CC,'Import Sheet'!$A:$A,$Y$2,'Import Sheet'!$B:$B,$Y42) -> 0 | L42: =SUMIFS('Import Sheet'!CD:CD,'Import Sheet'!$A:$A,$Y$2,'Import Sheet'!$B:$B,$Y42) -> 0 | Y42: 3700 | Z42: =VLOOKUP(CONCATENATE($Y$2," ",Y42),'Import Sheet'!$EX:$EX,1,0) -> A4 3700
A43: Surplus/(Deficit) after taxation | C43: =C41-C42 -> 0 | D43: -643947.85 | E43: 12587228.1 | F43: -3067935 | G43: 1201504 | H43: 1201504 | I43: 10009803.97 | J43: 1940669 | K43: 1753479 | L43: 204878 | Y43: 3800
A44: Attributable to minorities | C44: =SUMIFS('Import Sheet'!D:D,'Import Sheet'!$A:$A,$Y$2,'Import Sheet'!$B:$B,$Y44) -> 0 | D44: =SUMIFS('Import Sheet'!E:E,'Import Sheet'!$A:$A,$Y$2,'Import Sheet'!$B:$B,$Y44) -> 0 | E44: =SUMIFS('Import Sheet'!U:U,'Import Sheet'!$A:$A,$Y$2,'Import Sheet'!$B:$B,$Y44) -> 0 | F44: =SUMIFS('Import Sheet'!V:V,'Import Sheet'!$A:$A,$Y$2,'Import Sheet'!$B:$B,$Y44) -> 0 | G44: =SUMIFS('Import Sheet'!W:W,'Import Sheet'!$A:$A,$Y$2,'Import Sheet'!$B:$B,$Y44) -> 0 | H44: =SUMIFS('Import Sheet'!AA:AA,'Import Sheet'!$A:$A,$Y$2,'Import Sheet'!$B:$B,$Y44) -> 0 | I44: =SUMIFS('Import Sheet'!BO:BO,'Import Sheet'!$A:$A,$Y$2,'Import Sheet'!$B:$B,$Y44) -> 0 | J44: =SUMIFS('Import Sheet'!CB:CB,'Import Sheet'!$A:$A,$Y$2,'Import Sheet'!$B:$B,$Y44) -> 0 | K44: =SUMIFS('Import Sheet'!CC:CC,'Import Sheet'!$A:$A,$Y$2,'Import Sheet'!$B:$B,$Y44) -> 0 | L44: =SUMIFS('Import Sheet'!CD:CD,'Import Sheet'!$A:$A,$Y$2,'Import Sheet'!$B:$B,$Y44) -> 0 | Y44: 3900 | Z44: =VLOOKUP(CONCATENATE($Y$2," ",Y44),'Import Sheet'!$EX:$EX,1,0) -> A4 3900
A45: Surplus/(Deficit) attributable to municipality | C45: =SUM(C43:C44) -> 0 | D45: -643947.85 | E45: 12587228.1 | F45: -3067935 | G45: 1201504 | H45: 1201504 | I45: 10009803.97 | J45: 1940669 | K45: 1753479 | L45: 204878 | Y45: 4000
A46: Share of surplus/ (deficit) of associate | B46: 7 | C46: =SUMIFS('Import Sheet'!D:D,'Import Sheet'!$A:$A,$Y$2,'Import Sheet'!$B:$B,$Y46) -> 0 | D46: =SUMIFS('Import Sheet'!E:E,'Import Sheet'!$A:$A,$Y$2,'Import Sheet'!$B:$B,$Y46) -> 0 | E46: =SUMIFS('Import Sheet'!U:U,'Import Sheet'!$A:$A,$Y$2,'Import Sheet'!$B:$B,$Y46) -> 0 | F46: =SUMIFS('Import Sheet'!V:V,'Import Sheet'!$A:$A,$Y$2,'Import Sheet'!$B:$B,$Y46) -> 0 | G46: =SUMIFS('Import Sheet'!W:W,'Import Sheet'!$A:$A,$Y$2,'Import Sheet'!$B:$B,$Y46) -> 0 | H46: =SUMIFS('Import Sheet'!AA:AA,'Import Sheet'!$A:$A,$Y$2,'Import Sheet'!$B:$B,$Y46) -> 0 | I46: =SUMIFS('Import Sheet'!BO:BO,'Import Sheet'!$A:$A,$Y$2,'Import Sheet'!$B:$B,$Y46) -> 0 | J46: =SUMIFS('Import Sheet'!CB:CB,'Import Sheet'!$A:$A,$Y$2,'Import Sheet'!$B:$B,$Y46) -> 0 | K46: =SUMIFS('Import Sheet'!CC:CC,'Import Sheet'!$A:$A,$Y$2,'Import Sheet'!$B:$B,$Y46) -> 0 | L46: =SUMIFS('Import Sheet'!CD:CD,'Import Sheet'!$A:$A,$Y$2,'Import Sheet'!$B:$B,$Y46) -> 0 | Y46: 4100 | Z46: =VLOOKUP(CONCATENATE($Y$2," ",Y46),'Import Sheet'!$EX:$EX,1,0) -> A4 4100 | AA46: Link to A1
A47: =result -> Surplus/(Deficit) for the year | C47: =SUM(C45:C46) -> 0 | D47: -643947.85 | E47: 12587228.1 | F47: -3067935 | G47: 1201504 | H47: 1201504 | I47: 10009803.97 | J47: 1940669 | K47: 1753479 | L47: 204878 | M47: =M25+M46 -> 0 | N47: 0 | O47: 0 | P47: 0 | Q47: 0 | R47: 0 | S47: 0 | T47: 0 | U47: 0 | V47: 0 | W47: 0 | X47: 0 | Y47: 4200
A48: =head27a -> References
A49: 1. Classifications are revenue sources and expenditure type
A50: 2. Detail to be provided in Table SA1
A51: 3. Previously described as 'bad or doubtful debts' - amounts shown should reflect the change in the provision for debt impairment
A52: 4. Expenditure type components previously shown under repairs and maintenance should be allocated back to the originating expenditure group/item; e.g. employee costs
A53: 5. Repairs & maintenance detailed in Table A9 and Table SA34c
A54: 6. Contributions are funds provided by external organisations to assist with infrastructure development; e.g. developer contributions (detail to be provided in Table SA1)
A55: 7. Equity method ( Includes Joint Ventures)
A56: 8. All materials not part of 'bulk' e.g road making materials, pipe, cable etc.
A58: Total Revenue | C58: =C21+SUM(C38:C40) -> 0 | D58: 64561961.49 | E58: 81110394.64 | F58: 78054000 | G58: 79672289 | H58: 79672289 | I58: 76082680 | J58: 82500000 | K58: 83772000 | L58: 86492000
A60: Check Surplus/(Deficit) for the Year (A2) | C60: =ROUND(C47-C46-'A2-FinPerf SC'!C49,0) -> 0 | D60: =ROUND(D47-D46-'A2-FinPerf SC'!D49,0) -> 0 | E60: =ROUND(E47-E46-'A2-FinPerf SC'!E49,0) -> 0 | F60: =ROUND(F47-F46-'A2-FinPerf SC'!F49,0) -> 0 | G60: =ROUND(G47-G46-'A2-FinPerf SC'!G49,0) -> 0 | H60: =ROUND(H47-H46-'A2-FinPerf SC'!H49,0) -> 0 | J60: =ROUND(J47-J46-'A2-FinPerf SC'!I49,0) -> 0 | K60: =ROUND(K47-K46-'A2-FinPerf SC'!J49,0) -> 0 | L60: =ROUND(L47-L46-'A2-FinPerf SC'!K49,0) -> 0
A61: Check Surplus/(Deficit) for the Year (A3) | C61: =ROUND(C47-C46-'A3-FinPerf V'!C39,0) -> 0 | D61: =ROUND(D47-D46-'A3-FinPerf V'!D39,0) -> 122262 | E61: =ROUND(E47-E46-'A3-FinPerf V'!E39,0) -> 0 | F61: =ROUND(F47-F46-'A3-FinPerf V'!F39,0) -> 0 | G61: =ROUND(G47-G46-'A3-FinPerf V'!G39,0) -> 0 | H61: =ROUND(H47-H46-'A3-FinPerf V'!H39,0) -> 0 | J61: =ROUND(J47-J46-'A3-FinPerf V'!I39,0) -> 0 | K61: =ROUND(K47-K46-'A3-FinPerf V'!J39,0) -> 0 | L61: =ROUND(L47-L46-'A3-FinPerf V'!K39,0) -> 0
A62: Check Surplus/(Deficit) for the Year (A6) | C62: =ROUND(C47-C46-'A6-FinPos'!C45,0) -> 0 | D62: =ROUND(D47-D46-'A6-FinPos'!D45,0) -> 3812400 | E62: =ROUND(E47-E46-'A6-FinPos'!E45,0) -> 12587228 | F62: =ROUND(F47-F46-'A6-FinPos'!F45,0) -> -4245572 | G62: =ROUND(G47-G46-'A6-FinPos'!G45,0) -> 21930251 | H62: =ROUND(H47-H46-'A6-FinPos'!H45,0) -> 21930251 | I62: =ROUND(I47-I46-'A6-FinPos'!I45,0) -> 10011394 | J62: =ROUND(J47-J46-'A6-FinPos'!J45,0) -> 9344787 | K62: =ROUND(K47-K46-'A6-FinPos'!K45,0) -> 7344787 | L62: =ROUND(L47-L46-'A6-FinPos'!L45,0) -> 5344787

Sheet A5-Capex
A1: =muni&" - "&Approve5 -> DC8 Z F Mgcawu - Table A5 Budgeted Capital Expenditure by vote, functional classification and funding
A2: =Vdesc -> Vote Description | B2: =head27 -> Ref | C2: =head1b -> 2016/17 | D2: =head1A -> 2017/18 | E2: =Head1 -> 2018/19 | F2: =Head2 -> Current Year 2019/20 | J2: =Head3 -> 2020/21 Medium Term Revenue & Expenditure Framework | M2: A5 | N2: Check Import Sheet
A3: R thousand | B3: 1 | C3: =Head5 -> Audited Outcome | D3: =Head5 -> Audited Outcome | E3: =Head5 -> Audited Outcome | F3: =Head6 -> Original Budget | G3: =Head7 -> Adjusted Budget | H3: =Head8 -> Full Year Forecast | I3: =Head5b -> Pre-audit outcome | J3: =Head9 -> Budget Year 2020/21 | K3: =Head10 -> Budget Year +1 2021/22 | L3: =Head11 -> Budget Year +2 2022/23
A4: Capital expenditure - Vote
A5: Multi-year expenditure to be appropriated | B5: 2
A6: =A5A!A6 -> Vote 1 - EXECUTIVE AND COUNCIL | C6: =A5A!C6 -> 0 | D6: =A5A!D6 -> 0 | E6: =A5A!E6 -> 0 | F6: =A5A!F6 -> 0 | G6: =A5A!G6 -> 0 | H6: =A5A!H6 -> 0 | I6: =A5A!I6 -> 0 | J6: =A5A!J6 -> 0 | K6: =A5A!K6 -> 0 | L6: =A5A!L6 -> 0 | M6: 1_MULTI | N6: Link from A5A
A7: =A5A!A17 -> Vote 2 - BUDGET AND TREASURY OFFICE | C7: =A5A!C17 -> 0 | D7: =A5A!D17 -> 0 | E7: =A5A!E17 -> -4258.68 | F7: =A5A!F17 -> 0 | G7: =A5A!G17 -> 0 | H7: =A5A!H17 -> 0 | I7: =A5A!I17 -> 0 | J7: =A5A!J17 -> 0 | K7: =A5A!K17 -> 0 | L7: =A5A!L17 -> 0 | M7: 2_MULTI | N7: Link from A5A
A8: =A5A!A28 -> Vote 3 - CORPORATE SERVICES | C8: =A5A!C28 -> 0 | D8: =A5A!D28 -> 0 | E8: =A5A!E28 -> -396413.02 | F8: =A5A!F28 -> 300000 | G8: =A5A!G28 -> 0 | H8: =A5A!H28 -> 0 | I8: =A5A!I28 -> -3551.31 | J8: =A5A!J28 -> 0 | K8: =A5A!K28 -> 0 | L8: =A5A!L28 -> 0 | M8: 3_MULTI | N8: Link from A5A
A9: =A5A!A39 -> Vote 4 - TECHNICAL SERVICES | C9: =A5A!C39 -> 0 | D9: =A5A!D39 -> 0 | E9: =A5A!E39 -> -78032.84 | F9: =A5A!F39 -> 0 | G9: =A5A!G39 -> 0 | H9: =A5A!H39 -> 0 | I9: =A5A!I39 -> 0 | J9: =A5A!J39 -> 0 | K9: =A5A!K39 -> 0 | L9: =A5A!L39 -> 0 | M9: 4_MULTI | N9: Link from A5A
A10: =A5A!A50 -> Vote 5 - [NAME OF VOTE 5] | C10: =A5A!C50 -> 0 | D10: =A5A!D50 -> 0 | E10: =A5A!E50 -> 0 | F10: =A5A!F50 -> 0 | G10: =A5A!G50 -> 0 | H10: =A5A!H50 -> 0 | I10: =A5A!I50 -> 0 | J10: =A5A!J50 -> 0 | K10: =A5A!K50 -> 0 | L10: =A5A!L50 -> 0 | M10: 5_MULTI | N10: Link from A5A
A11: =A5A!A61 -> Vote 6 - [NAME OF VOTE 6] | C11: =A5A!C61 -> 0 | D11: =A5A!D61 -> 0 | E11: =A5A!E61 -> 0 | F11: =A5A!F61 -> 0 | G11: =A5A!G61 -> 0 | H11: =A5A!H61 -> 0 | I11: =A5A!I61 -> 0 | J11: =A5A!J61 -> 0 | K11: =A5A!K61 -> 0 | L11: =A5A!L61 -> 0 | M11: 6_MULTI | N11: Link from A5A
A12: =A5A!A72 -> Vote 7 - [NAME OF VOTE 7] | C12: =A5A!C72 -> 0 | D12: =A5A!D72 -> 0 | E12: =A5A!E72 -> 0 | F12: =A5A!F72 -> 0 | G12: =A5A!G72 -> 0 | H12: =A5A!H72 -> 0 | I12: =A5A!I72 -> 0 | J12: =A5A!J72 -> 0 | K12: =A5A!K72 -> 0 | L12: =A5A!L72 -> 0 | M12: 7_MULTI | N12: Link from A5A
A13: =A5A!A83 -> Vote 8 - [NAME OF VOTE 8] | C13: =A5A!C83 -> 0 | D13: =A5A!D83 -> 0 | E13: =A5A!E83 -> 0 | F13: =A5A!F83 -> 0 | G13: =A5A!G83 -> 0 | H13: =A5A!H83 -> 0 | I13: =A5A!I83 -> 0 | J13: =A5A!J83 -> 0 | K13: =A5A!K83 -> 0 | L13: =A5A!L83 -> 0 | M13: 8_MULTI | N13: Link from A5A
A14: =A5A!A94 -> Vote 9 - [NAME OF VOTE 9] | C14: =A5A!C94 -> 0 | D14: =A5A!D94 -> 0 | E14: =A5A!E94 -> 0 | F14: =A5A!F94 -> 0 | G14: =A5A!G94 -> 0 | H14: =A5A!H94 -> 0 | I14: =A5A!I94 -> 0 | J14: =A5A!J94 -> 0 | K14: =A5A!K94 -> 0 | L14: =A5A!L94 -> 0 | M14: 9_MULTI | N14: Link from A5A
A15: =A5A!A105 -> Vote 10 - [NAME OF VOTE 10] | C15: =A5A!C105 -> 0 | D15: =A5A!D105 -> 0 | E15: =A5A!E105 -> 0 | F15: =A5A!F105 -> 0 | G15: =A5A!G105 -> 0 | H15: =A5A!H105 -> 0 | I15: =A5A!I105 -> 0 | J15: =A5A!J105 -> 0 | K15: =A5A!K105 -> 0 | L15: =A5A!L105 -> 0 | M15: 10_MULTI | N15: Link from A5A
A16: =A5A!A116 -> Vote 11 - [NAME OF VOTE 11] | C16: =A5A!C116 -> 0 | D16: =A5A!D116 -> 0 | E16: =A5A!E116 -> 0 | F16: =A5A!F116 -> 0 | G16: =A5A!G116 -> 0 | H16: =A5A!H116 -> 0 | I16: =A5A!I116 -> 0 | J16: =A5A!J116 -> 0 | K16: =A5A!K116 -> 0 | L16: =A5A!L116 -> 0 | M16: 11_MULTI | N16: Link from A5A
A17: =A5A!A127 -> Vote 12 - [NAME OF VOTE 12] | C17: =A5A!C127 -> 0 | D17: =A5A!D127 -> 0 | E17: =A5A!E127 -> 0 | F17: =A5A!F127 -> 0 | G17: =A5A!G127 -> 0 | H17: =A5A!H127 -> 0 | I17: =A5A!I127 -> 0 | J17: =A5A!J127 -> 0 | K17: =A5A!K127 -> 0 | L17: =A5A!L127 -> 0 | M17: 12_MULTI | N17: Link from A5A
A18: =A5A!A138 -> Vote 13 - [NAME OF VOTE 13] | C18: =A5A!C138 -> 0 | D18: =A5A!D138 -> 0 | E18: =A5A!E138 -> 0 | F18: =A5A!F138 -> 0 | G18: =A5A!G138 -> 0 | H18: =A5A!H138 -> 0 | I18: =A5A!I138 -> 0 | J18: =A5A!J138 -> 0 | K18: =A5A!K138 -> 0 | L18: =A5A!L138 -> 0 | M18: 13_MULTI | N18: Link from A5A
A19: =A5A!A149 -> Vote 14 - [NAME OF VOTE 14] | C19: =A5A!C149 -> 0 | D19: =A5A!D149 -> 0 | E19: =A5A!E149 -> 0 | F19: =A5A!F149 -> 0 | G19: =A5A!G149 -> 0 | H19: =A5A!H149 -> 0 | I19: =A5A!I149 -> 0 | J19: =A5A!J149 -> 0 | K19: =A5A!K149 -> 0 | L19: =A5A!L149 -> 0 | M19: 14_MULTI | N19: Link from A5A
A20: =A5A!A160 -> Vote 15 - [NAME OF VOTE 15] | C20: =A5A!C160 -> 0 | D20: =A5A!D160 -> 0 | E20: =A5A!E160 -> 0 | F20: =A5A!F160 -> 0 | G20: =A5A!G160 -> 0 | H20: =A5A!H160 -> 0 | I20: =A5A!I160 -> 0 | J20: =A5A!J160 -> 0 | K20: =A5A!K160 -> 0 | L20: =A5A!L160 -> 0 | M20: 15_MULTI | N20: Link from A5A
A21: Capital multi-year expenditure sub-total | C21: =SUM(C6:C20) -> 0 | D21: =SUM(D6:D20) -> 0 | E21: -478704.54 | F21: 300000 | G21: 0 | H21: =SUM(H6:H20) -> 0 | I21: -3551.31 | J21: 0 | K21: 0 | L21: 0
A23: Single-year expenditure to be appropriated | B23: 2
A24: =A6 -> Vote 1 - EXECUTIVE AND COUNCIL | C24: =A5A!C177 -> 0 | D24: =A5A!D177 -> 0 | E24: =A5A!E177 -> 0 | F24: =A5A!F177 -> 65000 | G24: =A5A!G177 -> 0 | H24: =A5A!H177 -> 0 | I24: =A5A!I177 -> 0 | J24: =A5A!J177 -> 700000 | K24: =A5A!K177 -> 0 | L24: =A5A!L177 -> 0 | M24: 1_SINGLE | N24: Link from A5A
A25: =A7 -> Vote 2 - BUDGET AND TREASURY OFFICE | C25: =A5A!C188 -> 0 | D25: =A5A!D188 -> 0 | E25: =A5A!E188 -> 502713.59 | F25: =A5A!F188 -> 0 | G25: =A5A!G188 -> 0 | H25: =A5A!H188 -> 0 | I25: =A5A!I188 -> 0 | J25: =A5A!J188 -> 0 | K25: =A5A!K188 -> 0 | L25: =A5A!L188 -> 0 | M25: 2_SINGLE | N25: Link from A5A
A26: Vote 3 - CORPORATE SERVICES | C26: =A5A!C199 -> 0 | D26: =A5A!D199 -> 0 | E26: =A5A!E199 -> -50713.3 | F26: =A5A!F199 -> 2040000 | G26: =A5A!G199 -> 180000 | H26: =A5A!H199 -> 180000 | I26: =A5A!I199 -> -157475.45 | J26: =A5A!J199 -> 870000 | K26: =A5A!K199 -> 860000 | L26: =A5A!L199 -> 850000 | M26: 3_SINGLE | N26: Link from A5A
A27: Vote 4 - TECHNICAL SERVICES | C27: =A5A!C210 -> 0 | D27: =A5A!D210 -> 0 | E27: =A5A!E210 -> 0 | F27: =A5A!F210 -> 239400 | G27: =A5A!G210 -> 0 | H27: =A5A!H210 -> 0 | I27: =A5A!I210 -> 0 | J27: =A5A!J210 -> 250000 | K27: =A5A!K210 -> 250000 | L27: =A5A!L210 -> 250000 | M27: 4_SINGLE | N27: Link from A5A
A28: Vote 5 - [NAME OF VOTE 5] | C28: =A5A!C221 -> 0 | D28: =A5A!D221 -> 0 | E28: =A5A!E221 -> 0 | F28: =A5A!F221 -> 0 | G28: =A5A!G221 -> 0 | H28: =A5A!H221 -> 0 | I28: =A5A!I221 -> 0 | J28: =A5A!J221 -> 0 | K28: =A5A!K221 -> 0 | L28: =A5A!L221 -> 0 | M28: 5_SINGLE | N28: Link from A5A
A29: Vote 6 - [NAME OF VOTE 6] | C29: =A5A!C232 -> 0 | D29: =A5A!D232 -> 0 | E29: =A5A!E232 -> 0 | F29: =A5A!F232 -> 0 | G29: =A5A!G232 -> 0 | H29: =A5A!H232 -> 0 | I29: =A5A!I232 -> 0 | J29: =A5A!J232 -> 0 | K29: =A5A!K232 -> 0 | L29: =A5A!L232 -> 0 | M29: 6_SINGLE | N29: Link from A5A
A30: Vote 7 - [NAME OF VOTE 7] | C30: =A5A!C243 -> 0 | D30: =A5A!D243 -> 0 | E30: =A5A!E243 -> 0 | F30: =A5A!F243 -> 0 | G30: =A5A!G243 -> 0 | H30: =A5A!H243 -> 0 | I30: =A5A!I243 -> 0 | J30: =A5A!J243 -> 0 | K30: =A5A!K243 -> 0 | L30: =A5A!L243 -> 0 | M30: 7_SINGLE | N30: Link from A5A
A31: Vote 8 - [NAME OF VOTE 8] | C31: =A5A!C254 -> 0 | D31: =A5A!D254 -> 0 | E31: =A5A!E254 -> 0 | F31: =A5A!F254 -> 0 | G31: =A5A!G254 -> 0 | H31: =A5A!H254 -> 0 | I31: =A5A!I254 -> 0 | J31: =A5A!J254 -> 0 | K31: =A5A!K254 -> 0 | L31: =A5A!L254 -> 0 | M31: 8_SINGLE | N31: Link from A5A
A32: Vote 9 - [NAME OF VOTE 9] | C32: =A5A!C265 -> 0 | D32: =A5A!D265 -> 0 | E32: =A5A!E265 -> 0 | F32: =A5A!F265 -> 0 | G32: =A5A!G265 -> 0 | H32: =A5A!H265 -> 0 | I32: =A5A!I265 -> 0 | J32: =A5A!J265 -> 0 | K32: =A5A!K265 -> 0 | L32: =A5A!L265 -> 0 | M32: 9_SINGLE | N32: Link from A5A
A33: Vote 10 - [NAME OF VOTE 10] | C33: =A5A!C276 -> 0 | D33: =A5A!D276 -> 0 | E33: =A5A!E276 -> 0 | F33: =A5A!F276 -> 0 | G33: =A5A!G276 -> 0 | H33: =A5A!H276 -> 0 | I33: =A5A!I276 -> 0 | J33: =A5A!J276 -> 0 | K33: =A5A!K276 -> 0 | L33: =A5A!L276 -> 0 | M33: 10_SINGLE | N33: Link from A5A
A34: Vote 11 - [NAME OF VOTE 11] | C34: =A5A!C287 -> 0 | D34: =A5A!D287 -> 0 | E34: =A5A!E287 -> 0 | F34: =A5A!F287 -> 0 | G34: =A5A!G287 -> 0 | H34: =A5A!H287 -> 0 | I34: =A5A!I287 -> 0 | J34: =A5A!J287 -> 0 | K34: =A5A!K287 -> 0 | L34: =A5A!L287 -> 0 | M34: 11_SINGLE | N34: Link from A5A
A35: Vote 12 - [NAME OF VOTE 12] | C35: =A5A!C298 -> 0 | D35: =A5A!D298 -> 0 | E35: =A5A!E298 -> 0 | F35: =A5A!F298 -> 0 | G35: =A5A!G298 -> 0 | H35: =A5A!H298 -> 0 | I35: =A5A!I298 -> 0 | J35: =A5A!J298 -> 0 | K35: =A5A!K298 -> 0 | L35: =A5A!L298 -> 0 | M35: 12_SINGLE | N35: Link from A5A
A36: Vote 13 - [NAME OF VOTE 13] | C36: =A5A!C309 -> 0 | D36: =A5A!D309 -> 0 | E36: =A5A!E309 -> 0 | F36: =A5A!F309 -> 0 | G36: =A5A!G309 -> 0 | H36: =A5A!H309 -> 0 | I36: =A5A!I309 -> 0 | J36: =A5A!J309 -> 0 | K36: =A5A!K309 -> 0 | L36: =A5A!L309 -> 0 | M36: 13_SINGLE | N36: Link from A5A
A37: Vote 14 - [NAME OF VOTE 14] | C37: =A5A!C320 -> 0 | D37: =A5A!D320 -> 0 | E37: =A5A!E320 -> 0 | F37: =A5A!F320 -> 0 | G37: =A5A!G320 -> 0 | H37: =A5A!H320 -> 0 | I37: =A5A!I320 -> 0 | J37: =A5A!J320 -> 0 | K37: =A5A!K320 -> 0 | L37: =A5A!L320 -> 0 | M37: 14_SINGLE | N37: Link from A5A
A38: =A20 -> Vote 15 - [NAME OF VOTE 15] | C38: =A5A!C331 -> 0 | D38: =A5A!D331 -> 0 | E38: =A5A!E331 -> 0 | F38: =A5A!F331 -> 0 | G38: =A5A!G331 -> 0 | H38: =A5A!H331 -> 0 | I38: =A5A!I331 -> 0 | J38: =A5A!J331 -> 0 | K38: =A5A!K331 -> 0 | L38: =A5A!L331 -> 0 | M38: 15_SINGLE | N38: Link from A5A
A39: Capital single-year expenditure sub-total | C39: =SUM(C24:C38) -> 0 | D39: =SUM(D24:D38) -> 0 | E39: 452000.29 | F39: 2344400 | G39: 180000 | H39: 180000 | I39: -157475.45 | J39: 1820000 | K39: 1110000 | L39: 1100000
A40: Total Capital Expenditure - Vote | B40: 3,7 | C40: =C39+C21 -> 0 | D40: =D39+D21 -> 0 | E40: -26704.25 | F40: 2644400 | G40: 180000 | H40: 180000 | I40: -161026.76 | J40: 1820000 | K40: 1110000 | L40: 1100000
A42: Capital Expenditure - Functional
A43: Governance and administration | C43: =SUM(C44:C46) -> 0 | D43: =SUM(D44:D46) -> -241850.02 | E43: 52620.27 | F43: 2405000 | G43: 180000 | H43: 180000 | I43: -161026.76 | J43: 1570000 | K43: 860000 | L43: 850000 | M43: 1000
A44: Executive and council | C44: =SUMIFS('Import Sheet'!D:D,'Import Sheet'!$A:$A,$M$2,'Import Sheet'!$B:$B,$M44) -> 0 | D44: =SUMIFS('Import Sheet'!E:E,'Import Sheet'!$A:$A,$M$2,'Import Sheet'!$B:$B,$M44) -> 0 | E44: =SUMIFS('Import Sheet'!U:U,'Import Sheet'!$A:$A,$M$2,'Import Sheet'!$B:$B,$M44) -> 0 | F44: =SUMIFS('Import Sheet'!V:V,'Import Sheet'!$A:$A,$M$2,'Import Sheet'!$B:$B,$M44) -> 65000 | G44: =SUMIFS('Import Sheet'!W:W,'Import Sheet'!$A:$A,$M$2,'Import Sheet'!$B:$B,$M44) -> 0 | H44: =SUMIFS('Import Sheet'!AA:AA,'Import Sheet'!$A:$A,$M$2,'Import Sheet'!$B:$B,$M44) -> 0 | I44: =SUMIFS('Import Sheet'!BO:BO,'Import Sheet'!$A:$A,$M$2,'Import Sheet'!$B:$B,$M44) -> 0 | J44: =SUMIFS('Import Sheet'!CB:CB,'Import Sheet'!$A:$A,$M$2,'Import Sheet'!$B:$B,$M44) -> 700000 | K44: =SUMIFS('Import Sheet'!CC:CC,'Import Sheet'!$A:$A,$M$2,'Import Sheet'!$B:$B,$M44) -> 0 | L44: =SUMIFS('Import Sheet'!CD:CD,'Import Sheet'!$A:$A,$M$2,'Import Sheet'!$B:$B,$M44) -> 0 | M44: 1100 | N44: =VLOOKUP(CONCATENATE($M$2," ",M44),'Import Sheet'!$EX:$EX,1,0) -> A5 1100
A45: Finance and administration | C45: =SUMIFS('Import Sheet'!D:D,'Import Sheet'!$A:$A,$M$2,'Import Sheet'!$B:$B,$M45) -> 0 | D45: =SUMIFS('Import Sheet'!E:E,'Import Sheet'!$A:$A,$M$2,'Import Sheet'!$B:$B,$M45) -> -241850.02 | E45: =SUMIFS('Import Sheet'!U:U,'Import Sheet'!$A:$A,$M$2,'Import Sheet'!$B:$B,$M45) -> 52620.27 | F45: =SUMIFS('Import Sheet'!V:V,'Import Sheet'!$A:$A,$M$2,'Import Sheet'!$B:$B,$M45) -> 2340000 | G45: =SUMIFS('Import Sheet'!W:W,'Import Sheet'!$A:$A,$M$2,'Import Sheet'!$B:$B,$M45) -> 180000 | H45: =SUMIFS('Import Sheet'!AA:AA,'Import Sheet'!$A:$A,$M$2,'Import Sheet'!$B:$B,$M45) -> 180000 | I45: =SUMIFS('Import Sheet'!BO:BO,'Import Sheet'!$A:$A,$M$2,'Import Sheet'!$B:$B,$M45) -> -161026.76 | J45: =SUMIFS('Import Sheet'!CB:CB,'Import Sheet'!$A:$A,$M$2,'Import Sheet'!$B:$B,$M45) -> 870000 | K45: =SUMIFS('Import Sheet'!CC:CC,'Import Sheet'!$A:$A,$M$2,'Import Sheet'!$B:$B,$M45) -> 860000 | L45: =SUMIFS('Import Sheet'!CD:CD,'Import Sheet'!$A:$A,$M$2,'Import Sheet'!$B:$B,$M45) -> 850000 | M45: 1200 | N45: =VLOOKUP(CONCATENATE($M$2," ",M45),'Import Sheet'!$EX:$EX,1,0) -> A5 1200
A46: Internal audit | C46: =SUMIFS('Import Sheet'!D:D,'Import Sheet'!$A:$A,$M$2,'Import Sheet'!$B:$B,$M46) -> 0 | D46: =SUMIFS('Import Sheet'!E:E,'Import Sheet'!$A:$A,$M$2,'Import Sheet'!$B:$B,$M46) -> 0 | E46: =SUMIFS('Import Sheet'!U:U,'Import Sheet'!$A:$A,$M$2,'Import Sheet'!$B:$B,$M46) -> 0 | F46: =SUMIFS('Import Sheet'!V:V,'Import Sheet'!$A:$A,$M$2,'Import Sheet'!$B:$B,$M46) -> 0 | G46: =SUMIFS('Import Sheet'!W:W,'Import Sheet'!$A:$A,$M$2,'Import Sheet'!$B:$B,$M46) -> 0 | H46: =SUMIFS('Import Sheet'!AA:AA,'Import Sheet'!$A:$A,$M$2,'Import Sheet'!$B:$B,$M46) -> 0 | I46: =SUMIFS('Import Sheet'!BO:BO,'Import Sheet'!$A:$A,$M$2,'Import Sheet'!$B:$B,$M46) -> 0 | J46: =SUMIFS('Import Sheet'!CB:CB,'Import Sheet'!$A:$A,$M$2,'Import Sheet'!$B:$B,$M46) -> 0 | K46: =SUMIFS('Import Sheet'!CC:CC,'Import Sheet'!$A:$A,$M$2,'Import Sheet'!$B:$B,$M46) -> 0 | L46: =SUMIFS('Import Sheet'!CD:CD,'Import Sheet'!$A:$A,$M$2,'Import Sheet'!$B:$B,$M46) -> 0 | M46: 1300 | N46: =VLOOKUP(CONCATENATE($M$2," ",M46),'Import Sheet'!$EX:$EX,1,0) -> A5 1300
A47: Community and public safety | C47: =SUM(C48:C52) -> 0 | D47: =SUM(D48:D52) -> 27068.42 | E47: 144354.71 | F47: 0 | G47: 0 | H47: 0 | I47: 0 | J47: 0 | K47: 0 | L47: 0 | M47: 2000
A48: Community and social services | C48: =SUMIFS('Import Sheet'!D:D,'Import Sheet'!$A:$A,$M$2,'Import Sheet'!$B:$B,$M48) -> 0 | D48: =SUMIFS('Import Sheet'!E:E,'Import Sheet'!$A:$A,$M$2,'Import Sheet'!$B:$B,$M48) -> 0 | E48: =SUMIFS('Import Sheet'!U:U,'Import Sheet'!$A:$A,$M$2,'Import Sheet'!$B:$B,$M48) -> 0 | F48: =SUMIFS('Import Sheet'!V:V,'Import Sheet'!$A:$A,$M$2,'Import Sheet'!$B:$B,$M48) -> 0 | G48: =SUMIFS('Import Sheet'!W:W,'Import Sheet'!$A:$A,$M$2,'Import Sheet'!$B:$B,$M48) -> 0 | H48: =SUMIFS('Import Sheet'!AA:AA,'Import Sheet'!$A:$A,$M$2,'Import Sheet'!$B:$B,$M48) -> 0 | I48: =SUMIFS('Import Sheet'!BO:BO,'Import Sheet'!$A:$A,$M$2,'Import Sheet'!$B:$B,$M48) -> 0 | J48: =SUMIFS('Import Sheet'!CB:CB,'Import Sheet'!$A:$A,$M$2,'Import Sheet'!$B:$B,$M48) -> 0 | K48: =SUMIFS('Import Sheet'!CC:CC,'Import Sheet'!$A:$A,$M$2,'Import Sheet'!$B:$B,$M48) -> 0 | L48: =SUMIFS('Import Sheet'!CD:CD,'Import Sheet'!$A:$A,$M$2,'Import Sheet'!$B:$B,$M48) -> 0 | M48: 2100 | N48: =VLOOKUP(CONCATENATE($M$2," ",M48),'Import Sheet'!$EX:$EX,1,0) -> A5 2100
A49: Sport and recreation | C49: =SUMIFS('Import Sheet'!D:D,'Import Sheet'!$A:$A,$M$2,'Import Sheet'!$B:$B,$M49) -> 0 | D49: =SUMIFS('Import Sheet'!E:E,'Import Sheet'!$A:$A,$M$2,'Import Sheet'!$B:$B,$M49) -> 0 | E49: =SUMIFS('Import Sheet'!U:U,'Import Sheet'!$A:$A,$M$2,'Import Sheet'!$B:$B,$M49) -> 0 | F49: =SUMIFS('Import Sheet'!V:V,'Import Sheet'!$A:$A,$M$2,'Import Sheet'!$B:$B,$M49) -> 0 | G49: =SUMIFS('Import Sheet'!W:W,'Import Sheet'!$A:$A,$M$2,'Import Sheet'!$B:$B,$M49) -> 0 | H49: =SUMIFS('Import Sheet'!AA:AA,'Import Sheet'!$A:$A,$M$2,'Import Sheet'!$B:$B,$M49) -> 0 | I49: =SUMIFS('Import Sheet'!BO:BO,'Import Sheet'!$A:$A,$M$2,'Import Sheet'!$B:$B,$M49) -> 0 | J49: =SUMIFS('Import Sheet'!CB:CB,'Import Sheet'!$A:$A,$M$2,'Import Sheet'!$B:$B,$M49) -> 0 | K49: =SUMIFS('Import Sheet'!CC:CC,'Import Sheet'!$A:$A,$M$2,'Import Sheet'!$B:$B,$M49) -> 0 | L49: =SUMIFS('Import Sheet'!CD:CD,'Import Sheet'!$A:$A,$M$2,'Import Sheet'!$B:$B,$M49) -> 0 | M49: 2200 | N49: =VLOOKUP(CONCATENATE($M$2," ",M49),'Import Sheet'!$EX:$EX,1,0) -> A5 2200
A50: Public safety | C50: =SUMIFS('Import Sheet'!D:D,'Import Sheet'!$A:$A,$M$2,'Import Sheet'!$B:$B,$M50) -> 0 | D50: =SUMIFS('Import Sheet'!E:E,'Import Sheet'!$A:$A,$M$2,'Import Sheet'!$B:$B,$M50) -> 0 | E50: =SUMIFS('Import Sheet'!U:U,'Import Sheet'!$A:$A,$M$2,'Import Sheet'!$B:$B,$M50) -> 144354.71 | F50: =SUMIFS('Import Sheet'!V:V,'Import Sheet'!$A:$A,$M$2,'Import Sheet'!$B:$B,$M50) -> 0 | G50: =SUMIFS('Import Sheet'!W:W,'Import Sheet'!$A:$A,$M$2,'Import Sheet'!$B:$B,$M50) -> 0 | H50: =SUMIFS('Import Sheet'!AA:AA,'Import Sheet'!$A:$A,$M$2,'Import Sheet'!$B:$B,$M50) -> 0 | I50: =SUMIFS('Import Sheet'!BO:BO,'Import Sheet'!$A:$A,$M$2,'Import Sheet'!$B:$B,$M50) -> 0 | J50: =SUMIFS('Import Sheet'!CB:CB,'Import Sheet'!$A:$A,$M$2,'Import Sheet'!$B:$B,$M50) -> 0 | K50: =SUMIFS('Import Sheet'!CC:CC,'Import Sheet'!$A:$A,$M$2,'Import Sheet'!$B:$B,$M50) -> 0 | L50: =SUMIFS('Import Sheet'!CD:CD,'Import Sheet'!$A:$A,$M$2,'Import Sheet'!$B:$B,$M50) -> 0 | M50: 2300 | N50: =VLOOKUP(CONCATENATE($M$2," ",M50),'Import Sheet'!$EX:$EX,1,0) -> A5 2300
A51: Housing | C51: =SUMIFS('Import Sheet'!D:D,'Import Sheet'!$A:$A,$M$2,'Import Sheet'!$B:$B,$M51) -> 0 | D51: =SUMIFS('Import Sheet'!E:E,'Import Sheet'!$A:$A,$M$2,'Import Sheet'!$B:$B,$M51) -> 0 | E51: =SUMIFS('Import Sheet'!U:U,'Import Sheet'!$A:$A,$M$2,'Import Sheet'!$B:$B,$M51) -> 0 | F51: =SUMIFS('Import Sheet'!V:V,'Import Sheet'!$A:$A,$M$2,'Import Sheet'!$B:$B,$M51) -> 0 | G51: =SUMIFS('Import Sheet'!W:W,'Import Sheet'!$A:$A,$M$2,'Import Sheet'!$B:$B,$M51) -> 0 | H51: =SUMIFS('Import Sheet'!AA:AA,'Import Sheet'!$A:$A,$M$2,'Import Sheet'!$B:$B,$M51) -> 0 | I51: =SUMIFS('Import Sheet'!BO:BO,'Import Sheet'!$A:$A,$M$2,'Import Sheet'!$B:$B,$M51) -> 0 | J51: =SUMIFS('Import Sheet'!CB:CB,'Import Sheet'!$A:$A,$M$2,'Import Sheet'!$B:$B,$M51) -> 0 | K51: =SUMIFS('Import Sheet'!CC:CC,'Import Sheet'!$A:$A,$M$2,'Import Sheet'!$B:$B,$M51) -> 0 | L51: =SUMIFS('Import Sheet'!CD:CD,'Import Sheet'!$A:$A,$M$2,'Import Sheet'!$B:$B,$M51) -> 0 | M51: 2400 | N51: =VLOOKUP(CONCATENATE($M$2," ",M51),'Import Sheet'!$EX:$EX,1,0) -> A5 2400
A52: Health | C52: =SUMIFS('Import Sheet'!D:D,'Import Sheet'!$A:$A,$M$2,'Import Sheet'!$B:$B,$M52) -> 0 | D52: =SUMIFS('Import Sheet'!E:E,'Import Sheet'!$A:$A,$M$2,'Import Sheet'!$B:$B,$M52) -> 27068.42 | E52: =SUMIFS('Import Sheet'!U:U,'Import Sheet'!$A:$A,$M$2,'Import Sheet'!$B:$B,$M52) -> 0 | F52: =SUMIFS('Import Sheet'!V:V,'Import Sheet'!$A:$A,$M$2,'Import Sheet'!$B:$B,$M52) -> 0 | G52: =SUMIFS('Import Sheet'!W:W,'Import Sheet'!$A:$A,$M$2,'Import Sheet'!$B:$B,$M52) -> 0 | H52: =SUMIFS('Import Sheet'!AA:AA,'Import Sheet'!$A:$A,$M$2,'Import Sheet'!$B:$B,$M52) -> 0 | I52: =SUMIFS('Import Sheet'!BO:BO,'Import Sheet'!$A:$A,$M$2,'Import Sheet'!$B:$B,$M52) -> 0 | J52: =SUMIFS('Import Sheet'!CB:CB,'Import Sheet'!$A:$A,$M$2,'Import Sheet'!$B:$B,$M52) -> 0 | K52: =SUMIFS('Import Sheet'!CC:CC,'Import Sheet'!$A:$A,$M$2,'Import Sheet'!$B:$B,$M52) -> 0 | L52: =SUMIFS('Import Sheet'!CD:CD,'Import Sheet'!$A:$A,$M$2,'Import Sheet'!$B:$B,$M52) -> 0 | M52: 2500 | N52: =VLOOKUP(CONCATENATE($M$2," ",M52),'Import Sheet'!$EX:$EX,1,0) -> A5 2500
A53: Economic and environmental services | C53: =SUM(C54:C56) -> 0 | D53: =SUM(D54:D56) -> 297475.77 | E53: -223679.23 | F53: 239400 | G53: 0 | H53: 0 | I53: 0 | J53: 250000 | K53: 250000 | L53: 250000 | M53: 3000
A54: Planning and development | C54: =SUMIFS('Import Sheet'!D:D,'Import Sheet'!$A:$A,$M$2,'Import Sheet'!$B:$B,$M54) -> 0 | D54: =SUMIFS('Import Sheet'!E:E,'Import Sheet'!$A:$A,$M$2,'Import Sheet'!$B:$B,$M54) -> 297475.77 | E54: =SUMIFS('Import Sheet'!U:U,'Import Sheet'!$A:$A,$M$2,'Import Sheet'!$B:$B,$M54) -> -223679.23 | F54: =SUMIFS('Import Sheet'!V:V,'Import Sheet'!$A:$A,$M$2,'Import Sheet'!$B:$B,$M54) -> 239400 | G54: =SUMIFS('Import Sheet'!W:W,'Import Sheet'!$A:$A,$M$2,'Import Sheet'!$B:$B,$M54) -> 0 | H54: =SUMIFS('Import Sheet'!AA:AA,'Import Sheet'!$A:$A,$M$2,'Import Sheet'!$B:$B,$M54) -> 0 | I54: =SUMIFS('Import Sheet'!BO:BO,'Import Sheet'!$A:$A,$M$2,'Import Sheet'!$B:$B,$M54) -> 0 | J54: =SUMIFS('Import Sheet'!CB:CB,'Import Sheet'!$A:$A,$M$2,'Import Sheet'!$B:$B,$M54) -> 250000 | K54: =SUMIFS('Import Sheet'!CC:CC,'Import Sheet'!$A:$A,$M$2,'Import Sheet'!$B:$B,$M54) -> 250000 | L54: =SUMIFS('Import Sheet'!CD:CD,'Import Sheet'!$A:$A,$M$2,'Import Sheet'!$B:$B,$M54) -> 250000 | M54: 3100 | N54: =VLOOKUP(CONCATENATE($M$2," ",M54),'Import Sheet'!$EX:$EX,1,0) -> A5 3100
A55: Road transport | C55: =SUMIFS('Import Sheet'!D:D,'Import Sheet'!$A:$A,$M$2,'Import Sheet'!$B:$B,$M55) -> 0 | D55: =SUMIFS('Import Sheet'!E:E,'Import Sheet'!$A:$A,$M$2,'Import Sheet'!$B:$B,$M55) -> 0 | E55: =SUMIFS('Import Sheet'!U:U,'Import Sheet'!$A:$A,$M$2,'Import Sheet'!$B:$B,$M55) -> 0 | F55: =SUMIFS('Import Sheet'!V:V,'Import Sheet'!$A:$A,$M$2,'Import Sheet'!$B:$B,$M55) -> 0 | G55: =SUMIFS('Import Sheet'!W:W,'Import Sheet'!$A:$A,$M$2,'Import Sheet'!$B:$B,$M55) -> 0 | H55: =SUMIFS('Import Sheet'!AA:AA,'Import Sheet'!$A:$A,$M$2,'Import Sheet'!$B:$B,$M55) -> 0 | I55: =SUMIFS('Import Sheet'!BO:BO,'Import Sheet'!$A:$A,$M$2,'Import Sheet'!$B:$B,$M55) -> 0 | J55: =SUMIFS('Import Sheet'!CB:CB,'Import Sheet'!$A:$A,$M$2,'Import Sheet'!$B:$B,$M55) -> 0 | K55: =SUMIFS('Import Sheet'!CC:CC,'Import Sheet'!$A:$A,$M$2,'Import Sheet'!$B:$B,$M55) -> 0 | L55: =SUMIFS('Import Sheet'!CD:CD,'Import Sheet'!$A:$A,$M$2,'Import Sheet'!$B:$B,$M55) -> 0 | M55: 3200 | N55: =VLOOKUP(CONCATENATE($M$2," ",M55),'Import Sheet'!$EX:$EX,1,0) -> A5 3200
A56: Environmental protection | C56: =SUMIFS('Import Sheet'!D:D,'Import Sheet'!$A:$A,$M$2,'Import Sheet'!$B:$B,$M56) -> 0 | D56: =SUMIFS('Import Sheet'!E:E,'Import Sheet'!$A:$A,$M$2,'Import Sheet'!$B:$B,$M56) -> 0 | E56: =SUMIFS('Import Sheet'!U:U,'Import Sheet'!$A:$A,$M$2,'Import Sheet'!$B:$B,$M56) -> 0 | F56: =SUMIFS('Import Sheet'!V:V,'Import Sheet'!$A:$A,$M$2,'Import Sheet'!$B:$B,$M56) -> 0 | G56: =SUMIFS('Import Sheet'!W:W,'Import Sheet'!$A:$A,$M$2,'Import Sheet'!$B:$B,$M56) -> 0 | H56: =SUMIFS('Import Sheet'!AA:AA,'Import Sheet'!$A:$A,$M$2,'Import Sheet'!$B:$B,$M56) -> 0 | I56: =SUMIFS('Import Sheet'!BO:BO,'Import Sheet'!$A:$A,$M$2,'Import Sheet'!$B:$B,$M56) -> 0 | J56: =SUMIFS('Import Sheet'!CB:CB,'Import Sheet'!$A:$A,$M$2,'Import Sheet'!$B:$B,$M56) -> 0 | K56: =SUMIFS('Import Sheet'!CC:CC,'Import Sheet'!$A:$A,$M$2,'Import Sheet'!$B:$B,$M56) -> 0 | L56: =SUMIFS('Import Sheet'!CD:CD,'Import Sheet'!$A:$A,$M$2,'Import Sheet'!$B:$B,$M56) -> 0 | M56: 3300 | N56: =VLOOKUP(CONCATENATE($M$2," ",M56),'Import Sheet'!$EX:$EX,1,0) -> A5 3300
A57: Trading services | C57: =SUM(C58:C61) -> 0 | D57: =SUM(D58:D61) -> 0 | E57: 0 | F57: 0 | G57: 0 | H57: 0 | I57: 0 | J57: 0 | K57: 0 | L57: 0 | M57: 4000
A58: Energy sources | C58: =SUMIFS('Import Sheet'!D:D,'Import Sheet'!$A:$A,$M$2,'Import Sheet'!$B:$B,$M58) -> 0 | D58: =SUMIFS('Import Sheet'!E:E,'Import Sheet'!$A:$A,$M$2,'Import Sheet'!$B:$B,$M58) -> 0 | E58: =SUMIFS('Import Sheet'!U:U,'Import Sheet'!$A:$A,$M$2,'Import Sheet'!$B:$B,$M58) -> 0 | F58: =SUMIFS('Import Sheet'!V:V,'Import Sheet'!$A:$A,$M$2,'Import Sheet'!$B:$B,$M58) -> 0 | G58: =SUMIFS('Import Sheet'!W:W,'Import Sheet'!$A:$A,$M$2,'Import Sheet'!$B:$B,$M58) -> 0 | H58: =SUMIFS('Import Sheet'!AA:AA,'Import Sheet'!$A:$A,$M$2,'Import Sheet'!$B:$B,$M58) -> 0 | I58: =SUMIFS('Import Sheet'!BO:BO,'Import Sheet'!$A:$A,$M$2,'Import Sheet'!$B:$B,$M58) -> 0 | J58: =SUMIFS('Import Sheet'!CB:CB,'Import Sheet'!$A:$A,$M$2,'Import Sheet'!$B:$B,$M58) -> 0 | K58: =SUMIFS('Import Sheet'!CC:CC,'Import Sheet'!$A:$A,$M$2,'Import Sheet'!$B:$B,$M58) -> 0 | L58: =SUMIFS('Import Sheet'!CD:CD,'Import Sheet'!$A:$A,$M$2,'Import Sheet'!$B:$B,$M58) -> 0 | M58: 4100 | N58: =VLOOKUP(CONCATENATE($M$2," ",M58),'Import Sheet'!$EX:$EX,1,0) -> A5 4100
A59: Water management | C59: =SUMIFS('Import Sheet'!D:D,'Import Sheet'!$A:$A,$M$2,'Import Sheet'!$B:$B,$M59) -> 0 | D59: =SUMIFS('Import Sheet'!E:E,'Import Sheet'!$A:$A,$M$2,'Import Sheet'!$B:$B,$M59) -> 0 | E59: =SUMIFS('Import Sheet'!U:U,'Import Sheet'!$A:$A,$M$2,'Import Sheet'!$B:$B,$M59) -> 0 | F59: =SUMIFS('Import Sheet'!V:V,'Import Sheet'!$A:$A,$M$2,'Import Sheet'!$B:$B,$M59) -> 0 | G59: =SUMIFS('Import Sheet'!W:W,'Import Sheet'!$A:$A,$M$2,'Import Sheet'!$B:$B,$M59) -> 0 | H59: =SUMIFS('Import Sheet'!AA:AA,'Import Sheet'!$A:$A,$M$2,'Import Sheet'!$B:$B,$M59) -> 0 | I59: =SUMIFS('Import Sheet'!BO:BO,'Import Sheet'!$A:$A,$M$2,'Import Sheet'!$B:$B,$M59) -> 0 | J59: =SUMIFS('Import Sheet'!CB:CB,'Import Sheet'!$A:$A,$M$2,'Import Sheet'!$B:$B,$M59) -> 0 | K59: =SUMIFS('Import Sheet'!CC:CC,'Import Sheet'!$A:$A,$M$2,'Import Sheet'!$B:$B,$M59) -> 0 | L59: =SUMIFS('Import Sheet'!CD:CD,'Import Sheet'!$A:$A,$M$2,'Import Sheet'!$B:$B,$M59) -> 0 | M59: 4200 | N59: =VLOOKUP(CONCATENATE($M$2," ",M59),'Import Sheet'!$EX:$EX,1,0) -> A5 4200
A60: Waste water management | C60: =SUMIFS('Import Sheet'!D:D,'Import Sheet'!$A:$A,$M$2,'Import Sheet'!$B:$B,$M60) -> 0 | D60: =SUMIFS('Import Sheet'!E:E,'Import Sheet'!$A:$A,$M$2,'Import Sheet'!$B:$B,$M60) -> 0 | E60: =SUMIFS('Import Sheet'!U:U,'Import Sheet'!$A:$A,$M$2,'Import Sheet'!$B:$B,$M60) -> 0 | F60: =SUMIFS('Import Sheet'!V:V,'Import Sheet'!$A:$A,$M$2,'Import Sheet'!$B:$B,$M60) -> 0 | G60: =SUMIFS('Import Sheet'!W:W,'Import Sheet'!$A:$A,$M$2,'Import Sheet'!$B:$B,$M60) -> 0 | H60: =SUMIFS('Import Sheet'!AA:AA,'Import Sheet'!$A:$A,$M$2,'Import Sheet'!$B:$B,$M60) -> 0 | I60: =SUMIFS('Import Sheet'!BO:BO,'Import Sheet'!$A:$A,$M$2,'Import Sheet'!$B:$B,$M60) -> 0 | J60: =SUMIFS('Import Sheet'!CB:CB,'Import Sheet'!$A:$A,$M$2,'Import Sheet'!$B:$B,$M60) -> 0 | K60: =SUMIFS('Import Sheet'!CC:CC,'Import Sheet'!$A:$A,$M$2,'Import Sheet'!$B:$B,$M60) -> 0 | L60: =SUMIFS('Import Sheet'!CD:CD,'Import Sheet'!$A:$A,$M$2,'Import Sheet'!$B:$B,$M60) -> 0 | M60: 4300 | N60: =VLOOKUP(CONCATENATE($M$2," ",M60),'Import Sheet'!$EX:$EX,1,0) -> A5 4300
A61: Waste management | C61: =SUMIFS('Import Sheet'!D:D,'Import Sheet'!$A:$A,$M$2,'Import Sheet'!$B:$B,$M61) -> 0 | D61: =SUMIFS('Import Sheet'!E:E,'Import Sheet'!$A:$A,$M$2,'Import Sheet'!$B:$B,$M61) -> 0 | E61: =SUMIFS('Import Sheet'!U:U,'Import Sheet'!$A:$A,$M$2,'Import Sheet'!$B:$B,$M61) -> 0 | F61: =SUMIFS('Import Sheet'!V:V,'Import Sheet'!$A:$A,$M$2,'Import Sheet'!$B:$B,$M61) -> 0 | G61: =SUMIFS('Import Sheet'!W:W,'Import Sheet'!$A:$A,$M$2,'Import Sheet'!$B:$B,$M61) -> 0 | H61: =SUMIFS('Import Sheet'!AA:AA,'Import Sheet'!$A:$A,$M$2,'Import Sheet'!$B:$B,$M61) -> 0 | I61: =SUMIFS('Import Sheet'!BO:BO,'Import Sheet'!$A:$A,$M$2,'Import Sheet'!$B:$B,$M61) -> 0 | J61: =SUMIFS('Import Sheet'!CB:CB,'Import Sheet'!$A:$A,$M$2,'Import Sheet'!$B:$B,$M61) -> 0 | K61: =SUMIFS('Import Sheet'!CC:CC,'Import Sheet'!$A:$A,$M$2,'Import Sheet'!$B:$B,$M61) -> 0 | L61: =SUMIFS('Import Sheet'!CD:CD,'Import Sheet'!$A:$A,$M$2,'Import Sheet'!$B:$B,$M61) -> 0 | M61: 4400 | N61: =VLOOKUP(CONCATENATE($M$2," ",M61),'Import Sheet'!$EX:$EX,1,0) -> A5 4400
A62: Other | C62: =SUMIFS('Import Sheet'!D:D,'Import Sheet'!$A:$A,$M$2,'Import Sheet'!$B:$B,$M62) -> 0 | D62: =SUMIFS('Import Sheet'!E:E,'Import Sheet'!$A:$A,$M$2,'Import Sheet'!$B:$B,$M62) -> 0 | E62: =SUMIFS('Import Sheet'!U:U,'Import Sheet'!$A:$A,$M$2,'Import Sheet'!$B:$B,$M62) -> 0 | F62: =SUMIFS('Import Sheet'!V:V,'Import Sheet'!$A:$A,$M$2,'Import Sheet'!$B:$B,$M62) -> 0 | G62: =SUMIFS('Import Sheet'!W:W,'Import Sheet'!$A:$A,$M$2,'Import Sheet'!$B:$B,$M62) -> 0 | H62: =SUMIFS('Import Sheet'!AA:AA,'Import Sheet'!$A:$A,$M$2,'Import Sheet'!$B:$B,$M62) -> 0 | I62: =SUMIFS('Import Sheet'!BO:BO,'Import Sheet'!$A:$A,$M$2,'Import Sheet'!$B:$B,$M62) -> 0 | J62: =SUMIFS('Import Sheet'!CB:CB,'Import Sheet'!$A:$A,$M$2,'Import Sheet'!$B:$B,$M62) -> 0 | K62: =SUMIFS('Import Sheet'!CC:CC,'Import Sheet'!$A:$A,$M$2,'Import Sheet'!$B:$B,$M62) -> 0 | L62: =SUMIFS('Import Sheet'!CD:CD,'Import Sheet'!$A:$A,$M$2,'Import Sheet'!$B:$B,$M62) -> 0 | M62: 5000 | N62: =VLOOKUP(CONCATENATE($M$2," ",M62),'Import Sheet'!$EX:$EX,1,0) -> A5 5000
A63: Total Capital Expenditure - Functional | B63: 3,7 | C63: =C43+C47+C53+C57+C62 -> 0 | D63: =D43+D47+D53+D57+D62 -> 82694.17 | E63: -26704.25 | F63: 2644400 | G63: 180000 | H63: 180000 | I63: -161026.76 | J63: 1820000 | K63: 1110000 | L63: =L43+L47+L53+L57+L62 -> 1100000 | M63: CAPEX | N63: Link to A1
A65: Funded by: | M65: 2000
A66: National Government | C66: =SUMIFS('Import Sheet'!D:D,'Import Sheet'!$A:$A,$M$2,'Import Sheet'!$B:$B,$M66) -> 0 | D66: =SUMIFS('Import Sheet'!E:E,'Import Sheet'!$A:$A,$M$2,'Import Sheet'!$B:$B,$M66) -> 0 | E66: =SUMIFS('Import Sheet'!U:U,'Import Sheet'!$A:$A,$M$2,'Import Sheet'!$B:$B,$M66) -> -144200.97 | F66: =SUMIFS('Import Sheet'!V:V,'Import Sheet'!$A:$A,$M$2,'Import Sheet'!$B:$B,$M66) -> 739400 | G66: =SUMIFS('Import Sheet'!W:W,'Import Sheet'!$A:$A,$M$2,'Import Sheet'!$B:$B,$M66) -> 0 | H66: =SUMIFS('Import Sheet'!AA:AA,'Import Sheet'!$A:$A,$M$2,'Import Sheet'!$B:$B,$M66) -> 0 | I66: =SUMIFS('Import Sheet'!BO:BO,'Import Sheet'!$A:$A,$M$2,'Import Sheet'!$B:$B,$M66) -> 0 | J66: =SUMIFS('Import Sheet'!CB:CB,'Import Sheet'!$A:$A,$M$2,'Import Sheet'!$B:$B,$M66) -> 750000 | K66: =SUMIFS('Import Sheet'!CC:CC,'Import Sheet'!$A:$A,$M$2,'Import Sheet'!$B:$B,$M66) -> 750000 | L66: =SUMIFS('Import Sheet'!CD:CD,'Import Sheet'!$A:$A,$M$2,'Import Sheet'!$B:$B,$M66) -> 750000 | M66: 2010 | N66: =VLOOKUP(CONCATENATE($M$2," ",M66),'Import Sheet'!$EX:$EX,1,0) -> A5 2010
A67: Provincial Government | C67: =SUMIFS('Import Sheet'!D:D,'Import Sheet'!$A:$A,$M$2,'Import Sheet'!$B:$B,$M67) -> 0 | D67: =SUMIFS('Import Sheet'!E:E,'Import Sheet'!$A:$A,$M$2,'Import Sheet'!$B:$B,$M67) -> 0 | E67: =SUMIFS('Import Sheet'!U:U,'Import Sheet'!$A:$A,$M$2,'Import Sheet'!$B:$B,$M67) -> 0 | F67: =SUMIFS('Import Sheet'!V:V,'Import Sheet'!$A:$A,$M$2,'Import Sheet'!$B:$B,$M67) -> 0 | G67: =SUMIFS('Import Sheet'!W:W,'Import Sheet'!$A:$A,$M$2,'Import Sheet'!$B:$B,$M67) -> 0 | H67: =SUMIFS('Import Sheet'!AA:AA,'Import Sheet'!$A:$A,$M$2,'Import Sheet'!$B:$B,$M67) -> 0 | I67: =SUMIFS('Import Sheet'!BO:BO,'Import Sheet'!$A:$A,$M$2,'Import Sheet'!$B:$B,$M67) -> 0 | J67: =SUMIFS('Import Sheet'!CB:CB,'Import Sheet'!$A:$A,$M$2,'Import Sheet'!$B:$B,$M67) -> 0 | K67: =SUMIFS('Import Sheet'!CC:CC,'Import Sheet'!$A:$A,$M$2,'Import Sheet'!$B:$B,$M67) -> 0 | L67: =SUMIFS('Import Sheet'!CD:CD,'Import Sheet'!$A:$A,$M$2,'Import Sheet'!$B:$B,$M67) -> 0 | M67: 2020 | N67: =VLOOKUP(CONCATENATE($M$2," ",M67),'Import Sheet'!$EX:$EX,1,0) -> A5 2020
A68: District Municipality | C68: =SUMIFS('Import Sheet'!D:D,'Import Sheet'!$A:$A,$M$2,'Import Sheet'!$B:$B,$M68) -> 0 | D68: =SUMIFS('Import Sheet'!E:E,'Import Sheet'!$A:$A,$M$2,'Import Sheet'!$B:$B,$M68) -> 0 | E68: =SUMIFS('Import Sheet'!U:U,'Import Sheet'!$A:$A,$M$2,'Import Sheet'!$B:$B,$M68) -> 0 | F68: =SUMIFS('Import Sheet'!V:V,'Import Sheet'!$A:$A,$M$2,'Import Sheet'!$B:$B,$M68) -> 0 | G68: =SUMIFS('Import Sheet'!W:W,'Import Sheet'!$A:$A,$M$2,'Import Sheet'!$B:$B,$M68) -> 0 | H68: =SUMIFS('Import Sheet'!AA:AA,'Import Sheet'!$A:$A,$M$2,'Import Sheet'!$B:$B,$M68) -> 0 | I68: =SUMIFS('Import Sheet'!BO:BO,'Import Sheet'!$A:$A,$M$2,'Import Sheet'!$B:$B,$M68) -> 0 | J68: =SUMIFS('Import Sheet'!CB:CB,'Import Sheet'!$A:$A,$M$2,'Import Sheet'!$B:$B,$M68) -> 0 | K68: =SUMIFS('Import Sheet'!CC:CC,'Import Sheet'!$A:$A,$M$2,'Import Sheet'!$B:$B,$M68) -> 0 | L68: =SUMIFS('Import Sheet'!CD:CD,'Import Sheet'!$A:$A,$M$2,'Import Sheet'!$B:$B,$M68) -> 0 | M68: 2030 | N68: =VLOOKUP(CONCATENATE($M$2," ",M68),'Import Sheet'!$EX:$EX,1,0) -> A5 2030
A69: ='A4-FinPerf RE'!A39 -> Transfers and subsidies - capital (monetary allocations) (National / Provincial Departmental Agencies, Households, Non-profit Institutions, Private Enterprises, Public Corporatons, Higher Educational Institutions) | C69: =SUMIFS('Import Sheet'!D:D,'Import Sheet'!$A:$A,$M$2,'Import Sheet'!$B:$B,$M69) -> 0 | D69: =SUMIFS('Import Sheet'!E:E,'Import Sheet'!$A:$A,$M$2,'Import Sheet'!$B:$B,$M69) -> 0 | E69: =SUMIFS('Import Sheet'!U:U,'Import Sheet'!$A:$A,$M$2,'Import Sheet'!$B:$B,$M69) -> 0 | F69: =SUMIFS('Import Sheet'!V:V,'Import Sheet'!$A:$A,$M$2,'Import Sheet'!$B:$B,$M69) -> 0 | G69: =SUMIFS('Import Sheet'!W:W,'Import Sheet'!$A:$A,$M$2,'Import Sheet'!$B:$B,$M69) -> 0 | H69: =SUMIFS('Import Sheet'!AA:AA,'Import Sheet'!$A:$A,$M$2,'Import Sheet'!$B:$B,$M69) -> 0 | I69: =SUMIFS('Import Sheet'!BO:BO,'Import Sheet'!$A:$A,$M$2,'Import Sheet'!$B:$B,$M69) -> 0 | J69: =SUMIFS('Import Sheet'!CB:CB,'Import Sheet'!$A:$A,$M$2,'Import Sheet'!$B:$B,$M69) -> 0 | K69: =SUMIFS('Import Sheet'!CC:CC,'Import Sheet'!$A:$A,$M$2,'Import Sheet'!$B:$B,$M69) -> 0 | L69: =SUMIFS('Import Sheet'!CD:CD,'Import Sheet'!$A:$A,$M$2,'Import Sheet'!$B:$B,$M69) -> 0 | M69: 2040 | N69: =VLOOKUP(CONCATENATE($M$2," ",M69),'Import Sheet'!$EX:$EX,1,0) -> A5 2040
A70: Transfers recognised - capital | B70: 4 | C70: =SUM(C66:C69) -> 0 | D70: 0 | E70: -144200.97 | F70: 739400 | G70: 0 | H70: 0 | I70: 0 | J70: 750000 | K70: 750000 | L70: 750000 | M70: 2050 | N70: Link to A1
A71: Public contributions & donations | B71: 5 | C71: =SUMIFS('Import Sheet'!D:D,'Import Sheet'!$A:$A,$M$2,'Import Sheet'!$B:$B,$M71) -> 0 | D71: =SUMIFS('Import Sheet'!E:E,'Import Sheet'!$A:$A,$M$2,'Import Sheet'!$B:$B,$M71) -> 0 | E71: =SUMIFS('Import Sheet'!U:U,'Import Sheet'!$A:$A,$M$2,'Import Sheet'!$B:$B,$M71) -> 0 | F71: =SUMIFS('Import Sheet'!V:V,'Import Sheet'!$A:$A,$M$2,'Import Sheet'!$B:$B,$M71) -> 0 | G71: =SUMIFS('Import Sheet'!W:W,'Import Sheet'!$A:$A,$M$2,'Import Sheet'!$B:$B,$M71) -> 0 | H71: =SUMIFS('Import Sheet'!AA:AA,'Import Sheet'!$A:$A,$M$2,'Import Sheet'!$B:$B,$M71) -> 0 | I71: =SUMIFS('Import Sheet'!BO:BO,'Import Sheet'!$A:$A,$M$2,'Import Sheet'!$B:$B,$M71) -> 0 | J71: =SUMIFS('Import Sheet'!CB:CB,'Import Sheet'!$A:$A,$M$2,'Import Sheet'!$B:$B,$M71) -> 0 | K71: =SUMIFS('Import Sheet'!CC:CC,'Import Sheet'!$A:$A,$M$2,'Import Sheet'!$B:$B,$M71) -> 0 | L71: =SUMIFS('Import Sheet'!CD:CD,'Import Sheet'!$A:$A,$M$2,'Import Sheet'!$B:$B,$M71) -> 0 | M71: 2060 | N71: =VLOOKUP(CONCATENATE($M$2," ",M71),'Import Sheet'!$EX:$EX,1,0) -> A5 2060 | O71: Link to A1
A72: Borrowing | B72: 6 | C72: =SUMIFS('Import Sheet'!D:D,'Import Sheet'!$A:$A,$M$2,'Import Sheet'!$B:$B,$M72) -> 0 | D72: =SUMIFS('Import Sheet'!E:E,'Import Sheet'!$A:$A,$M$2,'Import Sheet'!$B:$B,$M72) -> 0 | E72: =SUMIFS('Import Sheet'!U:U,'Import Sheet'!$A:$A,$M$2,'Import Sheet'!$B:$B,$M72) -> 0 | F72: =SUMIFS('Import Sheet'!V:V,'Import Sheet'!$A:$A,$M$2,'Import Sheet'!$B:$B,$M72) -> 0 | G72: =SUMIFS('Import Sheet'!W:W,'Import Sheet'!$A:$A,$M$2,'Import Sheet'!$B:$B,$M72) -> 0 | H72: =SUMIFS('Import Sheet'!AA:AA,'Import Sheet'!$A:$A,$M$2,'Import Sheet'!$B:$B,$M72) -> 0 | I72: =SUMIFS('Import Sheet'!BO:BO,'Import Sheet'!$A:$A,$M$2,'Import Sheet'!$B:$B,$M72) -> 0 | J72: =SUMIFS('Import Sheet'!CB:CB,'Import Sheet'!$A:$A,$M$2,'Import Sheet'!$B:$B,$M72) -> 0 | K72: =SUMIFS('Import Sheet'!CC:CC,'Import Sheet'!$A:$A,$M$2,'Import Sheet'!$B:$B,$M72) -> 0 | L72: =SUMIFS('Import Sheet'!CD:CD,'Import Sheet'!$A:$A,$M$2,'Import Sheet'!$B:$B,$M72) -> 0 | M72: 2070 | N72: =VLOOKUP(CONCATENATE($M$2," ",M72),'Import Sheet'!$EX:$EX,1,0) -> A5 2070 | O72: Link to A1
A73: Internally generated funds | C73: =SUMIFS('Import Sheet'!D:D,'Import Sheet'!$A:$A,$M$2,'Import Sheet'!$B:$B,$M73) -> 0 | D73: =SUMIFS('Import Sheet'!E:E,'Import Sheet'!$A:$A,$M$2,'Import Sheet'!$B:$B,$M73) -> 0 | E73: =SUMIFS('Import Sheet'!U:U,'Import Sheet'!$A:$A,$M$2,'Import Sheet'!$B:$B,$M73) -> -9552.31 | F73: =SUMIFS('Import Sheet'!V:V,'Import Sheet'!$A:$A,$M$2,'Import Sheet'!$B:$B,$M73) -> 1365000 | G73: =SUMIFS('Import Sheet'!W:W,'Import Sheet'!$A:$A,$M$2,'Import Sheet'!$B:$B,$M73) -> 180000 | H73: =SUMIFS('Import Sheet'!AA:AA,'Import Sheet'!$A:$A,$M$2,'Import Sheet'!$B:$B,$M73) -> 180000 | I73: =SUMIFS('Import Sheet'!BO:BO,'Import Sheet'!$A:$A,$M$2,'Import Sheet'!$B:$B,$M73) -> 22234.11 | J73: =SUMIFS('Import Sheet'!CB:CB,'Import Sheet'!$A:$A,$M$2,'Import Sheet'!$B:$B,$M73) -> 1070000 | K73: =SUMIFS('Import Sheet'!CC:CC,'Import Sheet'!$A:$A,$M$2,'Import Sheet'!$B:$B,$M73) -> 360000 | L73: =SUMIFS('Import Sheet'!CD:CD,'Import Sheet'!$A:$A,$M$2,'Import Sheet'!$B:$B,$M73) -> 350000 | M73: 2080 | N73: =VLOOKUP(CONCATENATE($M$2," ",M73),'Import Sheet'!$EX:$EX,1,0) -> A5 2080 | O73: Link to A1
A74: Total Capital Funding | B74: 7 | C74: =SUM(C70:C73) -> 0 | D74: 0 | E74: -153753.28 | F74: 2104400 | G74: 180000 | H74: 180000 | I74: 22234.11 | J74: 1820000 | K74: 1110000 | L74: 1100000 | M74: 2090
A75: =head27a -> References
A76: 1. Municipalities may choose to appropriate for capital expenditure for three years or for one year (if one year appropriation projected expenditure required for yr2 and yr3).
A77: 2. Include capital component of PPP unitary payment. Note that capital transfers are only appropriated to municipalities for the budget year
A78: 3. Capital expenditure by functional classification must reconcile to the appropriations by vote
A79: 4. Must reconcile to supporting table SA20 and to Budgeted Financial Performance (revenue and expenditure)
A80: 5. Must reconcile to Budgeted Financial Performance (revenue and expenditure)
A81: 6. Include finance leases and PPP capital funding component of unitary payment - total borrowing/repayments to reconcile to changes in Table SA17
A82: 7. Total Capital Funding must balance with Total Capital Expenditure
A83: 8. Include any capitalised interest (MFMA section 46) as part of relevant capital budget
A85: Check Capital Expenditure per Municipal Vote with Capital Expenditure per Function | C85: =ROUND(C40-C63,0) -> 0 | D85: =ROUND(D40-D63,0) -> -82694 | E85: 0 | F85: 0 | G85: 0 | H85: 0 | I85: 0 | J85: 0 | K85: 0 | L85: 0
A86: Check Capital Expenditure per Municipal Vote with Capital Funding | C86: =ROUND(C40-C74,0) -> 0 | D86: =ROUND(D40-D74,0) -> 0 | E86: 127049 | F86: 540000 | G86: 0 | H86: 0 | I86: -183261 | J86: 0 | K86: 0 | L86: 0
A87: Check Capital Expenditure per Function with Capital Funding | C87: =ROUND(C63-C74,0) -> 0 | D87: =ROUND(D63-D74,0) -> 82694 | E87: 127049 | F87: 540000 | G87: 0 | H87: 0 | I87: -183261 | J87: 0 | K87: 0 | L87: 0
A89: Capital Expenditure as per Project - SA34a | C89: =+SA34a!C$167 -> 0 | D89: =+SA34a!D$167 -> 85394.17 | E89: =+SA34a!E$167 -> -26704.25 | F89: =+SA34a!F$167 -> 2644400 | G89: =+SA34a!G$167 -> 180000 | H89: =+SA34a!H$167 -> 180000 | J89: =+SA34a!I$167 -> 1820000 | K89: =+SA34a!J$167 -> 1110000 | L89: =+SA34a!K$167 -> 1100000
A90: Capital Expenditure as per Project - SA34b | C90: =+SA34b!C$167 -> 0 | D90: =+SA34b!D$167 -> 0 | E90: =+SA34b!E$167 -> 0 | F90: =+SA34b!F$167 -> 0 | G90: =+SA34b!G$167 -> 0 | H90: =+SA34b!H$167 -> 0 | J90: =+SA34b!I$167 -> 0 | K90: =+SA34b!J$167 -> 0 | L90: =+SA34b!K$167 -> 0
A91: Capital Expenditure as per Project - SA34e | C91: =+SA34e!C$167 -> 0 | D91: =+SA34e!D$167 -> -2700 | E91: =+SA34e!E$167 -> 0 | F91: =+SA34e!F$167 -> 0 | G91: =+SA34e!G$167 -> 0 | H91: =+SA34e!H$167 -> 0 | J91: =+SA34e!I$167 -> 0 | K91: =+SA34e!J$167 -> 0 | L91: =+SA34e!K$167 -> 0
A92: Total | C92: =SUM(C89:C91) -> 0 | D92: =SUM(D89:D91) -> 82694.17 | E92: -26704.25 | F92: 2644400 | G92: 180000 | H92: 180000 | J92: 1820000 | K92: 1110000 | L92: 1100000
A94: Check Capital Expenditure per Project with Function | C94: =+C63-C92 -> 0 | D94: 0 | E94: -1.164153218e-10 | F94: 0 | G94: 0 | H94: 0 | J94: =+J63-J92 -> 0 | K94: =+K63-K92 -> 0 | L94: =+L63-L92 -> 0

Sheet A5A
A1: =muni&" - "&Approve5 -> DC8 Z F Mgcawu - Table A5 Budgeted Capital Expenditure by vote, functional classification and funding
A2: =Vdesc -> Vote Description | B2: =head27 -> Ref | C2: =head1b -> 2016/17 | D2: =head1A -> 2017/18 | E2: =Head1 -> 2018/19 | F2: =Head2 -> Current Year 2019/20 | J2: =Head3 -> 2020/21 Medium Term Revenue & Expenditure Framework | N2: ="Multi-year appropriation for "&Head9& " in the "&Head2A&" Annual Budget" -> Multi-year appropriation for Budget Year 2020/21 in the 2019/20 Annual Budget | R2: ="Multi-year appropriation for "&RIGHT(Head10,7)& " in the "&Head2A&" Annual Budget" -> Multi-year appropriation for 2021/22 in the 2019/20 Annual Budget | V2: New multi-year appropriations (funds for new and existing projects) | Y2: A5A | Z2: Check Import Sheet
A3: R thousand | B3: 1 | C3: =Head5 -> Audited Outcome | D3: =Head5 -> Audited Outcome | E3: =Head5 -> Audited Outcome | F3: =Head6 -> Original Budget | G3: =Head7 -> Adjusted Budget | H3: =Head8 -> Full Year Forecast | I3: =Head5b -> Pre-audit outcome | J3: =Head9 -> Budget Year 2020/21 | K3: =Head10 -> Budget Year +1 2021/22 | L3: =Head11 -> Budget Year +2 2022/23 | N3: ="Appropriation for "&RIGHT(Head9,7) -> Appropriation for 2020/21 | O3: ="Adjustments in "&Head2A -> Adjustments in 2019/20 | P3: ="Downward adjustments for "&RIGHT(Head9,7) -> Downward adjustments for 2020/21 | Q3: Appropriation carried forward | R3: ="Appropriation for "&RIGHT(Head9,7) -> Appropriation for 2020/21 | S3: ="Adjustments in "&Head2A -> Adjustments in 2019/20 | T3: ="Downward adjustments for "&RIGHT(Head9,7) -> Downward adjustments for 2020/21 | U3: Appropriation carried forward | V3: =Head9 -> Budget Year 2020/21 | W3: =Head10 -> Budget Year +1 2021/22 | X3: =Head11 -> Budget Year +2 2022/23
A4: Capital expenditure - Municipal Vote
A5: Multi-year expenditure appropriation | B5: 2
A6: ='Org structure'!A2 -> Vote 1 - EXECUTIVE AND COUNCIL | C6: =SUM(C7:C16) -> 0 | D6: =SUM(D7:D16) -> 0 | E6: 0 | F6: 0 | G6: 0 | H6: 0 | I6: =SUM(I7:I16) -> 0 | J6: 0 | K6: 0 | L6: 0 | N6: =SUM(N7:N16) -> 0 | O6: 0 | P6: 0 | Q6: 0 | R6: 0 | S6: 0 | T6: 0 | U6: 0 | V6: =SUM(V7:V16) -> 0 | W6: =SUM(W7:W16) -> 0 | X6: =SUM(X7:X16) -> 0
A7: ='Org structure'!E3 -> 1.1 - Council Administration | C7: =SUMIFS('Import Sheet'!D:D,'Import Sheet'!$A:$A,$Y$2,'Import Sheet'!$B:$B,$Y7) -> 0 | D7: =SUMIFS('Import Sheet'!E:E,'Import Sheet'!$A:$A,$Y$2,'Import Sheet'!$B:$B,$Y7) -> 0 | E7: =SUMIFS('Import Sheet'!U:U,'Import Sheet'!$A:$A,$Y$2,'Import Sheet'!$B:$B,$Y7) -> 0 | F7: =SUMIFS('Import Sheet'!V:V,'Import Sheet'!$A:$A,$Y$2,'Import Sheet'!$B:$B,$Y7) -> 0 | G7: =SUMIFS('Import Sheet'!W:W,'Import Sheet'!$A:$A,$Y$2,'Import Sheet'!$B:$B,$Y7) -> 0 | H7: =SUMIFS('Import Sheet'!AA:AA,'Import Sheet'!$A:$A,$Y$2,'Import Sheet'!$B:$B,$Y7) -> 0 | I7: =SUMIFS('Import Sheet'!BO:BO,'Import Sheet'!$A:$A,$Y$2,'Import Sheet'!$B:$B,$Y7) -> 0 | J7: =Q7+V7 -> 0 | K7: =U7+W7 -> 0 | L7: =X7 -> 0 | Q7: =SUM(N7:P7) -> 0 | U7: =SUM(R7:T7) -> 0 | V7: =SUMIFS('Import Sheet'!CB:CB,'Import Sheet'!$A:$A,$Y$2,'Import Sheet'!$B:$B,$Y7) -> 0 | W7: =SUMIFS('Import Sheet'!CC:CC,'Import Sheet'!$A:$A,$Y$2,'Import Sheet'!$B:$B,$Y7) -> 0 | X7: =SUMIFS('Import Sheet'!CD:CD,'Import Sheet'!$A:$A,$Y$2,'Import Sheet'!$B:$B,$Y7) -> 0 | Y7: 1.01 CAPEX MULTI | Z7: =VLOOKUP(CONCATENATE($Y$2," ",Y7),'Import Sheet'!$EX:$EX,1,0) -> A5A 1.01 CAPEX MULTI
A8: ='Org structure'!E4 -> 1.2 - Council Services | C8: =SUMIFS('Import Sheet'!D:D,'Import Sheet'!$A:$A,$Y$2,'Import Sheet'!$B:$B,$Y8) -> 0 | D8: =SUMIFS('Import Sheet'!E:E,'Import Sheet'!$A:$A,$Y$2,'Import Sheet'!$B:$B,$Y8) -> 0 | E8: =SUMIFS('Import Sheet'!U:U,'Import Sheet'!$A:$A,$Y$2,'Import Sheet'!$B:$B,$Y8) -> 0 | F8: =SUMIFS('Import Sheet'!V:V,'Import Sheet'!$A:$A,$Y$2,'Import Sheet'!$B:$B,$Y8) -> 0 | G8: =SUMIFS('Import Sheet'!W:W,'Import Sheet'!$A:$A,$Y$2,'Import Sheet'!$B:$B,$Y8) -> 0 | H8: =SUMIFS('Import Sheet'!AA:AA,'Import Sheet'!$A:$A,$Y$2,'Import Sheet'!$B:$B,$Y8) -> 0 | I8: =SUMIFS('Import Sheet'!BO:BO,'Import Sheet'!$A:$A,$Y$2,'Import Sheet'!$B:$B,$Y8) -> 0 | J8: =Q8+V8 -> 0 | K8: =U8+W8 -> 0 | L8: =X8 -> 0 | Q8: =SUM(N8:P8) -> 0 | U8: =SUM(R8:T8) -> 0 | V8: =SUMIFS('Import Sheet'!CB:CB,'Import Sheet'!$A:$A,$Y$2,'Import Sheet'!$B:$B,$Y8) -> 0 | W8: =SUMIFS('Import Sheet'!CC:CC,'Import Sheet'!$A:$A,$Y$2,'Import Sheet'!$B:$B,$Y8) -> 0 | X8: =SUMIFS('Import Sheet'!CD:CD,'Import Sheet'!$A:$A,$Y$2,'Import Sheet'!$B:$B,$Y8) -> 0 | Y8: 1.02 CAPEX MULTI | Z8: =VLOOKUP(CONCATENATE($Y$2," ",Y8),'Import Sheet'!$EX:$EX,1,0) -> A5A 1.02 CAPEX MULTI
A9: ='Org structure'!E5 -> 1.3 - Donations | C9: =SUMIFS('Import Sheet'!D:D,'Import Sheet'!$A:$A,$Y$2,'Import Sheet'!$B:$B,$Y9) -> 0 | D9: =SUMIFS('Import Sheet'!E:E,'Import Sheet'!$A:$A,$Y$2,'Import Sheet'!$B:$B,$Y9) -> 0 | E9: =SUMIFS('Import Sheet'!U:U,'Import Sheet'!$A:$A,$Y$2,'Import Sheet'!$B:$B,$Y9) -> 0 | F9: =SUMIFS('Import Sheet'!V:V,'Import Sheet'!$A:$A,$Y$2,'Import Sheet'!$B:$B,$Y9) -> 0 | G9: =SUMIFS('Import Sheet'!W:W,'Import Sheet'!$A:$A,$Y$2,'Import Sheet'!$B:$B,$Y9) -> 0 | H9: =SUMIFS('Import Sheet'!AA:AA,'Import Sheet'!$A:$A,$Y$2,'Import Sheet'!$B:$B,$Y9) -> 0 | I9: =SUMIFS('Import Sheet'!BO:BO,'Import Sheet'!$A:$A,$Y$2,'Import Sheet'!$B:$B,$Y9) -> 0 | J9: =Q9+V9 -> 0 | K9: =U9+W9 -> 0 | L9: 0 | Q9: 0 | U9: 0 | V9: =SUMIFS('Import Sheet'!CB:CB,'Import Sheet'!$A:$A,$Y$2,'Import Sheet'!$B:$B,$Y9) -> 0 | W9: =SUMIFS('Import Sheet'!CC:CC,'Import Sheet'!$A:$A,$Y$2,'Import Sheet'!$B:$B,$Y9) -> 0 | X9: =SUMIFS('Import Sheet'!CD:CD,'Import Sheet'!$A:$A,$Y$2,'Import Sheet'!$B:$B,$Y9) -> 0 | Y9: 1.03 CAPEX MULTI | Z9: =VLOOKUP(CONCATENATE($Y$2," ",Y9),'Import Sheet'!$EX:$EX,1,0) -> A5A 1.03 CAPEX MULTI
A10: ='Org structure'!E6 -> 1.4 - Municipal Manager | C10: =SUMIFS('Import Sheet'!D:D,'Import Sheet'!$A:$A,$Y$2,'Import Sheet'!$B:$B,$Y10) -> 0 | D10: =SUMIFS('Import Sheet'!E:E,'Import Sheet'!$A:$A,$Y$2,'Import Sheet'!$B:$B,$Y10) -> 0 | E10: =SUMIFS('Import Sheet'!U:U,'Import Sheet'!$A:$A,$Y$2,'Import Sheet'!$B:$B,$Y10) -> 0 | F10: =SUMIFS('Import Sheet'!V:V,'Import Sheet'!$A:$A,$Y$2,'Import Sheet'!$B:$B,$Y10) -> 0 | G10: =SUMIFS('Import Sheet'!W:W,'Import Sheet'!$A:$A,$Y$2,'Import Sheet'!$B:$B,$Y10) -> 0 | H10: =SUMIFS('Import Sheet'!AA:AA,'Import Sheet'!$A:$A,$Y$2,'Import Sheet'!$B:$B,$Y10) -> 0 | I10: =SUMIFS('Import Sheet'!BO:BO,'Import Sheet'!$A:$A,$Y$2,'Import Sheet'!$B:$B,$Y10) -> 0 | J10: 0 | K10: 0 | L10: 0 | Q10: 0 | U10: 0 | V10: =SUMIFS('Import Sheet'!CB:CB,'Import Sheet'!$A:$A,$Y$2,'Import Sheet'!$B:$B,$Y10) -> 0 | W10: =SUMIFS('Import Sheet'!CC:CC,'Import Sheet'!$A:$A,$Y$2,'Import Sheet'!$B:$B,$Y10) -> 0 | X10: =SUMIFS('Import Sheet'!CD:CD,'Import Sheet'!$A:$A,$Y$2,'Import Sheet'!$B:$B,$Y10) -> 0 | Y10: 1.04 CAPEX MULTI | Z10: =VLOOKUP(CONCATENATE($Y$2," ",Y10),'Import Sheet'!$EX:$EX,1,0) -> A5A 1.04 CAPEX MULTI
A11: ='Org structure'!E7 -> 1.5 - Internal Audit | C11: =SUMIFS('Import Sheet'!D:D,'Import Sheet'!$A:$A,$Y$2,'Import Sheet'!$B:$B,$Y11) -> 0 | D11: =SUMIFS('Import Sheet'!E:E,'Import Sheet'!$A:$A,$Y$2,'Import Sheet'!$B:$B,$Y11) -> 0 | E11: =SUMIFS('Import Sheet'!U:U,'Import Sheet'!$A:$A,$Y$2,'Import Sheet'!$B:$B,$Y11) -> 0 | F11: =SUMIFS('Import Sheet'!V:V,'Import Sheet'!$A:$A,$Y$2,'Import Sheet'!$B:$B,$Y11) -> 0 | G11: =SUMIFS('Import Sheet'!W:W,'Import Sheet'!$A:$A,$Y$2,'Import Sheet'!$B:$B,$Y11) -> 0 | H11: =SUMIFS('Import Sheet'!AA:AA,'Import Sheet'!$A:$A,$Y$2,'Import Sheet'!$B:$B,$Y11) -> 0 | I11: =SUMIFS('Import Sheet'!BO:BO,'Import Sheet'!$A:$A,$Y$2,'Import Sheet'!$B:$B,$Y11) -> 0 | J11: 0 | K11: 0 | L11: =X11 -> 0 | Q11: 0 | U11: 0 | V11: =SUMIFS('Import Sheet'!CB:CB,'Import Sheet'!$A:$A,$Y$2,'Import Sheet'!$B:$B,$Y11) -> 0 | W11: =SUMIFS('Import Sheet'!CC:CC,'Import Sheet'!$A:$A,$Y$2,'Import Sheet'!$B:$B,$Y11) -> 0 | X11: =SUMIFS('Import Sheet'!CD:CD,'Import Sheet'!$A:$A,$Y$2,'Import Sheet'!$B:$B,$Y11) -> 0 | Y11: 1.05 CAPEX MULTI | Z11: =VLOOKUP(CONCATENATE($Y$2," ",Y11),'Import Sheet'!$EX:$EX,1,0) -> A5A 1.05 CAPEX MULTI
A12: ='Org structure'!E8 -> 1.6 - Risk Management | C12: =SUMIFS('Import Sheet'!D:D,'Import Sheet'!$A:$A,$Y$2,'Import Sheet'!$B:$B,$Y12) -> 0 | D12: =SUMIFS('Import Sheet'!E:E,'Import Sheet'!$A:$A,$Y$2,'Import Sheet'!$B:$B,$Y12) -> 0 | E12: =SUMIFS('Import Sheet'!U:U,'Import Sheet'!$A:$A,$Y$2,'Import Sheet'!$B:$B,$Y12) -> 0 | F12: =SUMIFS('Import Sheet'!V:V,'Import Sheet'!$A:$A,$Y$2,'Import Sheet'!$B:$B,$Y12) -> 0 | G12: =SUMIFS('Import Sheet'!W:W,'Import Sheet'!$A:$A,$Y$2,'Import Sheet'!$B:$B,$Y12) -> 0 | H12: =SUMIFS('Import Sheet'!AA:AA,'Import Sheet'!$A:$A,$Y$2,'Import Sheet'!$B:$B,$Y12) -> 0 | I12: =SUMIFS('Import Sheet'!BO:BO,'Import Sheet'!$A:$A,$Y$2,'Import Sheet'!$B:$B,$Y12) -> 0 | J12: 0 | K12: 0 | L12: 0 | Q12: 0 | U12: 0 | V12: =SUMIFS('Import Sheet'!CB:CB,'Import Sheet'!$A:$A,$Y$2,'Import Sheet'!$B:$B,$Y12) -> 0 | W12: =SUMIFS('Import Sheet'!CC:CC,'Import Sheet'!$A:$A,$Y$2,'Import Sheet'!$B:$B,$Y12) -> 0 | X12: =SUMIFS('Import Sheet'!CD:CD,'Import Sheet'!$A:$A,$Y$2,'Import Sheet'!$B:$B,$Y12) -> 0 | Y12: 1.06 CAPEX MULTI | Z12: =VLOOKUP(CONCATENATE($Y$2," ",Y12),'Import Sheet'!$EX:$EX,1,0) -> A5A 1.06 CAPEX MULTI
A13: ='Org structure'!E9 -> 1.7 - PMS | C13: =SUMIFS('Import Sheet'!D:D,'Import Sheet'!$A:$A,$Y$2,'Import Sheet'!$B:$B,$Y13) -> 0 | D13: =SUMIFS('Import Sheet'!E:E,'Import Sheet'!$A:$A,$Y$2,'Import Sheet'!$B:$B,$Y13) -> 0 | E13: =SUMIFS('Import Sheet'!U:U,'Import Sheet'!$A:$A,$Y$2,'Import Sheet'!$B:$B,$Y13) -> 0 | F13: =SUMIFS('Import Sheet'!V:V,'Import Sheet'!$A:$A,$Y$2,'Import Sheet'!$B:$B,$Y13) -> 0 | G13: =SUMIFS('Import Sheet'!W:W,'Import Sheet'!$A:$A,$Y$2,'Import Sheet'!$B:$B,$Y13) -> 0 | H13: =SUMIFS('Import Sheet'!AA:AA,'Import Sheet'!$A:$A,$Y$2,'Import Sheet'!$B:$B,$Y13) -> 0 | I13: =SUMIFS('Import Sheet'!BO:BO,'Import Sheet'!$A:$A,$Y$2,'Import Sheet'!$B:$B,$Y13) -> 0 | J13: 0 | K13: 0 | L13: 0 | Q13: 0 | U13: 0 | V13: =SUMIFS('Import Sheet'!CB:CB,'Import Sheet'!$A:$A,$Y$2,'Import Sheet'!$B:$B,$Y13) -> 0 | W13: =SUMIFS('Import Sheet'!CC:CC,'Import Sheet'!$A:$A,$Y$2,'Import Sheet'!$B:$B,$Y13) -> 0 | X13: =SUMIFS('Import Sheet'!CD:CD,'Import Sheet'!$A:$A,$Y$2,'Import Sheet'!$B:$B,$Y13) -> 0 | Y13: 1.07 CAPEX MULTI | Z13: =VLOOKUP(CONCATENATE($Y$2," ",Y13),'Import Sheet'!$EX:$EX,1,0) -> A5A 1.07 CAPEX MULTI
A14: ='Org structure'!E10 -> 1.8 - Communication & Liaison | C14: =SUMIFS('Import Sheet'!D:D,'Import Sheet'!$A:$A,$Y$2,'Import Sheet'!$B:$B,$Y14) -> 0 | D14: =SUMIFS('Import Sheet'!E:E,'Import Sheet'!$A:$A,$Y$2,'Import Sheet'!$B:$B,$Y14) -> 0 | E14: =SUMIFS('Import Sheet'!U:U,'Import Sheet'!$A:$A,$Y$2,'Import Sheet'!$B:$B,$Y14) -> 0 | F14: =SUMIFS('Import Sheet'!V:V,'Import Sheet'!$A:$A,$Y$2,'Import Sheet'!$B:$B,$Y14) -> 0 | G14: =SUMIFS('Import Sheet'!W:W,'Import Sheet'!$A:$A,$Y$2,'Import Sheet'!$B:$B,$Y14) -> 0 | H14: =SUMIFS('Import Sheet'!AA:AA,'Import Sheet'!$A:$A,$Y$2,'Import Sheet'!$B:$B,$Y14) -> 0 | I14: =SUMIFS('Import Sheet'!BO:BO,'Import Sheet'!$A:$A,$Y$2,'Import Sheet'!$B:$B,$Y14) -> 0 | J14: 0 | K14: 0 | L14: 0 | Q14: 0 | U14: 0 | V14: =SUMIFS('Import Sheet'!CB:CB,'Import Sheet'!$A:$A,$Y$2,'Import Sheet'!$B:$B,$Y14) -> 0 | W14: =SUMIFS('Import Sheet'!CC:CC,'Import Sheet'!$A:$A,$Y$2,'Import Sheet'!$B:$B,$Y14) -> 0 | X14: =SUMIFS('Import Sheet'!CD:CD,'Import Sheet'!$A:$A,$Y$2,'Import Sheet'!$B:$B,$Y14) -> 0 | Y14: 1.08 CAPEX MULTI | Z14: =VLOOKUP(CONCATENATE($Y$2," ",Y14),'Import Sheet'!$EX:$EX,1,0) -> A5A 1.08 CAPEX MULTI
A15: ='Org structure'!E11 ->  | C15: =SUMIFS('Import Sheet'!D:D,'Import Sheet'!$A:$A,$Y$2,'Import Sheet'!$B:$B,$Y15) -> 0 | D15: =SUMIFS('Import Sheet'!E:E,'Import Sheet'!$A:$A,$Y$2,'Import Sheet'!$B:$B,$Y15) -> 0 | E15: =SUMIFS('Import Sheet'!U:U,'Import Sheet'!$A:$A,$Y$2,'Import Sheet'!$B:$B,$Y15) -> 0 | F15: =SUMIFS('Import Sheet'!V:V,'Import Sheet'!$A:$A,$Y$2,'Import Sheet'!$B:$B,$Y15) -> 0 | G15: =SUMIFS('Import Sheet'!W:W,'Import Sheet'!$A:$A,$Y$2,'Import Sheet'!$B:$B,$Y15) -> 0 | H15: =SUMIFS('Import Sheet'!AA:AA,'Import Sheet'!$A:$A,$Y$2,'Import Sheet'!$B:$B,$Y15) -> 0 | I15: =SUMIFS('Import Sheet'!BO:BO,'Import Sheet'!$A:$A,$Y$2,'Import Sheet'!$B:$B,$Y15) -> 0 | J15: 0 | K15: 0 | L15: 0 | Q15: 0 | U15: 0 | V15: =SUMIFS('Import Sheet'!CB:CB,'Import Sheet'!$A:$A,$Y$2,'Import Sheet'!$B:$B,$Y15) -> 0 | W15: =SUMIFS('Import Sheet'!CC:CC,'Import Sheet'!$A:$A,$Y$2,'Import Sheet'!$B:$B,$Y15) -> 0 | X15: =SUMIFS('Import Sheet'!CD:CD,'Import Sheet'!$A:$A,$Y$2,'Import Sheet'!$B:$B,$Y15) -> 0 | Y15: 1.09 CAPEX MULTI | Z15: =VLOOKUP(CONCATENATE($Y$2," ",Y15),'Import Sheet'!$EX:$EX,1,0) -> A5A 1.09 CAPEX MULTI
A16: ='Org structure'!E12 ->  | C16: =SUMIFS('Import Sheet'!D:D,'Import Sheet'!$A:$A,$Y$2,'Import Sheet'!$B:$B,$Y16) -> 0 | D16: =SUMIFS('Import Sheet'!E:E,'Import Sheet'!$A:$A,$Y$2,'Import Sheet'!$B:$B,$Y16) -> 0 | E16: =SUMIFS('Import Sheet'!U:U,'Import Sheet'!$A:$A,$Y$2,'Import Sheet'!$B:$B,$Y16) -> 0 | F16: =SUMIFS('Import Sheet'!V:V,'Import Sheet'!$A:$A,$Y$2,'Import Sheet'!$B:$B,$Y16) -> 0 | G16: =SUMIFS('Import Sheet'!W:W,'Import Sheet'!$A:$A,$Y$2,'Import Sheet'!$B:$B,$Y16) -> 0 | H16: =SUMIFS('Import Sheet'!AA:AA,'Import Sheet'!$A:$A,$Y$2,'Import Sheet'!$B:$B,$Y16) -> 0 | I16: =SUMIFS('Import Sheet'!BO:BO,'Import Sheet'!$A:$A,$Y$2,'Import Sheet'!$B:$B,$Y16) -> 0 | J16: 0 | K16: 0 | L16: 0 | Q16: 0 | U16: 0 | V16: =SUMIFS('Import Sheet'!CB:CB,'Import Sheet'!$A:$A,$Y$2,'Import Sheet'!$B:$B,$Y16) -> 0 | W16: =SUMIFS('Import Sheet'!CC:CC,'Import Sheet'!$A:$A,$Y$2,'Import Sheet'!$B:$B,$Y16) -> 0 | X16: =SUMIFS('Import Sheet'!CD:CD,'Import Sheet'!$A:$A,$Y$2,'Import Sheet'!$B:$B,$Y16) -> 0 | Y16: 1.10 CAPEX MULTI | Z16: =VLOOKUP(CONCATENATE($Y$2," ",Y16),'Import Sheet'!$EX:$EX,1,0) -> A5A 1.10 CAPEX MULTI
A17: ='Org structure'!A3 -> Vote 2 - BUDGET AND TREASURY OFFICE | C17: =SUM(C18:C27) -> 0 | D17: =SUM(D18:D27) -> 0 | E17: -4258.68 | F17: 0 | G17: 0 | H17: 0 | I17: =SUM(I18:I27) -> 0 | J17: 0 | K17: 0 | L17: 0 | N17: =SUM(N18:N27) -> 0 | O17: 0 | P17: 0 | Q17: 0 | R17: 0 | S17: 0 | T17: 0 | U17: 0 | V17: =SUM(V18:V27) -> 0 | W17: =SUM(W18:W27) -> 0 | X17: =SUM(X18:X27) -> 0
A18: ='Org structure'!E14 -> 2.1 - Vehicles | C18: =SUMIFS('Import Sheet'!D:D,'Import Sheet'!$A:$A,$Y$2,'Import Sheet'!$B:$B,$Y18) -> 0 | D18: =SUMIFS('Import Sheet'!E:E,'Import Sheet'!$A:$A,$Y$2,'Import Sheet'!$B:$B,$Y18) -> 0 | E18: =SUMIFS('Import Sheet'!U:U,'Import Sheet'!$A:$A,$Y$2,'Import Sheet'!$B:$B,$Y18) -> 0 | F18: =SUMIFS('Import Sheet'!V:V,'Import Sheet'!$A:$A,$Y$2,'Import Sheet'!$B:$B,$Y18) -> 0 | G18: =SUMIFS('Import Sheet'!W:W,'Import Sheet'!$A:$A,$Y$2,'Import Sheet'!$B:$B,$Y18) -> 0 | H18: =SUMIFS('Import Sheet'!AA:AA,'Import Sheet'!$A:$A,$Y$2,'Import Sheet'!$B:$B,$Y18) -> 0 | I18: =SUMIFS('Import Sheet'!BO:BO,'Import Sheet'!$A:$A,$Y$2,'Import Sheet'!$B:$B,$Y18) -> 0 | J18: =Q18+V18 -> 0 | K18: =U18+W18 -> 0 | L18: =X18 -> 0 | Q18: =SUM(N18:P18) -> 0 | U18: 0 | V18: =SUMIFS('Import Sheet'!CB:CB,'Import Sheet'!$A:$A,$Y$2,'Import Sheet'!$B:$B,$Y18) -> 0 | W18: =SUMIFS('Import Sheet'!CC:CC,'Import Sheet'!$A:$A,$Y$2,'Import Sheet'!$B:$B,$Y18) -> 0 | X18: =SUMIFS('Import Sheet'!CD:CD,'Import Sheet'!$A:$A,$Y$2,'Import Sheet'!$B:$B,$Y18) -> 0 | Y18: 2.01 CAPEX MULTI | Z18: =VLOOKUP(CONCATENATE($Y$2," ",Y18),'Import Sheet'!$EX:$EX,1,0) -> A5A 2.01 CAPEX MULTI
A19: ='Org structure'!E15 -> 2.2 - Financial Services | C19: =SUMIFS('Import Sheet'!D:D,'Import Sheet'!$A:$A,$Y$2,'Import Sheet'!$B:$B,$Y19) -> 0 | D19: =SUMIFS('Import Sheet'!E:E,'Import Sheet'!$A:$A,$Y$2,'Import Sheet'!$B:$B,$Y19) -> 0 | E19: =SUMIFS('Import Sheet'!U:U,'Import Sheet'!$A:$A,$Y$2,'Import Sheet'!$B:$B,$Y19) -> -4258.68 | F19: =SUMIFS('Import Sheet'!V:V,'Import Sheet'!$A:$A,$Y$2,'Import Sheet'!$B:$B,$Y19) -> 0 | G19: =SUMIFS('Import Sheet'!W:W,'Import Sheet'!$A:$A,$Y$2,'Import Sheet'!$B:$B,$Y19) -> 0 | H19: =SUMIFS('Import Sheet'!AA:AA,'Import Sheet'!$A:$A,$Y$2,'Import Sheet'!$B:$B,$Y19) -> 0 | I19: =SUMIFS('Import Sheet'!BO:BO,'Import Sheet'!$A:$A,$Y$2,'Import Sheet'!$B:$B,$Y19) -> 0 | J19: =Q19+V19 -> 0 | K19: =U19+W19 -> 0 | L19: 0 | Q19: 0 | U19: 0 | V19: =SUMIFS('Import Sheet'!CB:CB,'Import Sheet'!$A:$A,$Y$2,'Import Sheet'!$B:$B,$Y19) -> 0 | W19: =SUMIFS('Import Sheet'!CC:CC,'Import Sheet'!$A:$A,$Y$2,'Import Sheet'!$B:$B,$Y19) -> 0 | X19: =SUMIFS('Import Sheet'!CD:CD,'Import Sheet'!$A:$A,$Y$2,'Import Sheet'!$B:$B,$Y19) -> 0 | Y19: 2.02 CAPEX MULTI | Z19: =VLOOKUP(CONCATENATE($Y$2," ",Y19),'Import Sheet'!$EX:$EX,1,0) -> A5A 2.02 CAPEX MULTI
A20: ='Org structure'!E16 -> 2.3 - Budget & Treasury Office | C20: =SUMIFS('Import Sheet'!D:D,'Import Sheet'!$A:$A,$Y$2,'Import Sheet'!$B:$B,$Y20) -> 0 | D20: =SUMIFS('Import Sheet'!E:E,'Import Sheet'!$A:$A,$Y$2,'Import Sheet'!$B:$B,$Y20) -> 0 | E20: =SUMIFS('Import Sheet'!U:U,'Import Sheet'!$A:$A,$Y$2,'Import Sheet'!$B:$B,$Y20) -> 0 | F20: =SUMIFS('Import Sheet'!V:V,'Import Sheet'!$A:$A,$Y$2,'Import Sheet'!$B:$B,$Y20) -> 0 | G20: =SUMIFS('Import Sheet'!W:W,'Import Sheet'!$A:$A,$Y$2,'Import Sheet'!$B:$B,$Y20) -> 0 | H20: =SUMIFS('Import Sheet'!AA:AA,'Import Sheet'!$A:$A,$Y$2,'Import Sheet'!$B:$B,$Y20) -> 0 | I20: =SUMIFS('Import Sheet'!BO:BO,'Import Sheet'!$A:$A,$Y$2,'Import Sheet'!$B:$B,$Y20) -> 0 | J20: 0 | K20: 0 | L20: 0 | Q20: 0 | U20: 0 | V20: =SUMIFS('Import Sheet'!CB:CB,'Import Sheet'!$A:$A,$Y$2,'Import Sheet'!$B:$B,$Y20) -> 0 | W20: =SUMIFS('Import Sheet'!CC:CC,'Import Sheet'!$A:$A,$Y$2,'Import Sheet'!$B:$B,$Y20) -> 0 | X20: =SUMIFS('Import Sheet'!CD:CD,'Import Sheet'!$A:$A,$Y$2,'Import Sheet'!$B:$B,$Y20) -> 0 | Y20: 2.03 CAPEX MULTI | Z20: =VLOOKUP(CONCATENATE($Y$2," ",Y20),'Import Sheet'!$EX:$EX,1,0) -> A5A 2.03 CAPEX MULTI
A21: ='Org structure'!E17 -> 2.4 - Expenditure Unit | C21: =SUMIFS('Import Sheet'!D:D,'Import Sheet'!$A:$A,$Y$2,'Import Sheet'!$B:$B,$Y21) -> 0 | D21: =SUMIFS('Import Sheet'!E:E,'Import Sheet'!$A:$A,$Y$2,'Import Sheet'!$B:$B,$Y21) -> 0 | E21: =SUMIFS('Import Sheet'!U:U,'Import Sheet'!$A:$A,$Y$2,'Import Sheet'!$B:$B,$Y21) -> 0 | F21: =SUMIFS('Import Sheet'!V:V,'Import Sheet'!$A:$A,$Y$2,'Import Sheet'!$B:$B,$Y21) -> 0 | G21: =SUMIFS('Import Sheet'!W:W,'Import Sheet'!$A:$A,$Y$2,'Import Sheet'!$B:$B,$Y21) -> 0 | H21: =SUMIFS('Import Sheet'!AA:AA,'Import Sheet'!$A:$A,$Y$2,'Import Sheet'!$B:$B,$Y21) -> 0 | I21: =SUMIFS('Import Sheet'!BO:BO,'Import Sheet'!$A:$A,$Y$2,'Import Sheet'!$B:$B,$Y21) -> 0 | J21: 0 | K21: =U21+W21 -> 0 | L21: 0 | Q21: 0 | U21: 0 | V21: =SUMIFS('Import Sheet'!CB:CB,'Import Sheet'!$A:$A,$Y$2,'Import Sheet'!$B:$B,$Y21) -> 0 | W21: =SUMIFS('Import Sheet'!CC:CC,'Import Sheet'!$A:$A,$Y$2,'Import Sheet'!$B:$B,$Y21) -> 0 | X21: =SUMIFS('Import Sheet'!CD:CD,'Import Sheet'!$A:$A,$Y$2,'Import Sheet'!$B:$B,$Y21) -> 0 | Y21: 2.04 CAPEX MULTI | Z21: =VLOOKUP(CONCATENATE($Y$2," ",Y21),'Import Sheet'!$EX:$EX,1,0) -> A5A 2.04 CAPEX MULTI
A22: ='Org structure'!E18 -> 2.5 - Supply Chain Management | C22: =SUMIFS('Import Sheet'!D:D,'Import Sheet'!$A:$A,$Y$2,'Import Sheet'!$B:$B,$Y22) -> 0 | D22: =SUMIFS('Import Sheet'!E:E,'Import Sheet'!$A:$A,$Y$2,'Import Sheet'!$B:$B,$Y22) -> 0 | E22: =SUMIFS('Import Sheet'!U:U,'Import Sheet'!$A:$A,$Y$2,'Import Sheet'!$B:$B,$Y22) -> 0 | F22: =SUMIFS('Import Sheet'!V:V,'Import Sheet'!$A:$A,$Y$2,'Import Sheet'!$B:$B,$Y22) -> 0 | G22: =SUMIFS('Import Sheet'!W:W,'Import Sheet'!$A:$A,$Y$2,'Import Sheet'!$B:$B,$Y22) -> 0 | H22: =SUMIFS('Import Sheet'!AA:AA,'Import Sheet'!$A:$A,$Y$2,'Import Sheet'!$B:$B,$Y22) -> 0 | I22: =SUMIFS('Import Sheet'!BO:BO,'Import Sheet'!$A:$A,$Y$2,'Import Sheet'!$B:$B,$Y22) -> 0 | J22: 0 | K22: 0 | L22: 0 | Q22: 0 | U22: 0 | V22: =SUMIFS('Import Sheet'!CB:CB,'Import Sheet'!$A:$A,$Y$2,'Import Sheet'!$B:$B,$Y22) -> 0 | W22: =SUMIFS('Import Sheet'!CC:CC,'Import Sheet'!$A:$A,$Y$2,'Import Sheet'!$B:$B,$Y22) -> 0 | X22: =SUMIFS('Import Sheet'!CD:CD,'Import Sheet'!$A:$A,$Y$2,'Import Sheet'!$B:$B,$Y22) -> 0 | Y22: 2.05 CAPEX MULTI | Z22: =VLOOKUP(CONCATENATE($Y$2," ",Y22),'Import Sheet'!$EX:$EX,1,0) -> A5A 2.05 CAPEX MULTI
A23: ='Org structure'!E19 -> 2.6 - Asset Management Unit | C23: =SUMIFS('Import Sheet'!D:D,'Import Sheet'!$A:$A,$Y$2,'Import Sheet'!$B:$B,$Y23) -> 0 | D23: =SUMIFS('Import Sheet'!E:E,'Import Sheet'!$A:$A,$Y$2,'Import Sheet'!$B:$B,$Y23) -> 0 | E23: =SUMIFS('Import Sheet'!U:U,'Import Sheet'!$A:$A,$Y$2,'Import Sheet'!$B:$B,$Y23) -> 0 | F23: =SUMIFS('Import Sheet'!V:V,'Import Sheet'!$A:$A,$Y$2,'Import Sheet'!$B:$B,$Y23) -> 0 | G23: =SUMIFS('Import Sheet'!W:W,'Import Sheet'!$A:$A,$Y$2,'Import Sheet'!$B:$B,$Y23) -> 0 | H23: =SUMIFS('Import Sheet'!AA:AA,'Import Sheet'!$A:$A,$Y$2,'Import Sheet'!$B:$B,$Y23) -> 0 | I23: =SUMIFS('Import Sheet'!BO:BO,'Import Sheet'!$A:$A,$Y$2,'Import Sheet'!$B:$B,$Y23) -> 0 | J23: 0 | K23: 0 | L23: 0 | Q23: 0 | U23: 0 | V23: =SUMIFS('Import Sheet'!CB:CB,'Import Sheet'!$A:$A,$Y$2,'Import Sheet'!$B:$B,$Y23) -> 0 | W23: =SUMIFS('Import Sheet'!CC:CC,'Import Sheet'!$A:$A,$Y$2,'Import Sheet'!$B:$B,$Y23) -> 0 | X23: =SUMIFS('Import Sheet'!CD:CD,'Import Sheet'!$A:$A,$Y$2,'Import Sheet'!$B:$B,$Y23) -> 0 | Y23: 2.06 CAPEX MULTI | Z23: =VLOOKUP(CONCATENATE($Y$2," ",Y23),'Import Sheet'!$EX:$EX,1,0) -> A5A 2.06 CAPEX MULTI
A24: ='Org structure'!E20 ->  | C24: =SUMIFS('Import Sheet'!D:D,'Import Sheet'!$A:$A,$Y$2,'Import Sheet'!$B:$B,$Y24) -> 0 | D24: =SUMIFS('Import Sheet'!E:E,'Import Sheet'!$A:$A,$Y$2,'Import Sheet'!$B:$B,$Y24) -> 0 | E24: =SUMIFS('Import Sheet'!U:U,'Import Sheet'!$A:$A,$Y$2,'Import Sheet'!$B:$B,$Y24) -> 0 | F24: =SUMIFS('Import Sheet'!V:V,'Import Sheet'!$A:$A,$Y$2,'Import Sheet'!$B:$B,$Y24) -> 0 | G24: =SUMIFS('Import Sheet'!W:W,'Import Sheet'!$A:$A,$Y$2,'Import Sheet'!$B:$B,$Y24) -> 0 | H24: =SUMIFS('Import Sheet'!AA:AA,'Import Sheet'!$A:$A,$Y$2,'Import Sheet'!$B:$B,$Y24) -> 0 | I24: =SUMIFS('Import Sheet'!BO:BO,'Import Sheet'!$A:$A,$Y$2,'Import Sheet'!$B:$B,$Y24) -> 0 | J24: 0 | K24: 0 | L24: 0 | Q24: 0 | U24: 0 | V24: =SUMIFS('Import Sheet'!CB:CB,'Import Sheet'!$A:$A,$Y$2,'Import Sheet'!$B:$B,$Y24) -> 0 | W24: =SUMIFS('Import Sheet'!CC:CC,'Import Sheet'!$A:$A,$Y$2,'Import Sheet'!$B:$B,$Y24) -> 0 | X24: =SUMIFS('Import Sheet'!CD:CD,'Import Sheet'!$A:$A,$Y$2,'Import Sheet'!$B:$B,$Y24) -> 0 | Y24: 2.07 CAPEX MULTI | Z24: =VLOOKUP(CONCATENATE($Y$2," ",Y24),'Import Sheet'!$EX:$EX,1,0) -> A5A 2.07 CAPEX MULTI
A25: ='Org structure'!E21 ->  | C25: =SUMIFS('Import Sheet'!D:D,'Import Sheet'!$A:$A,$Y$2,'Import Sheet'!$B:$B,$Y25) -> 0 | D25: =SUMIFS('Import Sheet'!E:E,'Import Sheet'!$A:$A,$Y$2,'Import Sheet'!$B:$B,$Y25) -> 0 | E25: =SUMIFS('Import Sheet'!U:U,'Import Sheet'!$A:$A,$Y$2,'Import Sheet'!$B:$B,$Y25) -> 0 | F25: =SUMIFS('Import Sheet'!V:V,'Import Sheet'!$A:$A,$Y$2,'Import Sheet'!$B:$B,$Y25) -> 0 | G25: =SUMIFS('Import Sheet'!W:W,'Import Sheet'!$A:$A,$Y$2,'Import Sheet'!$B:$B,$Y25) -> 0 | H25: =SUMIFS('Import Sheet'!AA:AA,'Import Sheet'!$A:$A,$Y$2,'Import Sheet'!$B:$B,$Y25) -> 0 | I25: =SUMIFS('Import Sheet'!BO:BO,'Import Sheet'!$A:$A,$Y$2,'Import Sheet'!$B:$B,$Y25) -> 0 | J25: 0 | K25: 0 | L25: 0 | Q25: 0 | U25: 0 | V25: =SUMIFS('Import Sheet'!CB:CB,'Import Sheet'!$A:$A,$Y$2,'Import Sheet'!$B:$B,$Y25) -> 0 | W25: =SUMIFS('Import Sheet'!CC:CC,'Import Sheet'!$A:$A,$Y$2,'Import Sheet'!$B:$B,$Y25) -> 0 | X25: =SUMIFS('Import Sheet'!CD:CD,'Import Sheet'!$A:$A,$Y$2,'Import Sheet'!$B:$B,$Y25) -> 0 | Y25: 2.08 CAPEX MULTI | Z25: =VLOOKUP(CONCATENATE($Y$2," ",Y25),'Import Sheet'!$EX:$EX,1,0) -> A5A 2.08 CAPEX MULTI
A26: ='Org structure'!E22 ->  | C26: =SUMIFS('Import Sheet'!D:D,'Import Sheet'!$A:$A,$Y$2,'Import Sheet'!$B:$B,$Y26) -> 0 | D26: =SUMIFS('Import Sheet'!E:E,'Import Sheet'!$A:$A,$Y$2,'Import Sheet'!$B:$B,$Y26) -> 0 | E26: =SUMIFS('Import Sheet'!U:U,'Import Sheet'!$A:$A,$Y$2,'Import Sheet'!$B:$B,$Y26) -> 0 | F26: =SUMIFS('Import Sheet'!V:V,'Import Sheet'!$A:$A,$Y$2,'Import Sheet'!$B:$B,$Y26) -> 0 | G26: =SUMIFS('Import Sheet'!W:W,'Import Sheet'!$A:$A,$Y$2,'Import Sheet'!$B:$B,$Y26) -> 0 | H26: =SUMIFS('Import Sheet'!AA:AA,'Import Sheet'!$A:$A,$Y$2,'Import Sheet'!$B:$B,$Y26) -> 0 | I26: =SUMIFS('Import Sheet'!BO:BO,'Import Sheet'!$A:$A,$Y$2,'Import Sheet'!$B:$B,$Y26) -> 0 | J26: 0 | K26: 0 | L26: 0 | Q26: 0 | U26: 0 | V26: =SUMIFS('Import Sheet'!CB:CB,'Import Sheet'!$A:$A,$Y$2,'Import Sheet'!$B:$B,$Y26) -> 0 | W26: =SUMIFS('Import Sheet'!CC:CC,'Import Sheet'!$A:$A,$Y$2,'Import Sheet'!$B:$B,$Y26) -> 0 | X26: =SUMIFS('Import Sheet'!CD:CD,'Import Sheet'!$A:$A,$Y$2,'Import Sheet'!$B:$B,$Y26) -> 0 | Y26: 2.09 CAPEX MULTI | Z26: =VLOOKUP(CONCATENATE($Y$2," ",Y26),'Import Sheet'!$EX:$EX,1,0) -> A5A 2.09 CAPEX MULTI
A27: ='Org structure'!E23 ->  | C27: =SUMIFS('Import Sheet'!D:D,'Import Sheet'!$A:$A,$Y$2,'Import Sheet'!$B:$B,$Y27) -> 0 | D27: =SUMIFS('Import Sheet'!E:E,'Import Sheet'!$A:$A,$Y$2,'Import Sheet'!$B:$B,$Y27) -> 0 | E27: =SUMIFS('Import Sheet'!U:U,'Import Sheet'!$A:$A,$Y$2,'Import Sheet'!$B:$B,$Y27) -> 0 | F27: =SUMIFS('Import Sheet'!V:V,'Import Sheet'!$A:$A,$Y$2,'Import Sheet'!$B:$B,$Y27) -> 0 | G27: =SUMIFS('Import Sheet'!W:W,'Import Sheet'!$A:$A,$Y$2,'Import Sheet'!$B:$B,$Y27) -> 0 | H27: =SUMIFS('Import Sheet'!AA:AA,'Import Sheet'!$A:$A,$Y$2,'Import Sheet'!$B:$B,$Y27) -> 0 | I27: =SUMIFS('Import Sheet'!BO:BO,'Import Sheet'!$A:$A,$Y$2,'Import Sheet'!$B:$B,$Y27) -> 0 | J27: 0 | K27: 0 | L27: 0 | Q27: 0 | U27: 0 | V27: =SUMIFS('Import Sheet'!CB:CB,'Import Sheet'!$A:$A,$Y$2,'Import Sheet'!$B:$B,$Y27) -> 0 | W27: =SUMIFS('Import Sheet'!CC:CC,'Import Sheet'!$A:$A,$Y$2,'Import Sheet'!$B:$B,$Y27) -> 0 | X27: =SUMIFS('Import Sheet'!CD:CD,'Import Sheet'!$A:$A,$Y$2,'Import Sheet'!$B:$B,$Y27) -> 0 | Y27: 2.10 CAPEX MULTI | Z27: =VLOOKUP(CONCATENATE($Y$2," ",Y27),'Import Sheet'!$EX:$EX,1,0) -> A5A 2.10 CAPEX MULTI
A28: ='Org structure'!A4 -> Vote 3 - CORPORATE SERVICES | C28: =SUM(C29:C38) -> 0 | D28: =SUM(D29:D38) -> 0 | E28: -396413.02 | F28: 300000 | G28: 0 | H28: 0 | I28: =SUM(I29:I38) -> -3551.31 | J28: 0 | K28: 0 | L28: 0 | N28: =SUM(N29:N38) -> 0 | O28: 0 | P28: 0 | Q28: 0 | R28: 0 | S28: 0 | T28: 0 | U28: 0 | V28: =SUM(V29:V38) -> 0 | W28: =SUM(W29:W38) -> 0 | X28: =SUM(X29:X38) -> 0
A29: ='Org structure'!E25 -> 3.1 - Information Technology | C29: =SUMIFS('Import Sheet'!D:D,'Import Sheet'!$A:$A,$Y$2,'Import Sheet'!$B:$B,$Y29) -> 0 | D29: =SUMIFS('Import Sheet'!E:E,'Import Sheet'!$A:$A,$Y$2,'Import Sheet'!$B:$B,$Y29) -> 0 | E29: =SUMIFS('Import Sheet'!U:U,'Import Sheet'!$A:$A,$Y$2,'Import Sheet'!$B:$B,$Y29) -> -417820.51 | F29: =SUMIFS('Import Sheet'!V:V,'Import Sheet'!$A:$A,$Y$2,'Import Sheet'!$B:$B,$Y29) -> 300000 | G29: =SUMIFS('Import Sheet'!W:W,'Import Sheet'!$A:$A,$Y$2,'Import Sheet'!$B:$B,$Y29) -> 0 | H29: =SUMIFS('Import Sheet'!AA:AA,'Import Sheet'!$A:$A,$Y$2,'Import Sheet'!$B:$B,$Y29) -> 0 | I29: =SUMIFS('Import Sheet'!BO:BO,'Import Sheet'!$A:$A,$Y$2,'Import Sheet'!$B:$B,$Y29) -> -3551.31 | J29: =Q29+V29 -> 0 | K29: =U29+W29 -> 0 | L29: =X29 -> 0 | Q29: =SUM(N29:P29) -> 0 | U29: 0 | V29: =SUMIFS('Import Sheet'!CB:CB,'Import Sheet'!$A:$A,$Y$2,'Import Sheet'!$B:$B,$Y29) -> 0 | W29: =SUMIFS('Import Sheet'!CC:CC,'Import Sheet'!$A:$A,$Y$2,'Import Sheet'!$B:$B,$Y29) -> 0 | X29: =SUMIFS('Import Sheet'!CD:CD,'Import Sheet'!$A:$A,$Y$2,'Import Sheet'!$B:$B,$Y29) -> 0 | Y29: 3.01 CAPEX MULTI | Z29: =VLOOKUP(CONCATENATE($Y$2," ",Y29),'Import Sheet'!$EX:$EX,1,0) -> A5A 3.01 CAPEX MULTI
A30: ='Org structure'!E26 -> 3.2 - Human Resources | C30: =SUMIFS('Import Sheet'!D:D,'Import Sheet'!$A:$A,$Y$2,'Import Sheet'!$B:$B,$Y30) -> 0 | D30: =SUMIFS('Import Sheet'!E:E,'Import Sheet'!$A:$A,$Y$2,'Import Sheet'!$B:$B,$Y30) -> 0 | E30: =SUMIFS('Import Sheet'!U:U,'Import Sheet'!$A:$A,$Y$2,'Import Sheet'!$B:$B,$Y30) -> 0 | F30: =SUMIFS('Import Sheet'!V:V,'Import Sheet'!$A:$A,$Y$2,'Import Sheet'!$B:$B,$Y30) -> 0 | G30: =SUMIFS('Import Sheet'!W:W,'Import Sheet'!$A:$A,$Y$2,'Import Sheet'!$B:$B,$Y30) -> 0 | H30: =SUMIFS('Import Sheet'!AA:AA,'Import Sheet'!$A:$A,$Y$2,'Import Sheet'!$B:$B,$Y30) -> 0 | I30: =SUMIFS('Import Sheet'!BO:BO,'Import Sheet'!$A:$A,$Y$2,'Import Sheet'!$B:$B,$Y30) -> 0 | J30: 0 | K30: 0 | L30: 0 | Q30: 0 | U30: 0 | V30: =SUMIFS('Import Sheet'!CB:CB,'Import Sheet'!$A:$A,$Y$2,'Import Sheet'!$B:$B,$Y30) -> 0 | W30: =SUMIFS('Import Sheet'!CC:CC,'Import Sheet'!$A:$A,$Y$2,'Import Sheet'!$B:$B,$Y30) -> 0 | X30: =SUMIFS('Import Sheet'!CD:CD,'Import Sheet'!$A:$A,$Y$2,'Import Sheet'!$B:$B,$Y30) -> 0 | Y30: 3.02 CAPEX MULTI | Z30: =VLOOKUP(CONCATENATE($Y$2," ",Y30),'Import Sheet'!$EX:$EX,1,0) -> A5A 3.02 CAPEX MULTI
A31: ='Org structure'!E27 -> 3.3 - Property Services | C31: =SUMIFS('Import Sheet'!D:D,'Import Sheet'!$A:$A,$Y$2,'Import Sheet'!$B:$B,$Y31) -> 0 | D31: =SUMIFS('Import Sheet'!E:E,'Import Sheet'!$A:$A,$Y$2,'Import Sheet'!$B:$B,$Y31) -> 0 | E31: =SUMIFS('Import Sheet'!U:U,'Import Sheet'!$A:$A,$Y$2,'Import Sheet'!$B:$B,$Y31) -> 33407.49 | F31: =SUMIFS('Import Sheet'!V:V,'Import Sheet'!$A:$A,$Y$2,'Import Sheet'!$B:$B,$Y31) -> 0 | G31: =SUMIFS('Import Sheet'!W:W,'Import Sheet'!$A:$A,$Y$2,'Import Sheet'!$B:$B,$Y31) -> 0 | H31: =SUMIFS('Import Sheet'!AA:AA,'Import Sheet'!$A:$A,$Y$2,'Import Sheet'!$B:$B,$Y31) -> 0 | I31: =SUMIFS('Import Sheet'!BO:BO,'Import Sheet'!$A:$A,$Y$2,'Import Sheet'!$B:$B,$Y31) -> 0 | J31: 0 | K31: 0 | L31: 0 | Q31: 0 | U31: =SUM(R31:T31) -> 0 | V31: =SUMIFS('Import Sheet'!CB:CB,'Import Sheet'!$A:$A,$Y$2,'Import Sheet'!$B:$B,$Y31) -> 0 | W31: =SUMIFS('Import Sheet'!CC:CC,'Import Sheet'!$A:$A,$Y$2,'Import Sheet'!$B:$B,$Y31) -> 0 | X31: =SUMIFS('Import Sheet'!CD:CD,'Import Sheet'!$A:$A,$Y$2,'Import Sheet'!$B:$B,$Y31) -> 0 | Y31: 3.03 CAPEX MULTI | Z31: =VLOOKUP(CONCATENATE($Y$2," ",Y31),'Import Sheet'!$EX:$EX,1,0) -> A5A 3.03 CAPEX MULTI
A32: ='Org structure'!E28 -> 3.4 - Administration | C32: =SUMIFS('Import Sheet'!D:D,'Import Sheet'!$A:$A,$Y$2,'Import Sheet'!$B:$B,$Y32) -> 0 | D32: =SUMIFS('Import Sheet'!E:E,'Import Sheet'!$A:$A,$Y$2,'Import Sheet'!$B:$B,$Y32) -> 0 | E32: =SUMIFS('Import Sheet'!U:U,'Import Sheet'!$A:$A,$Y$2,'Import Sheet'!$B:$B,$Y32) -> 0 | F32: =SUMIFS('Import Sheet'!V:V,'Import Sheet'!$A:$A,$Y$2,'Import Sheet'!$B:$B,$Y32) -> 0 | G32: =SUMIFS('Import Sheet'!W:W,'Import Sheet'!$A:$A,$Y$2,'Import Sheet'!$B:$B,$Y32) -> 0 | H32: =SUMIFS('Import Sheet'!AA:AA,'Import Sheet'!$A:$A,$Y$2,'Import Sheet'!$B:$B,$Y32) -> 0 | I32: =SUMIFS('Import Sheet'!BO:BO,'Import Sheet'!$A:$A,$Y$2,'Import Sheet'!$B:$B,$Y32) -> 0 | J32: 0 | K32: =U32+W32 -> 0 | L32: 0 | Q32: 0 | U32: 0 | V32: =SUMIFS('Import Sheet'!CB:CB,'Import Sheet'!$A:$A,$Y$2,'Import Sheet'!$B:$B,$Y32) -> 0 | W32: =SUMIFS('Import Sheet'!CC:CC,'Import Sheet'!$A:$A,$Y$2,'Import Sheet'!$B:$B,$Y32) -> 0 | X32: =SUMIFS('Import Sheet'!CD:CD,'Import Sheet'!$A:$A,$Y$2,'Import Sheet'!$B:$B,$Y32) -> 0 | Y32: 3.04 CAPEX MULTI | Z32: =VLOOKUP(CONCATENATE($Y$2," ",Y32),'Import Sheet'!$EX:$EX,1,0) -> A5A 3.04 CAPEX MULTI
A33: ='Org structure'!E29 -> 3.5 - Security Services | C33: =SUMIFS('Import Sheet'!D:D,'Import Sheet'!$A:$A,$Y$2,'Import Sheet'!$B:$B,$Y33) -> 0 | D33: =SUMIFS('Import Sheet'!E:E,'Import Sheet'!$A:$A,$Y$2,'Import Sheet'!$B:$B,$Y33) -> 0 | E33: =SUMIFS('Import Sheet'!U:U,'Import Sheet'!$A:$A,$Y$2,'Import Sheet'!$B:$B,$Y33) -> -12000 | F33: =SUMIFS('Import Sheet'!V:V,'Import Sheet'!$A:$A,$Y$2,'Import Sheet'!$B:$B,$Y33) -> 0 | G33: =SUMIFS('Import Sheet'!W:W,'Import Sheet'!$A:$A,$Y$2,'Import Sheet'!$B:$B,$Y33) -> 0 | H33: =SUMIFS('Import Sheet'!AA:AA,'Import Sheet'!$A:$A,$Y$2,'Import Sheet'!$B:$B,$Y33) -> 0 | I33: =SUMIFS('Import Sheet'!BO:BO,'Import Sheet'!$A:$A,$Y$2,'Import Sheet'!$B:$B,$Y33) -> 0 | J33: =Q33+V33 -> 0 | K33: 0 | L33: 0 | Q33: 0 | U33: 0 | V33: =SUMIFS('Import Sheet'!CB:CB,'Import Sheet'!$A:$A,$Y$2,'Import Sheet'!$B:$B,$Y33) -> 0 | W33: =SUMIFS('Import Sheet'!CC:CC,'Import Sheet'!$A:$A,$Y$2,'Import Sheet'!$B:$B,$Y33) -> 0 | X33: =SUMIFS('Import Sheet'!CD:CD,'Import Sheet'!$A:$A,$Y$2,'Import Sheet'!$B:$B,$Y33) -> 0 | Y33: 3.05 CAPEX MULTI | Z33: =VLOOKUP(CONCATENATE($Y$2," ",Y33),'Import Sheet'!$EX:$EX,1,0) -> A5A 3.05 CAPEX MULTI
A34: ='Org structure'!E30 ->  | C34: =SUMIFS('Import Sheet'!D:D,'Import Sheet'!$A:$A,$Y$2,'Import Sheet'!$B:$B,$Y34) -> 0 | D34: =SUMIFS('Import Sheet'!E:E,'Import Sheet'!$A:$A,$Y$2,'Import Sheet'!$B:$B,$Y34) -> 0 | E34: =SUMIFS('Import Sheet'!U:U,'Import Sheet'!$A:$A,$Y$2,'Import Sheet'!$B:$B,$Y34) -> 0 | F34: =SUMIFS('Import Sheet'!V:V,'Import Sheet'!$A:$A,$Y$2,'Import Sheet'!$B:$B,$Y34) -> 0 | G34: =SUMIFS('Import Sheet'!W:W,'Import Sheet'!$A:$A,$Y$2,'Import Sheet'!$B:$B,$Y34) -> 0 | H34: =SUMIFS('Import Sheet'!AA:AA,'Import Sheet'!$A:$A,$Y$2,'Import Sheet'!$B:$B,$Y34) -> 0 | I34: =SUMIFS('Import Sheet'!BO:BO,'Import Sheet'!$A:$A,$Y$2,'Import Sheet'!$B:$B,$Y34) -> 0 | J34: 0 | K34: 0 | L34: 0 | Q34: 0 | U34: 0 | V34: =SUMIFS('Import Sheet'!CB:CB,'Import Sheet'!$A:$A,$Y$2,'Import Sheet'!$B:$B,$Y34) -> 0 | W34: =SUMIFS('Import Sheet'!CC:CC,'Import Sheet'!$A:$A,$Y$2,'Import Sheet'!$B:$B,$Y34) -> 0 | X34: =SUMIFS('Import Sheet'!CD:CD,'Import Sheet'!$A:$A,$Y$2,'Import Sheet'!$B:$B,$Y34) -> 0 | Y34: 3.06 CAPEX MULTI | Z34: =VLOOKUP(CONCATENATE($Y$2," ",Y34),'Import Sheet'!$EX:$EX,1,0) -> A5A 3.06 CAPEX MULTI
A35: ='Org structure'!E31 ->  | C35: =SUMIFS('Import Sheet'!D:D,'Import Sheet'!$A:$A,$Y$2,'Import Sheet'!$B:$B,$Y35) -> 0 | D35: =SUMIFS('Import Sheet'!E:E,'Import Sheet'!$A:$A,$Y$2,'Import Sheet'!$B:$B,$Y35) -> 0 | E35: =SUMIFS('Import Sheet'!U:U,'Import Sheet'!$A:$A,$Y$2,'Import Sheet'!$B:$B,$Y35) -> 0 | F35: =SUMIFS('Import Sheet'!V:V,'Import Sheet'!$A:$A,$Y$2,'Import Sheet'!$B:$B,$Y35) -> 0 | G35: =SUMIFS('Import Sheet'!W:W,'Import Sheet'!$A:$A,$Y$2,'Import Sheet'!$B:$B,$Y35) -> 0 | H35: =SUMIFS('Import Sheet'!AA:AA,'Import Sheet'!$A:$A,$Y$2,'Import Sheet'!$B:$B,$Y35) -> 0 | I35: =SUMIFS('Import Sheet'!BO:BO,'Import Sheet'!$A:$A,$Y$2,'Import Sheet'!$B:$B,$Y35) -> 0 | J35: 0 | K35: 0 | L35: 0 | Q35: 0 | U35: 0 | V35: =SUMIFS('Import Sheet'!CB:CB,'Import Sheet'!$A:$A,$Y$2,'Import Sheet'!$B:$B,$Y35) -> 0 | W35: =SUMIFS('Import Sheet'!CC:CC,'Import Sheet'!$A:$A,$Y$2,'Import Sheet'!$B:$B,$Y35) -> 0 | X35: =SUMIFS('Import Sheet'!CD:CD,'Import Sheet'!$A:$A,$Y$2,'Import Sheet'!$B:$B,$Y35) -> 0 | Y35: 3.07 CAPEX MULTI | Z35: =VLOOKUP(CONCATENATE($Y$2," ",Y35),'Import Sheet'!$EX:$EX,1,0) -> A5A 3.07 CAPEX MULTI
